Workbook

Sheet Sample Report (hidden)
A2: Date
A3: Hen
A4: Program
A5: Start at 999999
A6: Sequence component 1 | B6: Time 1 | C6: Seqeunce Component 2 | D6: Time 2 | E6: Seqeunce Component 3 | F6: Time 3 | G6: Correct 0 = No 1=Yes | J6: Seqeunce | K6: Time
A7: 12 | B7: 7 | C7: 12 | D7: 42 | E7: 13 | F7: 18 | G7: if 77 new line, if 31 or 41 = yes new line on 77, | J7: =string of Seqeunce compponent 1, 2 & 3 | K7: =time 3
A8: This continues until ther is a 1 on its own to indicate start of summary data
J9: 10-19 =1
A10: Summary Data | J10: 20-29 =2
A11: Correct | B11: Incorrect | C11: Rft | D11: total | E11: Av Correct | F11: Av Incorrect | G11: Percent correct | H11: Time | J11: in this example the seqeunce would be 111
A12: 40 | B12: 33 | C12: 40 | D12: 73 | E12: 23.95 | F12: 15 | G12: 54 | H12: 806

Sheet Summary
A2: Day | B2: Date | C2: Average Response Rate | D2: Target % | E2: RF for non correct sequence | F2: U Value | K2: Block 1 | L2: Block 2 | M2: Block 3 | N2: Block 4 | O2: Block 5 | P2: Block 6
A3: 1 | B3: ='!MA13C00.095'!B2:C2 -> <date> | C3: =('!MA13C00.095'!F8/60)/'!MA13C00.095'!Q3 -> 2.625 | D3: ='!MA13C00.095'!N20/'!MA13C00.095'!Q3 -> 0 | E3: =SUM('!MA13C00.095'!L20:Q20)/'!MA13C00.095'!Q3 -> 0.5 | F3: ='!MA13C00.095'!Q16 -> 1 | J3: Average Response Rate | K3: =AVERAGE(C3:C7) -> 2.208811926 | L3: =AVERAGE(C8:C12) -> 2.306752701 | M3: =AVERAGE(C13:C17) -> 2.100212611 | N3: =AVERAGE(C18:C22) -> 2.109144179 | O3: =AVERAGE(C23:C27) -> 2.111049421 | P3: =AVERAGE(C28:C32) -> 2.154763656
A4: 2 | B4: ='!MA14C20.095'!B2:C2 -> <date> | C4: =('!MA14C20.095'!F193/60)/'!MA14C20.095'!Q3 -> 2.136720143 | D4: ='!MA14C20.095'!N20/'!MA14C20.095'!Q3 -> 0 | E4: =SUM('!MA14C20.095'!L20:Q20)/'!MA14C20.095'!Q3 -> 0.9251336898 | F4: ='!MA14C20.095'!Q16 -> 0.1381194035 | J4: Target % | K4: =AVERAGE(D3:D7) -> 0 | L4: =AVERAGE(D8:D12) -> 0 | M4: =AVERAGE(D13:D17) -> 0 | N4: =AVERAGE(D18:D22) -> 0 | O4: =AVERAGE(D23:D27) -> 0 | P4: =AVERAGE(D28:D32) -> 0
A5: 3 | B5: ='!MA15B50.095'!B2:C2 -> <date> | C5: =('!MA15B50.095'!F197/60)/'!MA15B50.095'!Q3 -> 2.090663176 | D5: ='!MA15B50.095'!N20/'!MA15B50.095'!Q3 -> 0 | E5: =SUM('!MA15B50.095'!L20:Q20)/'!MA15B50.095'!Q3 -> 1.439790576 | F5: ='!MA15B50.095'!Q16 -> 0.1319474001 | J5: CCRF | K5: =AVERAGE(E3:E7) -> 1.04522361 | L5: =AVERAGE(E8:E12) -> 1.208776767 | M5: =AVERAGE(E13:E17) -> 1.233866105 | N5: =AVERAGE(E18:E22) -> 1.238681452 | O5: =AVERAGE(E23:E27) -> 1.238209961 | P5: =AVERAGE(E28:E32) -> 1.148277517
A6: 4 | B6: ='!MA16B10.095'!B2:C2 -> <date> | C6: =('!MA16B10.095'!F195/60)/'!MA16B10.095'!Q3 -> 2.111728395 | D6: ='!MA16B10.095'!N20/'!MA16B10.095'!Q3 -> 0 | E6: =SUM('!MA16B10.095'!L20:Q20)/'!MA16B10.095'!Q3 -> 1.44973545 | F6: ='!MA16B10.095'!Q16 -> 0.1433591918 | J6: U Value | K6: =AVERAGE(F3:F7) -> 0.3100923141 | L6: =AVERAGE(F8:F12) -> 0.2013149995 | M6: =AVERAGE(F13:F17) -> 0.1428755382 | N6: =AVERAGE(F18:F22) -> 0.1369855973 | O6: =AVERAGE(F23:F27) -> 0.1345162557 | P6: =AVERAGE(F28:F32) -> 0.136653325
A7: 5 | B7: ='!MA17E00.095'!B2:C2 -> <date> | C7: =('!MA17E00.095'!F198/60)/'!MA17E00.095'!Q3 -> 2.079947917 | D7: ='!MA17E00.095'!N20/'!MA17E00.095'!Q3 -> 0 | E7: =SUM('!MA17E00.095'!L20:Q20)/'!MA17E00.095'!Q3 -> 0.9114583333 | F7: ='!MA17E00.095'!Q16 -> 0.1370355748
A8: 6 | B8: ='!MA18B40.095'!B2:C2 -> <date> | C8: =('!MA18B40.095'!F190/60)/'!MA18B40.095'!Q3 -> 2.173460145 | D8: ='!MA18B40.095'!N20/'!MA18B40.095'!Q3 -> 0 | E8: =SUM('!MA18B40.095'!L20:Q20)/'!MA18B40.095'!Q3 -> 1.47826087 | F8: ='!MA18B40.095'!Q16 -> 0.1524536287
A9: 7 | B9: ='!MA19B10.095'!B2:C2 -> <date> | C9: =('!MA19B10.095'!F189/60)/'!MA19B10.095'!Q3 -> 2.183060109 | D9: ='!MA19B10.095'!N20/'!MA19B10.095'!Q3 -> 0 | E9: =SUM('!MA19B10.095'!L20:Q20)/'!MA19B10.095'!Q3 -> 0.9398907104 | F9: ='!MA19B10.095'!Q16 -> 0.1724959816 | G9: =K3 -> 2.208811926 | H9: =L3 -> 2.306752701 | I9: =M3 -> 2.100212611 | J9: =N3 -> 2.109144179 | K9: =O3 -> 2.111049421 | L9: =P3 -> 2.154763656 | M9: =K4 -> 0 | N9: =L4 -> 0 | O9: =M4 -> 0 | P9: =N4 -> 0 | Q9: =O4 -> 0 | R9: =P4 -> 0 | S9: =K6 -> 0.3100923141 | T9: =L6 -> 0.2013149995 | U9: =M6 -> 0.1428755382 | V9: =N6 -> 0.1369855973 | W9: =O6 -> 0.1345162557 | X9: =P6 -> 0.136653325
A10: 8 | B10: ='!MA20A40.095'!B2:C2 -> <date> | C10: =('!MA20A40.095'!F181/60)/'!MA20A40.095'!Q3 -> 2.28 | D10: ='!MA20A40.095'!N20/'!MA20A40.095'!Q3 -> 0 | E10: =SUM('!MA20A40.095'!L20:Q20)/'!MA20A40.095'!Q3 -> 1.594285714 | F10: ='!MA20A40.095'!Q16 -> 0.1987572654
A11: 9 | B11: ='!MA21B10.095'!B2:C2 -> <date> | C11: =('!MA21B10.095'!F165/60)/'!MA21B10.095'!Q3 -> 2.509119497 | D11: ='!MA21B10.095'!N20/'!MA21B10.095'!Q3 -> 0 | E11: =SUM('!MA21B10.095'!L20:Q20)/'!MA21B10.095'!Q3 -> 1.031446541 | F11: ='!MA21B10.095'!Q16 -> 0.2646265196
A12: 10 | B12: ='!MA24B00.095'!B2:C2 -> <date> | C12: =('!MA24B00.095'!F173/60)/'!MA24B00.095'!Q3 -> 2.388123752 | D12: ='!MA24B00.095'!N20/'!MA24B00.095'!Q3 -> 0 | E12: =SUM('!MA24B00.095'!L20:Q20)/'!MA24B00.095'!Q3 -> 1 | F12: ='!MA24B00.095'!Q16 -> 0.2182416024
A13: 11 | B13: ='!MA25A50.095'!B2:C2 -> <date> | C13: =('!MA25A50.095'!F191/60)/'!MA25A50.095'!Q3 -> 2.158468468 | D13: ='!MA25A50.095'!N20/'!MA25A50.095'!Q3 -> 0 | E13: =SUM('!MA25A50.095'!L20:Q20)/'!MA25A50.095'!Q3 -> 0.9351351351 | F13: ='!MA25A50.095'!Q16 -> 0.1424348397
A14: 12 | B14: ='!MA28B00.095'!B2:C2 -> <date> | C14: =('!MA28B00.095'!F197/60)/'!MA28B00.095'!Q3 -> 2.092233857 | D14: ='!MA28B00.095'!N20/'!MA28B00.095'!Q3 -> 0 | E14: =SUM('!MA28B00.095'!L20:Q20)/'!MA28B00.095'!Q3 -> 1.439790576 | F14: ='!MA28B00.095'!Q16 -> 0.1514943464
A15: 13 | B15: ='!MA30930.095'!B2:C2 -> <date> | C15: =('!MA30930.095'!F201/60)/'!MA30930.095'!Q3 -> 2.050683761 | D15: ='!MA30930.095'!N20/'!MA30930.095'!Q3 -> 0 | E15: =SUM('!MA30930.095'!L20:Q20)/'!MA30930.095'!Q3 -> 0.9025641026 | F15: ='!MA30930.095'!Q16 -> 0.1418985785
A16: 14 | B16: ='!MA31C30.095'!B2:C2 -> <date> | C16: =('!MA31C30.095'!F195/60)/'!MA31C30.095'!Q3 -> 2.094385965 | D16: ='!MA31C30.095'!N20/'!MA31C30.095'!Q3 -> 0 | E16: =SUM('!MA31C30.095'!L20:Q20)/'!MA31C30.095'!Q3 -> 1.442105263 | F16: ='!MA31C30.095'!Q16 -> 0.1376621113
A17: 15 | B17: ='!MB02B10.095'!B2:C2 -> <date> | C17: =('!MB02B10.095'!F194/60)/'!MB02B10.095'!Q3 -> 2.105291005 | D17: ='!MB02B10.095'!N20/'!MB02B10.095'!Q3 -> 0 | E17: =SUM('!MB02B10.095'!L20:Q20)/'!MB02B10.095'!Q3 -> 1.44973545 | F17: ='!MB02B10.095'!Q16 -> 0.140887815
A18: 16 | B18: ='!MB04A20.095'!B2:C2 -> <date> | C18: =('!MB04A20.095'!F201/60)/'!MB04A20.095'!Q3 -> 2.051367521 | D18: ='!MB04A20.095'!N20/'!MB04A20.095'!Q3 -> 0 | E18: =SUM('!MB04A20.095'!L20:Q20)/'!MB04A20.095'!Q3 -> 1.415384615 | F18: ='!MB04A20.095'!Q16 -> 0.1368662674
A19: 17 | B19: ='!MB05A20.095'!B2:C2 -> <date> | C19: =('!MB05A20.095'!F196/60)/'!MB05A20.095'!Q3 -> 2.098421053 | D19: ='!MB05A20.095'!N20/'!MB05A20.095'!Q3 -> 0 | E19: =SUM('!MB05A20.095'!L20:Q20)/'!MB05A20.095'!Q3 -> 0.9157894737 | F19: ='!MB05A20.095'!Q16 -> 0.1546380806
A20: 18 | B20: ='!MB07B20.095'!B2:C2 -> <date> | C20: =('!MB07B20.095'!F196/60)/'!MB07B20.095'!Q3 -> 2.082984293 | D20: ='!MB07B20.095'!N20/'!MB07B20.095'!Q3 -> 0 | E20: =SUM('!MB07B20.095'!L20:Q20)/'!MB07B20.095'!Q3 -> 0.9162303665 | F20: ='!MB07B20.095'!Q16 -> 0.1360078321
A21: 19 | B21: ='!MB09B30.095'!B2:C2 -> <date> | C21: =('!MB09B30.095'!F192/60)/'!MB09B30.095'!Q3 -> 2.142114695 | D21: ='!MB09B30.095'!N20/'!MB09B30.095'!Q3 -> 0 | E21: =SUM('!MB09B30.095'!L20:Q20)/'!MB09B30.095'!Q3 -> 1.467741935 | F21: ='!MB09B30.095'!Q16 -> 0.1286189515
A22: 20 | B22: ='!MB10930.095'!B2:C2 -> <date> | C22: =('!MB10930.095'!F190/60)/'!MB10930.095'!Q3 -> 2.170833333 | D22: ='!MB10930.095'!N20/'!MB10930.095'!Q3 -> 0 | E22: =SUM('!MB10930.095'!L20:Q20)/'!MB10930.095'!Q3 -> 1.47826087 | F22: ='!MB10930.095'!Q16 -> 0.1287968551
A23: 21 | B23: ='!MB11940.095'!B2:C2 -> <date> | C23: =('!MB11940.095'!F194/60)/'!MB11940.095'!Q3 -> 2.120035461 | D23: ='!MB11940.095'!N20/'!MB11940.095'!Q3 -> 0 | E23: =SUM('!MB11940.095'!L20:Q20)/'!MB11940.095'!Q3 -> 0.9255319149 | F23: ='!MB11940.095'!Q16 -> 0.1394024137
A24: 22 | B24: ='!MB12920.095'!B2:C2 -> <date> | C24: =('!MB12920.095'!F196/60)/'!MB12920.095'!Q3 -> 2.104035088 | D24: ='!MB12920.095'!N20/'!MB12920.095'!Q3 -> 0 | E24: =SUM('!MB12920.095'!L20:Q20)/'!MB12920.095'!Q3 -> 1.442105263 | F24: ='!MB12920.095'!Q16 -> 0.1347665498
A25: 23 | B25: ='!MB13B10.095'!B2:C2 -> <date> | C25: =('!MB13B10.095'!F197/60)/'!MB13B10.095'!Q3 -> 2.091448517 | D25: ='!MB13B10.095'!N20/'!MB13B10.095'!Q3 -> 0 | E25: =SUM('!MB13B10.095'!L20:Q20)/'!MB13B10.095'!Q3 -> 0.9162303665 | F25: ='!MB13B10.095'!Q16 -> 0.1352568795
A26: 24 | B26: ='!MB15A50.095'!B2:C2 -> <date> | C26: =('!MB15A50.095'!F194/60)/'!MB15A50.095'!Q3 -> 2.125265957 | D26: ='!MB15A50.095'!N20/'!MB15A50.095'!Q3 -> 0 | E26: =SUM('!MB15A50.095'!L20:Q20)/'!MB15A50.095'!Q3 -> 1.457446809 | F26: ='!MB15A50.095'!Q16 -> 0.1320995917
A27: 25 | B27: ='!MB16A30.095'!B2:C2 -> <date> | C27: =('!MB16A30.095'!F195/60)/'!MB16A30.095'!Q3 -> 2.114462081 | D27: ='!MB16A30.095'!N20/'!MB16A30.095'!Q3 -> 0 | E27: =SUM('!MB16A30.095'!L20:Q20)/'!MB16A30.095'!Q3 -> 1.44973545 | F27: ='!MB16A30.095'!Q16 -> 0.1310558435
A28: 26 | B28: ='!MB17B10.095'!B2:C2 -> <date> | C28: =('!MB17B10.095'!F189/60)/'!MB17B10.095'!Q3 -> 2.174681239 | D28: ='!MB17B10.095'!N20/'!MB17B10.095'!Q3 -> 0 | E28: =SUM('!MB17B10.095'!L20:Q20)/'!MB17B10.095'!Q3 -> 0.9398907104 | F28: ='!MB17B10.095'!Q16 -> 0.1446370919
A29: 27 | B29: ='!MB18A40.095'!B2:C2 -> <date> | C29: =('!MB18A40.095'!F189/60)/'!MB18A40.095'!Q3 -> 2.184335155 | D29: ='!MB18A40.095'!N20/'!MB18A40.095'!Q3 -> 0 | E29: =SUM('!MB18A40.095'!L20:Q20)/'!MB18A40.095'!Q3 -> 0.9398907104 | F29: ='!MB18A40.095'!Q16 -> 0.1432118348
A30: 28 | B30: ='!MB19A10.095'!B2:C2 -> <date> | C30: =('!MB19A10.095'!F189/60)/'!MB19A10.095'!Q3 -> 2.179690346 | D30: ='!MB19A10.095'!N20/'!MB19A10.095'!Q3 -> 0 | E30: =SUM('!MB19A10.095'!L20:Q20)/'!MB19A10.095'!Q3 -> 1.486338798 | F30: ='!MB19A10.095'!Q16 -> 0.1267785811
A31: 29 | B31: ='!MB20B50.095'!B2:C2 -> <date> | C31: =('!MB20B50.095'!F194/60)/'!MB20B50.095'!Q3 -> 2.119414894 | D31: ='!MB20B50.095'!N20/'!MB20B50.095'!Q3 -> 0 | E31: =SUM('!MB20B50.095'!L20:Q20)/'!MB20B50.095'!Q3 -> 0.9255319149 | F31: ='!MB20B50.095'!Q16 -> 0.1314932228
A32: 30 | B32: ='!MB21900.095'!B2:C2 -> <date> | C32: =('!MB21900.095'!F195/60)/'!MB21900.095'!Q3 -> 2.115696649 | D32: ='!MB21900.095'!N20/'!MB21900.095'!Q3 -> 0 | E32: =SUM('!MB21900.095'!L20:Q20)/'!MB21900.095'!Q3 -> 1.44973545 | F32: ='!MB21900.095'!Q16 -> 0.1371458942

Sheet Start
F1: Use Folder 51 | H1: Auto Clean Up | J1: Correct sequence
F2: FALSE | H2: TRUE | J2: 122
A4: Working with Folder | G4: Process All/Or Pick A number: ALL or an integer
A5: E:\Hen Data\Raw Data\95_175\phase 2 any\ | G5: ALL
A6: Filenames:
A7: !MB21900.095 | G7: Paint Cells
A8: !MA13C00.095 | G8: FALSE
A9: !MA14C20.095
A10: !MA15B50.095
A11: !MA16B10.095
A12: !MA17E00.095
A13: !MA18B40.095
A14: !MA19B10.095
A15: !MA20A40.095
A16: !MA21B10.095
A17: !MA24B00.095
A18: !MA25A50.095
A19: !MA28B00.095
A20: !MA30930.095
A21: !MA31C30.095
A22: !MB02B10.095
A23: !MB04A20.095
A24: !MB05A20.095
A25: !MB07B20.095
A26: !MB09B30.095
A27: !MB10930.095
A28: !MB11940.095
A29: !MB12920.095
A30: !MB13B10.095
A31: !MB15A50.095
A32: !MB16A30.095
A33: !MB17B10.095
A34: !MB18A40.095
A35: !MB19A10.095
A36: !MB20B50.095

Sheet !MA13C00.095
A1: Report for:!MA13C00.095
A2: Date: | B2: <date>
A3: Hen: | B3: <hen> | F3: Correct Sequence | G3: =Start!J2 -> 122 | P3: Total Sequences in Data | Q3: =4994-COUNTBLANK(L7:L5000) -> 2 | V3: Total Sequences in Block Data | W3: =COUNTA(L6:L7) -> 2 | AA3: Total Sequences in Block Data | AB3: =COUNTA(L7:L7) -> 1 | AF3: Total Sequences in Block Data | AG3: =COUNTA(L7:L8) -> 2 | AK3: Total Sequences in Block Data | AL3: =COUNTA(L7:L8) -> 2 | AP3: Total Sequences in Block Data | AQ3: =COUNTA(L8:L8) -> 1 | AU3: Total Sequences in Block Data | AV3: =COUNTA(L8:L9) -> 1
P4: Total Sequences in Summary | Q4: =SUM(O7:O14) -> 2 | V4: Total Sequences in Block Summary | W4: =SUM(U7:U14) -> 1 | AA4: Total Sequences in Block Summary | AB4: =SUM(Z7:Z14) -> 1 | AF4: Total Sequences in Block Summary | AG4: =SUM(AE7:AE14) -> 2 | AK4: Total Sequences in Block Summary | AL4: =SUM(AJ7:AJ14) -> 2 | AP4: Total Sequences in Block Summary | AQ4: =SUM(AO7:AO14) -> 1 | AU4: Total Sequences in Block Summary | AV4: =SUM(AT7:AT14) -> 1
T5: Block 1 | Y5: Block 2 | AD5: Block 3 | AI5: Block 4 | AN5: Block 5 | AS5: Block 6
A6: Sequence Component 1 | B6: Time 1 | C6: Sequence Component 2 | D6: Time 2 | E6: Sequence Component 3 | F6: Time 3 | G6: Sequence Component 4 | H6: Time 4 | I6: Sequence Component 5 | J6: Time 5 | K6: Correct? 0=No 1=Yes | L6: Sequence | N6: Frequency | P6: Relative Frequency | Q6: Variability | T6: Frequency | V6: Relative Frequency | W6: Variability | Y6: Frequency | AA6: Relative Frequency | AB6: Variability | AD6: Frequency | AF6: Relative Frequency | AG6: Variability | AI6: Frequency | AK6: Relative Frequency | AL6: Variability | AN6: Frequency | AP6: Relative Frequency | AQ6: Variability | AS6: Frequency | AU6: Relative Frequency | AV6: Variability
A7: 22 | B7: 204 | C7: 24 | D7: 206 | E7: 23 | F7: 208 | K7: 0 | L7: 222 | N7: 111 | O7: =COUNTIF($L$7:$L$500,N7) -> 1 | P7: =O7/$Q$4 -> 0.5 | Q7: =IF(P7=0,0,(P7*((LOG(P7))/LOG(2)))) -> -0.5 | T7: =N7 -> 111 | U7: =COUNTIF(L6:L7,T7) -> 0 | V7: =U7/(W4-U10) -> 0 | W7: =IF(V7=0,0,(V7*((LOG(V7))/LOG(2)))) -> 0 | Y7: =N7 -> 111 | Z7: =COUNTIF(L7:L7,Y7) -> 0 | AA7: =Z7/(AB4-Z10) -> 0 | AB7: =IF(AA7=0,0,(AA7*((LOG(AA7))/LOG(2)))) -> 0 | AD7: =N7 -> 111 | AE7: =COUNTIF(L7:L8,AD7) -> 1 | AF7: =AE7/(AG4-AE10) -> 0.5 | AG7: =IF(AF7=0,0,(AF7*((LOG(AF7))/LOG(2)))) -> -0.5 | AI7: =N7 -> 111 | AJ7: =COUNTIF(L7:L8,AI7) -> 1 | AK7: =AJ7/(AL4-AJ10) -> 0.5 | AL7: =IF(AK7=0,0,(AK7*((LOG(AK7))/LOG(2)))) -> -0.5 | AN7: =N7 -> 111 | AO7: =COUNTIF(L8:L8,AN7) -> 1 | AP7: =AO7/(AQ4-AO10) -> 1 | AQ7: =IF(AP7=0,0,(AP7*((LOG(AP7))/LOG(2)))) -> 0 | AS7: =N7 -> 111 | AT7: =COUNTIF(L8:L9,AS7) -> 1 | AU7: =AT7/(AV4-AT10) -> 1 | AV7: =IF(AU7=0,0,(AU7*((LOG(AU7))/LOG(2)))) -> 0
A8: 11 | B8: 304 | C8: 11 | D8: 306 | E8: 12 | F8: 315 | K8: 0 | L8: 111 | N8: 112 | O8: =COUNTIF($L$7:$L$500,N8) -> 0 | P8: =O8/$Q$4 -> 0 | Q8: =IF(P8=0,0,(P8*((LOG(P8))/LOG(2)))) -> 0 | T8: =N8 -> 112 | U8: =COUNTIF(L6:L7,T8) -> 0 | V8: =U8/(W4-U10) -> 0 | W8: =IF(V8=0,0,(V8*((LOG(V8))/LOG(2)))) -> 0 | Y8: =N8 -> 112 | Z8: =COUNTIF(L7:L7,Y8) -> 0 | AA8: =Z8/(AB4-Z10) -> 0 | AB8: =IF(AA8=0,0,(AA8*((LOG(AA8))/LOG(2)))) -> 0 | AD8: =N8 -> 112 | AE8: =COUNTIF(L7:L8,AD8) -> 0 | AF8: =AE8/(AG4-AE10) -> 0 | AG8: =IF(AF8=0,0,(AF8*((LOG(AF8))/LOG(2)))) -> 0 | AI8: =N8 -> 112 | AJ8: =COUNTIF(L7:L8,AI8) -> 0 | AK8: =AJ8/(AL4-AJ10) -> 0 | AL8: =IF(AK8=0,0,(AK8*((LOG(AK8))/LOG(2)))) -> 0 | AN8: =N8 -> 112 | AO8: =COUNTIF(L8:L8,AN8) -> 0 | AP8: =AO8/(AQ4-AO10) -> 0 | AQ8: =IF(AP8=0,0,(AP8*((LOG(AP8))/LOG(2)))) -> 0 | AS8: =N8 -> 112 | AT8: =COUNTIF(L8:L9,AS8) -> 0 | AU8: =AT8/(AV4-AT10) -> 0 | AV8: =IF(AU8=0,0,(AU8*((LOG(AU8))/LOG(2)))) -> 0
N9: 121 | O9: =COUNTIF($L$7:$L$500,N9) -> 0 | P9: =O9/$Q$4 -> 0 | Q9: =IF(P9=0,0,(P9*((LOG(P9))/LOG(2)))) -> 0 | T9: =N9 -> 121 | U9: =COUNTIF(L6:L7,T9) -> 0 | V9: =U9/(W4-U10) -> 0 | W9: =IF(V9=0,0,(V9*((LOG(V9))/LOG(2)))) -> 0 | Y9: =N9 -> 121 | Z9: =COUNTIF(L7:L7,Y9) -> 0 | AA9: =Z9/(AB4-Z10) -> 0 | AB9: =IF(AA9=0,0,(AA9*((LOG(AA9))/LOG(2)))) -> 0 | AD9: =N9 -> 121 | AE9: =COUNTIF(L7:L8,AD9) -> 0 | AF9: =AE9/(AG4-AE10) -> 0 | AG9: =IF(AF9=0,0,(AF9*((LOG(AF9))/LOG(2)))) -> 0 | AI9: =N9 -> 121 | AJ9: =COUNTIF(L7:L8,AI9) -> 0 | AK9: =AJ9/(AL4-AJ10) -> 0 | AL9: =IF(AK9=0,0,(AK9*((LOG(AK9))/LOG(2)))) -> 0 | AN9: =N9 -> 121 | AO9: =COUNTIF(L8:L8,AN9) -> 0 | AP9: =AO9/(AQ4-AO10) -> 0 | AQ9: =IF(AP9=0,0,(AP9*((LOG(AP9))/LOG(2)))) -> 0 | AS9: =N9 -> 121 | AT9: =COUNTIF(L8:L9,AS9) -> 0 | AU9: =AT9/(AV4-AT10) -> 0 | AV9: =IF(AU9=0,0,(AU9*((LOG(AU9))/LOG(2)))) -> 0
A10: 22 | B10: 14 | C10: 13 | D10: 24 | E10: 14 | F10: 32 | K10: 0 | N10: 122 | O10: =COUNTIF($L$7:$L$500,N10) -> 0 | P10: =O10/$Q$4 -> 0 | Q10: =IF(P10=0,0,(P10*((LOG(P10))/LOG(2)))) -> 0 | T10: =N10 -> 122 | U10: =COUNTIF(L6:L7,T10) -> 0 | Y10: =N10 -> 122 | Z10: =COUNTIF(L7:L7,Y10) -> 0 | AD10: =N10 -> 122 | AE10: =COUNTIF(L7:L8,AD10) -> 0 | AI10: =N10 -> 122 | AJ10: =COUNTIF(L7:L8,AI10) -> 0 | AN10: =N10 -> 122 | AO10: =COUNTIF(L8:L8,AN10) -> 0 | AS10: =N10 -> 122 | AT10: =COUNTIF(L8:L9,AS10) -> 0
A11: 22 | B11: 137 | C11: 13 | D11: 148 | E11: 14 | F11: 157 | K11: 0 | N11: 211 | O11: =COUNTIF($L$7:$L$500,N11) -> 0 | P11: =O11/$Q$4 -> 0 | Q11: =IF(P11=0,0,(P11*((LOG(P11))/LOG(2)))) -> 0 | T11: =N11 -> 211 | U11: =COUNTIF(L6:L7,T11) -> 0 | V11: =U11/(W4-U10) -> 0 | W11: =IF(V11=0,0,(V11*((LOG(V11))/LOG(2)))) -> 0 | Y11: =N11 -> 211 | Z11: =COUNTIF(L7:L7,Y11) -> 0 | AA11: =Z11/(AB4-Z10) -> 0 | AB11: =IF(AA11=0,0,(AA11*((LOG(AA11))/LOG(2)))) -> 0 | AD11: =N11 -> 211 | AE11: =COUNTIF(L7:L8,AD11) -> 0 | AF11: =AE11/(AG4-AE10) -> 0 | AG11: =IF(AF11=0,0,(AF11*((LOG(AF11))/LOG(2)))) -> 0 | AI11: =N11 -> 211 | AJ11: =COUNTIF(L7:L8,AI11) -> 0 | AK11: =AJ11/(AL4-AJ10) -> 0 | AL11: =IF(AK11=0,0,(AK11*((LOG(AK11))/LOG(2)))) -> 0 | AN11: =N11 -> 211 | AO11: =COUNTIF(L8:L8,AN11) -> 0 | AP11: =AO11/(AQ4-AO10) -> 0 | AQ11: =IF(AP11=0,0,(AP11*((LOG(AP11))/LOG(2)))) -> 0 | AS11: =N11 -> 211 | AT11: =COUNTIF(L8:L9,AS11) -> 0 | AU11: =AT11/(AV4-AT10) -> 0 | AV11: =IF(AU11=0,0,(AU11*((LOG(AU11))/LOG(2)))) -> 0
A12: 22 | B12: 260 | C12: 13 | D12: 268 | E12: 14 | F12: 275 | K12: 0 | N12: 212 | O12: =COUNTIF($L$7:$L$500,N12) -> 0 | P12: =O12/$Q$4 -> 0 | Q12: =IF(P12=0,0,(P12*((LOG(P12))/LOG(2)))) -> 0 | T12: =N12 -> 212 | U12: =COUNTIF(L6:L7,T12) -> 0 | V12: =U12/(W4-U10) -> 0 | W12: =IF(V12=0,0,(V12*((LOG(V12))/LOG(2)))) -> 0 | Y12: =N12 -> 212 | Z12: =COUNTIF(L7:L7,Y12) -> 0 | AA12: =Z12/(AB4-Z10) -> 0 | AB12: =IF(AA12=0,0,(AA12*((LOG(AA12))/LOG(2)))) -> 0 | AD12: =N12 -> 212 | AE12: =COUNTIF(L7:L8,AD12) -> 0 | AF12: =AE12/(AG4-AE10) -> 0 | AG12: =IF(AF12=0,0,(AF12*((LOG(AF12))/LOG(2)))) -> 0 | AI12: =N12 -> 212 | AJ12: =COUNTIF(L7:L8,AI12) -> 0 | AK12: =AJ12/(AL4-AJ10) -> 0 | AL12: =IF(AK12=0,0,(AK12*((LOG(AK12))/LOG(2)))) -> 0 | AN12: =N12 -> 212 | AO12: =COUNTIF(L8:L8,AN12) -> 0 | AP12: =AO12/(AQ4-AO10) -> 0 | AQ12: =IF(AP12=0,0,(AP12*((LOG(AP12))/LOG(2)))) -> 0 | AS12: =N12 -> 212 | AT12: =COUNTIF(L8:L9,AS12) -> 0 | AU12: =AT12/(AV4-AT10) -> 0 | AV12: =IF(AU12=0,0,(AU12*((LOG(AU12))/LOG(2)))) -> 0
A13: 11 | B13: 395 | C13: 11 | D13: 405 | E13: 12 | F13: 416 | K13: 0 | N13: 221 | O13: =COUNTIF($L$7:$L$500,N13) -> 0 | P13: =O13/$Q$4 -> 0 | Q13: =IF(P13=0,0,(P13*((LOG(P13))/LOG(2)))) -> 0 | T13: =N13 -> 221 | U13: =COUNTIF(L6:L7,T13) -> 0 | V13: =U13/(W4-U10) -> 0 | W13: =IF(V13=0,0,(V13*((LOG(V13))/LOG(2)))) -> 0 | Y13: =N13 -> 221 | Z13: =COUNTIF(L7:L7,Y13) -> 0 | AA13: =Z13/(AB4-Z10) -> 0 | AB13: =IF(AA13=0,0,(AA13*((LOG(AA13))/LOG(2)))) -> 0 | AD13: =N13 -> 221 | AE13: =COUNTIF(L7:L8,AD13) -> 0 | AF13: =AE13/(AG4-AE10) -> 0 | AG13: =IF(AF13=0,0,(AF13*((LOG(AF13))/LOG(2)))) -> 0 | AI13: =N13 -> 221 | AJ13: =COUNTIF(L7:L8,AI13) -> 0 | AK13: =AJ13/(AL4-AJ10) -> 0 | AL13: =IF(AK13=0,0,(AK13*((LOG(AK13))/LOG(2)))) -> 0 | AN13: =N13 -> 221 | AO13: =COUNTIF(L8:L8,AN13) -> 0 | AP13: =AO13/(AQ4-AO10) -> 0 | AQ13: =IF(AP13=0,0,(AP13*((LOG(AP13))/LOG(2)))) -> 0 | AS13: =N13 -> 221 | AT13: =COUNTIF(L8:L9,AS13) -> 0 | AU13: =AT13/(AV4-AT10) -> 0 | AV13: =IF(AU13=0,0,(AU13*((LOG(AU13))/LOG(2)))) -> 0
A14: 22 | B14: 516 | C14: 13 | D14: 527 | E14: 14 | F14: 535 | K14: 0 | N14: 222 | O14: =COUNTIF($L$7:$L$500,N14) -> 1 | P14: =O14/$Q$4 -> 0.5 | Q14: =IF(P14=0,0,(P14*((LOG(P14))/LOG(2)))) -> -0.5 | T14: =N14 -> 222 | U14: =COUNTIF(L6:L7,T14) -> 1 | V14: =U14/(W4-U10) -> 1 | W14: =IF(V14=0,0,(V14*((LOG(V14))/LOG(2)))) -> 0 | Y14: =N14 -> 222 | Z14: =COUNTIF(L7:L7,Y14) -> 1 | AA14: =Z14/(AB4-Z10) -> 1 | AB14: =IF(AA14=0,0,(AA14*((LOG(AA14))/LOG(2)))) -> 0 | AD14: =N14 -> 222 | AE14: =COUNTIF(L7:L8,AD14) -> 1 | AF14: =AE14/(AG4-AE10) -> 0.5 | AG14: =IF(AF14=0,0,(AF14*((LOG(AF14))/LOG(2)))) -> -0.5 | AI14: =N14 -> 222 | AJ14: =COUNTIF(L7:L8,AI14) -> 1 | AK14: =AJ14/(AL4-AJ10) -> 0.5 | AL14: =IF(AK14=0,0,(AK14*((LOG(AK14))/LOG(2)))) -> -0.5 | AN14: =N14 -> 222 | AO14: =COUNTIF(L8:L8,AN14) -> 0 | AP14: =AO14/(AQ4-AO10) -> 0 | AQ14: =IF(AP14=0,0,(AP14*((LOG(AP14))/LOG(2)))) -> 0 | AS14: =N14 -> 222 | AT14: =COUNTIF(L8:L9,AS14) -> 0 | AU14: =AT14/(AV4-AT10) -> 0 | AV14: =IF(AU14=0,0,(AU14*((LOG(AU14))/LOG(2)))) -> 0
A15: 22 | B15: 652 | C15: 13 | D15: 663 | E15: 14 | F15: 673 | K15: 0 | P15: =SUM(P7:P14) -> 1 | Q15: =-SUM(Q7:Q14) -> 1 | V15: =SUM(V7:V14) -> 1 | W15: =-SUM(W7:W14) -> 0 | AA15: =SUM(AA7:AA14) -> 1 | AB15: =-SUM(AB7:AB14) -> 0 | AF15: =SUM(AF7:AF14) -> 1 | AG15: =-SUM(AG7:AG14) -> 1 | AK15: =SUM(AK7:AK14) -> 1 | AL15: =-SUM(AL7:AL14) -> 1 | AP15: =SUM(AP7:AP14) -> 1 | AQ15: =-SUM(AQ7:AQ14) -> 0 | AU15: =SUM(AU7:AU14) -> 1 | AV15: =-SUM(AV7:AV14) -> 0
A16: 11 | B16: 789 | C16: 11 | D16: 796 | E16: 12 | F16: 806 | K16: 0 | P16: U= | Q16: =Q15/(LOG(Q4)/LOG(2)) -> 1 | V16: U1= | W16: =W15/(LOG(W4)/LOG(2)) ->  | AA16: U2= | AB16: =AB15/(LOG(AB4)/LOG(2)) ->  | AF16: U3= | AG16: =AG15/(LOG(AG4)/LOG(2)) -> 1 | AK16: U4= | AL16: =AL15/(LOG(AL4)/LOG(2)) -> 1 | AP16: U5= | AQ16: =AQ15/(LOG(AQ4)/LOG(2)) ->  | AU16: U6= | AV16: =AV15/(LOG(AV4)/LOG(2)) -> 
A17: 22 | B17: 911 | C17: 13 | D17: 923 | E17: 14 | F17: 930 | K17: 0
A18: 11 | B18: 1046 | C18: 11 | D18: 1056 | E18: 12 | F18: 1067 | K18: 0
A19: 11 | B19: 1200 | C19: 11 | D19: 1207 | E19: 12 | F19: 1216 | K19: 0 | N19: Total Target Seq
A20: 22 | B20: 1316 | C20: 13 | D20: 1326 | E20: 14 | F20: 1336 | K20: 0 | N20: =COUNTIF(L7:L8,G3) -> 0 | P20: 0 | Q20: 1 | R20: 0 | S20: 0 | T20: 1 | U20: 0
A21: 22 | B21: 1439 | C21: 13 | D21: 1450 | E21: 14 | F21: 1456 | K21: 0 | P21: % of reinforcement given in 6 equal intervals based on number of trials
A22: 22 | B22: 1561 | C22: 13 | D22: 1572 | E22: 14 | F22: 1579 | K22: 0 | P22: %_1 | Q22: %_2 | R22: %_3 | S22: %_4 | T22: %_5 | U22: %_6
A23: 22 | B23: 1675 | C23: 13 | D23: 1701 | E23: 14 | F23: 1708 | K23: 0 | O23: target sequence | P23: =$G$3 -> 122 | Q23: =$G$3 -> 122 | R23: =$G$3 -> 122 | S23: =$G$3 -> 122 | T23: =$G$3 -> 122 | U23: =$G$3 -> 122
A24: 22 | B24: 1808 | C24: 13 | D24: 1819 | E24: 14 | F24: 1826 | K24: 0 | O24: total reinforcement | P24: =U10 -> 0 | Q24: =Z10 -> 0 | R24: =AE10 -> 0 | S24: =AJ10 -> 0 | T24: =AO10 -> 0 | U24: =AT10 -> 0
A25: 11 | B25: 1937 | C25: 11 | D25: 1945 | E25: 12 | F25: 1954 | K25: 0 | O25: % target
A26: 22 | B26: 2050 | C26: 13 | D26: 2062 | E26: 14 | F26: 2071 | K26: 0 | O26: CCRF
A27: 22 | B27: 2167 | C27: 13 | D27: 2179 | E27: 14 | F27: 2187 | K27: 0 | O27: % CCRf
A28: 11 | B28: 2291 | C28: 11 | D28: 2295 | E28: 12 | F28: 2306 | K28: 0 | O28: average response rate | P28: =F6/P20 ->  | Q28: =(F7-F6)/Q20 ->  | R28: =(F7-F7)/R20 ->  | S28: =(F7-F7)/S20 ->  | T28: =(F8-F7)/T20 -> 107 | U28: =(F8-F8)/U20 -> 
A29: 22 | B29: 2409 | C29: 13 | D29: 2421 | E29: 14 | F29: 2428 | K29: 0
A30: 22 | B30: 2531 | C30: 13 | D30: 2542 | E30: 14 | F30: 2549 | K30: 0
A31: 22 | B31: 2651 | C31: 13 | D31: 2662 | E31: 14 | F31: 2669 | K31: 0
A32: 22 | B32: 2766 | C32: 24 | D32: 2774 | E32: 23 | F32: 2781 | K32: 0
A33: 22 | B33: 2883 | C33: 13 | D33: 2895 | E33: 14 | F33: 2902 | K33: 0
A34: 22 | B34: 3008 | C34: 13 | D34: 3018 | E34: 14 | F34: 3025 | K34: 0
A35: 11 | B35: 3137 | C35: 11 | D35: 3145 | E35: 12 | F35: 3155 | K35: 0
A36: 22 | B36: 3251 | C36: 24 | D36: 3266 | E36: 14 | F36: 3277 | K36: 0
A37: 11 | B37: 3398 | C37: 11 | D37: 3406 | E37: 12 | F37: 3414 | K37: 0
A38: 22 | B38: 3517 | C38: 13 | D38: 3528 | E38: 14 | F38: 3535 | K38: 0
A39: 22 | B39: 3632 | C39: 13 | D39: 3657 | E39: 14 | F39: 3665 | K39: 0
A40: 22 | B40: 3768 | C40: 13 | D40: 3780 | E40: 14 | F40: 3787 | K40: 0
A41: 22 | B41: 3894 | C41: 13 | D41: 3905 | E41: 14 | F41: 3913 | K41: 0
A42: 22 | B42: 4015 | C42: 13 | D42: 4024 | E42: 14 | F42: 4031 | K42: 0
A43: 22 | B43: 4135 | C43: 13 | D43: 4144 | E43: 14 | F43: 4149 | K43: 0
A44: 11 | B44: 4264 | C44: 11 | D44: 4272 | E44: 12 | F44: 4280 | K44: 0
A45: 22 | B45: 4380 | C45: 13 | D45: 4392 | E45: 14 | F45: 4398 | K45: 0
A46: 22 | B46: 4503 | C46: 13 | D46: 4515 | E46: 14 | F46: 4524 | K46: 0
A47: 11 | B47: 4641 | C47: 11 | D47: 4648 | E47: 12 | F47: 4659 | K47: 0
A48: 22 | B48: 4763 | C48: 13 | D48: 4774 | E48: 14 | F48: 4782 | K48: 0
A49: 11 | B49: 4895 | C49: 11 | D49: 4903 | E49: 12 | F49: 4911 | K49: 0
A50: 22 | B50: 5015 | C50: 13 | D50: 5026 | E50: 14 | F50: 5033 | K50: 0
A51: 11 | B51: 5144 | C51: 11 | D51: 5151 | E51: 12 | F51: 5159 | K51: 0
A52: 22 | B52: 5255 | C52: 13 | D52: 5266 | E52: 14 | F52: 5273 | K52: 0
A53: 11 | B53: 5388 | C53: 11 | D53: 5395 | E53: 12 | F53: 5404 | K53: 0
A54: 11 | B54: 5517 | C54: 11 | D54: 5525 | E54: 12 | F54: 5532 | K54: 0
A55: 11 | B55: 5648 | C55: 11 | D55: 5655 | E55: 12 | F55: 5665 | K55: 0
A56: 11 | B56: 5778 | C56: 11 | D56: 5783 | E56: 12 | F56: 5793 | K56: 0
A57: 11 | B57: 5907 | C57: 11 | D57: 5912 | E57: 12 | F57: 5920 | K57: 0
A58: 11 | B58: 6042 | C58: 11 | D58: 6050 | E58: 12 | F58: 6058 | K58: 0
A59: 11 | B59: 6178 | C59: 11 | D59: 6185 | E59: 12 | F59: 6196 | K59: 0
A60: 22 | B60: 6321 | C60: 13 | D60: 6334 | E60: 14 | F60: 6341 | K60: 0
A61: 11 | B61: 6454 | C61: 11 | D61: 6462 | E61: 12 | F61: 6472 | K61: 0
A62: 11 | B62: 6586 | C62: 11 | D62: 6593 | E62: 12 | F62: 6600 | K62: 0
A63: 11 | B63: 6711 | C63: 11 | D63: 6719 | E63: 12 | F63: 6729 | K63: 0
A64: 22 | B64: 6847 | C64: 13 | D64: 6858 | E64: 14 | F64: 6865 | K64: 0
A65: 22 | B65: 6966 | C65: 13 | D65: 6984 | E65: 14 | F65: 6992 | K65: 0
A66: 22 | B66: 7095 | C66: 13 | D66: 7106 | E66: 14 | F66: 7114 | K66: 0
A67: 22 | B67: 7210 | C67: 13 | D67: 7222 | E67: 14 | F67: 7230 | K67: 0
A68: 22 | B68: 7334 | C68: 13 | D68: 7343 | E68: 14 | F68: 7349 | K68: 0
A69: 22 | B69: 7449 | C69: 24 | D69: 7454 | E69: 14 | F69: 7464 | K69: 0
A70: 11 | B70: 7592 | C70: 11 | D70: 7602 | E70: 12 | F70: 7613 | K70: 0
A71: 11 | B71: 7737 | C71: 11 | D71: 7744 | E71: 12 | F71: 7754 | K71: 0
A72: 22 | B72: 7859 | C72: 13 | D72: 7870 | E72: 14 | F72: 7878 | K72: 0
A73: 22 | B73: 7981 | C73: 13 | D73: 7990 | E73: 14 | F73: 7995 | K73: 0
A74: 22 | B74: 8103 | C74: 13 | D74: 8183 | E74: 14 | F74: 8195 | K74: 0
A75: 22 | B75: 8295 | C75: 13 | D75: 8315 | E75: 14 | F75: 8323 | K75: 0
A76: 11 | B76: 8437 | C76: 11 | D76: 8446 | E76: 12 | F76: 8456 | K76: 0
A77: 11 | B77: 8569 | C77: 11 | D77: 8577 | E77: 12 | F77: 8587 | K77: 0
A78: 22 | B78: 8697 | C78: 13 | D78: 8713 | E78: 14 | F78: 8720 | K78: 0
A79: 11 | B79: 8834 | C79: 11 | D79: 8839 | E79: 12 | F79: 8847 | K79: 0
A80: 22 | B80: 8952 | C80: 13 | D80: 8963 | E80: 14 | F80: 8970 | K80: 0
A81: 11 | B81: 9090 | C81: 11 | D81: 9098 | E81: 12 | F81: 9108 | K81: 0
A82: 22 | B82: 9217 | C82: 13 | D82: 9228 | E82: 14 | F82: 9232 | K82: 0
A83: 11 | B83: 9350 | C83: 11 | D83: 9357 | E83: 12 | F83: 9365 | K83: 0
A84: 11 | B84: 9479 | C84: 11 | D84: 9486 | E84: 12 | F84: 9493 | K84: 0
A85: 22 | B85: 9602 | C85: 13 | D85: 9613 | E85: 14 | F85: 9621 | K85: 0
A86: 22 | B86: 9726 | C86: 13 | D86: 9737 | E86: 14 | F86: 9744 | K86: 0
A87: 11 | B87: 9860 | C87: 11 | D87: 9866 | E87: 12 | F87: 9877 | K87: 0
A88: 22 | B88: 9981 | C88: 13 | D88: 9989 | E88: 14 | F88: 9995 | K88: 0
A89: 11 | B89: 10102 | C89: 11 | D89: 10109 | E89: 12 | F89: 10117 | K89: 0
A90: 22 | B90: 10221 | C90: 13 | D90: 10232 | E90: 14 | F90: 10240 | K90: 0
A91: 22 | B91: 10339 | C91: 13 | D91: 10350 | E91: 14 | F91: 10357 | K91: 0
A92: 22 | B92: 10462 | C92: 13 | D92: 10473 | E92: 14 | F92: 10480 | K92: 0
A93: 11 | B93: 10590 | C93: 11 | D93: 10597 | E93: 12 | F93: 10604 | K93: 0
A94: 22 | B94: 10713 | C94: 13 | D94: 10724 | E94: 14 | F94: 10732 | K94: 0
A95: 22 | B95: 10831 | C95: 13 | D95: 10843 | E95: 14 | F95: 10849 | K95: 0
A96: 11 | B96: 10967 | C96: 11 | D96: 10974 | E96: 12 | F96: 10985 | K96: 0
A97: 22 | B97: 11090 | C97: 13 | D97: 11101 | E97: 14 | F97: 11105 | K97: 0
A98: 11 | B98: 11227 | C98: 11 | D98: 11234 | E98: 12 | F98: 11244 | K98: 0
A99: 11 | B99: 11356 | C99: 11 | D99: 11364 | E99: 12 | F99: 11371 | K99: 0
A100: 22 | B100: 11484 | C100: 13 | D100: 11495 | E100: 14 | F100: 11503 | K100: 0
A101: 22 | B101: 11602 | C101: 13 | D101: 11613 | E101: 14 | F101: 11620 | K101: 0
A102: 22 | B102: 11729 | C102: 13 | D102: 11737 | E102: 14 | F102: 11745 | K102: 0
A103: 11 | B103: 11849 | C103: 11 | D103: 11856 | E103: 12 | F103: 11862 | K103: 0
A104: 11 | B104: 11968 | C104: 11 | D104: 11973 | E104: 12 | F104: 11980 | K104: 0
A105: 22 | B105: 12086 | C105: 13 | D105: 12105 | E105: 14 | F105: 12112 | K105: 0
A106: 22 | B106: 12214 | C106: 13 | D106: 12225 | E106: 14 | F106: 12232 | K106: 0
A107: 22 | B107: 12332 | C107: 13 | D107: 12347 | E107: 14 | F107: 12355 | K107: 0
A108: 11 | B108: 12463 | C108: 11 | D108: 12468 | E108: 12 | F108: 12475 | K108: 0
A109: 22 | B109: 12578 | C109: 13 | D109: 12591 | E109: 14 | F109: 12599 | K109: 0
A110: 11 | B110: 12719 | C110: 11 | D110: 12726 | E110: 12 | F110: 12734 | K110: 0
A111: 11 | B111: 12865 | C111: 11 | D111: 12872 | E111: 12 | F111: 12882 | K111: 0
A112: 22 | B112: 12989 | C112: 13 | D112: 13000 | E112: 14 | F112: 13006 | K112: 0
A113: 11 | B113: 13115 | C113: 11 | D113: 13120 | E113: 12 | F113: 13126 | K113: 0
A114: 22 | B114: 13231 | C114: 13 | D114: 13240 | E114: 14 | F114: 13247 | K114: 0
A115: 11 | B115: 13362 | C115: 11 | D115: 13369 | E115: 12 | F115: 13376 | K115: 0
A116: 22 | B116: 13486 | C116: 13 | D116: 13494 | E116: 14 | F116: 13502 | K116: 0
A117: 22 | B117: 13598 | C117: 13 | D117: 13617 | E117: 14 | F117: 13625 | K117: 0
A118: 11 | B118: 13741 | C118: 11 | D118: 13748 | E118: 12 | F118: 13757 | K118: 0
A119: 22 | B119: 13873 | C119: 13 | D119: 13881 | E119: 14 | F119: 13890 | K119: 0
A120: 11 | B120: 14002 | C120: 11 | D120: 14010 | E120: 12 | F120: 14018 | K120: 0
A121: 22 | B121: 14122 | C121: 13 | D121: 14130 | E121: 14 | F121: 14135 | K121: 0
A122: 11 | B122: 14247 | C122: 11 | D122: 14254 | E122: 12 | F122: 14264 | K122: 0
A123: 22 | B123: 14366 | C123: 13 | D123: 14376 | E123: 14 | F123: 14384 | K123: 0
A124: 11 | B124: 14506 | C124: 11 | D124: 14514 | E124: 12 | F124: 14524 | K124: 0
A125: 11 | B125: 14644 | C125: 11 | D125: 14652 | E125: 12 | F125: 14666 | K125: 0
A126: 11 | B126: 14778 | C126: 11 | D126: 14785 | E126: 12 | F126: 14792 | K126: 0
A127: 11 | B127: 14907 | C127: 11 | D127: 14914 | E127: 12 | F127: 14922 | K127: 0
A128: 22 | B128: 15024 | C128: 13 | D128: 15036 | E128: 14 | F128: 15041 | K128: 0
A129: 22 | B129: 15150 | C129: 13 | D129: 15159 | E129: 14 | F129: 15167 | K129: 0
A130: 22 | B130: 15274 | C130: 13 | D130: 15286 | E130: 14 | F130: 15294 | K130: 0
A131: 11 | B131: 15415 | C131: 11 | D131: 15422 | E131: 12 | F131: 15431 | K131: 0
A132: 22 | B132: 15536 | C132: 13 | D132: 15556 | E132: 14 | F132: 15564 | K132: 0
A133: 11 | B133: 15671 | C133: 11 | D133: 15681 | E133: 12 | F133: 15692 | K133: 0
A134: 11 | B134: 15806 | C134: 11 | D134: 15811 | E134: 12 | F134: 15818 | K134: 0
A135: 22 | B135: 15922 | C135: 13 | D135: 15938 | E135: 14 | F135: 15943 | K135: 0
A136: 11 | B136: 16060 | C136: 11 | D136: 16067 | E136: 12 | F136: 16077 | K136: 0
A137: 11 | B137: 16202 | C137: 11 | D137: 16209 | E137: 12 | F137: 16220 | K137: 0
A138: 22 | B138: 16327 | C138: 13 | D138: 16338 | E138: 14 | F138: 16346 | K138: 0
A139: 22 | B139: 16467 | C139: 13 | D139: 16476 | E139: 14 | F139: 16481 | K139: 0
A140: 22 | B140: 16582 | C140: 13 | D140: 16595 | E140: 14 | F140: 16602 | K140: 0
A141: 22 | B141: 16702 | C141: 13 | D141: 16712 | E141: 14 | F141: 16721 | K141: 0
A142: 22 | B142: 16828 | C142: 13 | D142: 16843 | E142: 14 | F142: 16850 | K142: 0
A143: 11 | B143: 16970 | C143: 11 | D143: 16975 | E143: 12 | F143: 16982 | K143: 0
A144: 22 | B144: 17077 | C144: 13 | D144: 17089 | E144: 14 | F144: 17094 | K144: 0
A145: 11 | B145: 17216 | C145: 11 | D145: 17222 | E145: 12 | F145: 17232 | K145: 0
A146: 11 | B146: 17356 | C146: 11 | D146: 17361 | E146: 12 | F146: 17371 | K146: 0
A147: 22 | B147: 17479 | C147: 13 | D147: 17490 | E147: 14 | F147: 17495 | K147: 0
A148: 11 | B148: 17608 | C148: 11 | D148: 17613 | E148: 12 | F148: 17625 | K148: 0
A149: 22 | B149: 17735 | C149: 13 | D149: 17742 | E149: 14 | F149: 17747 | K149: 0
A150: 22 | B150: 17853 | C150: 13 | D150: 17861 | E150: 14 | F150: 17866 | K150: 0
A151: 22 | B151: 17966 | C151: 13 | D151: 17978 | E151: 14 | F151: 17986 | K151: 0
A152: 11 | B152: 18115 | C152: 11 | D152: 18122 | E152: 12 | F152: 18132 | K152: 0
A153: 11 | B153: 18241 | C153: 11 | D153: 18247 | E153: 12 | F153: 18257 | K153: 0
A154: 22 | B154: 18360 | C154: 13 | D154: 18369 | E154: 14 | F154: 18374 | K154: 0
A155: 22 | B155: 18472 | C155: 24 | D155: 18494 | E155: 14 | F155: 18503 | K155: 0
A156: 22 | B156: 18604 | C156: 13 | D156: 18620 | E156: 14 | F156: 18627 | K156: 0
A157: 22 | B157: 18735 | C157: 13 | D157: 18748 | E157: 14 | F157: 18753 | K157: 0
A158: 11 | B158: 18872 | C158: 11 | D158: 18879 | E158: 12 | F158: 18889 | K158: 0
A159: 11 | B159: 19005 | C159: 11 | D159: 19012 | E159: 12 | F159: 19020 | K159: 0
A160: 11 | B160: 19140 | C160: 11 | D160: 19148 | E160: 12 | F160: 19155 | K160: 0
A161: 22 | B161: 19262 | C161: 13 | D161: 19271 | E161: 14 | F161: 19276 | K161: 0
A162: 22 | B162: 19382 | C162: 13 | D162: 19392 | E162: 14 | F162: 19397 | K162: 0
A163: 11 | B163: 19526 | C163: 11 | D163: 19534 | E163: 12 | F163: 19542 | K163: 0
A164: 11 | B164: 19660 | C164: 11 | D164: 19665 | E164: 12 | F164: 19675 | K164: 0
A165: 22 | B165: 19779 | C165: 13 | D165: 19789 | E165: 14 | F165: 19796 | K165: 0
A166: 22 | B166: 19896 | C166: 13 | D166: 19908 | E166: 14 | F166: 19913 | K166: 0
A167: 11 | B167: 20034 | C167: 11 | D167: 20040 | E167: 12 | F167: 20051 | K167: 0
A168: 11 | B168: 20165 | C168: 11 | D168: 20170 | E168: 12 | F168: 20178 | K168: 0
A169: 22 | B169: 20282 | C169: 13 | D169: 20300 | E169: 14 | F169: 20306 | K169: 0
A170: 11 | B170: 20431 | C170: 11 | D170: 20438 | E170: 12 | F170: 20449 | K170: 0
A171: 22 | B171: 20549 | C171: 13 | D171: 20561 | E171: 14 | F171: 20569 | K171: 0
A172: 11 | B172: 20687 | C172: 11 | D172: 20692 | E172: 12 | F172: 20700 | K172: 0
A173: 11 | B173: 20824 | C173: 11 | D173: 20830 | E173: 12 | F173: 20838 | K173: 0
A174: 11 | B174: 20986 | C174: 11 | D174: 20992 | E174: 12 | F174: 21003 | K174: 0
A175: 11 | B175: 21127 | C175: 11 | D175: 21132 | E175: 12 | F175: 21142 | K175: 0
A176: 11 | B176: 21271 | C176: 11 | D176: 21279 | E176: 12 | F176: 21313 | K176: 0
A177: 22 | B177: 21420 | C177: 13 | D177: 21429 | E177: 14 | F177: 21434 | K177: 0
A178: 11 | B178: 21541 | C178: 11 | D178: 21549 | E178: 12 | F178: 21556 | K178: 0
A179: 11 | B179: 21673 | C179: 11 | D179: 21678 | E179: 12 | F179: 21685 | K179: 0
A180: 22 | B180: 21789 | C180: 13 | D180: 21806 | E180: 14 | F180: 21814 | K180: 0
A181: 11 | B181: 21933 | C181: 11 | D181: 21938 | E181: 12 | F181: 21944 | K181: 0
A182: 11 | B182: 22060 | C182: 11 | D182: 22065 | E182: 12 | F182: 22072 | K182: 0
A183: 22 | B183: 22177 | C183: 13 | D183: 22186 | E183: 14 | F183: 22190 | K183: 0
A184: 22 | B184: 22305 | C184: 13 | D184: 22314 | E184: 14 | F184: 22318 | K184: 0
A185: 11 | B185: 22434 | C185: 11 | D185: 22438 | E185: 12 | F185: 22445 | K185: 0
A186: 22 | B186: 22545 | C186: 13 | D186: 22557 | E186: 14 | F186: 22565 | K186: 0
A187: 11 | B187: 22683 | C187: 11 | D187: 22687 | E187: 12 | F187: 22694 | K187: 0
A188: 11 | B188: 22810 | C188: 11 | D188: 22817 | E188: 12 | F188: 22824 | K188: 0
A189: 22 | B189: 22944 | C189: 13 | D189: 22956 | E189: 14 | F189: 22964 | K189: 0
A190: 22 | B190: 23065 | C190: 13 | D190: 23076 | E190: 14 | F190: 23080 | K190: 0
A191: 22 | B191: 23191 | C191: 13 | D191: 23200 | E191: 14 | F191: 23205 | K191: 0
A192: 11 | B192: 23325 | C192: 11 | D192: 23330 | E192: 12 | F192: 23337 | K192: 0
A193: 22 | B193: 23438 | C193: 13 | D193: 23449 | E193: 14 | F193: 23457 | K193: 0
A194: 22 | B194: 23570 | C194: 13 | D194: 23578 | E194: 14 | F194: 23585 | K194: 0
A195: 11 | B195: 23708 | C195: 11 | D195: 23717 | E195: 12 | F195: 23729 | K195: 0
A196: 22 | B196: 23837 | C196: 13 | D196: 23848 | E196: 14 | F196: 23856 | K196: 0
A197: 22 | B197: 23961 | C197: 13 | D197: 23970 | E197: 14 | F197: 23975 | K197: 0
A198: 22 | B198: 24001 | C198: 13 | D198: 24001

Sheet !MA14C20.095
A1: Report for:!MA14C20.095
A2: Date: | B2: <date>
A3: Hen: | B3: <hen> | F3: Correct Sequence | G3: =Start!J2 -> 122 | P3: Total Sequences in Data | Q3: =4994-COUNTBLANK(L7:L5000) -> 187 | V3: Total Sequences in Block Data | W3: =COUNTA(L7:L37) -> 31 | AA3: Total Sequences in Block Data | AB3: =COUNTA(L38:L68) -> 31 | AF3: Total Sequences in Block Data | AG3: =COUNTA(L69:L100) -> 32 | AK3: Total Sequences in Block Data | AL3: =COUNTA(L101:L131) -> 31 | AP3: Total Sequences in Block Data | AQ3: =COUNTA(L132:L162) -> 31 | AU3: Total Sequences in Block Data | AV3: =COUNTA(L163:L193) -> 31
P4: Total Sequences in Summary | Q4: =SUM(O7:O14) -> 187 | V4: Total Sequences in Block Summary | W4: =SUM(U7:U14) -> 31 | AA4: Total Sequences in Block Summary | AB4: =SUM(Z7:Z14) -> 31 | AF4: Total Sequences in Block Summary | AG4: =SUM(AE7:AE14) -> 32 | AK4: Total Sequences in Block Summary | AL4: =SUM(AJ7:AJ14) -> 31 | AP4: Total Sequences in Block Summary | AQ4: =SUM(AO7:AO14) -> 31 | AU4: Total Sequences in Block Summary | AV4: =SUM(AT7:AT14) -> 31
T5: Block 1 | Y5: Block 2 | AD5: Block 3 | AI5: Block 4 | AN5: Block 5 | AS5: Block 6
A6: Sequence Component 1 | B6: Time 1 | C6: Sequence Component 2 | D6: Time 2 | E6: Sequence Component 3 | F6: Time 3 | G6: Sequence Component 4 | H6: Time 4 | I6: Sequence Component 5 | J6: Time 5 | K6: Correct? 0=No 1=Yes | L6: Sequence | N6: Frequency | P6: Relative Frequency | Q6: Variability | T6: Frequency | V6: Relative Frequency | W6: Variability | Y6: Frequency | AA6: Relative Frequency | AB6: Variability | AD6: Frequency | AF6: Relative Frequency | AG6: Variability | AI6: Frequency | AK6: Relative Frequency | AL6: Variability | AN6: Frequency | AP6: Relative Frequency | AQ6: Variability | AS6: Frequency | AU6: Relative Frequency | AV6: Variability
A7: 11 | B7: 37 | C7: 11 | D7: 45 | E7: 12 | F7: 55 | K7: 0 | L7: 111 | N7: 111 | O7: =COUNTIF($L$7:$L$500,N7) -> 95 | P7: =O7/$Q$4 -> 0.5080213904 | Q7: =IF(P7=0,0,(P7*((LOG(P7))/LOG(2)))) -> -0.4963566358 | T7: =N7 -> 111 | U7: =COUNTIF(L7:L37,T7) -> 15 | V7: =U7/(W4-U10) -> 0.4838709677 | W7: =IF(V7=0,0,(V7*((LOG(V7))/LOG(2)))) -> -0.5067608297 | Y7: =N7 -> 111 | Z7: =COUNTIF(L38:L68,Y7) -> 16 | AA7: =Z7/(AB4-Z10) -> 0.5161290323 | AB7: =IF(AA7=0,0,(AA7*((LOG(AA7))/LOG(2)))) -> -0.4924884183 | AD7: =N7 -> 111 | AE7: =COUNTIF(L69:L100,AD7) -> 19 | AF7: =AE7/(AG4-AE10) -> 0.59375 | AG7: =IF(AF7=0,0,(AF7*((LOG(AF7))/LOG(2)))) -> -0.4465430389 | AI7: =N7 -> 111 | AJ7: =COUNTIF(L101:L131,AI7) -> 21 | AK7: =AJ7/(AL4-AJ10) -> 0.6774193548 | AL7: =IF(AK7=0,0,(AK7*((LOG(AK7))/LOG(2)))) -> -0.3806276335 | AN7: =N7 -> 111 | AO7: =COUNTIF(L132:L162,AN7) -> 13 | AP7: =AO7/(AQ4-AO10) -> 0.4193548387 | AQ7: =IF(AP7=0,0,(AP7*((LOG(AP7))/LOG(2)))) -> -0.5257688935 | AS7: =N7 -> 111 | AT7: =COUNTIF(L163:L193,AS7) -> 11 | AU7: =AT7/(AV4-AT10) -> 0.3548387097 | AV7: =IF(AU7=0,0,(AU7*((LOG(AU7))/LOG(2)))) -> -0.5304003745
A8: 11 | B8: 175 | C8: 11 | D8: 181 | E8: 12 | F8: 189 | K8: 0 | L8: 111 | N8: 112 | O8: =COUNTIF($L$7:$L$500,N8) -> 0 | P8: =O8/$Q$4 -> 0 | Q8: =IF(P8=0,0,(P8*((LOG(P8))/LOG(2)))) -> 0 | T8: =N8 -> 112 | U8: =COUNTIF(L7:L37,T8) -> 0 | V8: =U8/(W4-U10) -> 0 | W8: =IF(V8=0,0,(V8*((LOG(V8))/LOG(2)))) -> 0 | Y8: =N8 -> 112 | Z8: =COUNTIF(L38:L68,Y8) -> 0 | AA8: =Z8/(AB4-Z10) -> 0 | AB8: =IF(AA8=0,0,(AA8*((LOG(AA8))/LOG(2)))) -> 0 | AD8: =N8 -> 112 | AE8: =COUNTIF(L69:L100,AD8) -> 0 | AF8: =AE8/(AG4-AE10) -> 0 | AG8: =IF(AF8=0,0,(AF8*((LOG(AF8))/LOG(2)))) -> 0 | AI8: =N8 -> 112 | AJ8: =COUNTIF(L101:L131,AI8) -> 0 | AK8: =AJ8/(AL4-AJ10) -> 0 | AL8: =IF(AK8=0,0,(AK8*((LOG(AK8))/LOG(2)))) -> 0 | AN8: =N8 -> 112 | AO8: =COUNTIF(L132:L162,AN8) -> 0 | AP8: =AO8/(AQ4-AO10) -> 0 | AQ8: =IF(AP8=0,0,(AP8*((LOG(AP8))/LOG(2)))) -> 0 | AS8: =N8 -> 112 | AT8: =COUNTIF(L163:L193,AS8) -> 0 | AU8: =AT8/(AV4-AT10) -> 0 | AV8: =IF(AU8=0,0,(AU8*((LOG(AU8))/LOG(2)))) -> 0
A9: 11 | B9: 319 | C9: 11 | D9: 326 | E9: 12 | F9: 337 | K9: 0 | L9: 111 | N9: 121 | O9: =COUNTIF($L$7:$L$500,N9) -> 0 | P9: =O9/$Q$4 -> 0 | Q9: =IF(P9=0,0,(P9*((LOG(P9))/LOG(2)))) -> 0 | T9: =N9 -> 121 | U9: =COUNTIF(L7:L37,T9) -> 0 | V9: =U9/(W4-U10) -> 0 | W9: =IF(V9=0,0,(V9*((LOG(V9))/LOG(2)))) -> 0 | Y9: =N9 -> 121 | Z9: =COUNTIF(L38:L68,Y9) -> 0 | AA9: =Z9/(AB4-Z10) -> 0 | AB9: =IF(AA9=0,0,(AA9*((LOG(AA9))/LOG(2)))) -> 0 | AD9: =N9 -> 121 | AE9: =COUNTIF(L69:L100,AD9) -> 0 | AF9: =AE9/(AG4-AE10) -> 0 | AG9: =IF(AF9=0,0,(AF9*((LOG(AF9))/LOG(2)))) -> 0 | AI9: =N9 -> 121 | AJ9: =COUNTIF(L101:L131,AI9) -> 0 | AK9: =AJ9/(AL4-AJ10) -> 0 | AL9: =IF(AK9=0,0,(AK9*((LOG(AK9))/LOG(2)))) -> 0 | AN9: =N9 -> 121 | AO9: =COUNTIF(L132:L162,AN9) -> 0 | AP9: =AO9/(AQ4-AO10) -> 0 | AQ9: =IF(AP9=0,0,(AP9*((LOG(AP9))/LOG(2)))) -> 0 | AS9: =N9 -> 121 | AT9: =COUNTIF(L163:L193,AS9) -> 0 | AU9: =AT9/(AV4-AT10) -> 0 | AV9: =IF(AU9=0,0,(AU9*((LOG(AU9))/LOG(2)))) -> 0
A10: 11 | B10: 459 | C10: 11 | D10: 465 | E10: 12 | F10: 474 | K10: 0 | L10: 111 | N10: 122 | O10: =COUNTIF($L$7:$L$500,N10) -> 0 | P10: =O10/$Q$4 -> 0 | Q10: =IF(P10=0,0,(P10*((LOG(P10))/LOG(2)))) -> 0 | T10: =N10 -> 122 | U10: =COUNTIF(L7:L37,T10) -> 0 | Y10: =N10 -> 122 | Z10: =COUNTIF(L38:L68,Y10) -> 0 | AD10: =N10 -> 122 | AE10: =COUNTIF(L69:L100,AD10) -> 0 | AI10: =N10 -> 122 | AJ10: =COUNTIF(L101:L131,AI10) -> 0 | AN10: =N10 -> 122 | AO10: =COUNTIF(L132:L162,AN10) -> 0 | AS10: =N10 -> 122 | AT10: =COUNTIF(L163:L193,AS10) -> 0
A11: 22 | B11: 573 | C11: 13 | D11: 585 | E11: 14 | F11: 592 | K11: 0 | L11: 211 | N11: 211 | O11: =COUNTIF($L$7:$L$500,N11) -> 91 | P11: =O11/$Q$4 -> 0.486631016 | Q11: =IF(P11=0,0,(P11*((LOG(P11))/LOG(2)))) -> -0.505658201 | T11: =N11 -> 211 | U11: =COUNTIF(L7:L37,T11) -> 16 | V11: =U11/(W4-U10) -> 0.5161290323 | W11: =IF(V11=0,0,(V11*((LOG(V11))/LOG(2)))) -> -0.4924884183 | Y11: =N11 -> 211 | Z11: =COUNTIF(L38:L68,Y11) -> 15 | AA11: =Z11/(AB4-Z10) -> 0.4838709677 | AB11: =IF(AA11=0,0,(AA11*((LOG(AA11))/LOG(2)))) -> -0.5067608297 | AD11: =N11 -> 211 | AE11: =COUNTIF(L69:L100,AD11) -> 13 | AF11: =AE11/(AG4-AE10) -> 0.40625 | AG11: =IF(AF11=0,0,(AF11*((LOG(AF11))/LOG(2)))) -> -0.5279463645 | AI11: =N11 -> 211 | AJ11: =COUNTIF(L101:L131,AI11) -> 10 | AK11: =AJ11/(AL4-AJ10) -> 0.3225806452 | AL11: =IF(AK11=0,0,(AK11*((LOG(AK11))/LOG(2)))) -> -0.526538134 | AN11: =N11 -> 211 | AO11: =COUNTIF(L132:L162,AN11) -> 18 | AP11: =AO11/(AQ4-AO10) -> 0.5806451613 | AQ11: =IF(AP11=0,0,(AP11*((LOG(AP11))/LOG(2)))) -> -0.4553833407 | AS11: =N11 -> 211 | AT11: =COUNTIF(L163:L193,AS11) -> 19 | AU11: =AT11/(AV4-AT10) -> 0.6129032258 | AV11: =IF(AU11=0,0,(AU11*((LOG(AU11))/LOG(2)))) -> -0.4328744239
A12: 22 | B12: 690 | C12: 13 | D12: 700 | E12: 14 | F12: 705 | K12: 0 | L12: 211 | N12: 212 | O12: =COUNTIF($L$7:$L$500,N12) -> 0 | P12: =O12/$Q$4 -> 0 | Q12: =IF(P12=0,0,(P12*((LOG(P12))/LOG(2)))) -> 0 | T12: =N12 -> 212 | U12: =COUNTIF(L7:L37,T12) -> 0 | V12: =U12/(W4-U10) -> 0 | W12: =IF(V12=0,0,(V12*((LOG(V12))/LOG(2)))) -> 0 | Y12: =N12 -> 212 | Z12: =COUNTIF(L38:L68,Y12) -> 0 | AA12: =Z12/(AB4-Z10) -> 0 | AB12: =IF(AA12=0,0,(AA12*((LOG(AA12))/LOG(2)))) -> 0 | AD12: =N12 -> 212 | AE12: =COUNTIF(L69:L100,AD12) -> 0 | AF12: =AE12/(AG4-AE10) -> 0 | AG12: =IF(AF12=0,0,(AF12*((LOG(AF12))/LOG(2)))) -> 0 | AI12: =N12 -> 212 | AJ12: =COUNTIF(L101:L131,AI12) -> 0 | AK12: =AJ12/(AL4-AJ10) -> 0 | AL12: =IF(AK12=0,0,(AK12*((LOG(AK12))/LOG(2)))) -> 0 | AN12: =N12 -> 212 | AO12: =COUNTIF(L132:L162,AN12) -> 0 | AP12: =AO12/(AQ4-AO10) -> 0 | AQ12: =IF(AP12=0,0,(AP12*((LOG(AP12))/LOG(2)))) -> 0 | AS12: =N12 -> 212 | AT12: =COUNTIF(L163:L193,AS12) -> 0 | AU12: =AT12/(AV4-AT10) -> 0 | AV12: =IF(AU12=0,0,(AU12*((LOG(AU12))/LOG(2)))) -> 0
A13: 11 | B13: 817 | C13: 11 | D13: 825 | E13: 12 | F13: 831 | K13: 0 | L13: 111 | N13: 221 | O13: =COUNTIF($L$7:$L$500,N13) -> 1 | P13: =O13/$Q$4 -> 0.005347593583 | Q13: =IF(P13=0,0,(P13*((LOG(P13))/LOG(2)))) -> -0.04035772438 | T13: =N13 -> 221 | U13: =COUNTIF(L7:L37,T13) -> 0 | V13: =U13/(W4-U10) -> 0 | W13: =IF(V13=0,0,(V13*((LOG(V13))/LOG(2)))) -> 0 | Y13: =N13 -> 221 | Z13: =COUNTIF(L38:L68,Y13) -> 0 | AA13: =Z13/(AB4-Z10) -> 0 | AB13: =IF(AA13=0,0,(AA13*((LOG(AA13))/LOG(2)))) -> 0 | AD13: =N13 -> 221 | AE13: =COUNTIF(L69:L100,AD13) -> 0 | AF13: =AE13/(AG4-AE10) -> 0 | AG13: =IF(AF13=0,0,(AF13*((LOG(AF13))/LOG(2)))) -> 0 | AI13: =N13 -> 221 | AJ13: =COUNTIF(L101:L131,AI13) -> 0 | AK13: =AJ13/(AL4-AJ10) -> 0 | AL13: =IF(AK13=0,0,(AK13*((LOG(AK13))/LOG(2)))) -> 0 | AN13: =N13 -> 221 | AO13: =COUNTIF(L132:L162,AN13) -> 0 | AP13: =AO13/(AQ4-AO10) -> 0 | AQ13: =IF(AP13=0,0,(AP13*((LOG(AP13))/LOG(2)))) -> 0 | AS13: =N13 -> 221 | AT13: =COUNTIF(L163:L193,AS13) -> 1 | AU13: =AT13/(AV4-AT10) -> 0.03225806452 | AV13: =IF(AU13=0,0,(AU13*((LOG(AU13))/LOG(2)))) -> -0.1598127842
A14: 22 | B14: 934 | C14: 13 | D14: 946 | E14: 14 | F14: 954 | K14: 0 | L14: 211 | N14: 222 | O14: =COUNTIF($L$7:$L$500,N14) -> 0 | P14: =O14/$Q$4 -> 0 | Q14: =IF(P14=0,0,(P14*((LOG(P14))/LOG(2)))) -> 0 | T14: =N14 -> 222 | U14: =COUNTIF(L7:L37,T14) -> 0 | V14: =U14/(W4-U10) -> 0 | W14: =IF(V14=0,0,(V14*((LOG(V14))/LOG(2)))) -> 0 | Y14: =N14 -> 222 | Z14: =COUNTIF(L38:L68,Y14) -> 0 | AA14: =Z14/(AB4-Z10) -> 0 | AB14: =IF(AA14=0,0,(AA14*((LOG(AA14))/LOG(2)))) -> 0 | AD14: =N14 -> 222 | AE14: =COUNTIF(L69:L100,AD14) -> 0 | AF14: =AE14/(AG4-AE10) -> 0 | AG14: =IF(AF14=0,0,(AF14*((LOG(AF14))/LOG(2)))) -> 0 | AI14: =N14 -> 222 | AJ14: =COUNTIF(L101:L131,AI14) -> 0 | AK14: =AJ14/(AL4-AJ10) -> 0 | AL14: =IF(AK14=0,0,(AK14*((LOG(AK14))/LOG(2)))) -> 0 | AN14: =N14 -> 222 | AO14: =COUNTIF(L132:L162,AN14) -> 0 | AP14: =AO14/(AQ4-AO10) -> 0 | AQ14: =IF(AP14=0,0,(AP14*((LOG(AP14))/LOG(2)))) -> 0 | AS14: =N14 -> 222 | AT14: =COUNTIF(L163:L193,AS14) -> 0 | AU14: =AT14/(AV4-AT10) -> 0 | AV14: =IF(AU14=0,0,(AU14*((LOG(AU14))/LOG(2)))) -> 0
A15: 22 | B15: 1057 | C15: 13 | D15: 1068 | E15: 14 | F15: 1074 | K15: 0 | L15: 211 | P15: =SUM(P7:P14) -> 1 | Q15: =-SUM(Q7:Q14) -> 1.042372561 | V15: =SUM(V7:V14) -> 1 | W15: =-SUM(W7:W14) -> 0.999249248 | AA15: =SUM(AA7:AA14) -> 1 | AB15: =-SUM(AB7:AB14) -> 0.999249248 | AF15: =SUM(AF7:AF14) -> 1 | AG15: =-SUM(AG7:AG14) -> 0.9744894034 | AK15: =SUM(AK7:AK14) -> 1 | AL15: =-SUM(AL7:AL14) -> 0.9071657676 | AP15: =SUM(AP7:AP14) -> 1 | AQ15: =-SUM(AQ7:AQ14) -> 0.9811522342 | AU15: =SUM(AU7:AU14) -> 1 | AV15: =-SUM(AV7:AV14) -> 1.123087583
A16: 22 | B16: 1184 | C16: 13 | D16: 1194 | E16: 14 | F16: 1200 | K16: 0 | L16: 211 | P16: U= | Q16: =Q15/(LOG(Q4)/LOG(2)) -> 0.1381194035 | V16: U1= | W16: =W15/(LOG(W4)/LOG(2)) -> 0.201697548 | AA16: U2= | AB16: =AB15/(LOG(AB4)/LOG(2)) -> 0.201697548 | AF16: U3= | AG16: =AG15/(LOG(AG4)/LOG(2)) -> 0.1948978807 | AK16: U4= | AL16: =AL15/(LOG(AL4)/LOG(2)) -> 0.1831105816 | AP16: U5= | AQ16: =AQ15/(LOG(AQ4)/LOG(2)) -> 0.1980446823 | AU16: U6= | AV16: =AV15/(LOG(AV4)/LOG(2)) -> 0.2266942027
A17: 22 | B17: 1304 | C17: 13 | D17: 1315 | E17: 14 | F17: 1321 | K17: 0 | L17: 211
A18: 22 | B18: 1438 | C18: 13 | D18: 1451 | E18: 14 | F18: 1460 | K18: 0 | L18: 211
A19: 11 | B19: 1581 | C19: 11 | D19: 1587 | E19: 12 | F19: 1598 | K19: 0 | L19: 111 | N19: Total Target Seq
A20: 11 | B20: 1718 | C20: 11 | D20: 1724 | E20: 12 | F20: 1732 | K20: 0 | L20: 111 | N20: =COUNTIF(L7:L193,G3) -> 0 | P20: 31 | Q20: 31 | R20: 32 | S20: 31 | T20: 31 | U20: 31
A21: 11 | B21: 1844 | C21: 11 | D21: 1853 | E21: 12 | F21: 1865 | K21: 0 | L21: 111 | P21: % of reinforcement given in 6 equal intervals based on number of trials
A22: 22 | B22: 1975 | C22: 13 | D22: 1987 | E22: 14 | F22: 1995 | K22: 0 | L22: 211 | P22: %_1 | Q22: %_2 | R22: %_3 | S22: %_4 | T22: %_5 | U22: %_6
A23: 11 | B23: 2113 | C23: 11 | D23: 2118 | E23: 12 | F23: 2126 | K23: 0 | L23: 111 | O23: target sequence | P23: =$G$3 -> 122 | Q23: =$G$3 -> 122 | R23: =$G$3 -> 122 | S23: =$G$3 -> 122 | T23: =$G$3 -> 122 | U23: =$G$3 -> 122
A24: 22 | B24: 2240 | C24: 13 | D24: 2266 | E24: 14 | F24: 2289 | K24: 0 | L24: 211 | O24: total reinforcement | P24: =U10 -> 0 | Q24: =Z10 -> 0 | R24: =AE10 -> 0 | S24: =AJ10 -> 0 | T24: =AO10 -> 0 | U24: =AT10 -> 0
A25: 22 | B25: 2402 | C25: 13 | D25: 2414 | E25: 14 | F25: 2420 | K25: 0 | L25: 211 | O25: % target
A26: 22 | B26: 2523 | C26: 13 | D26: 2535 | E26: 14 | F26: 2544 | K26: 0 | L26: 211 | O26: CCRF
A27: 22 | B27: 2656 | C27: 13 | D27: 2668 | E27: 14 | F27: 2673 | K27: 0 | L27: 211 | O27: % CCRf
A28: 22 | B28: 2779 | C28: 13 | D28: 2791 | E28: 14 | F28: 2799 | K28: 0 | L28: 211 | O28: average response rate | P28: =F37/P20 -> 128.8709677 | Q28: =(F68-F37)/Q20 -> 130.4193548 | R28: =(F100-F68)/R20 -> 130.5 | S28: =(F131-F100)/S20 -> 130.0322581 | T28: =(F162-F131)/T20 -> 125.3548387 | U28: =(F193-F162)/U20 -> 123.9677419
A29: 22 | B29: 2905 | C29: 13 | D29: 2936 | E29: 14 | F29: 2946 | K29: 0 | L29: 211
A30: 11 | B30: 3056 | C30: 11 | D30: 3063 | E30: 12 | F30: 3073 | K30: 0 | L30: 111
A31: 11 | B31: 3200 | C31: 11 | D31: 3206 | E31: 12 | F31: 3213 | K31: 0 | L31: 111
A32: 11 | B32: 3328 | C32: 11 | D32: 3334 | E32: 12 | F32: 3340 | K32: 0 | L32: 111
A33: 11 | B33: 3461 | C33: 11 | D33: 3466 | E33: 12 | F33: 3475 | K33: 0 | L33: 111
A34: 11 | B34: 3597 | C34: 11 | D34: 3604 | E34: 12 | F34: 3614 | K34: 0 | L34: 111
A35: 22 | B35: 3720 | C35: 13 | D35: 3732 | E35: 14 | F35: 3738 | K35: 0 | L35: 211
A36: 11 | B36: 3852 | C36: 11 | D36: 3859 | E36: 12 | F36: 3874 | K36: 0 | L36: 111
A37: 22 | B37: 3980 | C37: 13 | D37: 3990 | E37: 14 | F37: 3995 | K37: 0 | L37: 211
A38: 22 | B38: 4102 | C38: 13 | D38: 4114 | E38: 14 | F38: 4120 | K38: 0 | L38: 211
A39: 22 | B39: 4220 | C39: 13 | D39: 4232 | E39: 14 | F39: 4240 | K39: 0 | L39: 211
A40: 11 | B40: 4361 | C40: 11 | D40: 4369 | E40: 12 | F40: 4377 | K40: 0 | L40: 111
A41: 22 | B41: 4486 | C41: 13 | D41: 4497 | E41: 14 | F41: 4502 | K41: 0 | L41: 211
A42: 22 | B42: 4612 | C42: 13 | D42: 4623 | E42: 14 | F42: 4631 | K42: 0 | L42: 211
A43: 22 | B43: 4737 | C43: 13 | D43: 4751 | E43: 14 | F43: 4762 | K43: 0 | L43: 211
A44: 11 | B44: 4873 | C44: 11 | D44: 4878 | E44: 12 | F44: 4889 | K44: 0 | L44: 111
A45: 11 | B45: 5000 | C45: 11 | D45: 5006 | E45: 12 | F45: 5012 | K45: 0 | L45: 111
A46: 22 | B46: 5110 | C46: 13 | D46: 5126 | E46: 14 | F46: 5133 | K46: 0 | L46: 211
A47: 22 | B47: 5244 | C47: 13 | D47: 5256 | E47: 14 | F47: 5262 | K47: 0 | L47: 211
A48: 11 | B48: 5381 | C48: 11 | D48: 5387 | E48: 12 | F48: 5395 | K48: 0 | L48: 111
A49: 11 | B49: 5519 | C49: 11 | D49: 5524 | E49: 12 | F49: 5536 | K49: 0 | L49: 111
A50: 11 | B50: 5657 | C50: 11 | D50: 5664 | E50: 12 | F50: 5672 | K50: 0 | L50: 111
A51: 22 | B51: 5774 | C51: 13 | D51: 5786 | E51: 14 | F51: 5791 | K51: 0 | L51: 211
A52: 11 | B52: 5915 | C52: 11 | D52: 5923 | E52: 12 | F52: 5931 | K52: 0 | L52: 111
A53: 11 | B53: 6046 | C53: 11 | D53: 6050 | E53: 12 | F53: 6059 | K53: 0 | L53: 111
A54: 11 | B54: 6176 | C54: 11 | D54: 6182 | E54: 12 | F54: 6189 | K54: 0 | L54: 111
A55: 22 | B55: 6309 | C55: 13 | D55: 6321 | E55: 14 | F55: 6329 | K55: 0 | L55: 211
A56: 11 | B56: 6442 | C56: 11 | D56: 6450 | E56: 12 | F56: 6464 | K56: 0 | L56: 111
A57: 22 | B57: 6588 | C57: 13 | D57: 6599 | E57: 14 | F57: 6607 | K57: 0 | L57: 211
A58: 22 | B58: 6712 | C58: 13 | D58: 6721 | E58: 14 | F58: 6726 | K58: 0 | L58: 211
A59: 11 | B59: 6851 | C59: 11 | D59: 6857 | E59: 12 | F59: 6865 | K59: 0 | L59: 111
A60: 22 | B60: 6973 | C60: 13 | D60: 6984 | E60: 14 | F60: 6989 | K60: 0 | L60: 211
A61: 22 | B61: 7099 | C61: 13 | D61: 7111 | E61: 14 | F61: 7119 | K61: 0 | L61: 211
A62: 22 | B62: 7227 | C62: 13 | D62: 7235 | E62: 14 | F62: 7240 | K62: 0 | L62: 211
A63: 11 | B63: 7360 | C63: 11 | D63: 7370 | E63: 12 | F63: 7382 | K63: 0 | L63: 111
A64: 11 | B64: 7501 | C64: 11 | D64: 7510 | E64: 12 | F64: 7517 | K64: 0 | L64: 111
A65: 22 | B65: 7620 | C65: 13 | D65: 7631 | E65: 14 | F65: 7636 | K65: 0 | L65: 211
A66: 11 | B66: 7751 | C66: 11 | D66: 7756 | E66: 12 | F66: 7764 | K66: 0 | L66: 111
A67: 11 | B67: 7890 | C67: 11 | D67: 7896 | E67: 12 | F67: 7906 | K67: 0 | L67: 111
A68: 11 | B68: 8024 | C68: 11 | D68: 8030 | E68: 12 | F68: 8038 | K68: 0 | L68: 111
A69: 11 | B69: 8162 | C69: 11 | D69: 8169 | E69: 12 | F69: 8181 | K69: 0 | L69: 111
A70: 11 | B70: 8300 | C70: 11 | D70: 8309 | E70: 12 | F70: 8320 | K70: 0 | L70: 111
A71: 22 | B71: 8422 | C71: 13 | D71: 8436 | E71: 14 | F71: 8445 | K71: 0 | L71: 211
A72: 11 | B72: 8566 | C72: 11 | D72: 8574 | E72: 12 | F72: 8584 | K72: 0 | L72: 111
A73: 11 | B73: 8699 | C73: 11 | D73: 8704 | E73: 12 | F73: 8712 | K73: 0 | L73: 111
A74: 11 | B74: 8828 | C74: 11 | D74: 8837 | E74: 12 | F74: 8845 | K74: 0 | L74: 111
A75: 11 | B75: 8962 | C75: 11 | D75: 8969 | E75: 12 | F75: 8976 | K75: 0 | L75: 111
A76: 22 | B76: 9078 | C76: 13 | D76: 9091 | E76: 14 | F76: 9097 | K76: 0 | L76: 211
A77: 11 | B77: 9205 | C77: 11 | D77: 9210 | E77: 12 | F77: 9218 | K77: 0 | L77: 111
A78: 22 | B78: 9332 | C78: 13 | D78: 9343 | E78: 14 | F78: 9348 | K78: 0 | L78: 211
A79: 22 | B79: 9452 | C79: 13 | D79: 9466 | E79: 14 | F79: 9473 | K79: 0 | L79: 211
A80: 11 | B80: 9588 | C80: 11 | D80: 9594 | E80: 12 | F80: 9603 | K80: 0 | L80: 111
A81: 11 | B81: 9740 | C81: 11 | D81: 9751 | E81: 12 | F81: 9761 | K81: 0 | L81: 111
A82: 11 | B82: 9881 | C82: 11 | D82: 9887 | E82: 12 | F82: 9896 | K82: 0 | L82: 111
A83: 22 | B83: 9993 | C83: 13 | D83: 10006 | E83: 14 | F83: 10014 | K83: 0 | L83: 211
A84: 11 | B84: 10144 | C84: 11 | D84: 10149 | E84: 12 | F84: 10160 | K84: 0 | L84: 111
A85: 22 | B85: 10276 | C85: 13 | D85: 10287 | E85: 14 | F85: 10292 | K85: 0 | L85: 211
A86: 11 | B86: 10405 | C86: 11 | D86: 10413 | E86: 12 | F86: 10421 | K86: 0 | L86: 111
A87: 22 | B87: 10526 | C87: 13 | D87: 10538 | E87: 14 | F87: 10547 | K87: 0 | L87: 211
A88: 22 | B88: 10645 | C88: 13 | D88: 10656 | E88: 14 | F88: 10661 | K88: 0 | L88: 211
A89: 22 | B89: 10766 | C89: 13 | D89: 10778 | E89: 14 | F89: 10783 | K89: 0 | L89: 211
A90: 22 | B90: 10887 | C90: 13 | D90: 10898 | E90: 14 | F90: 10906 | K90: 0 | L90: 211
A91: 11 | B91: 11028 | C91: 11 | D91: 11034 | E91: 12 | F91: 11043 | K91: 0 | L91: 111
A92: 11 | B92: 11157 | C92: 11 | D92: 11163 | E92: 12 | F92: 11172 | K92: 0 | L92: 111
A93: 11 | B93: 11297 | C93: 11 | D93: 11302 | E93: 12 | F93: 11313 | K93: 0 | L93: 111
A94: 11 | B94: 11424 | C94: 11 | D94: 11430 | E94: 12 | F94: 11442 | K94: 0 | L94: 111
A95: 11 | B95: 11558 | C95: 11 | D95: 11564 | E95: 12 | F95: 11572 | K95: 0 | L95: 111
A96: 11 | B96: 11678 | C96: 11 | D96: 11683 | E96: 12 | F96: 11690 | K96: 0 | L96: 111
A97: 22 | B97: 11795 | C97: 13 | D97: 11806 | E97: 14 | F97: 11815 | K97: 0 | L97: 211
A98: 22 | B98: 11927 | C98: 13 | D98: 11939 | E98: 14 | F98: 11946 | K98: 0 | L98: 211
A99: 11 | B99: 12069 | C99: 11 | D99: 12075 | E99: 12 | F99: 12084 | K99: 0 | L99: 111
A100: 22 | B100: 12194 | C100: 13 | D100: 12205 | E100: 14 | F100: 12214 | K100: 0 | L100: 211
A101: 22 | B101: 12312 | C101: 13 | D101: 12323 | E101: 14 | F101: 12329 | K101: 0 | L101: 211
A102: 22 | B102: 12432 | C102: 13 | D102: 12441 | E102: 14 | F102: 12447 | K102: 0 | L102: 211
A103: 11 | B103: 12564 | C103: 11 | D103: 12571 | E103: 12 | F103: 12579 | K103: 0 | L103: 111
A104: 22 | B104: 12699 | C104: 13 | D104: 12711 | E104: 14 | F104: 12716 | K104: 0 | L104: 211
A105: 11 | B105: 12834 | C105: 11 | D105: 12840 | E105: 12 | F105: 12851 | K105: 0 | L105: 111
A106: 11 | B106: 12971 | C106: 11 | D106: 12976 | E106: 12 | F106: 12984 | K106: 0 | L106: 111
A107: 11 | B107: 13096 | C107: 11 | D107: 13105 | E107: 12 | F107: 13116 | K107: 0 | L107: 111
A108: 11 | B108: 13238 | C108: 11 | D108: 13243 | E108: 12 | F108: 13254 | K108: 0 | L108: 111
A109: 11 | B109: 13358 | C109: 11 | D109: 13366 | E109: 12 | F109: 13374 | K109: 0 | L109: 111
A110: 11 | B110: 13485 | C110: 11 | D110: 13490 | E110: 12 | F110: 13499 | K110: 0 | L110: 111
A111: 11 | B111: 13621 | C111: 11 | D111: 13630 | E111: 12 | F111: 13640 | K111: 0 | L111: 111
A112: 22 | B112: 13752 | C112: 13 | D112: 13764 | E112: 14 | F112: 13768 | K112: 0 | L112: 211
A113: 22 | B113: 13865 | C113: 13 | D113: 13878 | E113: 14 | F113: 13883 | K113: 0 | L113: 211
A114: 11 | B114: 14006 | C114: 11 | D114: 14014 | E114: 12 | F114: 14021 | K114: 0 | L114: 111
A115: 11 | B115: 14140 | C115: 11 | D115: 14145 | E115: 12 | F115: 14152 | K115: 0 | L115: 111
A116: 22 | B116: 14261 | C116: 13 | D116: 14272 | E116: 14 | F116: 14279 | K116: 0 | L116: 211
A117: 11 | B117: 14397 | C117: 11 | D117: 14405 | E117: 12 | F117: 14412 | K117: 0 | L117: 111
A118: 11 | B118: 14535 | C118: 11 | D118: 14540 | E118: 12 | F118: 14551 | K118: 0 | L118: 111
A119: 11 | B119: 14689 | C119: 11 | D119: 14697 | E119: 12 | F119: 14709 | K119: 0 | L119: 111
A120: 11 | B120: 14828 | C120: 11 | D120: 14837 | E120: 12 | F120: 14846 | K120: 0 | L120: 111
A121: 11 | B121: 14975 | C121: 11 | D121: 14979 | E121: 12 | F121: 14987 | K121: 0 | L121: 111
A122: 22 | B122: 15089 | C122: 13 | D122: 15100 | E122: 14 | F122: 15105 | K122: 0 | L122: 211
A123: 11 | B123: 15227 | C123: 11 | D123: 15232 | E123: 12 | F123: 15241 | K123: 0 | L123: 111
A124: 11 | B124: 15345 | C124: 11 | D124: 15352 | E124: 12 | F124: 15359 | K124: 0 | L124: 111
A125: 11 | B125: 15476 | C125: 11 | D125: 15482 | E125: 12 | F125: 15493 | K125: 0 | L125: 111
A126: 22 | B126: 15597 | C126: 13 | D126: 15610 | E126: 14 | F126: 15615 | K126: 0 | L126: 211
A127: 11 | B127: 15730 | C127: 11 | D127: 15735 | E127: 12 | F127: 15743 | K127: 0 | L127: 111
A128: 11 | B128: 15855 | C128: 11 | D128: 15860 | E128: 12 | F128: 15867 | K128: 0 | L128: 111
A129: 22 | B129: 15967 | C129: 13 | D129: 15976 | E129: 14 | F129: 15982 | K129: 0 | L129: 211
A130: 11 | B130: 16104 | C130: 11 | D130: 16109 | E130: 12 | F130: 16117 | K130: 0 | L130: 111
A131: 22 | B131: 16224 | C131: 13 | D131: 16238 | E131: 14 | F131: 16245 | K131: 0 | L131: 211
A132: 11 | B132: 16370 | C132: 11 | D132: 16378 | E132: 12 | F132: 16391 | K132: 0 | L132: 111
A133: 11 | B133: 16501 | C133: 11 | D133: 16508 | E133: 12 | F133: 16515 | K133: 0 | L133: 111
A134: 22 | B134: 16636 | C134: 13 | D134: 16643 | E134: 14 | F134: 16649 | K134: 0 | L134: 211
A135: 11 | B135: 16752 | C135: 11 | D135: 16757 | E135: 12 | F135: 16764 | K135: 0 | L135: 111
A136: 11 | B136: 16873 | C136: 11 | D136: 16878 | E136: 12 | F136: 16883 | K136: 0 | L136: 111
A137: 11 | B137: 17007 | C137: 11 | D137: 17013 | E137: 12 | F137: 17020 | K137: 0 | L137: 111
A138: 22 | B138: 17122 | C138: 13 | D138: 17135 | E138: 14 | F138: 17143 | K138: 0 | L138: 211
A139: 11 | B139: 17258 | C139: 11 | D139: 17265 | E139: 12 | F139: 17275 | K139: 0 | L139: 111
A140: 22 | B140: 17375 | C140: 13 | D140: 17384 | E140: 14 | F140: 17392 | K140: 0 | L140: 211
A141: 11 | B141: 17507 | C141: 11 | D141: 17512 | E141: 12 | F141: 17519 | K141: 0 | L141: 111
A142: 22 | B142: 17619 | C142: 13 | D142: 17627 | E142: 14 | F142: 17633 | K142: 0 | L142: 211
A143: 22 | B143: 17729 | C143: 13 | D143: 17737 | E143: 14 | F143: 17742 | K143: 0 | L143: 211
A144: 22 | B144: 17843 | C144: 13 | D144: 17858 | E144: 14 | F144: 17866 | K144: 0 | L144: 211
A145: 22 | B145: 17973 | C145: 13 | D145: 17988 | E145: 14 | F145: 17993 | K145: 0 | L145: 211
A146: 22 | B146: 18090 | C146: 13 | D146: 18098 | E146: 14 | F146: 18104 | K146: 0 | L146: 211
A147: 22 | B147: 18206 | C147: 13 | D147: 18217 | E147: 14 | F147: 18223 | K147: 0 | L147: 211
A148: 22 | B148: 18326 | C148: 13 | D148: 18334 | E148: 14 | F148: 18341 | K148: 0 | L148: 211
A149: 22 | B149: 18444 | C149: 13 | D149: 18453 | E149: 14 | F149: 18458 | K149: 0 | L149: 211
A150: 22 | B150: 18566 | C150: 13 | D150: 18577 | E150: 14 | F150: 18585 | K150: 0 | L150: 211
A151: 11 | B151: 18692 | C151: 11 | D151: 18701 | E151: 12 | F151: 18712 | K151: 0 | L151: 111
A152: 22 | B152: 18818 | C152: 13 | D152: 18831 | E152: 14 | F152: 18839 | K152: 0 | L152: 211
A153: 11 | B153: 18953 | C153: 11 | D153: 18961 | E153: 12 | F153: 18972 | K153: 0 | L153: 111
A154: 11 | B154: 19102 | C154: 11 | D154: 19110 | E154: 12 | F154: 19123 | K154: 0 | L154: 111
A155: 11 | B155: 19235 | C155: 11 | D155: 19243 | E155: 12 | F155: 19254 | K155: 0 | L155: 111
A156: 22 | B156: 19365 | C156: 13 | D156: 19376 | E156: 14 | F156: 19381 | K156: 0 | L156: 211
A157: 11 | B157: 19500 | C157: 11 | D157: 19505 | E157: 12 | F157: 19511 | K157: 0 | L157: 111
A158: 11 | B158: 19622 | C158: 11 | D158: 19627 | E158: 12 | F158: 19635 | K158: 0 | L158: 111
A159: 22 | B159: 19745 | C159: 13 | D159: 19754 | E159: 14 | F159: 19760 | K159: 0 | L159: 211
A160: 22 | B160: 19859 | C160: 13 | D160: 19869 | E160: 14 | F160: 19877 | K160: 0 | L160: 211
A161: 22 | B161: 19980 | C161: 13 | D161: 19990 | E161: 14 | F161: 19996 | K161: 0 | L161: 211
A162: 22 | B162: 20110 | C162: 13 | D162: 20122 | E162: 14 | F162: 20131 | K162: 0 | L162: 211
A163: 11 | B163: 20252 | C163: 11 | D163: 20257 | E163: 12 | F163: 20269 | K163: 0 | L163: 111
A164: 11 | B164: 20379 | C164: 11 | D164: 20384 | E164: 12 | F164: 20396 | K164: 0 | L164: 111
A165: 22 | B165: 20503 | C165: 13 | D165: 20512 | E165: 14 | F165: 20517 | K165: 0 | L165: 211
A166: 22 | B166: 20630 | C166: 13 | D166: 20641 | E166: 14 | F166: 20651 | K166: 0 | L166: 211
A167: 22 | B167: 20755 | C167: 13 | D167: 20771 | E167: 14 | F167: 20778 | K167: 0 | L167: 211
A168: 22 | B168: 20895 | C168: 13 | D168: 20903 | E168: 14 | F168: 20910 | K168: 0 | L168: 211
A169: 22 | B169: 21010 | C169: 13 | D169: 21021 | E169: 14 | F169: 21026 | K169: 0 | L169: 211
A170: 22 | B170: 21131 | C170: 13 | D170: 21141 | E170: 14 | F170: 21146 | K170: 0 | L170: 211
A171: 22 | B171: 21246 | C171: 13 | D171: 21255 | E171: 14 | F171: 21260 | K171: 0 | L171: 211
A172: 22 | B172: 21365 | C172: 13 | D172: 21381 | E172: 14 | F172: 21389 | K172: 0 | L172: 211
A173: 22 | B173: 21501 | C173: 13 | D173: 21508 | E173: 14 | F173: 21513 | K173: 0 | L173: 211
A174: 11 | B174: 21626 | C174: 11 | D174: 21634 | E174: 12 | F174: 21641 | K174: 0 | L174: 111
A175: 11 | B175: 21753 | C175: 11 | D175: 21758 | E175: 12 | F175: 21766 | K175: 0 | L175: 111
A176: 11 | B176: 21877 | C176: 11 | D176: 21882 | E176: 12 | F176: 21890 | K176: 0 | L176: 111
A177: 11 | B177: 22010 | C177: 11 | D177: 22020 | E177: 12 | F177: 22029 | K177: 0 | L177: 111
A178: 22 | B178: 22130 | C178: 13 | D178: 22141 | E178: 14 | F178: 22146 | K178: 0 | L178: 211
A179: 22 | B179: 22243 | C179: 13 | D179: 22255 | E179: 14 | F179: 22260 | K179: 0 | L179: 211
A180: 11 | B180: 22390 | C180: 11 | D180: 22398 | E180: 12 | F180: 22409 | K180: 0 | L180: 111
A181: 11 | B181: 22522 | C181: 11 | D181: 22528 | E181: 12 | F181: 22537 | K181: 0 | L181: 111
A182: 22 | B182: 22635 | C182: 24 | D182: 22646 | E182: 14 | F182: 22655 | K182: 0 | L182: 221
A183: 22 | B183: 22751 | C183: 13 | D183: 22760 | E183: 14 | F183: 22768 | K183: 0 | L183: 211
A184: 22 | B184: 22866 | C184: 13 | D184: 22878 | E184: 14 | F184: 22882 | K184: 0 | L184: 211
A185: 22 | B185: 22983 | C185: 13 | D185: 22992 | E185: 14 | F185: 22997 | K185: 0 | L185: 211
A186: 22 | B186: 23089 | C186: 13 | D186: 23107 | E186: 14 | F186: 23113 | K186: 0 | L186: 211
A187: 11 | B187: 23223 | C187: 11 | D187: 23229 | E187: 12 | F187: 23240 | K187: 0 | L187: 111
A188: 22 | B188: 23338 | C188: 13 | D188: 23346 | E188: 14 | F188: 23352 | K188: 0 | L188: 211
A189: 22 | B189: 23470 | C189: 13 | D189: 23478 | E189: 14 | F189: 23486 | K189: 0 | L189: 211
A190: 11 | B190: 23598 | C190: 11 | D190: 23606 | E190: 12 | F190: 23617 | K190: 0 | L190: 111
A191: 22 | B191: 23717 | C191: 13 | D191: 23726 | E191: 14 | F191: 23732 | K191: 0 | L191: 211
A192: 22 | B192: 23829 | C192: 13 | D192: 23841 | E192: 14 | F192: 23848 | K192: 0 | L192: 211
A193: 11 | B193: 23959 | C193: 11 | D193: 23964 | E193: 12 | F193: 23974 | L193: 111

Sheet !MA15B50.095
A1: Report for:!MA15B50.095
A2: Date: | B2: <date>
A3: Hen: | B3: <hen> | F3: Correct Sequence | G3: =Start!J2 -> 122 | P3: Total Sequences in Data | Q3: =4994-COUNTBLANK(L7:L5000) -> 191 | V3: Total Sequences in Block Data | W3: =COUNTA(L7:L38) -> 32 | AA3: Total Sequences in Block Data | AB3: =COUNTA(L39:L70) -> 32 | AF3: Total Sequences in Block Data | AG3: =COUNTA(L71:L101) -> 31 | AK3: Total Sequences in Block Data | AL3: =COUNTA(L102:L133) -> 32 | AP3: Total Sequences in Block Data | AQ3: =COUNTA(L134:L165) -> 32 | AU3: Total Sequences in Block Data | AV3: =COUNTA(L166:L197) -> 32
P4: Total Sequences in Summary | Q4: =SUM(O7:O14) -> 191 | V4: Total Sequences in Block Summary | W4: =SUM(U7:U14) -> 32 | AA4: Total Sequences in Block Summary | AB4: =SUM(Z7:Z14) -> 32 | AF4: Total Sequences in Block Summary | AG4: =SUM(AE7:AE14) -> 31 | AK4: Total Sequences in Block Summary | AL4: =SUM(AJ7:AJ14) -> 32 | AP4: Total Sequences in Block Summary | AQ4: =SUM(AO7:AO14) -> 32 | AU4: Total Sequences in Block Summary | AV4: =SUM(AT7:AT14) -> 32
T5: Block 1 | Y5: Block 2 | AD5: Block 3 | AI5: Block 4 | AN5: Block 5 | AS5: Block 6
A6: Sequence Component 1 | B6: Time 1 | C6: Sequence Component 2 | D6: Time 2 | E6: Sequence Component 3 | F6: Time 3 | G6: Sequence Component 4 | H6: Time 4 | I6: Sequence Component 5 | J6: Time 5 | K6: Correct? 0=No 1=Yes | L6: Sequence | N6: Frequency | P6: Relative Frequency | Q6: Variability | T6: Frequency | V6: Relative Frequency | W6: Variability | Y6: Frequency | AA6: Relative Frequency | AB6: Variability | AD6: Frequency | AF6: Relative Frequency | AG6: Variability | AI6: Frequency | AK6: Relative Frequency | AL6: Variability | AN6: Frequency | AP6: Relative Frequency | AQ6: Variability | AS6: Frequency | AU6: Relative Frequency | AV6: Variability
A7: 11 | B7: 47 | C7: 11 | D7: 55 | E7: 12 | F7: 64 | K7: 0 | L7: 111 | N7: 111 | O7: =COUNTIF($L$7:$L$500,N7) -> 94 | P7: =O7/$Q$4 -> 0.4921465969 | Q7: =IF(P7=0,0,(P7*((LOG(P7))/LOG(2)))) -> -0.5033872135 | T7: =N7 -> 111 | U7: =COUNTIF(L7:L38,T7) -> 17 | V7: =U7/(W4-U10) -> 0.53125 | W7: =IF(V7=0,0,(V7*((LOG(V7))/LOG(2)))) -> -0.4847853656 | Y7: =N7 -> 111 | Z7: =COUNTIF(L39:L70,Y7) -> 17 | AA7: =Z7/(AB4-Z10) -> 0.53125 | AB7: =IF(AA7=0,0,(AA7*((LOG(AA7))/LOG(2)))) -> -0.4847853656 | AD7: =N7 -> 111 | AE7: =COUNTIF(L71:L101,AD7) -> 10 | AF7: =AE7/(AG4-AE10) -> 0.3225806452 | AG7: =IF(AF7=0,0,(AF7*((LOG(AF7))/LOG(2)))) -> -0.526538134 | AI7: =N7 -> 111 | AJ7: =COUNTIF(L102:L133,AI7) -> 18 | AK7: =AJ7/(AL4-AJ10) -> 0.5625 | AL7: =IF(AK7=0,0,(AK7*((LOG(AK7))/LOG(2)))) -> -0.4669171867 | AN7: =N7 -> 111 | AO7: =COUNTIF(L134:L165,AN7) -> 19 | AP7: =AO7/(AQ4-AO10) -> 0.59375 | AQ7: =IF(AP7=0,0,(AP7*((LOG(AP7))/LOG(2)))) -> -0.4465430389 | AS7: =N7 -> 111 | AT7: =COUNTIF(L166:L197,AS7) -> 13 | AU7: =AT7/(AV4-AT10) -> 0.40625 | AV7: =IF(AU7=0,0,(AU7*((LOG(AU7))/LOG(2)))) -> -0.5279463645
A8: 22 | B8: 169 | C8: 13 | D8: 180 | E8: 14 | F8: 185 | K8: 0 | L8: 211 | N8: 112 | O8: =COUNTIF($L$7:$L$500,N8) -> 0 | P8: =O8/$Q$4 -> 0 | Q8: =IF(P8=0,0,(P8*((LOG(P8))/LOG(2)))) -> 0 | T8: =N8 -> 112 | U8: =COUNTIF(L7:L38,T8) -> 0 | V8: =U8/(W4-U10) -> 0 | W8: =IF(V8=0,0,(V8*((LOG(V8))/LOG(2)))) -> 0 | Y8: =N8 -> 112 | Z8: =COUNTIF(L39:L70,Y8) -> 0 | AA8: =Z8/(AB4-Z10) -> 0 | AB8: =IF(AA8=0,0,(AA8*((LOG(AA8))/LOG(2)))) -> 0 | AD8: =N8 -> 112 | AE8: =COUNTIF(L71:L101,AD8) -> 0 | AF8: =AE8/(AG4-AE10) -> 0 | AG8: =IF(AF8=0,0,(AF8*((LOG(AF8))/LOG(2)))) -> 0 | AI8: =N8 -> 112 | AJ8: =COUNTIF(L102:L133,AI8) -> 0 | AK8: =AJ8/(AL4-AJ10) -> 0 | AL8: =IF(AK8=0,0,(AK8*((LOG(AK8))/LOG(2)))) -> 0 | AN8: =N8 -> 112 | AO8: =COUNTIF(L134:L165,AN8) -> 0 | AP8: =AO8/(AQ4-AO10) -> 0 | AQ8: =IF(AP8=0,0,(AP8*((LOG(AP8))/LOG(2)))) -> 0 | AS8: =N8 -> 112 | AT8: =COUNTIF(L166:L197,AS8) -> 0 | AU8: =AT8/(AV4-AT10) -> 0 | AV8: =IF(AU8=0,0,(AU8*((LOG(AU8))/LOG(2)))) -> 0
A9: 22 | B9: 301 | C9: 13 | D9: 309 | E9: 14 | F9: 315 | K9: 0 | L9: 211 | N9: 121 | O9: =COUNTIF($L$7:$L$500,N9) -> 0 | P9: =O9/$Q$4 -> 0 | Q9: =IF(P9=0,0,(P9*((LOG(P9))/LOG(2)))) -> 0 | T9: =N9 -> 121 | U9: =COUNTIF(L7:L38,T9) -> 0 | V9: =U9/(W4-U10) -> 0 | W9: =IF(V9=0,0,(V9*((LOG(V9))/LOG(2)))) -> 0 | Y9: =N9 -> 121 | Z9: =COUNTIF(L39:L70,Y9) -> 0 | AA9: =Z9/(AB4-Z10) -> 0 | AB9: =IF(AA9=0,0,(AA9*((LOG(AA9))/LOG(2)))) -> 0 | AD9: =N9 -> 121 | AE9: =COUNTIF(L71:L101,AD9) -> 0 | AF9: =AE9/(AG4-AE10) -> 0 | AG9: =IF(AF9=0,0,(AF9*((LOG(AF9))/LOG(2)))) -> 0 | AI9: =N9 -> 121 | AJ9: =COUNTIF(L102:L133,AI9) -> 0 | AK9: =AJ9/(AL4-AJ10) -> 0 | AL9: =IF(AK9=0,0,(AK9*((LOG(AK9))/LOG(2)))) -> 0 | AN9: =N9 -> 121 | AO9: =COUNTIF(L134:L165,AN9) -> 0 | AP9: =AO9/(AQ4-AO10) -> 0 | AQ9: =IF(AP9=0,0,(AP9*((LOG(AP9))/LOG(2)))) -> 0 | AS9: =N9 -> 121 | AT9: =COUNTIF(L166:L197,AS9) -> 0 | AU9: =AT9/(AV4-AT10) -> 0 | AV9: =IF(AU9=0,0,(AU9*((LOG(AU9))/LOG(2)))) -> 0
A10: 22 | B10: 421 | C10: 13 | D10: 436 | E10: 14 | F10: 443 | K10: 0 | L10: 211 | N10: 122 | O10: =COUNTIF($L$7:$L$500,N10) -> 0 | P10: =O10/$Q$4 -> 0 | Q10: =IF(P10=0,0,(P10*((LOG(P10))/LOG(2)))) -> 0 | T10: =N10 -> 122 | U10: =COUNTIF(L7:L38,T10) -> 0 | Y10: =N10 -> 122 | Z10: =COUNTIF(L39:L70,Y10) -> 0 | AD10: =N10 -> 122 | AE10: =COUNTIF(L71:L101,AD10) -> 0 | AI10: =N10 -> 122 | AJ10: =COUNTIF(L102:L133,AI10) -> 0 | AN10: =N10 -> 122 | AO10: =COUNTIF(L134:L165,AN10) -> 0 | AS10: =N10 -> 122 | AT10: =COUNTIF(L166:L197,AS10) -> 0
A11: 11 | B11: 564 | C11: 11 | D11: 573 | E11: 12 | F11: 586 | K11: 0 | L11: 111 | N11: 211 | O11: =COUNTIF($L$7:$L$500,N11) -> 97 | P11: =O11/$Q$4 -> 0.5078534031 | Q11: =IF(P11=0,0,(P11*((LOG(P11))/LOG(2)))) -> -0.49643482 | T11: =N11 -> 211 | U11: =COUNTIF(L7:L38,T11) -> 15 | V11: =U11/(W4-U10) -> 0.46875 | W11: =IF(V11=0,0,(V11*((LOG(V11))/LOG(2)))) -> -0.5123950333 | Y11: =N11 -> 211 | Z11: =COUNTIF(L39:L70,Y11) -> 15 | AA11: =Z11/(AB4-Z10) -> 0.46875 | AB11: =IF(AA11=0,0,(AA11*((LOG(AA11))/LOG(2)))) -> -0.5123950333 | AD11: =N11 -> 211 | AE11: =COUNTIF(L71:L101,AD11) -> 21 | AF11: =AE11/(AG4-AE10) -> 0.6774193548 | AG11: =IF(AF11=0,0,(AF11*((LOG(AF11))/LOG(2)))) -> -0.3806276335 | AI11: =N11 -> 211 | AJ11: =COUNTIF(L102:L133,AI11) -> 14 | AK11: =AJ11/(AL4-AJ10) -> 0.4375 | AL11: =IF(AK11=0,0,(AK11*((LOG(AK11))/LOG(2)))) -> -0.5217822216 | AN11: =N11 -> 211 | AO11: =COUNTIF(L134:L165,AN11) -> 13 | AP11: =AO11/(AQ4-AO10) -> 0.40625 | AQ11: =IF(AP11=0,0,(AP11*((LOG(AP11))/LOG(2)))) -> -0.5279463645 | AS11: =N11 -> 211 | AT11: =COUNTIF(L166:L197,AS11) -> 19 | AU11: =AT11/(AV4-AT10) -> 0.59375 | AV11: =IF(AU11=0,0,(AU11*((LOG(AU11))/LOG(2)))) -> -0.4465430389
A12: 11 | B12: 705 | C12: 11 | D12: 711 | E12: 12 | F12: 720 | K12: 0 | L12: 111 | N12: 212 | O12: =COUNTIF($L$7:$L$500,N12) -> 0 | P12: =O12/$Q$4 -> 0 | Q12: =IF(P12=0,0,(P12*((LOG(P12))/LOG(2)))) -> 0 | T12: =N12 -> 212 | U12: =COUNTIF(L7:L38,T12) -> 0 | V12: =U12/(W4-U10) -> 0 | W12: =IF(V12=0,0,(V12*((LOG(V12))/LOG(2)))) -> 0 | Y12: =N12 -> 212 | Z12: =COUNTIF(L39:L70,Y12) -> 0 | AA12: =Z12/(AB4-Z10) -> 0 | AB12: =IF(AA12=0,0,(AA12*((LOG(AA12))/LOG(2)))) -> 0 | AD12: =N12 -> 212 | AE12: =COUNTIF(L71:L101,AD12) -> 0 | AF12: =AE12/(AG4-AE10) -> 0 | AG12: =IF(AF12=0,0,(AF12*((LOG(AF12))/LOG(2)))) -> 0 | AI12: =N12 -> 212 | AJ12: =COUNTIF(L102:L133,AI12) -> 0 | AK12: =AJ12/(AL4-AJ10) -> 0 | AL12: =IF(AK12=0,0,(AK12*((LOG(AK12))/LOG(2)))) -> 0 | AN12: =N12 -> 212 | AO12: =COUNTIF(L134:L165,AN12) -> 0 | AP12: =AO12/(AQ4-AO10) -> 0 | AQ12: =IF(AP12=0,0,(AP12*((LOG(AP12))/LOG(2)))) -> 0 | AS12: =N12 -> 212 | AT12: =COUNTIF(L166:L197,AS12) -> 0 | AU12: =AT12/(AV4-AT10) -> 0 | AV12: =IF(AU12=0,0,(AU12*((LOG(AU12))/LOG(2)))) -> 0
A13: 11 | B13: 840 | C13: 11 | D13: 848 | E13: 12 | F13: 857 | K13: 0 | L13: 111 | N13: 221 | O13: =COUNTIF($L$7:$L$500,N13) -> 0 | P13: =O13/$Q$4 -> 0 | Q13: =IF(P13=0,0,(P13*((LOG(P13))/LOG(2)))) -> 0 | T13: =N13 -> 221 | U13: =COUNTIF(L7:L38,T13) -> 0 | V13: =U13/(W4-U10) -> 0 | W13: =IF(V13=0,0,(V13*((LOG(V13))/LOG(2)))) -> 0 | Y13: =N13 -> 221 | Z13: =COUNTIF(L39:L70,Y13) -> 0 | AA13: =Z13/(AB4-Z10) -> 0 | AB13: =IF(AA13=0,0,(AA13*((LOG(AA13))/LOG(2)))) -> 0 | AD13: =N13 -> 221 | AE13: =COUNTIF(L71:L101,AD13) -> 0 | AF13: =AE13/(AG4-AE10) -> 0 | AG13: =IF(AF13=0,0,(AF13*((LOG(AF13))/LOG(2)))) -> 0 | AI13: =N13 -> 221 | AJ13: =COUNTIF(L102:L133,AI13) -> 0 | AK13: =AJ13/(AL4-AJ10) -> 0 | AL13: =IF(AK13=0,0,(AK13*((LOG(AK13))/LOG(2)))) -> 0 | AN13: =N13 -> 221 | AO13: =COUNTIF(L134:L165,AN13) -> 0 | AP13: =AO13/(AQ4-AO10) -> 0 | AQ13: =IF(AP13=0,0,(AP13*((LOG(AP13))/LOG(2)))) -> 0 | AS13: =N13 -> 221 | AT13: =COUNTIF(L166:L197,AS13) -> 0 | AU13: =AT13/(AV4-AT10) -> 0 | AV13: =IF(AU13=0,0,(AU13*((LOG(AU13))/LOG(2)))) -> 0
A14: 11 | B14: 972 | C14: 11 | D14: 978 | E14: 12 | F14: 988 | K14: 0 | L14: 111 | N14: 222 | O14: =COUNTIF($L$7:$L$500,N14) -> 0 | P14: =O14/$Q$4 -> 0 | Q14: =IF(P14=0,0,(P14*((LOG(P14))/LOG(2)))) -> 0 | T14: =N14 -> 222 | U14: =COUNTIF(L7:L38,T14) -> 0 | V14: =U14/(W4-U10) -> 0 | W14: =IF(V14=0,0,(V14*((LOG(V14))/LOG(2)))) -> 0 | Y14: =N14 -> 222 | Z14: =COUNTIF(L39:L70,Y14) -> 0 | AA14: =Z14/(AB4-Z10) -> 0 | AB14: =IF(AA14=0,0,(AA14*((LOG(AA14))/LOG(2)))) -> 0 | AD14: =N14 -> 222 | AE14: =COUNTIF(L71:L101,AD14) -> 0 | AF14: =AE14/(AG4-AE10) -> 0 | AG14: =IF(AF14=0,0,(AF14*((LOG(AF14))/LOG(2)))) -> 0 | AI14: =N14 -> 222 | AJ14: =COUNTIF(L102:L133,AI14) -> 0 | AK14: =AJ14/(AL4-AJ10) -> 0 | AL14: =IF(AK14=0,0,(AK14*((LOG(AK14))/LOG(2)))) -> 0 | AN14: =N14 -> 222 | AO14: =COUNTIF(L134:L165,AN14) -> 0 | AP14: =AO14/(AQ4-AO10) -> 0 | AQ14: =IF(AP14=0,0,(AP14*((LOG(AP14))/LOG(2)))) -> 0 | AS14: =N14 -> 222 | AT14: =COUNTIF(L166:L197,AS14) -> 0 | AU14: =AT14/(AV4-AT10) -> 0 | AV14: =IF(AU14=0,0,(AU14*((LOG(AU14))/LOG(2)))) -> 0
A15: 22 | B15: 1094 | C15: 13 | D15: 1106 | E15: 14 | F15: 1112 | K15: 0 | L15: 211 | P15: =SUM(P7:P14) -> 1 | Q15: =-SUM(Q7:Q14) -> 0.9998220335 | V15: =SUM(V7:V14) -> 1 | W15: =-SUM(W7:W14) -> 0.9971803989 | AA15: =SUM(AA7:AA14) -> 1 | AB15: =-SUM(AB7:AB14) -> 0.9971803989 | AF15: =SUM(AF7:AF14) -> 1 | AG15: =-SUM(AG7:AG14) -> 0.9071657676 | AK15: =SUM(AK7:AK14) -> 1 | AL15: =-SUM(AL7:AL14) -> 0.9886994083 | AP15: =SUM(AP7:AP14) -> 1 | AQ15: =-SUM(AQ7:AQ14) -> 0.9744894034 | AU15: =SUM(AU7:AU14) -> 1 | AV15: =-SUM(AV7:AV14) -> 0.9744894034
A16: 11 | B16: 1228 | C16: 11 | D16: 1234 | E16: 12 | F16: 1242 | K16: 0 | L16: 111 | P16: U= | Q16: =Q15/(LOG(Q4)/LOG(2)) -> 0.1319474001 | V16: U1= | W16: =W15/(LOG(W4)/LOG(2)) -> 0.1994360798 | AA16: U2= | AB16: =AB15/(LOG(AB4)/LOG(2)) -> 0.1994360798 | AF16: U3= | AG16: =AG15/(LOG(AG4)/LOG(2)) -> 0.1831105816 | AK16: U4= | AL16: =AL15/(LOG(AL4)/LOG(2)) -> 0.1977398817 | AP16: U5= | AQ16: =AQ15/(LOG(AQ4)/LOG(2)) -> 0.1948978807 | AU16: U6= | AV16: =AV15/(LOG(AV4)/LOG(2)) -> 0.1948978807
A17: 22 | B17: 1351 | C17: 13 | D17: 1363 | E17: 14 | F17: 1372 | K17: 0 | L17: 211
A18: 11 | B18: 1493 | C18: 11 | D18: 1498 | E18: 12 | F18: 1506 | K18: 0 | L18: 111
A19: 11 | B19: 1618 | C19: 11 | D19: 1624 | E19: 12 | F19: 1635 | K19: 0 | L19: 111 | N19: Total Target Seq
A20: 22 | B20: 1741 | C20: 13 | D20: 1750 | E20: 14 | F20: 1756 | K20: 0 | L20: 211 | N20: =COUNTIF(L7:L197,G3) -> 0 | P20: 32 | Q20: 32 | R20: 31 | S20: 32 | T20: 32 | U20: 32
A21: 11 | B21: 1886 | C21: 11 | D21: 1892 | E21: 12 | F21: 1904 | K21: 0 | L21: 111 | P21: % of reinforcement given in 6 equal intervals based on number of trials
A22: 22 | B22: 2006 | C22: 13 | D22: 2019 | E22: 14 | F22: 2026 | K22: 0 | L22: 211 | P22: %_1 | Q22: %_2 | R22: %_3 | S22: %_4 | T22: %_5 | U22: %_6
A23: 11 | B23: 2144 | C23: 11 | D23: 2150 | E23: 12 | F23: 2158 | K23: 0 | L23: 111 | O23: target sequence | P23: =$G$3 -> 122 | Q23: =$G$3 -> 122 | R23: =$G$3 -> 122 | S23: =$G$3 -> 122 | T23: =$G$3 -> 122 | U23: =$G$3 -> 122
A24: 22 | B24: 2268 | C24: 13 | D24: 2281 | E24: 14 | F24: 2290 | K24: 0 | L24: 211 | O24: total reinforcement | P24: =U10 -> 0 | Q24: =Z10 -> 0 | R24: =AE10 -> 0 | S24: =AJ10 -> 0 | T24: =AO10 -> 0 | U24: =AT10 -> 0
A25: 22 | B25: 2395 | C25: 13 | D25: 2404 | E25: 14 | F25: 2410 | K25: 0 | L25: 211 | O25: % target
A26: 22 | B26: 2530 | C26: 13 | D26: 2543 | E26: 14 | F26: 2549 | K26: 0 | L26: 211 | O26: CCRF
A27: 11 | B27: 2663 | C27: 11 | D27: 2668 | E27: 12 | F27: 2678 | K27: 0 | L27: 111 | O27: % CCRf
A28: 11 | B28: 2791 | C28: 11 | D28: 2797 | E28: 12 | F28: 2806 | K28: 0 | L28: 111 | O28: average response rate | P28: =F38/P20 -> 127.28125 | Q28: =(F70-F38)/Q20 -> 125.25 | R28: =(F101-F70)/R20 -> 123.9032258 | S28: =(F133-F101)/S20 -> 123.78125 | T28: =(F165-F133)/T20 -> 129.875 | U28: =(F197-F165)/U20 -> 122.5
A29: 11 | B29: 2915 | C29: 11 | D29: 2921 | E29: 12 | F29: 2928 | K29: 0 | L29: 111
A30: 11 | B30: 3045 | C30: 11 | D30: 3052 | E30: 12 | F30: 3060 | K30: 0 | L30: 111
A31: 22 | B31: 3161 | C31: 13 | D31: 3173 | E31: 14 | F31: 3179 | K31: 0 | L31: 211
A32: 22 | B32: 3283 | C32: 13 | D32: 3293 | E32: 14 | F32: 3299 | K32: 0 | L32: 211
A33: 22 | B33: 3405 | C33: 13 | D33: 3418 | E33: 14 | F33: 3425 | K33: 0 | L33: 211
A34: 11 | B34: 3542 | C34: 11 | D34: 3547 | E34: 12 | F34: 3555 | K34: 0 | L34: 111
A35: 22 | B35: 3660 | C35: 13 | D35: 3671 | E35: 14 | F35: 3680 | K35: 0 | L35: 211
A36: 22 | B36: 3788 | C36: 13 | D36: 3797 | E36: 14 | F36: 3803 | K36: 0 | L36: 211
A37: 11 | B37: 3919 | C37: 11 | D37: 3926 | E37: 12 | F37: 3933 | K37: 0 | L37: 111
A38: 11 | B38: 4059 | C38: 11 | D38: 4065 | E38: 12 | F38: 4073 | K38: 0 | L38: 111
A39: 11 | B39: 4188 | C39: 11 | D39: 4197 | E39: 12 | F39: 4207 | K39: 0 | L39: 111
A40: 11 | B40: 4328 | C40: 11 | D40: 4334 | E40: 12 | F40: 4343 | K40: 0 | L40: 111
A41: 22 | B41: 4448 | C41: 13 | D41: 4458 | E41: 14 | F41: 4464 | K41: 0 | L41: 211
A42: 22 | B42: 4574 | C42: 13 | D42: 4585 | E42: 14 | F42: 4591 | K42: 0 | L42: 211
A43: 22 | B43: 4691 | C43: 13 | D43: 4701 | E43: 14 | F43: 4708 | K43: 0 | L43: 211
A44: 11 | B44: 4824 | C44: 11 | D44: 4832 | E44: 12 | F44: 4844 | K44: 0 | L44: 111
A45: 11 | B45: 4964 | C45: 11 | D45: 4972 | E45: 12 | F45: 4981 | K45: 0 | L45: 111
A46: 22 | B46: 5089 | C46: 13 | D46: 5101 | E46: 14 | F46: 5106 | K46: 0 | L46: 211
A47: 11 | B47: 5221 | C47: 11 | D47: 5229 | E47: 12 | F47: 5238 | K47: 0 | L47: 111
A48: 22 | B48: 5346 | C48: 13 | D48: 5359 | E48: 14 | F48: 5364 | K48: 0 | L48: 211
A49: 11 | B49: 5479 | C49: 11 | D49: 5484 | E49: 12 | F49: 5492 | K49: 0 | L49: 111
A50: 11 | B50: 5605 | C50: 11 | D50: 5614 | E50: 12 | F50: 5623 | K50: 0 | L50: 111
A51: 22 | B51: 5722 | C51: 13 | D51: 5735 | E51: 14 | F51: 5741 | K51: 0 | L51: 211
A52: 11 | B52: 5852 | C52: 11 | D52: 5857 | E52: 12 | F52: 5865 | K52: 0 | L52: 111
A53: 22 | B53: 5961 | C53: 13 | D53: 5973 | E53: 14 | F53: 5977 | K53: 0 | L53: 211
A54: 22 | B54: 6081 | C54: 13 | D54: 6090 | E54: 14 | F54: 6095 | K54: 0 | L54: 211
A55: 22 | B55: 6197 | C55: 13 | D55: 6206 | E55: 14 | F55: 6212 | K55: 0 | L55: 211
A56: 11 | B56: 6322 | C56: 11 | D56: 6328 | E56: 12 | F56: 6338 | K56: 0 | L56: 111
A57: 22 | B57: 6437 | C57: 13 | D57: 6445 | E57: 14 | F57: 6452 | K57: 0 | L57: 211
A58: 11 | B58: 6565 | C58: 11 | D58: 6570 | E58: 12 | F58: 6582 | K58: 0 | L58: 111
A59: 11 | B59: 6684 | C59: 11 | D59: 6690 | E59: 12 | F59: 6698 | K59: 0 | L59: 111
A60: 22 | B60: 6805 | C60: 13 | D60: 6816 | E60: 14 | F60: 6821 | K60: 0 | L60: 211
A61: 11 | B61: 6933 | C61: 11 | D61: 6938 | E61: 12 | F61: 6946 | K61: 0 | L61: 111
A62: 22 | B62: 7049 | C62: 13 | D62: 7061 | E62: 14 | F62: 7066 | K62: 0 | L62: 211
A63: 11 | B63: 7180 | C63: 11 | D63: 7185 | E63: 12 | F63: 7193 | K63: 0 | L63: 111
A64: 11 | B64: 7317 | C64: 11 | D64: 7324 | E64: 12 | F64: 7334 | K64: 0 | L64: 111
A65: 11 | B65: 7453 | C65: 11 | D65: 7460 | E65: 12 | F65: 7473 | K65: 0 | L65: 111
A66: 11 | B66: 7587 | C66: 11 | D66: 7594 | E66: 12 | F66: 7602 | K66: 0 | L66: 111
A67: 22 | B67: 7710 | C67: 13 | D67: 7721 | E67: 14 | F67: 7725 | K67: 0 | L67: 211
A68: 11 | B68: 7836 | C68: 11 | D68: 7841 | E68: 12 | F68: 7850 | K68: 0 | L68: 111
A69: 22 | B69: 7955 | C69: 13 | D69: 7963 | E69: 14 | F69: 7968 | K69: 0 | L69: 211
A70: 22 | B70: 8067 | C70: 13 | D70: 8075 | E70: 14 | F70: 8081 | K70: 0 | L70: 211
A71: 22 | B71: 8178 | C71: 13 | D71: 8187 | E71: 14 | F71: 8191 | K71: 0 | L71: 211
A72: 22 | B72: 8293 | C72: 13 | D72: 8307 | E72: 14 | F72: 8315 | K72: 0 | L72: 211
A73: 11 | B73: 8428 | C73: 11 | D73: 8432 | E73: 12 | F73: 8440 | K73: 0 | L73: 111
A74: 22 | B74: 8546 | C74: 13 | D74: 8555 | E74: 14 | F74: 8562 | K74: 0 | L74: 211
A75: 22 | B75: 8662 | C75: 13 | D75: 8673 | E75: 14 | F75: 8678 | K75: 0 | L75: 211
A76: 22 | B76: 8785 | C76: 13 | D76: 8793 | E76: 14 | F76: 8797 | K76: 0 | L76: 211
A77: 22 | B77: 8895 | C77: 13 | D77: 8903 | E77: 14 | F77: 8908 | K77: 0 | L77: 211
A78: 22 | B78: 9012 | C78: 13 | D78: 9023 | E78: 14 | F78: 9033 | K78: 0 | L78: 211
A79: 22 | B79: 9143 | C79: 13 | D79: 9154 | E79: 14 | F79: 9162 | K79: 0 | L79: 211
A80: 22 | B80: 9259 | C80: 13 | D80: 9269 | E80: 14 | F80: 9274 | K80: 0 | L80: 211
A81: 22 | B81: 9378 | C81: 13 | D81: 9387 | E81: 14 | F81: 9392 | K81: 0 | L81: 211
A82: 11 | B82: 9504 | C82: 11 | D82: 9509 | E82: 12 | F82: 9517 | K82: 0 | L82: 111
A83: 11 | B83: 9644 | C83: 11 | D83: 9651 | E83: 12 | F83: 9659 | K83: 0 | L83: 111
A84: 22 | B84: 9763 | C84: 13 | D84: 9774 | E84: 14 | F84: 9781 | K84: 0 | L84: 211
A85: 22 | B85: 9887 | C85: 13 | D85: 9898 | E85: 14 | F85: 9905 | K85: 0 | L85: 211
A86: 22 | B86: 10008 | C86: 13 | D86: 10019 | E86: 14 | F86: 10025 | K86: 0 | L86: 211
A87: 22 | B87: 10129 | C87: 13 | D87: 10137 | E87: 14 | F87: 10144 | K87: 0 | L87: 211
A88: 11 | B88: 10256 | C88: 11 | D88: 10261 | E88: 12 | F88: 10272 | K88: 0 | L88: 111
A89: 22 | B89: 10378 | C89: 13 | D89: 10392 | E89: 14 | F89: 10400 | K89: 0 | L89: 211
A90: 11 | B90: 10512 | C90: 11 | D90: 10516 | E90: 12 | F90: 10524 | K90: 0 | L90: 111
A91: 22 | B91: 10630 | C91: 13 | D91: 10638 | E91: 14 | F91: 10643 | K91: 0 | L91: 211
A92: 11 | B92: 10761 | C92: 11 | D92: 10766 | E92: 12 | F92: 10774 | K92: 0 | L92: 111
A93: 22 | B93: 10883 | C93: 13 | D93: 10890 | E93: 14 | F93: 10895 | K93: 0 | L93: 211
A94: 22 | B94: 10995 | C94: 13 | D94: 11003 | E94: 14 | F94: 11009 | K94: 0 | L94: 211
A95: 11 | B95: 11144 | C95: 11 | D95: 11151 | E95: 12 | F95: 11165 | K95: 0 | L95: 111
A96: 22 | B96: 11269 | C96: 13 | D96: 11285 | E96: 14 | F96: 11293 | K96: 0 | L96: 211
A97: 22 | B97: 11396 | C97: 13 | D97: 11404 | E97: 14 | F97: 11412 | K97: 0 | L97: 211
A98: 22 | B98: 11515 | C98: 13 | D98: 11526 | E98: 14 | F98: 11532 | K98: 0 | L98: 211
A99: 11 | B99: 11649 | C99: 11 | D99: 11654 | E99: 12 | F99: 11667 | K99: 0 | L99: 111
A100: 11 | B100: 11786 | C100: 11 | D100: 11790 | E100: 12 | F100: 11799 | K100: 0 | L100: 111
A101: 11 | B101: 11909 | C101: 11 | D101: 11913 | E101: 12 | F101: 11922 | K101: 0 | L101: 111
A102: 22 | B102: 12030 | C102: 13 | D102: 12039 | E102: 14 | F102: 12045 | K102: 0 | L102: 211
A103: 11 | B103: 12151 | C103: 11 | D103: 12158 | E103: 12 | F103: 12165 | K103: 0 | L103: 111
A104: 22 | B104: 12266 | C104: 13 | D104: 12277 | E104: 14 | F104: 12282 | K104: 0 | L104: 211
A105: 22 | B105: 12388 | C105: 13 | D105: 12399 | E105: 14 | F105: 12405 | K105: 0 | L105: 211
A106: 22 | B106: 12507 | C106: 13 | D106: 12516 | E106: 14 | F106: 12522 | K106: 0 | L106: 211
A107: 11 | B107: 12632 | C107: 11 | D107: 12637 | E107: 12 | F107: 12645 | K107: 0 | L107: 111
A108: 11 | B108: 12762 | C108: 11 | D108: 12767 | E108: 12 | F108: 12779 | K108: 0 | L108: 111
A109: 11 | B109: 12898 | C109: 11 | D109: 12903 | E109: 12 | F109: 12910 | K109: 0 | L109: 111
A110: 11 | B110: 13018 | C110: 11 | D110: 13022 | E110: 12 | F110: 13030 | K110: 0 | L110: 111
A111: 22 | B111: 13127 | C111: 13 | D111: 13135 | E111: 14 | F111: 13140 | K111: 0 | L111: 211
A112: 11 | B112: 13254 | C112: 11 | D112: 13260 | E112: 12 | F112: 13272 | K112: 0 | L112: 111
A113: 11 | B113: 13383 | C113: 11 | D113: 13388 | E113: 12 | F113: 13395 | K113: 0 | L113: 111
A114: 22 | B114: 13508 | C114: 13 | D114: 13516 | E114: 14 | F114: 13521 | K114: 0 | L114: 211
A115: 11 | B115: 13630 | C115: 11 | D115: 13636 | E115: 12 | F115: 13648 | K115: 0 | L115: 111
A116: 11 | B116: 13759 | C116: 11 | D116: 13764 | E116: 12 | F116: 13772 | K116: 0 | L116: 111
A117: 11 | B117: 13883 | C117: 11 | D117: 13887 | E117: 12 | F117: 13895 | K117: 0 | L117: 111
A118: 22 | B118: 13997 | C118: 13 | D118: 14005 | E118: 14 | F118: 14010 | K118: 0 | L118: 211
A119: 11 | B119: 14122 | C119: 11 | D119: 14127 | E119: 12 | F119: 14135 | K119: 0 | L119: 111
A120: 22 | B120: 14240 | C120: 13 | D120: 14248 | E120: 14 | F120: 14253 | K120: 0 | L120: 211
A121: 22 | B121: 14350 | C121: 13 | D121: 14359 | E121: 14 | F121: 14363 | K121: 0 | L121: 211
A122: 11 | B122: 14467 | C122: 11 | D122: 14474 | E122: 12 | F122: 14481 | K122: 0 | L122: 111
A123: 11 | B123: 14600 | C123: 11 | D123: 14607 | E123: 12 | F123: 14615 | K123: 0 | L123: 111
A124: 22 | B124: 14721 | C124: 13 | D124: 14729 | E124: 14 | F124: 14737 | K124: 0 | L124: 211
A125: 11 | B125: 14857 | C125: 11 | D125: 14862 | E125: 12 | F125: 14874 | K125: 0 | L125: 111
A126: 22 | B126: 14978 | C126: 13 | D126: 14986 | E126: 14 | F126: 14991 | K126: 0 | L126: 211
A127: 11 | B127: 15105 | C127: 11 | D127: 15110 | E127: 12 | F127: 15121 | K127: 0 | L127: 111
A128: 11 | B128: 15236 | C128: 11 | D128: 15242 | E128: 12 | F128: 15254 | K128: 0 | L128: 111
A129: 22 | B129: 15357 | C129: 13 | D129: 15369 | E129: 14 | F129: 15374 | K129: 0 | L129: 211
A130: 11 | B130: 15490 | C130: 11 | D130: 15495 | E130: 12 | F130: 15504 | K130: 0 | L130: 111
A131: 22 | B131: 15611 | C131: 13 | D131: 15622 | E131: 14 | F131: 15627 | K131: 0 | L131: 211
A132: 22 | B132: 15734 | C132: 13 | D132: 15742 | E132: 14 | F132: 15750 | K132: 0 | L132: 211
A133: 11 | B133: 15862 | C133: 11 | D133: 15872 | E133: 12 | F133: 15883 | K133: 0 | L133: 111
A134: 11 | B134: 16003 | C134: 11 | D134: 16014 | E134: 12 | F134: 16022 | K134: 0 | L134: 111
A135: 11 | B135: 16143 | C135: 11 | D135: 16149 | E135: 12 | F135: 16158 | K135: 0 | L135: 111
A136: 22 | B136: 16265 | C136: 13 | D136: 16274 | E136: 14 | F136: 16278 | K136: 0 | L136: 211
A137: 22 | B137: 16383 | C137: 13 | D137: 16394 | E137: 14 | F137: 16400 | K137: 0 | L137: 211
A138: 22 | B138: 16605 | C138: 13 | D138: 16616 | E138: 14 | F138: 16625 | K138: 0 | L138: 211
A139: 11 | B139: 16737 | C139: 11 | D139: 16743 | E139: 12 | F139: 16753 | K139: 0 | L139: 111
A140: 11 | B140: 16878 | C140: 11 | D140: 16883 | E140: 12 | F140: 16891 | K140: 0 | L140: 111
A141: 22 | B141: 16994 | C141: 13 | D141: 17003 | E141: 14 | F141: 17008 | K141: 0 | L141: 211
A142: 11 | B142: 17134 | C142: 11 | D142: 17142 | E142: 12 | F142: 17153 | K142: 0 | L142: 111
A143: 11 | B143: 17270 | C143: 11 | D143: 17279 | E143: 12 | F143: 17287 | K143: 0 | L143: 111
A144: 11 | B144: 17400 | C144: 11 | D144: 17405 | E144: 12 | F144: 17414 | K144: 0 | L144: 111
A145: 22 | B145: 17513 | C145: 13 | D145: 17521 | E145: 14 | F145: 17526 | K145: 0 | L145: 211
A146: 22 | B146: 17634 | C146: 13 | D146: 17642 | E146: 14 | F146: 17647 | K146: 0 | L146: 211
A147: 11 | B147: 17767 | C147: 11 | D147: 17774 | E147: 12 | F147: 17782 | K147: 0 | L147: 111
A148: 22 | B148: 17889 | C148: 13 | D148: 17899 | E148: 14 | F148: 17904 | K148: 0 | L148: 211
A149: 22 | B149: 18008 | C149: 13 | D149: 18016 | E149: 14 | F149: 18021 | K149: 0 | L149: 211
A150: 11 | B150: 18135 | C150: 11 | D150: 18141 | E150: 12 | F150: 18150 | K150: 0 | L150: 111
A151: 11 | B151: 18256 | C151: 11 | D151: 18265 | E151: 12 | F151: 18276 | K151: 0 | L151: 111
A152: 11 | B152: 18396 | C152: 11 | D152: 18403 | E152: 12 | F152: 18411 | K152: 0 | L152: 111
A153: 11 | B153: 18524 | C153: 11 | D153: 18530 | E153: 12 | F153: 18540 | K153: 0 | L153: 111
A154: 11 | B154: 18653 | C154: 11 | D154: 18658 | E154: 12 | F154: 18665 | K154: 0 | L154: 111
A155: 11 | B155: 18780 | C155: 11 | D155: 18784 | E155: 12 | F155: 18793 | K155: 0 | L155: 111
A156: 22 | B156: 18894 | C156: 13 | D156: 18905 | E156: 14 | F156: 18909 | K156: 0 | L156: 211
A157: 11 | B157: 19014 | C157: 11 | D157: 19019 | E157: 12 | F157: 19027 | K157: 0 | L157: 111
A158: 11 | B158: 19150 | C158: 11 | D158: 19158 | E158: 12 | F158: 19171 | K158: 0 | L158: 111
A159: 22 | B159: 19275 | C159: 13 | D159: 19287 | E159: 14 | F159: 19293 | K159: 0 | L159: 211
A160: 22 | B160: 19397 | C160: 13 | D160: 19409 | E160: 14 | F160: 19417 | K160: 0 | L160: 211
A161: 11 | B161: 19532 | C161: 11 | D161: 19537 | E161: 12 | F161: 19548 | K161: 0 | L161: 111
A162: 22 | B162: 19655 | C162: 13 | D162: 19665 | E162: 14 | F162: 19670 | K162: 0 | L162: 211
A163: 11 | B163: 19782 | C163: 11 | D163: 19787 | E163: 12 | F163: 19795 | K163: 0 | L163: 111
A164: 11 | B164: 19909 | C164: 11 | D164: 19915 | E164: 12 | F164: 19923 | K164: 0 | L164: 111
A165: 22 | B165: 20026 | C165: 13 | D165: 20034 | E165: 14 | F165: 20039 | K165: 0 | L165: 211
A166: 22 | B166: 20136 | C166: 13 | D166: 20147 | E166: 14 | F166: 20152 | K166: 0 | L166: 211
A167: 11 | B167: 20263 | C167: 11 | D167: 20271 | E167: 12 | F167: 20280 | K167: 0 | L167: 111
A168: 11 | B168: 20395 | C168: 11 | D168: 20403 | E168: 12 | F168: 20411 | K168: 0 | L168: 111
A169: 22 | B169: 20520 | C169: 13 | D169: 20531 | E169: 14 | F169: 20537 | K169: 0 | L169: 211
A170: 22 | B170: 20644 | C170: 13 | D170: 20652 | E170: 14 | F170: 20658 | K170: 0 | L170: 211
A171: 11 | B171: 20760 | C171: 11 | D171: 20765 | E171: 12 | F171: 20774 | K171: 0 | L171: 111
A172: 11 | B172: 20882 | C172: 11 | D172: 20888 | E172: 12 | F172: 20895 | K172: 0 | L172: 111
A173: 22 | B173: 20996 | C173: 13 | D173: 21004 | E173: 14 | F173: 21009 | K173: 0 | L173: 211
A174: 11 | B174: 21119 | C174: 11 | D174: 21123 | E174: 12 | F174: 21131 | K174: 0 | L174: 111
A175: 22 | B175: 21229 | C175: 13 | D175: 21241 | E175: 14 | F175: 21245 | K175: 0 | L175: 211
A176: 11 | B176: 21363 | C176: 11 | D176: 21368 | E176: 12 | F176: 21376 | K176: 0 | L176: 111
A177: 22 | B177: 21479 | C177: 13 | D177: 21487 | E177: 14 | F177: 21493 | K177: 0 | L177: 211
A178: 22 | B178: 21590 | C178: 13 | D178: 21598 | E178: 14 | F178: 21603 | K178: 0 | L178: 211
A179: 11 | B179: 21724 | C179: 11 | D179: 21731 | E179: 12 | F179: 21742 | K179: 0 | L179: 111
A180: 11 | B180: 21859 | C180: 11 | D180: 21865 | E180: 12 | F180: 21877 | K180: 0 | L180: 111
A181: 22 | B181: 21976 | C181: 13 | D181: 21987 | E181: 14 | F181: 21992 | K181: 0 | L181: 211
A182: 22 | B182: 22089 | C182: 13 | D182: 22102 | E182: 14 | F182: 22106 | K182: 0 | L182: 211
A183: 11 | B183: 22225 | C183: 11 | D183: 22231 | E183: 12 | F183: 22242 | K183: 0 | L183: 111
A184: 22 | B184: 22346 | C184: 13 | D184: 22363 | E184: 14 | F184: 22371 | K184: 0 | L184: 211
A185: 22 | B185: 22472 | C185: 13 | D185: 22483 | E185: 14 | F185: 22488 | K185: 0 | L185: 211
A186: 11 | B186: 22591 | C186: 11 | D186: 22596 | E186: 12 | F186: 22602 | K186: 0 | L186: 111
A187: 11 | B187: 22714 | C187: 11 | D187: 22719 | E187: 12 | F187: 22727 | K187: 0 | L187: 111
A188: 11 | B188: 22847 | C188: 11 | D188: 22853 | E188: 12 | F188: 22861 | K188: 0 | L188: 111
A189: 22 | B189: 22959 | C189: 13 | D189: 22970 | E189: 14 | F189: 22975 | K189: 0 | L189: 211
A190: 22 | B190: 23082 | C190: 13 | D190: 23093 | E190: 14 | F190: 23099 | K190: 0 | L190: 211
A191: 22 | B191: 23201 | C191: 13 | D191: 23213 | E191: 14 | F191: 23221 | K191: 0 | L191: 211
A192: 22 | B192: 23326 | C192: 13 | D192: 23336 | E192: 14 | F192: 23341 | K192: 0 | L192: 211
A193: 22 | B193: 23441 | C193: 13 | D193: 23453 | E193: 14 | F193: 23461 | K193: 0 | L193: 211
A194: 11 | B194: 23581 | C194: 11 | D194: 23586 | E194: 12 | F194: 23595 | K194: 0 | L194: 111
A195: 22 | B195: 23698 | C195: 13 | D195: 23709 | E195: 14 | F195: 23715 | K195: 0 | L195: 211
A196: 22 | B196: 23823 | C196: 13 | D196: 23833 | E196: 14 | F196: 23838 | K196: 0 | L196: 211
A197: 22 | B197: 23945 | C197: 13 | D197: 23953 | E197: 14 | F197: 23959 | L197: 211

Sheet !MA16B10.095
A1: Report for:!MA16B10.095
A2: Date: | B2: <date>
A3: Hen: | B3: <hen> | F3: Correct Sequence | G3: =Start!J2 -> 122 | P3: Total Sequences in Data | Q3: =4994-COUNTBLANK(L7:L5000) -> 189 | V3: Total Sequences in Block Data | W3: =COUNTA(L7:L38) -> 32 | AA3: Total Sequences in Block Data | AB3: =COUNTA(L39:L69) -> 31 | AF3: Total Sequences in Block Data | AG3: =COUNTA(L70:L101) -> 32 | AK3: Total Sequences in Block Data | AL3: =COUNTA(L102:L132) -> 31 | AP3: Total Sequences in Block Data | AQ3: =COUNTA(L133:L164) -> 32 | AU3: Total Sequences in Block Data | AV3: =COUNTA(L165:L195) -> 31
P4: Total Sequences in Summary | Q4: =SUM(O7:O14) -> 189 | V4: Total Sequences in Block Summary | W4: =SUM(U7:U14) -> 32 | AA4: Total Sequences in Block Summary | AB4: =SUM(Z7:Z14) -> 31 | AF4: Total Sequences in Block Summary | AG4: =SUM(AE7:AE14) -> 32 | AK4: Total Sequences in Block Summary | AL4: =SUM(AJ7:AJ14) -> 31 | AP4: Total Sequences in Block Summary | AQ4: =SUM(AO7:AO14) -> 32 | AU4: Total Sequences in Block Summary | AV4: =SUM(AT7:AT14) -> 31
T5: Block 1 | Y5: Block 2 | AD5: Block 3 | AI5: Block 4 | AN5: Block 5 | AS5: Block 6
A6: Sequence Component 1 | B6: Time 1 | C6: Sequence Component 2 | D6: Time 2 | E6: Sequence Component 3 | F6: Time 3 | G6: Sequence Component 4 | H6: Time 4 | I6: Sequence Component 5 | J6: Time 5 | K6: Correct? 0=No 1=Yes | L6: Sequence | N6: Frequency | P6: Relative Frequency | Q6: Variability | T6: Frequency | V6: Relative Frequency | W6: Variability | Y6: Frequency | AA6: Relative Frequency | AB6: Variability | AD6: Frequency | AF6: Relative Frequency | AG6: Variability | AI6: Frequency | AK6: Relative Frequency | AL6: Variability | AN6: Frequency | AP6: Relative Frequency | AQ6: Variability | AS6: Frequency | AU6: Relative Frequency | AV6: Variability
A7: 11 | B7: 20 | C7: 11 | D7: 28 | E7: 12 | F7: 38 | K7: 0 | L7: 111 | N7: 111 | O7: =COUNTIF($L$7:$L$500,N7) -> 96 | P7: =O7/$Q$4 -> 0.5079365079 | Q7: =IF(P7=0,0,(P7*((LOG(P7))/LOG(2)))) -> -0.4963961516 | T7: =N7 -> 111 | U7: =COUNTIF(L7:L38,T7) -> 14 | V7: =U7/(W4-U10) -> 0.4375 | W7: =IF(V7=0,0,(V7*((LOG(V7))/LOG(2)))) -> -0.5217822216 | Y7: =N7 -> 111 | Z7: =COUNTIF(L39:L69,Y7) -> 18 | AA7: =Z7/(AB4-Z10) -> 0.5806451613 | AB7: =IF(AA7=0,0,(AA7*((LOG(AA7))/LOG(2)))) -> -0.4553833407 | AD7: =N7 -> 111 | AE7: =COUNTIF(L70:L101,AD7) -> 20 | AF7: =AE7/(AG4-AE10) -> 0.625 | AG7: =IF(AF7=0,0,(AF7*((LOG(AF7))/LOG(2)))) -> -0.4237949407 | AI7: =N7 -> 111 | AJ7: =COUNTIF(L102:L132,AI7) -> 19 | AK7: =AJ7/(AL4-AJ10) -> 0.6129032258 | AL7: =IF(AK7=0,0,(AK7*((LOG(AK7))/LOG(2)))) -> -0.4328744239 | AN7: =N7 -> 111 | AO7: =COUNTIF(L133:L164,AN7) -> 12 | AP7: =AO7/(AQ4-AO10) -> 0.375 | AQ7: =IF(AP7=0,0,(AP7*((LOG(AP7))/LOG(2)))) -> -0.5306390622 | AS7: =N7 -> 111 | AT7: =COUNTIF(L165:L195,AS7) -> 13 | AU7: =AT7/(AV4-AT10) -> 0.4193548387 | AV7: =IF(AU7=0,0,(AU7*((LOG(AU7))/LOG(2)))) -> -0.5257688935
A8: 22 | B8: 152 | C8: 13 | D8: 165 | E8: 14 | F8: 173 | K8: 0 | L8: 211 | N8: 112 | O8: =COUNTIF($L$7:$L$500,N8) -> 0 | P8: =O8/$Q$4 -> 0 | Q8: =IF(P8=0,0,(P8*((LOG(P8))/LOG(2)))) -> 0 | T8: =N8 -> 112 | U8: =COUNTIF(L7:L38,T8) -> 0 | V8: =U8/(W4-U10) -> 0 | W8: =IF(V8=0,0,(V8*((LOG(V8))/LOG(2)))) -> 0 | Y8: =N8 -> 112 | Z8: =COUNTIF(L39:L69,Y8) -> 0 | AA8: =Z8/(AB4-Z10) -> 0 | AB8: =IF(AA8=0,0,(AA8*((LOG(AA8))/LOG(2)))) -> 0 | AD8: =N8 -> 112 | AE8: =COUNTIF(L70:L101,AD8) -> 0 | AF8: =AE8/(AG4-AE10) -> 0 | AG8: =IF(AF8=0,0,(AF8*((LOG(AF8))/LOG(2)))) -> 0 | AI8: =N8 -> 112 | AJ8: =COUNTIF(L102:L132,AI8) -> 0 | AK8: =AJ8/(AL4-AJ10) -> 0 | AL8: =IF(AK8=0,0,(AK8*((LOG(AK8))/LOG(2)))) -> 0 | AN8: =N8 -> 112 | AO8: =COUNTIF(L133:L164,AN8) -> 0 | AP8: =AO8/(AQ4-AO10) -> 0 | AQ8: =IF(AP8=0,0,(AP8*((LOG(AP8))/LOG(2)))) -> 0 | AS8: =N8 -> 112 | AT8: =COUNTIF(L165:L195,AS8) -> 0 | AU8: =AT8/(AV4-AT10) -> 0 | AV8: =IF(AU8=0,0,(AU8*((LOG(AU8))/LOG(2)))) -> 0
A9: 11 | B9: 296 | C9: 11 | D9: 300 | E9: 12 | F9: 324 | K9: 0 | L9: 111 | N9: 121 | O9: =COUNTIF($L$7:$L$500,N9) -> 0 | P9: =O9/$Q$4 -> 0 | Q9: =IF(P9=0,0,(P9*((LOG(P9))/LOG(2)))) -> 0 | T9: =N9 -> 121 | U9: =COUNTIF(L7:L38,T9) -> 0 | V9: =U9/(W4-U10) -> 0 | W9: =IF(V9=0,0,(V9*((LOG(V9))/LOG(2)))) -> 0 | Y9: =N9 -> 121 | Z9: =COUNTIF(L39:L69,Y9) -> 0 | AA9: =Z9/(AB4-Z10) -> 0 | AB9: =IF(AA9=0,0,(AA9*((LOG(AA9))/LOG(2)))) -> 0 | AD9: =N9 -> 121 | AE9: =COUNTIF(L70:L101,AD9) -> 0 | AF9: =AE9/(AG4-AE10) -> 0 | AG9: =IF(AF9=0,0,(AF9*((LOG(AF9))/LOG(2)))) -> 0 | AI9: =N9 -> 121 | AJ9: =COUNTIF(L102:L132,AI9) -> 0 | AK9: =AJ9/(AL4-AJ10) -> 0 | AL9: =IF(AK9=0,0,(AK9*((LOG(AK9))/LOG(2)))) -> 0 | AN9: =N9 -> 121 | AO9: =COUNTIF(L133:L164,AN9) -> 0 | AP9: =AO9/(AQ4-AO10) -> 0 | AQ9: =IF(AP9=0,0,(AP9*((LOG(AP9))/LOG(2)))) -> 0 | AS9: =N9 -> 121 | AT9: =COUNTIF(L165:L195,AS9) -> 0 | AU9: =AT9/(AV4-AT10) -> 0 | AV9: =IF(AU9=0,0,(AU9*((LOG(AU9))/LOG(2)))) -> 0
A10: 22 | B10: 426 | C10: 13 | D10: 435 | E10: 14 | F10: 440 | K10: 0 | L10: 211 | N10: 122 | O10: =COUNTIF($L$7:$L$500,N10) -> 0 | P10: =O10/$Q$4 -> 0 | Q10: =IF(P10=0,0,(P10*((LOG(P10))/LOG(2)))) -> 0 | T10: =N10 -> 122 | U10: =COUNTIF(L7:L38,T10) -> 0 | Y10: =N10 -> 122 | Z10: =COUNTIF(L39:L69,Y10) -> 0 | AD10: =N10 -> 122 | AE10: =COUNTIF(L70:L101,AD10) -> 0 | AI10: =N10 -> 122 | AJ10: =COUNTIF(L102:L132,AI10) -> 0 | AN10: =N10 -> 122 | AO10: =COUNTIF(L133:L164,AN10) -> 0 | AS10: =N10 -> 122 | AT10: =COUNTIF(L165:L195,AS10) -> 0
A11: 11 | B11: 557 | C11: 11 | D11: 563 | E11: 12 | F11: 572 | K11: 0 | L11: 111 | N11: 211 | O11: =COUNTIF($L$7:$L$500,N11) -> 91 | P11: =O11/$Q$4 -> 0.4814814815 | Q11: =IF(P11=0,0,(P11*((LOG(P11))/LOG(2)))) -> -0.5076970812 | T11: =N11 -> 211 | U11: =COUNTIF(L7:L38,T11) -> 16 | V11: =U11/(W4-U10) -> 0.5 | W11: =IF(V11=0,0,(V11*((LOG(V11))/LOG(2)))) -> -0.5 | Y11: =N11 -> 211 | Z11: =COUNTIF(L39:L69,Y11) -> 13 | AA11: =Z11/(AB4-Z10) -> 0.4193548387 | AB11: =IF(AA11=0,0,(AA11*((LOG(AA11))/LOG(2)))) -> -0.5257688935 | AD11: =N11 -> 211 | AE11: =COUNTIF(L70:L101,AD11) -> 12 | AF11: =AE11/(AG4-AE10) -> 0.375 | AG11: =IF(AF11=0,0,(AF11*((LOG(AF11))/LOG(2)))) -> -0.5306390622 | AI11: =N11 -> 211 | AJ11: =COUNTIF(L102:L132,AI11) -> 12 | AK11: =AJ11/(AL4-AJ10) -> 0.3870967742 | AL11: =IF(AK11=0,0,(AK11*((LOG(AK11))/LOG(2)))) -> -0.5300259908 | AN11: =N11 -> 211 | AO11: =COUNTIF(L133:L164,AN11) -> 20 | AP11: =AO11/(AQ4-AO10) -> 0.625 | AQ11: =IF(AP11=0,0,(AP11*((LOG(AP11))/LOG(2)))) -> -0.4237949407 | AS11: =N11 -> 211 | AT11: =COUNTIF(L165:L195,AS11) -> 18 | AU11: =AT11/(AV4-AT10) -> 0.5806451613 | AV11: =IF(AU11=0,0,(AU11*((LOG(AU11))/LOG(2)))) -> -0.4553833407
A12: 22 | B12: 696 | C12: 13 | D12: 709 | E12: 14 | F12: 719 | K12: 0 | L12: 211 | N12: 212 | O12: =COUNTIF($L$7:$L$500,N12) -> 0 | P12: =O12/$Q$4 -> 0 | Q12: =IF(P12=0,0,(P12*((LOG(P12))/LOG(2)))) -> 0 | T12: =N12 -> 212 | U12: =COUNTIF(L7:L38,T12) -> 0 | V12: =U12/(W4-U10) -> 0 | W12: =IF(V12=0,0,(V12*((LOG(V12))/LOG(2)))) -> 0 | Y12: =N12 -> 212 | Z12: =COUNTIF(L39:L69,Y12) -> 0 | AA12: =Z12/(AB4-Z10) -> 0 | AB12: =IF(AA12=0,0,(AA12*((LOG(AA12))/LOG(2)))) -> 0 | AD12: =N12 -> 212 | AE12: =COUNTIF(L70:L101,AD12) -> 0 | AF12: =AE12/(AG4-AE10) -> 0 | AG12: =IF(AF12=0,0,(AF12*((LOG(AF12))/LOG(2)))) -> 0 | AI12: =N12 -> 212 | AJ12: =COUNTIF(L102:L132,AI12) -> 0 | AK12: =AJ12/(AL4-AJ10) -> 0 | AL12: =IF(AK12=0,0,(AK12*((LOG(AK12))/LOG(2)))) -> 0 | AN12: =N12 -> 212 | AO12: =COUNTIF(L133:L164,AN12) -> 0 | AP12: =AO12/(AQ4-AO10) -> 0 | AQ12: =IF(AP12=0,0,(AP12*((LOG(AP12))/LOG(2)))) -> 0 | AS12: =N12 -> 212 | AT12: =COUNTIF(L165:L195,AS12) -> 0 | AU12: =AT12/(AV4-AT10) -> 0 | AV12: =IF(AU12=0,0,(AU12*((LOG(AU12))/LOG(2)))) -> 0
A13: 11 | B13: 832 | C13: 11 | D13: 838 | E13: 12 | F13: 846 | K13: 0 | L13: 111 | N13: 221 | O13: =COUNTIF($L$7:$L$500,N13) -> 1 | P13: =O13/$Q$4 -> 0.005291005291 | Q13: =IF(P13=0,0,(P13*((LOG(P13))/LOG(2)))) -> -0.04001186468 | T13: =N13 -> 221 | U13: =COUNTIF(L7:L38,T13) -> 1 | V13: =U13/(W4-U10) -> 0.03125 | W13: =IF(V13=0,0,(V13*((LOG(V13))/LOG(2)))) -> -0.15625 | Y13: =N13 -> 221 | Z13: =COUNTIF(L39:L69,Y13) -> 0 | AA13: =Z13/(AB4-Z10) -> 0 | AB13: =IF(AA13=0,0,(AA13*((LOG(AA13))/LOG(2)))) -> 0 | AD13: =N13 -> 221 | AE13: =COUNTIF(L70:L101,AD13) -> 0 | AF13: =AE13/(AG4-AE10) -> 0 | AG13: =IF(AF13=0,0,(AF13*((LOG(AF13))/LOG(2)))) -> 0 | AI13: =N13 -> 221 | AJ13: =COUNTIF(L102:L132,AI13) -> 0 | AK13: =AJ13/(AL4-AJ10) -> 0 | AL13: =IF(AK13=0,0,(AK13*((LOG(AK13))/LOG(2)))) -> 0 | AN13: =N13 -> 221 | AO13: =COUNTIF(L133:L164,AN13) -> 0 | AP13: =AO13/(AQ4-AO10) -> 0 | AQ13: =IF(AP13=0,0,(AP13*((LOG(AP13))/LOG(2)))) -> 0 | AS13: =N13 -> 221 | AT13: =COUNTIF(L165:L195,AS13) -> 0 | AU13: =AT13/(AV4-AT10) -> 0 | AV13: =IF(AU13=0,0,(AU13*((LOG(AU13))/LOG(2)))) -> 0
A14: 22 | B14: 950 | C14: 13 | D14: 960 | E14: 14 | F14: 965 | K14: 0 | L14: 211 | N14: 222 | O14: =COUNTIF($L$7:$L$500,N14) -> 1 | P14: =O14/$Q$4 -> 0.005291005291 | Q14: =IF(P14=0,0,(P14*((LOG(P14))/LOG(2)))) -> -0.04001186468 | T14: =N14 -> 222 | U14: =COUNTIF(L7:L38,T14) -> 1 | V14: =U14/(W4-U10) -> 0.03125 | W14: =IF(V14=0,0,(V14*((LOG(V14))/LOG(2)))) -> -0.15625 | Y14: =N14 -> 222 | Z14: =COUNTIF(L39:L69,Y14) -> 0 | AA14: =Z14/(AB4-Z10) -> 0 | AB14: =IF(AA14=0,0,(AA14*((LOG(AA14))/LOG(2)))) -> 0 | AD14: =N14 -> 222 | AE14: =COUNTIF(L70:L101,AD14) -> 0 | AF14: =AE14/(AG4-AE10) -> 0 | AG14: =IF(AF14=0,0,(AF14*((LOG(AF14))/LOG(2)))) -> 0 | AI14: =N14 -> 222 | AJ14: =COUNTIF(L102:L132,AI14) -> 0 | AK14: =AJ14/(AL4-AJ10) -> 0 | AL14: =IF(AK14=0,0,(AK14*((LOG(AK14))/LOG(2)))) -> 0 | AN14: =N14 -> 222 | AO14: =COUNTIF(L133:L164,AN14) -> 0 | AP14: =AO14/(AQ4-AO10) -> 0 | AQ14: =IF(AP14=0,0,(AP14*((LOG(AP14))/LOG(2)))) -> 0 | AS14: =N14 -> 222 | AT14: =COUNTIF(L165:L195,AS14) -> 0 | AU14: =AT14/(AV4-AT10) -> 0 | AV14: =IF(AU14=0,0,(AU14*((LOG(AU14))/LOG(2)))) -> 0
A15: 11 | B15: 1085 | C15: 11 | D15: 1091 | E15: 12 | F15: 1103 | K15: 0 | L15: 111 | P15: =SUM(P7:P14) -> 1 | Q15: =-SUM(Q7:Q14) -> 1.084116962 | V15: =SUM(V7:V14) -> 1 | W15: =-SUM(W7:W14) -> 1.334282222 | AA15: =SUM(AA7:AA14) -> 1 | AB15: =-SUM(AB7:AB14) -> 0.9811522342 | AF15: =SUM(AF7:AF14) -> 1 | AG15: =-SUM(AG7:AG14) -> 0.9544340029 | AK15: =SUM(AK7:AK14) -> 1 | AL15: =-SUM(AL7:AL14) -> 0.9629004148 | AP15: =SUM(AP7:AP14) -> 1 | AQ15: =-SUM(AQ7:AQ14) -> 0.9544340029 | AU15: =SUM(AU7:AU14) -> 1 | AV15: =-SUM(AV7:AV14) -> 0.9811522342
A16: 22 | B16: 1223 | C16: 13 | D16: 1237 | E16: 14 | F16: 1242 | K16: 0 | L16: 211 | P16: U= | Q16: =Q15/(LOG(Q4)/LOG(2)) -> 0.1433591918 | V16: U1= | W16: =W15/(LOG(W4)/LOG(2)) -> 0.2668564443 | AA16: U2= | AB16: =AB15/(LOG(AB4)/LOG(2)) -> 0.1980446823 | AF16: U3= | AG16: =AG15/(LOG(AG4)/LOG(2)) -> 0.1908868006 | AK16: U4= | AL16: =AL15/(LOG(AL4)/LOG(2)) -> 0.1943605692 | AP16: U5= | AQ16: =AQ15/(LOG(AQ4)/LOG(2)) -> 0.1908868006 | AU16: U6= | AV16: =AV15/(LOG(AV4)/LOG(2)) -> 0.1980446823
A17: 11 | B17: 1360 | C17: 11 | D17: 1365 | E17: 12 | F17: 1379 | K17: 0 | L17: 111
A18: 22 | B18: 1493 | C18: 24 | D18: 1501 | E18: 23 | F18: 1507 | K18: 0 | L18: 222
A19: 22 | B19: 1605 | C19: 13 | D19: 1617 | E19: 14 | F19: 1623 | K19: 0 | L19: 211 | N19: Total Target Seq
A20: 22 | B20: 1730 | C20: 13 | D20: 1740 | E20: 14 | F20: 1745 | K20: 0 | L20: 211 | N20: =COUNTIF(L7:L195,G3) -> 0 | P20: 32 | Q20: 31 | R20: 32 | S20: 31 | T20: 32 | U20: 31
A21: 22 | B21: 1849 | C21: 13 | D21: 1858 | E21: 14 | F21: 1864 | K21: 0 | L21: 211 | P21: % of reinforcement given in 6 equal intervals based on number of trials
A22: 22 | B22: 1969 | C22: 13 | D22: 1982 | E22: 14 | F22: 1989 | K22: 0 | L22: 211 | P22: %_1 | Q22: %_2 | R22: %_3 | S22: %_4 | T22: %_5 | U22: %_6
A23: 11 | B23: 2101 | C23: 11 | D23: 2109 | E23: 12 | F23: 2119 | K23: 0 | L23: 111 | O23: target sequence | P23: =$G$3 -> 122 | Q23: =$G$3 -> 122 | R23: =$G$3 -> 122 | S23: =$G$3 -> 122 | T23: =$G$3 -> 122 | U23: =$G$3 -> 122
A24: 11 | B24: 2244 | C24: 11 | D24: 2253 | E24: 12 | F24: 2266 | K24: 0 | L24: 111 | O24: total reinforcement | P24: =U10 -> 0 | Q24: =Z10 -> 0 | R24: =AE10 -> 0 | S24: =AJ10 -> 0 | T24: =AO10 -> 0 | U24: =AT10 -> 0
A25: 22 | B25: 2388 | C25: 13 | D25: 2400 | E25: 14 | F25: 2409 | K25: 0 | L25: 211 | O25: % target
A26: 22 | B26: 2511 | C26: 13 | D26: 2521 | E26: 14 | F26: 2526 | K26: 0 | L26: 211 | O26: CCRF
A27: 11 | B27: 2646 | C27: 11 | D27: 2652 | E27: 12 | F27: 2661 | K27: 0 | L27: 111 | O27: % CCRf
A28: 22 | B28: 2771 | C28: 13 | D28: 2784 | E28: 14 | F28: 2789 | K28: 0 | L28: 211 | O28: average response rate | P28: =F38/P20 -> 127.46875 | Q28: =(F69-F38)/Q20 -> 125.6774194 | R28: =(F101-F69)/R20 -> 125.28125 | S28: =(F132-F101)/S20 -> 127.8709677 | T28: =(F164-F132)/T20 -> 125.53125 | U28: =(F195-F164)/U20 -> 128.4516129
A29: 22 | B29: 2894 | C29: 24 | D29: 2901 | E29: 14 | F29: 2913 | K29: 0 | L29: 221
A30: 11 | B30: 3025 | C30: 11 | D30: 3033 | E30: 12 | F30: 3044 | K30: 0 | L30: 111
A31: 22 | B31: 3160 | C31: 13 | D31: 3171 | E31: 14 | F31: 3179 | K31: 0 | L31: 211
A32: 11 | B32: 3300 | C32: 11 | D32: 3309 | E32: 12 | F32: 3318 | K32: 0 | L32: 111
A33: 22 | B33: 3426 | C33: 13 | D33: 3438 | E33: 14 | F33: 3443 | K33: 0 | L33: 211
A34: 22 | B34: 3547 | C34: 13 | D34: 3558 | E34: 14 | F34: 3564 | K34: 0 | L34: 211
A35: 11 | B35: 3686 | C35: 11 | D35: 3695 | E35: 12 | F35: 3704 | K35: 0 | L35: 111
A36: 11 | B36: 3818 | C36: 11 | D36: 3827 | E36: 12 | F36: 3836 | K36: 0 | L36: 111
A37: 22 | B37: 3933 | C37: 13 | D37: 3946 | E37: 14 | F37: 3951 | K37: 0 | L37: 211
A38: 11 | B38: 4065 | C38: 11 | D38: 4070 | E38: 12 | F38: 4079 | K38: 0 | L38: 111
A39: 11 | B39: 4198 | C39: 11 | D39: 4202 | E39: 12 | F39: 4212 | K39: 0 | L39: 111
A40: 11 | B40: 4325 | C40: 11 | D40: 4333 | E40: 12 | F40: 4341 | K40: 0 | L40: 111
A41: 11 | B41: 4449 | C41: 11 | D41: 4454 | E41: 12 | F41: 4463 | K41: 0 | L41: 111
A42: 11 | B42: 4572 | C42: 11 | D42: 4577 | E42: 12 | F42: 4585 | K42: 0 | L42: 111
A43: 22 | B43: 4688 | C43: 13 | D43: 4697 | E43: 14 | F43: 4702 | K43: 0 | L43: 211
A44: 11 | B44: 4815 | C44: 11 | D44: 4820 | E44: 12 | F44: 4828 | K44: 0 | L44: 111
A45: 11 | B45: 4943 | C45: 11 | D45: 4948 | E45: 12 | F45: 4959 | K45: 0 | L45: 111
A46: 22 | B46: 5061 | C46: 13 | D46: 5070 | E46: 14 | F46: 5075 | K46: 0 | L46: 211
A47: 22 | B47: 5184 | C47: 13 | D47: 5196 | E47: 14 | F47: 5202 | K47: 0 | L47: 211
A48: 11 | B48: 5308 | C48: 11 | D48: 5315 | E48: 12 | F48: 5323 | K48: 0 | L48: 111
A49: 22 | B49: 5432 | C49: 13 | D49: 5444 | E49: 14 | F49: 5450 | K49: 0 | L49: 211
A50: 11 | B50: 5559 | C50: 11 | D50: 5565 | E50: 12 | F50: 5577 | K50: 0 | L50: 111
A51: 22 | B51: 5679 | C51: 13 | D51: 5691 | E51: 14 | F51: 5696 | K51: 0 | L51: 211
A52: 22 | B52: 5795 | C52: 13 | D52: 5803 | E52: 14 | F52: 5809 | K52: 0 | L52: 211
A53: 11 | B53: 5925 | C53: 11 | D53: 5930 | E53: 12 | F53: 5941 | K53: 0 | L53: 111
A54: 11 | B54: 6054 | C54: 11 | D54: 6060 | E54: 12 | F54: 6071 | K54: 0 | L54: 111
A55: 11 | B55: 6183 | C55: 11 | D55: 6188 | E55: 12 | F55: 6196 | K55: 0 | L55: 111
A56: 22 | B56: 6291 | C56: 13 | D56: 6302 | E56: 14 | F56: 6307 | K56: 0 | L56: 211
A57: 11 | B57: 6424 | C57: 11 | D57: 6432 | E57: 12 | F57: 6443 | K57: 0 | L57: 111
A58: 11 | B58: 6561 | C58: 11 | D58: 6566 | E58: 12 | F58: 6577 | K58: 0 | L58: 111
A59: 22 | B59: 6687 | C59: 13 | D59: 6699 | E59: 14 | F59: 6706 | K59: 0 | L59: 211
A60: 22 | B60: 6808 | C60: 13 | D60: 6818 | E60: 14 | F60: 6826 | K60: 0 | L60: 211
A61: 22 | B61: 6927 | C61: 13 | D61: 6940 | E61: 14 | F61: 6945 | K61: 0 | L61: 211
A62: 11 | B62: 7050 | C62: 11 | D62: 7056 | E62: 12 | F62: 7065 | K62: 0 | L62: 111
A63: 11 | B63: 7178 | C63: 11 | D63: 7183 | E63: 12 | F63: 7191 | K63: 0 | L63: 111
A64: 22 | B64: 7295 | C64: 13 | D64: 7307 | E64: 14 | F64: 7314 | K64: 0 | L64: 211
A65: 11 | B65: 7430 | C65: 11 | D65: 7440 | E65: 12 | F65: 7453 | K65: 0 | L65: 111
A66: 11 | B66: 7574 | C66: 11 | D66: 7580 | E66: 12 | F66: 7592 | K66: 0 | L66: 111
A67: 22 | B67: 7695 | C67: 13 | D67: 7704 | E67: 14 | F67: 7709 | K67: 0 | L67: 211
A68: 11 | B68: 7831 | C68: 11 | D68: 7839 | E68: 12 | F68: 7850 | K68: 0 | L68: 111
A69: 22 | B69: 7957 | C69: 13 | D69: 7969 | E69: 14 | F69: 7975 | K69: 0 | L69: 211
A70: 11 | B70: 8080 | C70: 11 | D70: 8086 | E70: 12 | F70: 8097 | K70: 0 | L70: 111
A71: 11 | B71: 8207 | C71: 11 | D71: 8212 | E71: 12 | F71: 8220 | K71: 0 | L71: 111
A72: 22 | B72: 8322 | C72: 13 | D72: 8332 | E72: 14 | F72: 8339 | K72: 0 | L72: 211
A73: 22 | B73: 8431 | C73: 13 | D73: 8454 | E73: 14 | F73: 8459 | K73: 0 | L73: 211
A74: 22 | B74: 8560 | C74: 13 | D74: 8568 | E74: 14 | F74: 8575 | K74: 0 | L74: 211
A75: 11 | B75: 8687 | C75: 11 | D75: 8695 | E75: 12 | F75: 8703 | K75: 0 | L75: 111
A76: 11 | B76: 8819 | C76: 11 | D76: 8826 | E76: 12 | F76: 8834 | K76: 0 | L76: 111
A77: 11 | B77: 8953 | C77: 11 | D77: 8958 | E77: 12 | F77: 8971 | K77: 0 | L77: 111
A78: 22 | B78: 9072 | C78: 13 | D78: 9084 | E78: 14 | F78: 9093 | K78: 0 | L78: 211
A79: 22 | B79: 9194 | C79: 13 | D79: 9204 | E79: 14 | F79: 9210 | K79: 0 | L79: 211
A80: 11 | B80: 9324 | C80: 11 | D80: 9329 | E80: 12 | F80: 9338 | K80: 0 | L80: 111
A81: 11 | B81: 9453 | C81: 11 | D81: 9459 | E81: 12 | F81: 9466 | K81: 0 | L81: 111
A82: 11 | B82: 9579 | C82: 11 | D82: 9584 | E82: 12 | F82: 9595 | K82: 0 | L82: 111
A83: 11 | B83: 9712 | C83: 11 | D83: 9719 | E83: 12 | F83: 9728 | K83: 0 | L83: 111
A84: 22 | B84: 9830 | C84: 13 | D84: 9839 | E84: 14 | F84: 9844 | K84: 0 | L84: 211
A85: 22 | B85: 9957 | C85: 13 | D85: 9968 | E85: 14 | F85: 9973 | K85: 0 | L85: 211
A86: 11 | B86: 10103 | C86: 11 | D86: 10110 | E86: 12 | F86: 10122 | K86: 0 | L86: 111
A87: 11 | B87: 10230 | C87: 11 | D87: 10238 | E87: 12 | F87: 10246 | K87: 0 | L87: 111
A88: 22 | B88: 10340 | C88: 13 | D88: 10355 | E88: 14 | F88: 10363 | K88: 0 | L88: 211
A89: 11 | B89: 10480 | C89: 11 | D89: 10485 | E89: 12 | F89: 10496 | K89: 0 | L89: 111
A90: 22 | B90: 10598 | C90: 13 | D90: 10607 | E90: 14 | F90: 10613 | K90: 0 | L90: 211
A91: 11 | B91: 10727 | C91: 11 | D91: 10733 | E91: 12 | F91: 10741 | K91: 0 | L91: 111
A92: 22 | B92: 10849 | C92: 13 | D92: 10858 | E92: 14 | F92: 10865 | K92: 0 | L92: 211
A93: 11 | B93: 10978 | C93: 11 | D93: 10983 | E93: 12 | F93: 10992 | K93: 0 | L93: 111
A94: 11 | B94: 11100 | C94: 11 | D94: 11105 | E94: 12 | F94: 11118 | K94: 0 | L94: 111
A95: 11 | B95: 11231 | C95: 11 | D95: 11236 | E95: 12 | F95: 11246 | K95: 0 | L95: 111
A96: 22 | B96: 11347 | C96: 13 | D96: 11359 | E96: 14 | F96: 11364 | K96: 0 | L96: 211
A97: 11 | B97: 11473 | C97: 11 | D97: 11478 | E97: 12 | F97: 11487 | K97: 0 | L97: 111
A98: 11 | B98: 11599 | C98: 11 | D98: 11606 | E98: 12 | F98: 11614 | K98: 0 | L98: 111
A99: 22 | B99: 11715 | C99: 13 | D99: 11723 | E99: 14 | F99: 11729 | K99: 0 | L99: 211
A100: 11 | B100: 11838 | C100: 11 | D100: 11846 | E100: 12 | F100: 11858 | K100: 0 | L100: 111
A101: 11 | B101: 11971 | C101: 11 | D101: 11976 | E101: 12 | F101: 11984 | K101: 0 | L101: 111
A102: 11 | B102: 12099 | C102: 11 | D102: 12103 | E102: 12 | F102: 12110 | K102: 0 | L102: 111
A103: 22 | B103: 12211 | C103: 13 | D103: 12219 | E103: 14 | F103: 12224 | K103: 0 | L103: 211
A104: 22 | B104: 12331 | C104: 13 | D104: 12340 | E104: 14 | F104: 12345 | K104: 0 | L104: 211
A105: 11 | B105: 12464 | C105: 11 | D105: 12469 | E105: 12 | F105: 12482 | K105: 0 | L105: 111
A106: 22 | B106: 12605 | C106: 13 | D106: 12616 | E106: 14 | F106: 12628 | K106: 0 | L106: 211
A107: 11 | B107: 12743 | C107: 11 | D107: 12748 | E107: 12 | F107: 12756 | K107: 0 | L107: 111
A108: 22 | B108: 12866 | C108: 13 | D108: 12876 | E108: 14 | F108: 12882 | K108: 0 | L108: 211
A109: 22 | B109: 12984 | C109: 13 | D109: 12993 | E109: 14 | F109: 12998 | K109: 0 | L109: 211
A110: 11 | B110: 13109 | C110: 11 | D110: 13114 | E110: 12 | F110: 13123 | K110: 0 | L110: 111
A111: 22 | B111: 13232 | C111: 13 | D111: 13242 | E111: 14 | F111: 13247 | K111: 0 | L111: 211
A112: 11 | B112: 13372 | C112: 11 | D112: 13380 | E112: 12 | F112: 13391 | K112: 0 | L112: 111
A113: 11 | B113: 13508 | C113: 11 | D113: 13513 | E113: 12 | F113: 13521 | K113: 0 | L113: 111
A114: 11 | B114: 13631 | C114: 11 | D114: 13636 | E114: 12 | F114: 13648 | K114: 0 | L114: 111
A115: 11 | B115: 13757 | C115: 11 | D115: 13762 | E115: 12 | F115: 13770 | K115: 0 | L115: 111
A116: 11 | B116: 13882 | C116: 11 | D116: 13888 | E116: 12 | F116: 13899 | K116: 0 | L116: 111
A117: 11 | B117: 14019 | C117: 11 | D117: 14024 | E117: 12 | F117: 14035 | K117: 0 | L117: 111
A118: 11 | B118: 14153 | C118: 11 | D118: 14158 | E118: 12 | F118: 14167 | K118: 0 | L118: 111
A119: 11 | B119: 14282 | C119: 11 | D119: 14286 | E119: 12 | F119: 14297 | K119: 0 | L119: 111
A120: 11 | B120: 14405 | C120: 11 | D120: 14413 | E120: 12 | F120: 14422 | K120: 0 | L120: 111
A121: 11 | B121: 14536 | C121: 11 | D121: 14540 | E121: 12 | F121: 14549 | K121: 0 | L121: 111
A122: 22 | B122: 14678 | C122: 13 | D122: 14689 | E122: 14 | F122: 14697 | K122: 0 | L122: 211
A123: 22 | B123: 14796 | C123: 13 | D123: 14806 | E123: 14 | F123: 14813 | K123: 0 | L123: 211
A124: 22 | B124: 14927 | C124: 13 | D124: 14939 | E124: 14 | F124: 14946 | K124: 0 | L124: 211
A125: 11 | B125: 15058 | C125: 11 | D125: 15064 | E125: 12 | F125: 15071 | K125: 0 | L125: 111
A126: 11 | B126: 15186 | C126: 11 | D126: 15190 | E126: 12 | F126: 15199 | K126: 0 | L126: 111
A127: 22 | B127: 15301 | C127: 13 | D127: 15310 | E127: 14 | F127: 15316 | K127: 0 | L127: 211
A128: 22 | B128: 15426 | C128: 13 | D128: 15437 | E128: 14 | F128: 15443 | K128: 0 | L128: 211
A129: 11 | B129: 15562 | C129: 11 | D129: 15567 | E129: 12 | F129: 15579 | K129: 0 | L129: 111
A130: 11 | B130: 15691 | C130: 11 | D130: 15696 | E130: 12 | F130: 15704 | K130: 0 | L130: 111
A131: 22 | B131: 15807 | C131: 13 | D131: 15817 | E131: 14 | F131: 15822 | K131: 0 | L131: 211
A132: 11 | B132: 15931 | C132: 11 | D132: 15936 | E132: 12 | F132: 15948 | K132: 0 | L132: 111
A133: 11 | B133: 16070 | C133: 11 | D133: 16075 | E133: 12 | F133: 16086 | K133: 0 | L133: 111
A134: 22 | B134: 16188 | C134: 13 | D134: 16209 | E134: 14 | F134: 16217 | K134: 0 | L134: 211
A135: 22 | B135: 16322 | C135: 13 | D135: 16337 | E135: 14 | F135: 16344 | K135: 0 | L135: 211
A136: 22 | B136: 16447 | C136: 13 | D136: 16457 | E136: 14 | F136: 16462 | K136: 0 | L136: 211
A137: 22 | B137: 16563 | C137: 13 | D137: 16571 | E137: 14 | F137: 16577 | K137: 0 | L137: 211
A138: 11 | B138: 16691 | C138: 11 | D138: 16698 | E138: 12 | F138: 16706 | K138: 0 | L138: 111
A139: 22 | B139: 16816 | C139: 13 | D139: 16824 | E139: 14 | F139: 16829 | K139: 0 | L139: 211
A140: 22 | B140: 16934 | C140: 13 | D140: 16942 | E140: 14 | F140: 16949 | K140: 0 | L140: 211
A141: 11 | B141: 17073 | C141: 11 | D141: 17082 | E141: 12 | F141: 17093 | K141: 0 | L141: 111
A142: 22 | B142: 17202 | C142: 13 | D142: 17213 | E142: 14 | F142: 17219 | K142: 0 | L142: 211
A143: 22 | B143: 17322 | C143: 13 | D143: 17331 | E143: 14 | F143: 17336 | K143: 0 | L143: 211
A144: 22 | B144: 17443 | C144: 13 | D144: 17452 | E144: 14 | F144: 17457 | K144: 0 | L144: 211
A145: 22 | B145: 17560 | C145: 13 | D145: 17569 | E145: 14 | F145: 17575 | K145: 0 | L145: 211
A146: 22 | B146: 17680 | C146: 13 | D146: 17688 | E146: 14 | F146: 17696 | K146: 0 | L146: 211
A147: 22 | B147: 17810 | C147: 13 | D147: 17822 | E147: 14 | F147: 17830 | K147: 0 | L147: 211
A148: 22 | B148: 17931 | C148: 13 | D148: 17940 | E148: 14 | F148: 17945 | K148: 0 | L148: 211
A149: 22 | B149: 18048 | C149: 13 | D149: 18056 | E149: 14 | F149: 18061 | K149: 0 | L149: 211
A150: 11 | B150: 18171 | C150: 11 | D150: 18175 | E150: 12 | F150: 18184 | K150: 0 | L150: 111
A151: 11 | B151: 18298 | C151: 11 | D151: 18306 | E151: 12 | F151: 18318 | K151: 0 | L151: 111
A152: 22 | B152: 18413 | C152: 13 | D152: 18425 | E152: 14 | F152: 18429 | K152: 0 | L152: 211
A153: 11 | B153: 18545 | C153: 11 | D153: 18551 | E153: 12 | F153: 18559 | K153: 0 | L153: 111
A154: 22 | B154: 18666 | C154: 13 | D154: 18675 | E154: 14 | F154: 18680 | K154: 0 | L154: 211
A155: 22 | B155: 18779 | C155: 13 | D155: 18787 | E155: 14 | F155: 18791 | K155: 0 | L155: 211
A156: 11 | B156: 18908 | C156: 11 | D156: 18913 | E156: 12 | F156: 18920 | K156: 0 | L156: 111
A157: 11 | B157: 19028 | C157: 11 | D157: 19033 | E157: 12 | F157: 19041 | K157: 0 | L157: 111
A158: 22 | B158: 19146 | C158: 13 | D158: 19178 | E158: 14 | F158: 19193 | K158: 0 | L158: 211
A159: 11 | B159: 19305 | C159: 11 | D159: 19310 | E159: 12 | F159: 19320 | K159: 0 | L159: 111
A160: 11 | B160: 19436 | C160: 11 | D160: 19445 | E160: 12 | F160: 19454 | K160: 0 | L160: 111
A161: 22 | B161: 19559 | C161: 13 | D161: 19569 | E161: 14 | F161: 19574 | K161: 0 | L161: 211
A162: 11 | B162: 19708 | C162: 11 | D162: 19713 | E162: 12 | F162: 19721 | K162: 0 | L162: 111
A163: 22 | B163: 19832 | C163: 13 | D163: 19841 | E163: 14 | F163: 19848 | K163: 0 | L163: 211
A164: 11 | B164: 19953 | C164: 11 | D164: 19957 | E164: 12 | F164: 19965 | K164: 0 | L164: 111
A165: 22 | B165: 20066 | C165: 13 | D165: 20076 | E165: 14 | F165: 20082 | K165: 0 | L165: 211
A166: 22 | B166: 20194 | C166: 13 | D166: 20205 | E166: 14 | F166: 20210 | K166: 0 | L166: 211
A167: 11 | B167: 20327 | C167: 11 | D167: 20334 | E167: 12 | F167: 20343 | K167: 0 | L167: 111
A168: 22 | B168: 20445 | C168: 13 | D168: 20458 | E168: 14 | F168: 20463 | K168: 0 | L168: 211
A169: 11 | B169: 20573 | C169: 11 | D169: 20578 | E169: 12 | F169: 20586 | K169: 0 | L169: 111
A170: 22 | B170: 20686 | C170: 13 | D170: 20695 | E170: 14 | F170: 20700 | K170: 0 | L170: 211
A171: 22 | B171: 20809 | C171: 13 | D171: 20820 | E171: 14 | F171: 20826 | K171: 0 | L171: 211
A172: 11 | B172: 20943 | C172: 11 | D172: 20951 | E172: 12 | F172: 20962 | K172: 0 | L172: 111
A173: 11 | B173: 21080 | C173: 11 | D173: 21088 | E173: 12 | F173: 21099 | K173: 0 | L173: 111
A174: 11 | B174: 21213 | C174: 11 | D174: 21218 | E174: 12 | F174: 21226 | K174: 0 | L174: 111
A175: 22 | B175: 21353 | C175: 13 | D175: 21364 | E175: 14 | F175: 21373 | K175: 0 | L175: 211
A176: 11 | B176: 21485 | C176: 11 | D176: 21494 | E176: 12 | F176: 21504 | K176: 0 | L176: 111
A177: 22 | B177: 21618 | C177: 13 | D177: 21629 | E177: 14 | F177: 21639 | K177: 0 | L177: 211
A178: 11 | B178: 21751 | C178: 11 | D178: 21756 | E178: 12 | F178: 21764 | K178: 0 | L178: 111
A179: 22 | B179: 21870 | C179: 13 | D179: 21878 | E179: 14 | F179: 21883 | K179: 0 | L179: 211
A180: 22 | B180: 21982 | C180: 13 | D180: 21993 | E180: 14 | F180: 22001 | K180: 0 | L180: 211
A181: 22 | B181: 22102 | C181: 13 | D181: 22110 | E181: 14 | F181: 22114 | K181: 0 | L181: 211
A182: 22 | B182: 22216 | C182: 13 | D182: 22231 | E182: 14 | F182: 22239 | K182: 0 | L182: 211
A183: 22 | B183: 22361 | C183: 13 | D183: 22372 | E183: 14 | F183: 22380 | K183: 0 | L183: 211
A184: 22 | B184: 22481 | C184: 13 | D184: 22493 | E184: 14 | F184: 22502 | K184: 0 | L184: 211
A185: 11 | B185: 22611 | C185: 11 | D185: 22618 | E185: 12 | F185: 22628 | K185: 0 | L185: 111
A186: 22 | B186: 22735 | C186: 13 | D186: 22746 | E186: 14 | F186: 22752 | K186: 0 | L186: 211
A187: 11 | B187: 22867 | C187: 11 | D187: 22872 | E187: 12 | F187: 22881 | K187: 0 | L187: 111
A188: 11 | B188: 23011 | C188: 11 | D188: 23017 | E188: 12 | F188: 23028 | K188: 0 | L188: 111
A189: 22 | B189: 23147 | C189: 13 | D189: 23155 | E189: 14 | F189: 23162 | K189: 0 | L189: 211
A190: 11 | B190: 23269 | C190: 11 | D190: 23274 | E190: 12 | F190: 23286 | K190: 0 | L190: 111
A191: 11 | B191: 23417 | C191: 11 | D191: 23425 | E191: 12 | F191: 23433 | K191: 0 | L191: 111
A192: 11 | B192: 23548 | C192: 11 | D192: 23553 | E192: 12 | F192: 23563 | K192: 0 | L192: 111
A193: 22 | B193: 23668 | C193: 13 | D193: 23700 | E193: 14 | F193: 23709 | K193: 0 | L193: 211
A194: 22 | B194: 23811 | C194: 13 | D194: 23822 | E194: 14 | F194: 23829 | K194: 0 | L194: 211
A195: 22 | B195: 23934 | C195: 13 | D195: 23943 | E195: 14 | F195: 23947 | L195: 211

Sheet !MA17E00.095
A1: Report for:!MA17E00.095
A2: Date: | B2: <date>
A3: Hen: | B3: <hen> | F3: Correct Sequence | G3: =Start!J2 -> 122 | P3: Total Sequences in Data | Q3: =4994-COUNTBLANK(L7:L5000) -> 192 | V3: Total Sequences in Block Data | W3: =COUNTA(L7:L38) -> 32 | AA3: Total Sequences in Block Data | AB3: =COUNTA(L39:L70) -> 32 | AF3: Total Sequences in Block Data | AG3: =COUNTA(L71:L102) -> 32 | AK3: Total Sequences in Block Data | AL3: =COUNTA(L103:L134) -> 32 | AP3: Total Sequences in Block Data | AQ3: =COUNTA(L135:L166) -> 32 | AU3: Total Sequences in Block Data | AV3: =COUNTA(L167:L198) -> 32
P4: Total Sequences in Summary | Q4: =SUM(O7:O14) -> 192 | V4: Total Sequences in Block Summary | W4: =SUM(U7:U14) -> 32 | AA4: Total Sequences in Block Summary | AB4: =SUM(Z7:Z14) -> 32 | AF4: Total Sequences in Block Summary | AG4: =SUM(AE7:AE14) -> 32 | AK4: Total Sequences in Block Summary | AL4: =SUM(AJ7:AJ14) -> 32 | AP4: Total Sequences in Block Summary | AQ4: =SUM(AO7:AO14) -> 32 | AU4: Total Sequences in Block Summary | AV4: =SUM(AT7:AT14) -> 32
T5: Block 1 | Y5: Block 2 | AD5: Block 3 | AI5: Block 4 | AN5: Block 5 | AS5: Block 6
A6: Sequence Component 1 | B6: Time 1 | C6: Sequence Component 2 | D6: Time 2 | E6: Sequence Component 3 | F6: Time 3 | G6: Sequence Component 4 | H6: Time 4 | I6: Sequence Component 5 | J6: Time 5 | K6: Correct? 0=No 1=Yes | L6: Sequence | N6: Frequency | P6: Relative Frequency | Q6: Variability | T6: Frequency | V6: Relative Frequency | W6: Variability | Y6: Frequency | AA6: Relative Frequency | AB6: Variability | AD6: Frequency | AF6: Relative Frequency | AG6: Variability | AI6: Frequency | AK6: Relative Frequency | AL6: Variability | AN6: Frequency | AP6: Relative Frequency | AQ6: Variability | AS6: Frequency | AU6: Relative Frequency | AV6: Variability
A7: 22 | B7: 10 | C7: 13 | D7: 18 | E7: 14 | F7: 26 | K7: 0 | L7: 211 | N7: 111 | O7: =COUNTIF($L$7:$L$500,N7) -> 101 | P7: =O7/$Q$4 -> 0.5260416667 | Q7: =IF(P7=0,0,(P7*((LOG(P7))/LOG(2)))) -> -0.4875096501 | T7: =N7 -> 111 | U7: =COUNTIF(L7:L38,T7) -> 14 | V7: =U7/(W4-U10) -> 0.4375 | W7: =IF(V7=0,0,(V7*((LOG(V7))/LOG(2)))) -> -0.5217822216 | Y7: =N7 -> 111 | Z7: =COUNTIF(L39:L70,Y7) -> 15 | AA7: =Z7/(AB4-Z10) -> 0.46875 | AB7: =IF(AA7=0,0,(AA7*((LOG(AA7))/LOG(2)))) -> -0.5123950333 | AD7: =N7 -> 111 | AE7: =COUNTIF(L71:L102,AD7) -> 19 | AF7: =AE7/(AG4-AE10) -> 0.59375 | AG7: =IF(AF7=0,0,(AF7*((LOG(AF7))/LOG(2)))) -> -0.4465430389 | AI7: =N7 -> 111 | AJ7: =COUNTIF(L103:L134,AI7) -> 16 | AK7: =AJ7/(AL4-AJ10) -> 0.5 | AL7: =IF(AK7=0,0,(AK7*((LOG(AK7))/LOG(2)))) -> -0.5 | AN7: =N7 -> 111 | AO7: =COUNTIF(L135:L166,AN7) -> 16 | AP7: =AO7/(AQ4-AO10) -> 0.5 | AQ7: =IF(AP7=0,0,(AP7*((LOG(AP7))/LOG(2)))) -> -0.5 | AS7: =N7 -> 111 | AT7: =COUNTIF(L167:L198,AS7) -> 21 | AU7: =AT7/(AV4-AT10) -> 0.65625 | AV7: =IF(AU7=0,0,(AU7*((LOG(AU7))/LOG(2)))) -> -0.3987916913
A8: 11 | B8: 138 | C8: 11 | D8: 147 | E8: 12 | F8: 161 | K8: 0 | L8: 111 | N8: 112 | O8: =COUNTIF($L$7:$L$500,N8) -> 0 | P8: =O8/$Q$4 -> 0 | Q8: =IF(P8=0,0,(P8*((LOG(P8))/LOG(2)))) -> 0 | T8: =N8 -> 112 | U8: =COUNTIF(L7:L38,T8) -> 0 | V8: =U8/(W4-U10) -> 0 | W8: =IF(V8=0,0,(V8*((LOG(V8))/LOG(2)))) -> 0 | Y8: =N8 -> 112 | Z8: =COUNTIF(L39:L70,Y8) -> 0 | AA8: =Z8/(AB4-Z10) -> 0 | AB8: =IF(AA8=0,0,(AA8*((LOG(AA8))/LOG(2)))) -> 0 | AD8: =N8 -> 112 | AE8: =COUNTIF(L71:L102,AD8) -> 0 | AF8: =AE8/(AG4-AE10) -> 0 | AG8: =IF(AF8=0,0,(AF8*((LOG(AF8))/LOG(2)))) -> 0 | AI8: =N8 -> 112 | AJ8: =COUNTIF(L103:L134,AI8) -> 0 | AK8: =AJ8/(AL4-AJ10) -> 0 | AL8: =IF(AK8=0,0,(AK8*((LOG(AK8))/LOG(2)))) -> 0 | AN8: =N8 -> 112 | AO8: =COUNTIF(L135:L166,AN8) -> 0 | AP8: =AO8/(AQ4-AO10) -> 0 | AQ8: =IF(AP8=0,0,(AP8*((LOG(AP8))/LOG(2)))) -> 0 | AS8: =N8 -> 112 | AT8: =COUNTIF(L167:L198,AS8) -> 0 | AU8: =AT8/(AV4-AT10) -> 0 | AV8: =IF(AU8=0,0,(AU8*((LOG(AU8))/LOG(2)))) -> 0
A9: 11 | B9: 274 | C9: 11 | D9: 281 | E9: 12 | F9: 290 | K9: 0 | L9: 111 | N9: 121 | O9: =COUNTIF($L$7:$L$500,N9) -> 0 | P9: =O9/$Q$4 -> 0 | Q9: =IF(P9=0,0,(P9*((LOG(P9))/LOG(2)))) -> 0 | T9: =N9 -> 121 | U9: =COUNTIF(L7:L38,T9) -> 0 | V9: =U9/(W4-U10) -> 0 | W9: =IF(V9=0,0,(V9*((LOG(V9))/LOG(2)))) -> 0 | Y9: =N9 -> 121 | Z9: =COUNTIF(L39:L70,Y9) -> 0 | AA9: =Z9/(AB4-Z10) -> 0 | AB9: =IF(AA9=0,0,(AA9*((LOG(AA9))/LOG(2)))) -> 0 | AD9: =N9 -> 121 | AE9: =COUNTIF(L71:L102,AD9) -> 0 | AF9: =AE9/(AG4-AE10) -> 0 | AG9: =IF(AF9=0,0,(AF9*((LOG(AF9))/LOG(2)))) -> 0 | AI9: =N9 -> 121 | AJ9: =COUNTIF(L103:L134,AI9) -> 0 | AK9: =AJ9/(AL4-AJ10) -> 0 | AL9: =IF(AK9=0,0,(AK9*((LOG(AK9))/LOG(2)))) -> 0 | AN9: =N9 -> 121 | AO9: =COUNTIF(L135:L166,AN9) -> 0 | AP9: =AO9/(AQ4-AO10) -> 0 | AQ9: =IF(AP9=0,0,(AP9*((LOG(AP9))/LOG(2)))) -> 0 | AS9: =N9 -> 121 | AT9: =COUNTIF(L167:L198,AS9) -> 0 | AU9: =AT9/(AV4-AT10) -> 0 | AV9: =IF(AU9=0,0,(AU9*((LOG(AU9))/LOG(2)))) -> 0
A10: 22 | B10: 398 | C10: 13 | D10: 407 | E10: 14 | F10: 414 | K10: 0 | L10: 211 | N10: 122 | O10: =COUNTIF($L$7:$L$500,N10) -> 0 | P10: =O10/$Q$4 -> 0 | Q10: =IF(P10=0,0,(P10*((LOG(P10))/LOG(2)))) -> 0 | T10: =N10 -> 122 | U10: =COUNTIF(L7:L38,T10) -> 0 | Y10: =N10 -> 122 | Z10: =COUNTIF(L39:L70,Y10) -> 0 | AD10: =N10 -> 122 | AE10: =COUNTIF(L71:L102,AD10) -> 0 | AI10: =N10 -> 122 | AJ10: =COUNTIF(L103:L134,AI10) -> 0 | AN10: =N10 -> 122 | AO10: =COUNTIF(L135:L166,AN10) -> 0 | AS10: =N10 -> 122 | AT10: =COUNTIF(L167:L198,AS10) -> 0
A11: 22 | B11: 529 | C11: 13 | D11: 539 | E11: 14 | F11: 544 | K11: 0 | L11: 211 | N11: 211 | O11: =COUNTIF($L$7:$L$500,N11) -> 90 | P11: =O11/$Q$4 -> 0.46875 | Q11: =IF(P11=0,0,(P11*((LOG(P11))/LOG(2)))) -> -0.5123950333 | T11: =N11 -> 211 | U11: =COUNTIF(L7:L38,T11) -> 18 | V11: =U11/(W4-U10) -> 0.5625 | W11: =IF(V11=0,0,(V11*((LOG(V11))/LOG(2)))) -> -0.4669171867 | Y11: =N11 -> 211 | Z11: =COUNTIF(L39:L70,Y11) -> 17 | AA11: =Z11/(AB4-Z10) -> 0.53125 | AB11: =IF(AA11=0,0,(AA11*((LOG(AA11))/LOG(2)))) -> -0.4847853656 | AD11: =N11 -> 211 | AE11: =COUNTIF(L71:L102,AD11) -> 13 | AF11: =AE11/(AG4-AE10) -> 0.40625 | AG11: =IF(AF11=0,0,(AF11*((LOG(AF11))/LOG(2)))) -> -0.5279463645 | AI11: =N11 -> 211 | AJ11: =COUNTIF(L103:L134,AI11) -> 16 | AK11: =AJ11/(AL4-AJ10) -> 0.5 | AL11: =IF(AK11=0,0,(AK11*((LOG(AK11))/LOG(2)))) -> -0.5 | AN11: =N11 -> 211 | AO11: =COUNTIF(L135:L166,AN11) -> 15 | AP11: =AO11/(AQ4-AO10) -> 0.46875 | AQ11: =IF(AP11=0,0,(AP11*((LOG(AP11))/LOG(2)))) -> -0.5123950333 | AS11: =N11 -> 211 | AT11: =COUNTIF(L167:L198,AS11) -> 11 | AU11: =AT11/(AV4-AT10) -> 0.34375 | AV11: =IF(AU11=0,0,(AU11*((LOG(AU11))/LOG(2)))) -> -0.5295703811
A12: 22 | B12: 653 | C12: 13 | D12: 662 | E12: 14 | F12: 669 | K12: 0 | L12: 211 | N12: 212 | O12: =COUNTIF($L$7:$L$500,N12) -> 0 | P12: =O12/$Q$4 -> 0 | Q12: =IF(P12=0,0,(P12*((LOG(P12))/LOG(2)))) -> 0 | T12: =N12 -> 212 | U12: =COUNTIF(L7:L38,T12) -> 0 | V12: =U12/(W4-U10) -> 0 | W12: =IF(V12=0,0,(V12*((LOG(V12))/LOG(2)))) -> 0 | Y12: =N12 -> 212 | Z12: =COUNTIF(L39:L70,Y12) -> 0 | AA12: =Z12/(AB4-Z10) -> 0 | AB12: =IF(AA12=0,0,(AA12*((LOG(AA12))/LOG(2)))) -> 0 | AD12: =N12 -> 212 | AE12: =COUNTIF(L71:L102,AD12) -> 0 | AF12: =AE12/(AG4-AE10) -> 0 | AG12: =IF(AF12=0,0,(AF12*((LOG(AF12))/LOG(2)))) -> 0 | AI12: =N12 -> 212 | AJ12: =COUNTIF(L103:L134,AI12) -> 0 | AK12: =AJ12/(AL4-AJ10) -> 0 | AL12: =IF(AK12=0,0,(AK12*((LOG(AK12))/LOG(2)))) -> 0 | AN12: =N12 -> 212 | AO12: =COUNTIF(L135:L166,AN12) -> 0 | AP12: =AO12/(AQ4-AO10) -> 0 | AQ12: =IF(AP12=0,0,(AP12*((LOG(AP12))/LOG(2)))) -> 0 | AS12: =N12 -> 212 | AT12: =COUNTIF(L167:L198,AS12) -> 0 | AU12: =AT12/(AV4-AT10) -> 0 | AV12: =IF(AU12=0,0,(AU12*((LOG(AU12))/LOG(2)))) -> 0
A13: 22 | B13: 774 | C13: 13 | D13: 785 | E13: 14 | F13: 792 | K13: 0 | L13: 211 | N13: 221 | O13: =COUNTIF($L$7:$L$500,N13) -> 1 | P13: =O13/$Q$4 -> 0.005208333333 | Q13: =IF(P13=0,0,(P13*((LOG(P13))/LOG(2)))) -> -0.03950501302 | T13: =N13 -> 221 | U13: =COUNTIF(L7:L38,T13) -> 0 | V13: =U13/(W4-U10) -> 0 | W13: =IF(V13=0,0,(V13*((LOG(V13))/LOG(2)))) -> 0 | Y13: =N13 -> 221 | Z13: =COUNTIF(L39:L70,Y13) -> 0 | AA13: =Z13/(AB4-Z10) -> 0 | AB13: =IF(AA13=0,0,(AA13*((LOG(AA13))/LOG(2)))) -> 0 | AD13: =N13 -> 221 | AE13: =COUNTIF(L71:L102,AD13) -> 0 | AF13: =AE13/(AG4-AE10) -> 0 | AG13: =IF(AF13=0,0,(AF13*((LOG(AF13))/LOG(2)))) -> 0 | AI13: =N13 -> 221 | AJ13: =COUNTIF(L103:L134,AI13) -> 0 | AK13: =AJ13/(AL4-AJ10) -> 0 | AL13: =IF(AK13=0,0,(AK13*((LOG(AK13))/LOG(2)))) -> 0 | AN13: =N13 -> 221 | AO13: =COUNTIF(L135:L166,AN13) -> 1 | AP13: =AO13/(AQ4-AO10) -> 0.03125 | AQ13: =IF(AP13=0,0,(AP13*((LOG(AP13))/LOG(2)))) -> -0.15625 | AS13: =N13 -> 221 | AT13: =COUNTIF(L167:L198,AS13) -> 0 | AU13: =AT13/(AV4-AT10) -> 0 | AV13: =IF(AU13=0,0,(AU13*((LOG(AU13))/LOG(2)))) -> 0
A14: 22 | B14: 892 | C14: 13 | D14: 904 | E14: 14 | F14: 912 | K14: 0 | L14: 211 | N14: 222 | O14: =COUNTIF($L$7:$L$500,N14) -> 0 | P14: =O14/$Q$4 -> 0 | Q14: =IF(P14=0,0,(P14*((LOG(P14))/LOG(2)))) -> 0 | T14: =N14 -> 222 | U14: =COUNTIF(L7:L38,T14) -> 0 | V14: =U14/(W4-U10) -> 0 | W14: =IF(V14=0,0,(V14*((LOG(V14))/LOG(2)))) -> 0 | Y14: =N14 -> 222 | Z14: =COUNTIF(L39:L70,Y14) -> 0 | AA14: =Z14/(AB4-Z10) -> 0 | AB14: =IF(AA14=0,0,(AA14*((LOG(AA14))/LOG(2)))) -> 0 | AD14: =N14 -> 222 | AE14: =COUNTIF(L71:L102,AD14) -> 0 | AF14: =AE14/(AG4-AE10) -> 0 | AG14: =IF(AF14=0,0,(AF14*((LOG(AF14))/LOG(2)))) -> 0 | AI14: =N14 -> 222 | AJ14: =COUNTIF(L103:L134,AI14) -> 0 | AK14: =AJ14/(AL4-AJ10) -> 0 | AL14: =IF(AK14=0,0,(AK14*((LOG(AK14))/LOG(2)))) -> 0 | AN14: =N14 -> 222 | AO14: =COUNTIF(L135:L166,AN14) -> 0 | AP14: =AO14/(AQ4-AO10) -> 0 | AQ14: =IF(AP14=0,0,(AP14*((LOG(AP14))/LOG(2)))) -> 0 | AS14: =N14 -> 222 | AT14: =COUNTIF(L167:L198,AS14) -> 0 | AU14: =AT14/(AV4-AT10) -> 0 | AV14: =IF(AU14=0,0,(AU14*((LOG(AU14))/LOG(2)))) -> 0
A15: 11 | B15: 1025 | C15: 11 | D15: 1031 | E15: 12 | F15: 1043 | K15: 0 | L15: 111 | P15: =SUM(P7:P14) -> 1 | Q15: =-SUM(Q7:Q14) -> 1.039409696 | V15: =SUM(V7:V14) -> 1 | W15: =-SUM(W7:W14) -> 0.9886994083 | AA15: =SUM(AA7:AA14) -> 1 | AB15: =-SUM(AB7:AB14) -> 0.9971803989 | AF15: =SUM(AF7:AF14) -> 1 | AG15: =-SUM(AG7:AG14) -> 0.9744894034 | AK15: =SUM(AK7:AK14) -> 1 | AL15: =-SUM(AL7:AL14) -> 1 | AP15: =SUM(AP7:AP14) -> 1 | AQ15: =-SUM(AQ7:AQ14) -> 1.168645033 | AU15: =SUM(AU7:AU14) -> 1 | AV15: =-SUM(AV7:AV14) -> 0.9283620724
A16: 22 | B16: 1149 | C16: 13 | D16: 1159 | E16: 14 | F16: 1164 | K16: 0 | L16: 211 | P16: U= | Q16: =Q15/(LOG(Q4)/LOG(2)) -> 0.1370355748 | V16: U1= | W16: =W15/(LOG(W4)/LOG(2)) -> 0.1977398817 | AA16: U2= | AB16: =AB15/(LOG(AB4)/LOG(2)) -> 0.1994360798 | AF16: U3= | AG16: =AG15/(LOG(AG4)/LOG(2)) -> 0.1948978807 | AK16: U4= | AL16: =AL15/(LOG(AL4)/LOG(2)) -> 0.2 | AP16: U5= | AQ16: =AQ15/(LOG(AQ4)/LOG(2)) -> 0.2337290067 | AU16: U6= | AV16: =AV15/(LOG(AV4)/LOG(2)) -> 0.1856724145
A17: 22 | B17: 1268 | C17: 13 | D17: 1279 | E17: 14 | F17: 1286 | K17: 0 | L17: 211
A18: 22 | B18: 1391 | C18: 13 | D18: 1402 | E18: 14 | F18: 1407 | K18: 0 | L18: 211
A19: 22 | B19: 1519 | C19: 13 | D19: 1539 | E19: 14 | F19: 1546 | K19: 0 | L19: 211 | N19: Total Target Seq
A20: 11 | B20: 1663 | C20: 11 | D20: 1669 | E20: 12 | F20: 1683 | K20: 0 | L20: 111 | N20: =COUNTIF(L7:L198,G3) -> 0 | P20: 32 | Q20: 32 | R20: 32 | S20: 32 | T20: 32 | U20: 32
A21: 11 | B21: 1791 | C21: 11 | D21: 1796 | E21: 12 | F21: 1806 | K21: 0 | L21: 111 | P21: % of reinforcement given in 6 equal intervals based on number of trials
A22: 11 | B22: 1921 | C22: 11 | D22: 1926 | E22: 12 | F22: 1940 | K22: 0 | L22: 111 | P22: %_1 | Q22: %_2 | R22: %_3 | S22: %_4 | T22: %_5 | U22: %_6
A23: 22 | B23: 2038 | C23: 13 | D23: 2049 | E23: 14 | F23: 2056 | K23: 0 | L23: 211 | O23: target sequence | P23: =$G$3 -> 122 | Q23: =$G$3 -> 122 | R23: =$G$3 -> 122 | S23: =$G$3 -> 122 | T23: =$G$3 -> 122 | U23: =$G$3 -> 122
A24: 22 | B24: 2161 | C24: 13 | D24: 2173 | E24: 14 | F24: 2178 | K24: 0 | L24: 211 | O24: total reinforcement | P24: =U10 -> 0 | Q24: =Z10 -> 0 | R24: =AE10 -> 0 | S24: =AJ10 -> 0 | T24: =AO10 -> 0 | U24: =AT10 -> 0
A25: 22 | B25: 2279 | C25: 13 | D25: 2288 | E25: 14 | F25: 2293 | K25: 0 | L25: 211 | O25: % target
A26: 11 | B26: 2408 | C26: 11 | D26: 2413 | E26: 12 | F26: 2425 | K26: 0 | L26: 111 | O26: CCRF
A27: 11 | B27: 2536 | C27: 11 | D27: 2541 | E27: 12 | F27: 2551 | K27: 0 | L27: 111 | O27: % CCRf
A28: 22 | B28: 2652 | C28: 13 | D28: 2663 | E28: 14 | F28: 2669 | K28: 0 | L28: 211 | O28: average response rate | P28: =F38/P20 -> 121.90625 | Q28: =(F70-F38)/Q20 -> 123.125 | R28: =(F102-F70)/R20 -> 126.1875 | S28: =(F134-F102)/S20 -> 123.71875 | T28: =(F166-F134)/T20 -> 126.59375 | U28: =(F198-F166)/U20 -> 127.25
A29: 22 | B29: 2777 | C29: 13 | D29: 2787 | E29: 14 | F29: 2792 | K29: 0 | L29: 211
A30: 11 | B30: 2902 | C30: 11 | D30: 2907 | E30: 12 | F30: 2916 | K30: 0 | L30: 111
A31: 11 | B31: 3026 | C31: 11 | D31: 3031 | E31: 12 | F31: 3042 | K31: 0 | L31: 111
A32: 11 | B32: 3153 | C32: 11 | D32: 3160 | E32: 12 | F32: 3170 | K32: 0 | L32: 111
A33: 11 | B33: 3280 | C33: 11 | D33: 3285 | E33: 12 | F33: 3295 | K33: 0 | L33: 111
A34: 22 | B34: 3399 | C34: 13 | D34: 3410 | E34: 14 | F34: 3417 | K34: 0 | L34: 211
A35: 22 | B35: 3519 | C35: 13 | D35: 3528 | E35: 14 | F35: 3532 | K35: 0 | L35: 211
A36: 11 | B36: 3638 | C36: 11 | D36: 3643 | E36: 12 | F36: 3653 | K36: 0 | L36: 111
A37: 22 | B37: 3756 | C37: 13 | D37: 3768 | E37: 14 | F37: 3777 | K37: 0 | L37: 211
A38: 11 | B38: 3888 | C38: 11 | D38: 3893 | E38: 12 | F38: 3901 | K38: 0 | L38: 111
A39: 22 | B39: 4001 | C39: 13 | D39: 4009 | E39: 14 | F39: 4014 | K39: 0 | L39: 211
A40: 22 | B40: 4117 | C40: 13 | D40: 4125 | E40: 14 | F40: 4130 | K40: 0 | L40: 211
A41: 22 | B41: 4240 | C41: 13 | D41: 4251 | E41: 14 | F41: 4259 | K41: 0 | L41: 211
A42: 11 | B42: 4371 | C42: 11 | D42: 4377 | E42: 12 | F42: 4389 | K42: 0 | L42: 111
A43: 11 | B43: 4499 | C43: 11 | D43: 4504 | E43: 12 | F43: 4513 | K43: 0 | L43: 111
A44: 22 | B44: 4614 | C44: 13 | D44: 4624 | E44: 14 | F44: 4632 | K44: 0 | L44: 211
A45: 22 | B45: 4736 | C45: 13 | D45: 4745 | E45: 14 | F45: 4749 | K45: 0 | L45: 211
A46: 11 | B46: 4860 | C46: 11 | D46: 4866 | E46: 12 | F46: 4876 | K46: 0 | L46: 111
A47: 11 | B47: 4993 | C47: 11 | D47: 4998 | E47: 12 | F47: 5008 | K47: 0 | L47: 111
A48: 11 | B48: 5117 | C48: 11 | D48: 5123 | E48: 12 | F48: 5132 | K48: 0 | L48: 111
A49: 22 | B49: 5238 | C49: 13 | D49: 5246 | E49: 14 | F49: 5251 | K49: 0 | L49: 211
A50: 11 | B50: 5361 | C50: 11 | D50: 5365 | E50: 12 | F50: 5373 | K50: 0 | L50: 111
A51: 11 | B51: 5478 | C51: 11 | D51: 5483 | E51: 12 | F51: 5494 | K51: 0 | L51: 111
A52: 11 | B52: 5605 | C52: 11 | D52: 5610 | E52: 12 | F52: 5621 | K52: 0 | L52: 111
A53: 11 | B53: 5737 | C53: 11 | D53: 5745 | E53: 12 | F53: 5757 | K53: 0 | L53: 111
A54: 22 | B54: 5860 | C54: 13 | D54: 5871 | E54: 14 | F54: 5876 | K54: 0 | L54: 211
A55: 22 | B55: 5976 | C55: 13 | D55: 5985 | E55: 14 | F55: 5990 | K55: 0 | L55: 211
A56: 22 | B56: 6091 | C56: 13 | D56: 6100 | E56: 14 | F56: 6105 | K56: 0 | L56: 211
A57: 22 | B57: 6214 | C57: 13 | D57: 6226 | E57: 14 | F57: 6233 | K57: 0 | L57: 211
A58: 22 | B58: 6337 | C58: 13 | D58: 6346 | E58: 14 | F58: 6351 | K58: 0 | L58: 211
A59: 22 | B59: 6459 | C59: 13 | D59: 6470 | E59: 14 | F59: 6475 | K59: 0 | L59: 211
A60: 11 | B60: 6579 | C60: 11 | D60: 6584 | E60: 12 | F60: 6592 | K60: 0 | L60: 111
A61: 11 | B61: 6708 | C61: 11 | D61: 6716 | E61: 12 | F61: 6726 | K61: 0 | L61: 111
A62: 22 | B62: 6823 | C62: 13 | D62: 6835 | E62: 14 | F62: 6843 | K62: 0 | L62: 211
A63: 11 | B63: 6952 | C63: 11 | D63: 6957 | E63: 12 | F63: 6964 | K63: 0 | L63: 111
A64: 11 | B64: 7081 | C64: 11 | D64: 7085 | E64: 12 | F64: 7094 | K64: 0 | L64: 111
A65: 22 | B65: 7197 | C65: 13 | D65: 7212 | E65: 14 | F65: 7219 | K65: 0 | L65: 211
A66: 11 | B66: 7329 | C66: 11 | D66: 7335 | E66: 12 | F66: 7346 | K66: 0 | L66: 111
A67: 22 | B67: 7451 | C67: 13 | D67: 7462 | E67: 14 | F67: 7467 | K67: 0 | L67: 211
A68: 22 | B68: 7565 | C68: 13 | D68: 7573 | E68: 14 | F68: 7578 | K68: 0 | L68: 211
A69: 11 | B69: 7689 | C69: 11 | D69: 7695 | E69: 12 | F69: 7706 | K69: 0 | L69: 111
A70: 22 | B70: 7820 | C70: 13 | D70: 7832 | E70: 14 | F70: 7841 | K70: 0 | L70: 211
A71: 11 | B71: 7958 | C71: 11 | D71: 7963 | E71: 12 | F71: 7972 | K71: 0 | L71: 111
A72: 22 | B72: 8095 | C72: 13 | D72: 8106 | E72: 14 | F72: 8111 | K72: 0 | L72: 211
A73: 11 | B73: 8221 | C73: 11 | D73: 8227 | E73: 12 | F73: 8238 | K73: 0 | L73: 111
A74: 22 | B74: 8335 | C74: 13 | D74: 8344 | E74: 14 | F74: 8350 | K74: 0 | L74: 211
A75: 11 | B75: 8461 | C75: 11 | D75: 8467 | E75: 12 | F75: 8476 | K75: 0 | L75: 111
A76: 22 | B76: 8584 | C76: 13 | D76: 8594 | E76: 14 | F76: 8599 | K76: 0 | L76: 211
A77: 22 | B77: 8704 | C77: 13 | D77: 8712 | E77: 14 | F77: 8717 | K77: 0 | L77: 211
A78: 11 | B78: 8824 | C78: 11 | D78: 8829 | E78: 12 | F78: 8837 | K78: 0 | L78: 111
A79: 11 | B79: 8948 | C79: 11 | D79: 8953 | E79: 12 | F79: 8962 | K79: 0 | L79: 111
A80: 11 | B80: 9078 | C80: 11 | D80: 9083 | E80: 12 | F80: 9093 | K80: 0 | L80: 111
A81: 11 | B81: 9212 | C81: 11 | D81: 9218 | E81: 12 | F81: 9229 | K81: 0 | L81: 111
A82: 22 | B82: 9337 | C82: 13 | D82: 9356 | E82: 14 | F82: 9361 | K82: 0 | L82: 211
A83: 22 | B83: 9460 | C83: 13 | D83: 9472 | E83: 14 | F83: 9477 | K83: 0 | L83: 211
A84: 11 | B84: 9588 | C84: 11 | D84: 9597 | E84: 12 | F84: 9608 | K84: 0 | L84: 111
A85: 11 | B85: 9732 | C85: 11 | D85: 9738 | E85: 12 | F85: 9749 | K85: 0 | L85: 111
A86: 22 | B86: 9845 | C86: 13 | D86: 9853 | E86: 14 | F86: 9861 | K86: 0 | L86: 211
A87: 11 | B87: 9974 | C87: 11 | D87: 9980 | E87: 12 | F87: 9988 | K87: 0 | L87: 111
A88: 22 | B88: 10093 | C88: 13 | D88: 10103 | E88: 14 | F88: 10108 | K88: 0 | L88: 211
A89: 11 | B89: 10220 | C89: 11 | D89: 10226 | E89: 12 | F89: 10233 | K89: 0 | L89: 111
A90: 11 | B90: 10349 | C90: 11 | D90: 10357 | E90: 12 | F90: 10368 | K90: 0 | L90: 111
A91: 11 | B91: 10480 | C91: 11 | D91: 10485 | E91: 12 | F91: 10496 | K91: 0 | L91: 111
A92: 11 | B92: 10611 | C92: 11 | D92: 10617 | E92: 12 | F92: 10626 | K92: 0 | L92: 111
A93: 11 | B93: 10738 | C93: 11 | D93: 10743 | E93: 12 | F93: 10751 | K93: 0 | L93: 111
A94: 11 | B94: 10868 | C94: 11 | D94: 10873 | E94: 12 | F94: 10882 | K94: 0 | L94: 111
A95: 22 | B95: 10977 | C95: 13 | D95: 10988 | E95: 14 | F95: 10994 | K95: 0 | L95: 211
A96: 22 | B96: 11094 | C96: 13 | D96: 11117 | E96: 14 | F96: 11124 | K96: 0 | L96: 211
A97: 22 | B97: 11227 | C97: 13 | D97: 11240 | E97: 14 | F97: 11247 | K97: 0 | L97: 211
A98: 22 | B98: 11355 | C98: 13 | D98: 11363 | E98: 14 | F98: 11368 | K98: 0 | L98: 211
A99: 11 | B99: 11477 | C99: 11 | D99: 11483 | E99: 12 | F99: 11491 | K99: 0 | L99: 111
A100: 11 | B100: 11607 | C100: 11 | D100: 11614 | E100: 12 | F100: 11626 | K100: 0 | L100: 111
A101: 22 | B101: 11735 | C101: 13 | D101: 11743 | E101: 14 | F101: 11749 | K101: 0 | L101: 211
A102: 11 | B102: 11866 | C102: 11 | D102: 11871 | E102: 12 | F102: 11879 | K102: 0 | L102: 111
A103: 11 | B103: 11999 | C103: 11 | D103: 12006 | E103: 12 | F103: 12017 | K103: 0 | L103: 111
A104: 22 | B104: 12122 | C104: 13 | D104: 12130 | E104: 14 | F104: 12135 | K104: 0 | L104: 211
A105: 11 | B105: 12242 | C105: 11 | D105: 12248 | E105: 12 | F105: 12255 | K105: 0 | L105: 111
A106: 11 | B106: 12362 | C106: 11 | D106: 12370 | E106: 12 | F106: 12381 | K106: 0 | L106: 111
A107: 22 | B107: 12482 | C107: 13 | D107: 12490 | E107: 14 | F107: 12497 | K107: 0 | L107: 211
A108: 22 | B108: 12600 | C108: 13 | D108: 12613 | E108: 14 | F108: 12628 | K108: 0 | L108: 211
A109: 22 | B109: 12733 | C109: 13 | D109: 12744 | E109: 14 | F109: 12748 | K109: 0 | L109: 211
A110: 11 | B110: 12863 | C110: 11 | D110: 12868 | E110: 12 | F110: 12878 | K110: 0 | L110: 111
A111: 22 | B111: 12980 | C111: 13 | D111: 12987 | E111: 14 | F111: 12993 | K111: 0 | L111: 211
A112: 11 | B112: 13103 | C112: 11 | D112: 13109 | E112: 12 | F112: 13119 | K112: 0 | L112: 111
A113: 11 | B113: 13225 | C113: 11 | D113: 13229 | E113: 12 | F113: 13237 | K113: 0 | L113: 111
A114: 22 | B114: 13343 | C114: 13 | D114: 13351 | E114: 14 | F114: 13358 | K114: 0 | L114: 211
A115: 11 | B115: 13467 | C115: 11 | D115: 13473 | E115: 12 | F115: 13483 | K115: 0 | L115: 111
A116: 11 | B116: 13601 | C116: 11 | D116: 13605 | E116: 12 | F116: 13615 | K116: 0 | L116: 111
A117: 22 | B117: 13716 | C117: 13 | D117: 13729 | E117: 14 | F117: 13737 | K117: 0 | L117: 211
A118: 22 | B118: 13833 | C118: 13 | D118: 13841 | E118: 14 | F118: 13847 | K118: 0 | L118: 211
A119: 22 | B119: 13947 | C119: 13 | D119: 13971 | E119: 14 | F119: 13979 | K119: 0 | L119: 211
A120: 11 | B120: 14095 | C120: 11 | D120: 14099 | E120: 12 | F120: 14108 | K120: 0 | L120: 111
A121: 11 | B121: 14228 | C121: 11 | D121: 14234 | E121: 12 | F121: 14247 | K121: 0 | L121: 111
A122: 11 | B122: 14358 | C122: 11 | D122: 14363 | E122: 12 | F122: 14372 | K122: 0 | L122: 111
A123: 11 | B123: 14506 | C123: 11 | D123: 14513 | E123: 12 | F123: 14520 | K123: 0 | L123: 111
A124: 11 | B124: 14629 | C124: 11 | D124: 14634 | E124: 12 | F124: 14643 | K124: 0 | L124: 111
A125: 22 | B125: 14744 | C125: 13 | D125: 14754 | E125: 14 | F125: 14759 | K125: 0 | L125: 211
A126: 11 | B126: 14865 | C126: 11 | D126: 14870 | E126: 12 | F126: 14878 | K126: 0 | L126: 111
A127: 22 | B127: 14975 | C127: 13 | D127: 14986 | E127: 14 | F127: 14993 | K127: 0 | L127: 211
A128: 11 | B128: 15113 | C128: 11 | D128: 15118 | E128: 12 | F128: 15126 | K128: 0 | L128: 111
A129: 22 | B129: 15228 | C129: 13 | D129: 15237 | E129: 14 | F129: 15242 | K129: 0 | L129: 211
A130: 22 | B130: 15338 | C130: 13 | D130: 15349 | E130: 14 | F130: 15354 | K130: 0 | L130: 211
A131: 22 | B131: 15461 | C131: 13 | D131: 15470 | E131: 14 | F131: 15475 | K131: 0 | L131: 211
A132: 22 | B132: 15575 | C132: 13 | D132: 15584 | E132: 14 | F132: 15589 | K132: 0 | L132: 211
A133: 22 | B133: 15691 | C133: 13 | D133: 15699 | E133: 14 | F133: 15704 | K133: 0 | L133: 211
A134: 11 | B134: 15818 | C134: 11 | D134: 15828 | E134: 12 | F134: 15838 | K134: 0 | L134: 111
A135: 11 | B135: 15943 | C135: 11 | D135: 15948 | E135: 12 | F135: 15956 | K135: 0 | L135: 111
A136: 11 | B136: 16065 | C136: 11 | D136: 16070 | E136: 12 | F136: 16078 | K136: 0 | L136: 111
A137: 11 | B137: 16187 | C137: 11 | D137: 16195 | E137: 12 | F137: 16206 | K137: 0 | L137: 111
A138: 22 | B138: 16307 | C138: 13 | D138: 16318 | E138: 14 | F138: 16327 | K138: 0 | L138: 211
A139: 22 | B139: 16422 | C139: 13 | D139: 16430 | E139: 14 | F139: 16435 | K139: 0 | L139: 211
A140: 11 | B140: 16558 | C140: 11 | D140: 16567 | E140: 12 | F140: 16578 | K140: 0 | L140: 111
A141: 22 | B141: 16695 | C141: 13 | D141: 16708 | E141: 14 | F141: 16713 | K141: 0 | L141: 211
A142: 11 | B142: 16819 | C142: 11 | D142: 16825 | E142: 12 | F142: 16832 | K142: 0 | L142: 111
A143: 22 | B143: 16934 | C143: 13 | D143: 16946 | E143: 14 | F143: 16951 | K143: 0 | L143: 211
A144: 11 | B144: 17074 | C144: 11 | D144: 17083 | E144: 12 | F144: 17094 | K144: 0 | L144: 111
A145: 11 | B145: 17212 | C145: 11 | D145: 17219 | E145: 12 | F145: 17230 | K145: 0 | L145: 111
A146: 11 | B146: 17374 | C146: 11 | D146: 17382 | E146: 12 | F146: 17391 | K146: 0 | L146: 111
A147: 11 | B147: 17505 | C147: 11 | D147: 17510 | E147: 12 | F147: 17518 | K147: 0 | L147: 111
A148: 11 | B148: 17631 | C148: 11 | D148: 17639 | E148: 12 | F148: 17649 | K148: 0 | L148: 111
A149: 22 | B149: 17750 | C149: 13 | D149: 17757 | E149: 14 | F149: 17762 | K149: 0 | L149: 211
A150: 22 | B150: 17864 | C150: 13 | D150: 17874 | E150: 14 | F150: 17882 | K150: 0 | L150: 211
A151: 22 | B151: 17986 | C151: 13 | D151: 17995 | E151: 14 | F151: 18002 | K151: 0 | L151: 211
A152: 11 | B152: 18122 | C152: 11 | D152: 18129 | E152: 12 | F152: 18139 | K152: 0 | L152: 111
A153: 11 | B153: 18247 | C153: 11 | D153: 18251 | E153: 12 | F153: 18258 | K153: 0 | L153: 111
A154: 22 | B154: 18359 | C154: 13 | D154: 18381 | E154: 14 | F154: 18389 | K154: 0 | L154: 211
A155: 11 | B155: 18497 | C155: 11 | D155: 18503 | E155: 12 | F155: 18510 | K155: 0 | L155: 111
A156: 11 | B156: 18622 | C156: 11 | D156: 18630 | E156: 12 | F156: 18639 | K156: 0 | L156: 111
A157: 22 | B157: 18738 | C157: 13 | D157: 18771 | E157: 14 | F157: 18779 | K157: 0 | L157: 211
A158: 22 | B158: 18905 | C158: 13 | D158: 18915 | E158: 14 | F158: 18922 | K158: 0 | L158: 211
A159: 11 | B159: 19031 | C159: 11 | D159: 19036 | E159: 12 | F159: 19045 | K159: 0 | L159: 111
A160: 11 | B160: 19151 | C160: 11 | D160: 19156 | E160: 12 | F160: 19164 | K160: 0 | L160: 111
A161: 22 | B161: 19264 | C161: 24 | D161: 19281 | E161: 14 | F161: 19291 | K161: 0 | L161: 221
A162: 22 | B162: 19388 | C162: 13 | D162: 19399 | E162: 14 | F162: 19404 | K162: 0 | L162: 211
A163: 22 | B163: 19515 | C163: 13 | D163: 19524 | E163: 14 | F163: 19529 | K163: 0 | L163: 211
A164: 22 | B164: 19635 | C164: 13 | D164: 19645 | E164: 14 | F164: 19650 | K164: 0 | L164: 211
A165: 22 | B165: 19762 | C165: 13 | D165: 19770 | E165: 14 | F165: 19778 | K165: 0 | L165: 211
A166: 22 | B166: 19875 | C166: 13 | D166: 19884 | E166: 14 | F166: 19889 | K166: 0 | L166: 211
A167: 22 | B167: 19991 | C167: 13 | D167: 20003 | E167: 14 | F167: 20010 | K167: 0 | L167: 211
A168: 22 | B168: 20109 | C168: 13 | D168: 20117 | E168: 14 | F168: 20122 | K168: 0 | L168: 211
A169: 11 | B169: 20255 | C169: 11 | D169: 20263 | E169: 12 | F169: 20274 | K169: 0 | L169: 111
A170: 11 | B170: 20394 | C170: 11 | D170: 20399 | E170: 12 | F170: 20409 | K170: 0 | L170: 111
A171: 11 | B171: 20514 | C171: 11 | D171: 20523 | E171: 12 | F171: 20532 | K171: 0 | L171: 111
A172: 22 | B172: 20638 | C172: 13 | D172: 20646 | E172: 14 | F172: 20651 | K172: 0 | L172: 211
A173: 11 | B173: 20760 | C173: 11 | D173: 20765 | E173: 12 | F173: 20772 | K173: 0 | L173: 111
A174: 11 | B174: 20891 | C174: 11 | D174: 20900 | E174: 12 | F174: 20911 | K174: 0 | L174: 111
A175: 22 | B175: 21014 | C175: 13 | D175: 21040 | E175: 14 | F175: 21047 | K175: 0 | L175: 211
A176: 11 | B176: 21163 | C176: 11 | D176: 21168 | E176: 12 | F176: 21179 | K176: 0 | L176: 111
A177: 11 | B177: 21295 | C177: 11 | D177: 21302 | E177: 12 | F177: 21314 | K177: 0 | L177: 111
A178: 11 | B178: 21426 | C178: 11 | D178: 21436 | E178: 12 | F178: 21447 | K178: 0 | L178: 111
A179: 11 | B179: 21557 | C179: 11 | D179: 21562 | E179: 12 | F179: 21571 | K179: 0 | L179: 111
A180: 22 | B180: 21675 | C180: 13 | D180: 21686 | E180: 14 | F180: 21691 | K180: 0 | L180: 211
A181: 11 | B181: 21802 | C181: 11 | D181: 21808 | E181: 12 | F181: 21820 | K181: 0 | L181: 111
A182: 22 | B182: 21921 | C182: 13 | D182: 21940 | E182: 14 | F182: 21948 | K182: 0 | L182: 211
A183: 22 | B183: 22051 | C183: 13 | D183: 22062 | E183: 14 | F183: 22073 | K183: 0 | L183: 211
A184: 11 | B184: 22182 | C184: 11 | D184: 22187 | E184: 12 | F184: 22198 | K184: 0 | L184: 111
A185: 22 | B185: 22299 | C185: 13 | D185: 22311 | E185: 14 | F185: 22316 | K185: 0 | L185: 211
A186: 11 | B186: 22424 | C186: 11 | D186: 22430 | E186: 12 | F186: 22441 | K186: 0 | L186: 111
A187: 11 | B187: 22547 | C187: 11 | D187: 22552 | E187: 12 | F187: 22562 | K187: 0 | L187: 111
A188: 11 | B188: 22680 | C188: 11 | D188: 22685 | E188: 12 | F188: 22702 | K188: 0 | L188: 111
A189: 22 | B189: 22797 | C189: 13 | D189: 22808 | E189: 14 | F189: 22812 | K189: 0 | L189: 211
A190: 11 | B190: 22921 | C190: 11 | D190: 22926 | E190: 12 | F190: 22934 | K190: 0 | L190: 111
A191: 11 | B191: 23041 | C191: 11 | D191: 23046 | E191: 12 | F191: 23056 | K191: 0 | L191: 111
A192: 11 | B192: 23173 | C192: 11 | D192: 23178 | E192: 12 | F192: 23189 | K192: 0 | L192: 111
A193: 22 | B193: 23305 | C193: 13 | D193: 23316 | E193: 14 | F193: 23322 | K193: 0 | L193: 211
A194: 11 | B194: 23433 | C194: 11 | D194: 23442 | E194: 12 | F194: 23452 | K194: 0 | L194: 111
A195: 11 | B195: 23567 | C195: 11 | D195: 23575 | E195: 12 | F195: 23587 | K195: 0 | L195: 111
A196: 11 | B196: 23700 | C196: 11 | D196: 23705 | E196: 12 | F196: 23713 | K196: 0 | L196: 111
A197: 22 | B197: 23815 | C197: 13 | D197: 23825 | E197: 14 | F197: 23832 | K197: 0 | L197: 211
A198: 11 | B198: 23946 | C198: 11 | D198: 23951 | E198: 12 | F198: 23961 | L198: 111

Sheet !MA18B40.095
A1: Report for:!MA18B40.095
A2: Date: | B2: <date>
A3: Hen: | B3: <hen> | F3: Correct Sequence | G3: =Start!J2 -> 122 | P3: Total Sequences in Data | Q3: =4994-COUNTBLANK(L7:L5000) -> 184 | V3: Total Sequences in Block Data | W3: =COUNTA(L7:L37) -> 31 | AA3: Total Sequences in Block Data | AB3: =COUNTA(L38:L67) -> 30 | AF3: Total Sequences in Block Data | AG3: =COUNTA(L68:L98) -> 31 | AK3: Total Sequences in Block Data | AL3: =COUNTA(L99:L129) -> 31 | AP3: Total Sequences in Block Data | AQ3: =COUNTA(L130:L159) -> 30 | AU3: Total Sequences in Block Data | AV3: =COUNTA(L160:L190) -> 31
P4: Total Sequences in Summary | Q4: =SUM(O7:O14) -> 184 | V4: Total Sequences in Block Summary | W4: =SUM(U7:U14) -> 31 | AA4: Total Sequences in Block Summary | AB4: =SUM(Z7:Z14) -> 30 | AF4: Total Sequences in Block Summary | AG4: =SUM(AE7:AE14) -> 31 | AK4: Total Sequences in Block Summary | AL4: =SUM(AJ7:AJ14) -> 31 | AP4: Total Sequences in Block Summary | AQ4: =SUM(AO7:AO14) -> 30 | AU4: Total Sequences in Block Summary | AV4: =SUM(AT7:AT14) -> 31
T5: Block 1 | Y5: Block 2 | AD5: Block 3 | AI5: Block 4 | AN5: Block 5 | AS5: Block 6
A6: Sequence Component 1 | B6: Time 1 | C6: Sequence Component 2 | D6: Time 2 | E6: Sequence Component 3 | F6: Time 3 | G6: Sequence Component 4 | H6: Time 4 | I6: Sequence Component 5 | J6: Time 5 | K6: Correct? 0=No 1=Yes | L6: Sequence | N6: Frequency | P6: Relative Frequency | Q6: Variability | T6: Frequency | V6: Relative Frequency | W6: Variability | Y6: Frequency | AA6: Relative Frequency | AB6: Variability | AD6: Frequency | AF6: Relative Frequency | AG6: Variability | AI6: Frequency | AK6: Relative Frequency | AL6: Variability | AN6: Frequency | AP6: Relative Frequency | AQ6: Variability | AS6: Frequency | AU6: Relative Frequency | AV6: Variability
A7: 11 | B7: 52 | C7: 11 | D7: 65 | E7: 12 | F7: 78 | K7: 0 | L7: 111 | N7: 111 | O7: =COUNTIF($L$7:$L$500,N7) -> 90 | P7: =O7/$Q$4 -> 0.4891304348 | Q7: =IF(P7=0,0,(P7*((LOG(P7))/LOG(2)))) -> -0.5046402031 | T7: =N7 -> 111 | U7: =COUNTIF(L7:L37,T7) -> 12 | V7: =U7/(W4-U10) -> 0.3870967742 | W7: =IF(V7=0,0,(V7*((LOG(V7))/LOG(2)))) -> -0.5300259908 | Y7: =N7 -> 111 | Z7: =COUNTIF(L38:L67,Y7) -> 15 | AA7: =Z7/(AB4-Z10) -> 0.5 | AB7: =IF(AA7=0,0,(AA7*((LOG(AA7))/LOG(2)))) -> -0.5 | AD7: =N7 -> 111 | AE7: =COUNTIF(L68:L98,AD7) -> 16 | AF7: =AE7/(AG4-AE10) -> 0.5161290323 | AG7: =IF(AF7=0,0,(AF7*((LOG(AF7))/LOG(2)))) -> -0.4924884183 | AI7: =N7 -> 111 | AJ7: =COUNTIF(L99:L129,AI7) -> 20 | AK7: =AJ7/(AL4-AJ10) -> 0.6451612903 | AL7: =IF(AK7=0,0,(AK7*((LOG(AK7))/LOG(2)))) -> -0.4079149777 | AN7: =N7 -> 111 | AO7: =COUNTIF(L130:L159,AN7) -> 16 | AP7: =AO7/(AQ4-AO10) -> 0.5333333333 | AQ7: =IF(AP7=0,0,(AP7*((LOG(AP7))/LOG(2)))) -> -0.4836749843 | AS7: =N7 -> 111 | AT7: =COUNTIF(L160:L190,AS7) -> 11 | AU7: =AT7/(AV4-AT10) -> 0.3548387097 | AV7: =IF(AU7=0,0,(AU7*((LOG(AU7))/LOG(2)))) -> -0.5304003745
A8: 11 | B8: 199 | C8: 11 | D8: 206 | E8: 12 | F8: 219 | K8: 0 | L8: 111 | N8: 112 | O8: =COUNTIF($L$7:$L$500,N8) -> 0 | P8: =O8/$Q$4 -> 0 | Q8: =IF(P8=0,0,(P8*((LOG(P8))/LOG(2)))) -> 0 | T8: =N8 -> 112 | U8: =COUNTIF(L7:L37,T8) -> 0 | V8: =U8/(W4-U10) -> 0 | W8: =IF(V8=0,0,(V8*((LOG(V8))/LOG(2)))) -> 0 | Y8: =N8 -> 112 | Z8: =COUNTIF(L38:L67,Y8) -> 0 | AA8: =Z8/(AB4-Z10) -> 0 | AB8: =IF(AA8=0,0,(AA8*((LOG(AA8))/LOG(2)))) -> 0 | AD8: =N8 -> 112 | AE8: =COUNTIF(L68:L98,AD8) -> 0 | AF8: =AE8/(AG4-AE10) -> 0 | AG8: =IF(AF8=0,0,(AF8*((LOG(AF8))/LOG(2)))) -> 0 | AI8: =N8 -> 112 | AJ8: =COUNTIF(L99:L129,AI8) -> 0 | AK8: =AJ8/(AL4-AJ10) -> 0 | AL8: =IF(AK8=0,0,(AK8*((LOG(AK8))/LOG(2)))) -> 0 | AN8: =N8 -> 112 | AO8: =COUNTIF(L130:L159,AN8) -> 0 | AP8: =AO8/(AQ4-AO10) -> 0 | AQ8: =IF(AP8=0,0,(AP8*((LOG(AP8))/LOG(2)))) -> 0 | AS8: =N8 -> 112 | AT8: =COUNTIF(L160:L190,AS8) -> 0 | AU8: =AT8/(AV4-AT10) -> 0 | AV8: =IF(AU8=0,0,(AU8*((LOG(AU8))/LOG(2)))) -> 0
A9: 22 | B9: 326 | C9: 13 | D9: 336 | E9: 14 | F9: 341 | K9: 0 | L9: 211 | N9: 121 | O9: =COUNTIF($L$7:$L$500,N9) -> 0 | P9: =O9/$Q$4 -> 0 | Q9: =IF(P9=0,0,(P9*((LOG(P9))/LOG(2)))) -> 0 | T9: =N9 -> 121 | U9: =COUNTIF(L7:L37,T9) -> 0 | V9: =U9/(W4-U10) -> 0 | W9: =IF(V9=0,0,(V9*((LOG(V9))/LOG(2)))) -> 0 | Y9: =N9 -> 121 | Z9: =COUNTIF(L38:L67,Y9) -> 0 | AA9: =Z9/(AB4-Z10) -> 0 | AB9: =IF(AA9=0,0,(AA9*((LOG(AA9))/LOG(2)))) -> 0 | AD9: =N9 -> 121 | AE9: =COUNTIF(L68:L98,AD9) -> 0 | AF9: =AE9/(AG4-AE10) -> 0 | AG9: =IF(AF9=0,0,(AF9*((LOG(AF9))/LOG(2)))) -> 0 | AI9: =N9 -> 121 | AJ9: =COUNTIF(L99:L129,AI9) -> 0 | AK9: =AJ9/(AL4-AJ10) -> 0 | AL9: =IF(AK9=0,0,(AK9*((LOG(AK9))/LOG(2)))) -> 0 | AN9: =N9 -> 121 | AO9: =COUNTIF(L130:L159,AN9) -> 0 | AP9: =AO9/(AQ4-AO10) -> 0 | AQ9: =IF(AP9=0,0,(AP9*((LOG(AP9))/LOG(2)))) -> 0 | AS9: =N9 -> 121 | AT9: =COUNTIF(L160:L190,AS9) -> 0 | AU9: =AT9/(AV4-AT10) -> 0 | AV9: =IF(AU9=0,0,(AU9*((LOG(AU9))/LOG(2)))) -> 0
A10: 22 | B10: 450 | C10: 13 | D10: 464 | E10: 14 | F10: 472 | K10: 0 | L10: 211 | N10: 122 | O10: =COUNTIF($L$7:$L$500,N10) -> 0 | P10: =O10/$Q$4 -> 0 | Q10: =IF(P10=0,0,(P10*((LOG(P10))/LOG(2)))) -> 0 | T10: =N10 -> 122 | U10: =COUNTIF(L7:L37,T10) -> 0 | Y10: =N10 -> 122 | Z10: =COUNTIF(L38:L67,Y10) -> 0 | AD10: =N10 -> 122 | AE10: =COUNTIF(L68:L98,AD10) -> 0 | AI10: =N10 -> 122 | AJ10: =COUNTIF(L99:L129,AI10) -> 0 | AN10: =N10 -> 122 | AO10: =COUNTIF(L130:L159,AN10) -> 0 | AS10: =N10 -> 122 | AT10: =COUNTIF(L160:L190,AS10) -> 0
A11: 11 | B11: 591 | C11: 11 | D11: 597 | E11: 12 | F11: 609 | K11: 0 | L11: 111 | N11: 211 | O11: =COUNTIF($L$7:$L$500,N11) -> 90 | P11: =O11/$Q$4 -> 0.4891304348 | Q11: =IF(P11=0,0,(P11*((LOG(P11))/LOG(2)))) -> -0.5046402031 | T11: =N11 -> 211 | U11: =COUNTIF(L7:L37,T11) -> 18 | V11: =U11/(W4-U10) -> 0.5806451613 | W11: =IF(V11=0,0,(V11*((LOG(V11))/LOG(2)))) -> -0.4553833407 | Y11: =N11 -> 211 | Z11: =COUNTIF(L38:L67,Y11) -> 15 | AA11: =Z11/(AB4-Z10) -> 0.5 | AB11: =IF(AA11=0,0,(AA11*((LOG(AA11))/LOG(2)))) -> -0.5 | AD11: =N11 -> 211 | AE11: =COUNTIF(L68:L98,AD11) -> 15 | AF11: =AE11/(AG4-AE10) -> 0.4838709677 | AG11: =IF(AF11=0,0,(AF11*((LOG(AF11))/LOG(2)))) -> -0.5067608297 | AI11: =N11 -> 211 | AJ11: =COUNTIF(L99:L129,AI11) -> 11 | AK11: =AJ11/(AL4-AJ10) -> 0.3548387097 | AL11: =IF(AK11=0,0,(AK11*((LOG(AK11))/LOG(2)))) -> -0.5304003745 | AN11: =N11 -> 211 | AO11: =COUNTIF(L130:L159,AN11) -> 13 | AP11: =AO11/(AQ4-AO10) -> 0.4333333333 | AQ11: =IF(AP11=0,0,(AP11*((LOG(AP11))/LOG(2)))) -> -0.5227953802 | AS11: =N11 -> 211 | AT11: =COUNTIF(L160:L190,AS11) -> 18 | AU11: =AT11/(AV4-AT10) -> 0.5806451613 | AV11: =IF(AU11=0,0,(AU11*((LOG(AU11))/LOG(2)))) -> -0.4553833407
A12: 22 | B12: 711 | C12: 13 | D12: 730 | E12: 14 | F12: 743 | K12: 0 | L12: 211 | N12: 212 | O12: =COUNTIF($L$7:$L$500,N12) -> 1 | P12: =O12/$Q$4 -> 0.005434782609 | Q12: =IF(P12=0,0,(P12*((LOG(P12))/LOG(2)))) -> -0.04088892367 | T12: =N12 -> 212 | U12: =COUNTIF(L7:L37,T12) -> 1 | V12: =U12/(W4-U10) -> 0.03225806452 | W12: =IF(V12=0,0,(V12*((LOG(V12))/LOG(2)))) -> -0.1598127842 | Y12: =N12 -> 212 | Z12: =COUNTIF(L38:L67,Y12) -> 0 | AA12: =Z12/(AB4-Z10) -> 0 | AB12: =IF(AA12=0,0,(AA12*((LOG(AA12))/LOG(2)))) -> 0 | AD12: =N12 -> 212 | AE12: =COUNTIF(L68:L98,AD12) -> 0 | AF12: =AE12/(AG4-AE10) -> 0 | AG12: =IF(AF12=0,0,(AF12*((LOG(AF12))/LOG(2)))) -> 0 | AI12: =N12 -> 212 | AJ12: =COUNTIF(L99:L129,AI12) -> 0 | AK12: =AJ12/(AL4-AJ10) -> 0 | AL12: =IF(AK12=0,0,(AK12*((LOG(AK12))/LOG(2)))) -> 0 | AN12: =N12 -> 212 | AO12: =COUNTIF(L130:L159,AN12) -> 0 | AP12: =AO12/(AQ4-AO10) -> 0 | AQ12: =IF(AP12=0,0,(AP12*((LOG(AP12))/LOG(2)))) -> 0 | AS12: =N12 -> 212 | AT12: =COUNTIF(L160:L190,AS12) -> 0 | AU12: =AT12/(AV4-AT10) -> 0 | AV12: =IF(AU12=0,0,(AU12*((LOG(AU12))/LOG(2)))) -> 0
A13: 22 | B13: 847 | C13: 13 | D13: 863 | E13: 14 | F13: 872 | K13: 0 | L13: 211 | N13: 221 | O13: =COUNTIF($L$7:$L$500,N13) -> 3 | P13: =O13/$Q$4 -> 0.01630434783 | Q13: =IF(P13=0,0,(P13*((LOG(P13))/LOG(2)))) -> -0.09682499112 | T13: =N13 -> 221 | U13: =COUNTIF(L7:L37,T13) -> 0 | V13: =U13/(W4-U10) -> 0 | W13: =IF(V13=0,0,(V13*((LOG(V13))/LOG(2)))) -> 0 | Y13: =N13 -> 221 | Z13: =COUNTIF(L38:L67,Y13) -> 0 | AA13: =Z13/(AB4-Z10) -> 0 | AB13: =IF(AA13=0,0,(AA13*((LOG(AA13))/LOG(2)))) -> 0 | AD13: =N13 -> 221 | AE13: =COUNTIF(L68:L98,AD13) -> 0 | AF13: =AE13/(AG4-AE10) -> 0 | AG13: =IF(AF13=0,0,(AF13*((LOG(AF13))/LOG(2)))) -> 0 | AI13: =N13 -> 221 | AJ13: =COUNTIF(L99:L129,AI13) -> 0 | AK13: =AJ13/(AL4-AJ10) -> 0 | AL13: =IF(AK13=0,0,(AK13*((LOG(AK13))/LOG(2)))) -> 0 | AN13: =N13 -> 221 | AO13: =COUNTIF(L130:L159,AN13) -> 1 | AP13: =AO13/(AQ4-AO10) -> 0.03333333333 | AQ13: =IF(AP13=0,0,(AP13*((LOG(AP13))/LOG(2)))) -> -0.1635630199 | AS13: =N13 -> 221 | AT13: =COUNTIF(L160:L190,AS13) -> 2 | AU13: =AT13/(AV4-AT10) -> 0.06451612903 | AV13: =IF(AU13=0,0,(AU13*((LOG(AU13))/LOG(2)))) -> -0.2551094394
A14: 22 | B14: 975 | C14: 13 | D14: 989 | E14: 14 | F14: 994 | K14: 0 | L14: 211 | N14: 222 | O14: =COUNTIF($L$7:$L$500,N14) -> 0 | P14: =O14/$Q$4 -> 0 | Q14: =IF(P14=0,0,(P14*((LOG(P14))/LOG(2)))) -> 0 | T14: =N14 -> 222 | U14: =COUNTIF(L7:L37,T14) -> 0 | V14: =U14/(W4-U10) -> 0 | W14: =IF(V14=0,0,(V14*((LOG(V14))/LOG(2)))) -> 0 | Y14: =N14 -> 222 | Z14: =COUNTIF(L38:L67,Y14) -> 0 | AA14: =Z14/(AB4-Z10) -> 0 | AB14: =IF(AA14=0,0,(AA14*((LOG(AA14))/LOG(2)))) -> 0 | AD14: =N14 -> 222 | AE14: =COUNTIF(L68:L98,AD14) -> 0 | AF14: =AE14/(AG4-AE10) -> 0 | AG14: =IF(AF14=0,0,(AF14*((LOG(AF14))/LOG(2)))) -> 0 | AI14: =N14 -> 222 | AJ14: =COUNTIF(L99:L129,AI14) -> 0 | AK14: =AJ14/(AL4-AJ10) -> 0 | AL14: =IF(AK14=0,0,(AK14*((LOG(AK14))/LOG(2)))) -> 0 | AN14: =N14 -> 222 | AO14: =COUNTIF(L130:L159,AN14) -> 0 | AP14: =AO14/(AQ4-AO10) -> 0 | AQ14: =IF(AP14=0,0,(AP14*((LOG(AP14))/LOG(2)))) -> 0 | AS14: =N14 -> 222 | AT14: =COUNTIF(L160:L190,AS14) -> 0 | AU14: =AT14/(AV4-AT10) -> 0 | AV14: =IF(AU14=0,0,(AU14*((LOG(AU14))/LOG(2)))) -> 0
A15: 22 | B15: 1099 | C15: 13 | D15: 1110 | E15: 14 | F15: 1119 | K15: 0 | L15: 211 | P15: =SUM(P7:P14) -> 1 | Q15: =-SUM(Q7:Q14) -> 1.146994321 | V15: =SUM(V7:V14) -> 1 | W15: =-SUM(W7:W14) -> 1.145222116 | AA15: =SUM(AA7:AA14) -> 1 | AB15: =-SUM(AB7:AB14) -> 1 | AF15: =SUM(AF7:AF14) -> 1 | AG15: =-SUM(AG7:AG14) -> 0.999249248 | AK15: =SUM(AK7:AK14) -> 1 | AL15: =-SUM(AL7:AL14) -> 0.9383153522 | AP15: =SUM(AP7:AP14) -> 1 | AQ15: =-SUM(AQ7:AQ14) -> 1.170033384 | AU15: =SUM(AU7:AU14) -> 1 | AV15: =-SUM(AV7:AV14) -> 1.240893155
A16: 11 | B16: 1242 | C16: 11 | D16: 1249 | E16: 12 | F16: 1261 | K16: 0 | L16: 111 | P16: U= | Q16: =Q15/(LOG(Q4)/LOG(2)) -> 0.1524536287 | V16: U1= | W16: =W15/(LOG(W4)/LOG(2)) -> 0.231162038 | AA16: U2= | AB16: =AB15/(LOG(AB4)/LOG(2)) -> 0.2037950471 | AF16: U3= | AG16: =AG15/(LOG(AG4)/LOG(2)) -> 0.201697548 | AK16: U4= | AL16: =AL15/(LOG(AL4)/LOG(2)) -> 0.1893980968 | AP16: U5= | AQ16: =AQ15/(LOG(AQ4)/LOG(2)) -> 0.2384470087 | AU16: U6= | AV16: =AV15/(LOG(AV4)/LOG(2)) -> 0.2504731498
A17: 11 | B17: 1384 | C17: 11 | D17: 1391 | E17: 12 | F17: 1404 | K17: 0 | L17: 111
A18: 22 | B18: 1504 | C18: 13 | D18: 1517 | E18: 14 | F18: 1532 | K18: 0 | L18: 211
A19: 22 | B19: 1639 | C19: 13 | D19: 1656 | E19: 14 | F19: 1665 | K19: 0 | L19: 211 | N19: Total Target Seq
A20: 22 | B20: 1763 | C20: 13 | D20: 1775 | E20: 14 | F20: 1781 | K20: 0 | L20: 211 | N20: =COUNTIF(L7:L190,G3) -> 0 | P20: 31 | Q20: 30 | R20: 31 | S20: 31 | T20: 30 | U20: 31
A21: 11 | B21: 1898 | C21: 11 | D21: 1904 | E21: 12 | F21: 1915 | K21: 0 | L21: 111 | P21: % of reinforcement given in 6 equal intervals based on number of trials
A22: 11 | B22: 2032 | C22: 11 | D22: 2040 | E22: 12 | F22: 2052 | K22: 0 | L22: 111 | P22: %_1 | Q22: %_2 | R22: %_3 | S22: %_4 | T22: %_5 | U22: %_6
A23: 22 | B23: 2162 | C23: 13 | D23: 2174 | E23: 14 | F23: 2183 | K23: 0 | L23: 211 | O23: target sequence | P23: =$G$3 -> 122 | Q23: =$G$3 -> 122 | R23: =$G$3 -> 122 | S23: =$G$3 -> 122 | T23: =$G$3 -> 122 | U23: =$G$3 -> 122
A24: 22 | B24: 2305 | C24: 13 | D24: 2316 | E24: 14 | F24: 2322 | K24: 0 | L24: 211 | O24: total reinforcement | P24: =U10 -> 0 | Q24: =Z10 -> 0 | R24: =AE10 -> 0 | S24: =AJ10 -> 0 | T24: =AO10 -> 0 | U24: =AT10 -> 0
A25: 11 | B25: 2444 | C25: 11 | D25: 2449 | E25: 12 | F25: 2458 | K25: 0 | L25: 111 | O25: % target
A26: 11 | B26: 2565 | C26: 11 | D26: 2570 | E26: 12 | F26: 2581 | K26: 0 | L26: 111 | O26: CCRF
A27: 22 | B27: 2691 | C27: 13 | D27: 2702 | E27: 14 | F27: 2707 | K27: 0 | L27: 211 | O27: % CCRf
A28: 11 | B28: 2829 | C28: 11 | D28: 2837 | E28: 12 | F28: 2849 | K28: 0 | L28: 111 | O28: average response rate | P28: =F37/P20 -> 133.9677419 | Q28: =(F67-F37)/Q20 -> 130.9333333 | R28: =(F98-F67)/R20 -> 130.6129032 | S28: =(F129-F98)/S20 -> 131.1935484 | T28: =(F159-F129)/T20 -> 128.4 | U28: =(F190-F159)/U20 -> 127.2903226
A29: 11 | B29: 2963 | C29: 11 | D29: 2980 | E29: 12 | F29: 2991 | K29: 0 | L29: 111
A30: 22 | B30: 3134 | C30: 13 | D30: 3144 | E30: 14 | F30: 3152 | K30: 0 | L30: 211
A31: 22 | B31: 3274 | C31: 13 | D31: 3286 | E31: 23 | F31: 3409 | K31: 0 | L31: 212
A32: 22 | B32: 3524 | C32: 13 | D32: 3537 | E32: 14 | F32: 3545 | K32: 0 | L32: 211
A33: 11 | B33: 3663 | C33: 11 | D33: 3668 | E33: 12 | F33: 3679 | K33: 0 | L33: 111
A34: 22 | B34: 3778 | C34: 13 | D34: 3787 | E34: 14 | F34: 3792 | K34: 0 | L34: 211
A35: 22 | B35: 3887 | C35: 13 | D35: 3899 | E35: 14 | F35: 3904 | K35: 0 | L35: 211
A36: 22 | B36: 4009 | C36: 13 | D36: 4022 | E36: 14 | F36: 4027 | K36: 0 | L36: 211
A37: 22 | B37: 4135 | C37: 13 | D37: 4146 | E37: 14 | F37: 4153 | K37: 0 | L37: 211
A38: 22 | B38: 4257 | C38: 13 | D38: 4269 | E38: 14 | F38: 4276 | K38: 0 | L38: 211
A39: 22 | B39: 4383 | C39: 13 | D39: 4394 | E39: 14 | F39: 4401 | K39: 0 | L39: 211
A40: 11 | B40: 4541 | C40: 11 | D40: 4552 | E40: 12 | F40: 4563 | K40: 0 | L40: 111
A41: 11 | B41: 4693 | C41: 11 | D41: 4702 | E41: 12 | F41: 4714 | K41: 0 | L41: 111
A42: 11 | B42: 4822 | C42: 11 | D42: 4829 | E42: 12 | F42: 4840 | K42: 0 | L42: 111
A43: 11 | B43: 4964 | C43: 11 | D43: 4970 | E43: 12 | F43: 4984 | K43: 0 | L43: 111
A44: 11 | B44: 5098 | C44: 11 | D44: 5102 | E44: 12 | F44: 5114 | K44: 0 | L44: 111
A45: 11 | B45: 5222 | C45: 11 | D45: 5228 | E45: 12 | F45: 5235 | K45: 0 | L45: 111
A46: 22 | B46: 5338 | C46: 13 | D46: 5353 | E46: 14 | F46: 5358 | K46: 0 | L46: 211
A47: 11 | B47: 5468 | C47: 11 | D47: 5476 | E47: 12 | F47: 5487 | K47: 0 | L47: 111
A48: 22 | B48: 5596 | C48: 13 | D48: 5604 | E48: 14 | F48: 5610 | K48: 0 | L48: 211
A49: 11 | B49: 5717 | C49: 11 | D49: 5722 | E49: 12 | F49: 5730 | K49: 0 | L49: 111
A50: 11 | B50: 5856 | C50: 11 | D50: 5860 | E50: 12 | F50: 5870 | K50: 0 | L50: 111
A51: 22 | B51: 5991 | C51: 13 | D51: 6002 | E51: 14 | F51: 6013 | K51: 0 | L51: 211
A52: 22 | B52: 6118 | C52: 13 | D52: 6130 | E52: 14 | F52: 6138 | K52: 0 | L52: 211
A53: 11 | B53: 6255 | C53: 11 | D53: 6261 | E53: 12 | F53: 6269 | K53: 0 | L53: 111
A54: 11 | B54: 6383 | C54: 11 | D54: 6388 | E54: 12 | F54: 6399 | K54: 0 | L54: 111
A55: 22 | B55: 6497 | C55: 13 | D55: 6508 | E55: 14 | F55: 6513 | K55: 0 | L55: 211
A56: 22 | B56: 6613 | C56: 13 | D56: 6646 | E56: 14 | F56: 6654 | K56: 0 | L56: 211
A57: 22 | B57: 6753 | C57: 13 | D57: 6787 | E57: 14 | F57: 6795 | K57: 0 | L57: 211
A58: 11 | B58: 6910 | C58: 11 | D58: 6916 | E58: 12 | F58: 6927 | K58: 0 | L58: 111
A59: 22 | B59: 7035 | C59: 13 | D59: 7046 | E59: 14 | F59: 7051 | K59: 0 | L59: 211
A60: 11 | B60: 7168 | C60: 11 | D60: 7176 | E60: 12 | F60: 7189 | K60: 0 | L60: 111
A61: 22 | B61: 7304 | C61: 13 | D61: 7314 | E61: 14 | F61: 7323 | K61: 0 | L61: 211
A62: 11 | B62: 7431 | C62: 11 | D62: 7435 | E62: 12 | F62: 7443 | K62: 0 | L62: 111
A63: 22 | B63: 7558 | C63: 13 | D63: 7566 | E63: 14 | F63: 7574 | K63: 0 | L63: 211
A64: 22 | B64: 7676 | C64: 13 | D64: 7687 | E64: 14 | F64: 7692 | K64: 0 | L64: 211
A65: 22 | B65: 7799 | C65: 13 | D65: 7810 | E65: 14 | F65: 7817 | K65: 0 | L65: 211
A66: 22 | B66: 7923 | C66: 13 | D66: 7936 | E66: 14 | F66: 7941 | K66: 0 | L66: 211
A67: 11 | B67: 8060 | C67: 11 | D67: 8071 | E67: 12 | F67: 8081 | K67: 0 | L67: 111
A68: 11 | B68: 8192 | C68: 11 | D68: 8199 | E68: 12 | F68: 8208 | K68: 0 | L68: 111
A69: 11 | B69: 8336 | C69: 11 | D69: 8344 | E69: 12 | F69: 8355 | K69: 0 | L69: 111
A70: 11 | B70: 8469 | C70: 11 | D70: 8474 | E70: 12 | F70: 8482 | K70: 0 | L70: 111
A71: 22 | B71: 8583 | C71: 13 | D71: 8595 | E71: 14 | F71: 8600 | K71: 0 | L71: 211
A72: 22 | B72: 8698 | C72: 13 | D72: 8708 | E72: 14 | F72: 8713 | K72: 0 | L72: 211
A73: 11 | B73: 8833 | C73: 11 | D73: 8845 | E73: 12 | F73: 8857 | K73: 0 | L73: 111
A74: 11 | B74: 8972 | C74: 11 | D74: 8979 | E74: 12 | F74: 8990 | K74: 0 | L74: 111
A75: 11 | B75: 9105 | C75: 11 | D75: 9112 | E75: 12 | F75: 9122 | K75: 0 | L75: 111
A76: 22 | B76: 9229 | C76: 13 | D76: 9239 | E76: 14 | F76: 9244 | K76: 0 | L76: 211
A77: 22 | B77: 9347 | C77: 13 | D77: 9362 | E77: 14 | F77: 9370 | K77: 0 | L77: 211
A78: 22 | B78: 9469 | C78: 13 | D78: 9480 | E78: 14 | F78: 9485 | K78: 0 | L78: 211
A79: 22 | B79: 9593 | C79: 13 | D79: 9614 | E79: 14 | F79: 9624 | K79: 0 | L79: 211
A80: 22 | B80: 9740 | C80: 13 | D80: 9748 | E80: 14 | F80: 9755 | K80: 0 | L80: 211
A81: 11 | B81: 9863 | C81: 11 | D81: 9871 | E81: 12 | F81: 9881 | K81: 0 | L81: 111
A82: 11 | B82: 10008 | C82: 11 | D82: 10016 | E82: 12 | F82: 10026 | K82: 0 | L82: 111
A83: 22 | B83: 10176 | C83: 13 | D83: 10184 | E83: 14 | F83: 10189 | K83: 0 | L83: 211
A84: 22 | B84: 10287 | C84: 13 | D84: 10295 | E84: 14 | F84: 10300 | K84: 0 | L84: 211
A85: 11 | B85: 10409 | C85: 11 | D85: 10414 | E85: 12 | F85: 10423 | K85: 0 | L85: 111
A86: 22 | B86: 10524 | C86: 13 | D86: 10537 | E86: 14 | F86: 10543 | K86: 0 | L86: 211
A87: 22 | B87: 10646 | C87: 13 | D87: 10674 | E87: 14 | F87: 10682 | K87: 0 | L87: 211
A88: 11 | B88: 10801 | C88: 11 | D88: 10809 | E88: 12 | F88: 10820 | K88: 0 | L88: 111
A89: 22 | B89: 10942 | C89: 13 | D89: 10953 | E89: 14 | F89: 10960 | K89: 0 | L89: 211
A90: 11 | B90: 11075 | C90: 11 | D90: 11080 | E90: 12 | F90: 11089 | K90: 0 | L90: 111
A91: 22 | B91: 11189 | C91: 13 | D91: 11206 | E91: 14 | F91: 11214 | K91: 0 | L91: 211
A92: 11 | B92: 11336 | C92: 11 | D92: 11344 | E92: 12 | F92: 11353 | K92: 0 | L92: 111
A93: 11 | B93: 11467 | C93: 11 | D93: 11475 | E93: 12 | F93: 11486 | K93: 0 | L93: 111
A94: 11 | B94: 11608 | C94: 11 | D94: 11615 | E94: 12 | F94: 11627 | K94: 0 | L94: 111
A95: 11 | B95: 11737 | C95: 11 | D95: 11744 | E95: 12 | F95: 11755 | K95: 0 | L95: 111
A96: 22 | B96: 11862 | C96: 13 | D96: 11872 | E96: 14 | F96: 11879 | K96: 0 | L96: 211
A97: 11 | B97: 11991 | C97: 11 | D97: 11999 | E97: 12 | F97: 12008 | K97: 0 | L97: 111
A98: 22 | B98: 12116 | C98: 13 | D98: 12125 | E98: 14 | F98: 12130 | K98: 0 | L98: 211
A99: 11 | B99: 12253 | C99: 11 | D99: 12258 | E99: 12 | F99: 12267 | K99: 0 | L99: 111
A100: 11 | B100: 12380 | C100: 11 | D100: 12385 | E100: 12 | F100: 12393 | K100: 0 | L100: 111
A101: 22 | B101: 12502 | C101: 13 | D101: 12511 | E101: 14 | F101: 12516 | K101: 0 | L101: 211
A102: 11 | B102: 12633 | C102: 11 | D102: 12641 | E102: 12 | F102: 12652 | K102: 0 | L102: 111
A103: 11 | B103: 12766 | C103: 11 | D103: 12771 | E103: 12 | F103: 12779 | K103: 0 | L103: 111
A104: 22 | B104: 12886 | C104: 13 | D104: 12897 | E104: 14 | F104: 12907 | K104: 0 | L104: 211
A105: 22 | B105: 13018 | C105: 13 | D105: 13031 | E105: 14 | F105: 13038 | K105: 0 | L105: 211
A106: 11 | B106: 13153 | C106: 11 | D106: 13160 | E106: 12 | F106: 13168 | K106: 0 | L106: 111
A107: 11 | B107: 13286 | C107: 11 | D107: 13295 | E107: 12 | F107: 13305 | K107: 0 | L107: 111
A108: 22 | B108: 13410 | C108: 13 | D108: 13424 | E108: 14 | F108: 13429 | K108: 0 | L108: 211
A109: 11 | B109: 13550 | C109: 11 | D109: 13557 | E109: 12 | F109: 13569 | K109: 0 | L109: 111
A110: 22 | B110: 13683 | C110: 13 | D110: 13690 | E110: 14 | F110: 13698 | K110: 0 | L110: 211
A111: 11 | B111: 13821 | C111: 11 | D111: 13826 | E111: 12 | F111: 13835 | K111: 0 | L111: 111
A112: 22 | B112: 13936 | C112: 13 | D112: 13947 | E112: 14 | F112: 13952 | K112: 0 | L112: 211
A113: 11 | B113: 14063 | C113: 11 | D113: 14069 | E113: 12 | F113: 14081 | K113: 0 | L113: 111
A114: 11 | B114: 14189 | C114: 11 | D114: 14194 | E114: 12 | F114: 14204 | K114: 0 | L114: 111
A115: 11 | B115: 14319 | C115: 11 | D115: 14327 | E115: 12 | F115: 14335 | K115: 0 | L115: 111
A116: 11 | B116: 14460 | C116: 11 | D116: 14464 | E116: 12 | F116: 14472 | K116: 0 | L116: 111
A117: 22 | B117: 14594 | C117: 13 | D117: 14604 | E117: 14 | F117: 14612 | K117: 0 | L117: 211
A118: 22 | B118: 14721 | C118: 13 | D118: 14733 | E118: 14 | F118: 14740 | K118: 0 | L118: 211
A119: 11 | B119: 14855 | C119: 11 | D119: 14866 | E119: 12 | F119: 14877 | K119: 0 | L119: 111
A120: 11 | B120: 15023 | C120: 11 | D120: 15033 | E120: 12 | F120: 15043 | K120: 0 | L120: 111
A121: 11 | B121: 15174 | C121: 11 | D121: 15182 | E121: 12 | F121: 15190 | K121: 0 | L121: 111
A122: 11 | B122: 15317 | C122: 11 | D122: 15322 | E122: 12 | F122: 15330 | K122: 0 | L122: 111
A123: 22 | B123: 15435 | C123: 13 | D123: 15444 | E123: 14 | F123: 15448 | K123: 0 | L123: 211
A124: 22 | B124: 15548 | C124: 13 | D124: 15558 | E124: 14 | F124: 15562 | K124: 0 | L124: 211
A125: 11 | B125: 15675 | C125: 11 | D125: 15680 | E125: 12 | F125: 15689 | K125: 0 | L125: 111
A126: 11 | B126: 15801 | C126: 11 | D126: 15806 | E126: 12 | F126: 15814 | K126: 0 | L126: 111
A127: 11 | B127: 15936 | C127: 11 | D127: 15941 | E127: 12 | F127: 15949 | K127: 0 | L127: 111
A128: 11 | B128: 16059 | C128: 11 | D128: 16064 | E128: 12 | F128: 16072 | K128: 0 | L128: 111
A129: 22 | B129: 16174 | C129: 13 | D129: 16190 | E129: 14 | F129: 16197 | K129: 0 | L129: 211
A130: 22 | B130: 16290 | C130: 24 | D130: 16308 | E130: 14 | F130: 16318 | K130: 0 | L130: 221
A131: 11 | B131: 16435 | C131: 11 | D131: 16440 | E131: 12 | F131: 16452 | K131: 0 | L131: 111
A132: 22 | B132: 16551 | C132: 13 | D132: 16562 | E132: 14 | F132: 16567 | K132: 0 | L132: 211
A133: 22 | B133: 16668 | C133: 13 | D133: 16680 | E133: 14 | F133: 16685 | K133: 0 | L133: 211
A134: 11 | B134: 16802 | C134: 11 | D134: 16807 | E134: 12 | F134: 16815 | K134: 0 | L134: 111
A135: 11 | B135: 16936 | C135: 11 | D135: 16944 | E135: 12 | F135: 16954 | K135: 0 | L135: 111
A136: 11 | B136: 17070 | C136: 11 | D136: 17076 | E136: 12 | F136: 17087 | K136: 0 | L136: 111
A137: 22 | B137: 17193 | C137: 13 | D137: 17203 | E137: 14 | F137: 17208 | K137: 0 | L137: 211
A138: 11 | B138: 17368 | C138: 11 | D138: 17379 | E138: 12 | F138: 17390 | K138: 0 | L138: 111
A139: 22 | B139: 17494 | C139: 13 | D139: 17508 | E139: 14 | F139: 17516 | K139: 0 | L139: 211
A140: 22 | B140: 17611 | C140: 13 | D140: 17619 | E140: 14 | F140: 17625 | K140: 0 | L140: 211
A141: 11 | B141: 17741 | C141: 11 | D141: 17750 | E141: 12 | F141: 17760 | K141: 0 | L141: 111
A142: 22 | B142: 17863 | C142: 13 | D142: 17877 | E142: 14 | F142: 17884 | K142: 0 | L142: 211
A143: 11 | B143: 17986 | C143: 11 | D143: 17992 | E143: 12 | F143: 18000 | K143: 0 | L143: 111
A144: 22 | B144: 18104 | C144: 13 | D144: 18117 | E144: 14 | F144: 18122 | K144: 0 | L144: 211
A145: 11 | B145: 18233 | C145: 11 | D145: 18240 | E145: 12 | F145: 18253 | K145: 0 | L145: 111
A146: 11 | B146: 18367 | C146: 11 | D146: 18372 | E146: 12 | F146: 18383 | K146: 0 | L146: 111
A147: 22 | B147: 18483 | C147: 13 | D147: 18491 | E147: 14 | F147: 18496 | K147: 0 | L147: 211
A148: 22 | B148: 18596 | C148: 13 | D148: 18613 | E148: 14 | F148: 18618 | K148: 0 | L148: 211
A149: 11 | B149: 18738 | C149: 11 | D149: 18743 | E149: 12 | F149: 18754 | K149: 0 | L149: 111
A150: 11 | B150: 18872 | C150: 11 | D150: 18877 | E150: 12 | F150: 18886 | K150: 0 | L150: 111
A151: 11 | B151: 19002 | C151: 11 | D151: 19007 | E151: 12 | F151: 19018 | K151: 0 | L151: 111
A152: 11 | B152: 19141 | C152: 11 | D152: 19149 | E152: 12 | F152: 19159 | K152: 0 | L152: 111
A153: 11 | B153: 19270 | C153: 11 | D153: 19274 | E153: 12 | F153: 19282 | K153: 0 | L153: 111
A154: 22 | B154: 19388 | C154: 13 | D154: 19397 | E154: 14 | F154: 19401 | K154: 0 | L154: 211
A155: 11 | B155: 19510 | C155: 11 | D155: 19516 | E155: 12 | F155: 19524 | K155: 0 | L155: 111
A156: 22 | B156: 19627 | C156: 13 | D156: 19636 | E156: 14 | F156: 19641 | K156: 0 | L156: 211
A157: 22 | B157: 19744 | C157: 13 | D157: 19767 | E157: 14 | F157: 19774 | K157: 0 | L157: 211
A158: 22 | B158: 19899 | C158: 13 | D158: 19910 | E158: 14 | F158: 19921 | K158: 0 | L158: 211
A159: 11 | B159: 20031 | C159: 11 | D159: 20037 | E159: 12 | F159: 20049 | K159: 0 | L159: 111
A160: 22 | B160: 20152 | C160: 13 | D160: 20163 | E160: 14 | F160: 20167 | K160: 0 | L160: 211
A161: 11 | B161: 20304 | C161: 11 | D161: 20313 | E161: 12 | F161: 20324 | K161: 0 | L161: 111
A162: 22 | B162: 20436 | C162: 13 | D162: 20447 | E162: 14 | F162: 20454 | K162: 0 | L162: 211
A163: 22 | B163: 20562 | C163: 13 | D163: 20574 | E163: 14 | F163: 20579 | K163: 0 | L163: 211
A164: 11 | B164: 20681 | C164: 11 | D164: 20686 | E164: 12 | F164: 20698 | K164: 0 | L164: 111
A165: 22 | B165: 20798 | C165: 13 | D165: 20806 | E165: 14 | F165: 20811 | K165: 0 | L165: 211
A166: 22 | B166: 20913 | C166: 24 | D166: 20935 | E166: 14 | F166: 20942 | K166: 0 | L166: 221
A167: 11 | B167: 21061 | C167: 11 | D167: 21068 | E167: 12 | F167: 21079 | K167: 0 | L167: 111
A168: 22 | B168: 21189 | C168: 13 | D168: 21197 | E168: 14 | F168: 21203 | K168: 0 | L168: 211
A169: 22 | B169: 21307 | C169: 13 | D169: 21315 | E169: 14 | F169: 21320 | K169: 0 | L169: 211
A170: 22 | B170: 21419 | C170: 13 | D170: 21428 | E170: 14 | F170: 21435 | K170: 0 | L170: 211
A171: 11 | B171: 21551 | C171: 11 | D171: 21558 | E171: 12 | F171: 21571 | K171: 0 | L171: 111
A172: 22 | B172: 21702 | C172: 13 | D172: 21713 | E172: 14 | F172: 21720 | K172: 0 | L172: 211
A173: 11 | B173: 21837 | C173: 11 | D173: 21843 | E173: 12 | F173: 21851 | K173: 0 | L173: 111
A174: 22 | B174: 21958 | C174: 13 | D174: 21970 | E174: 14 | F174: 21978 | K174: 0 | L174: 211
A175: 22 | B175: 22083 | C175: 13 | D175: 22094 | E175: 14 | F175: 22102 | K175: 0 | L175: 211
A176: 11 | B176: 22215 | C176: 11 | D176: 22220 | E176: 12 | F176: 22232 | K176: 0 | L176: 111
A177: 11 | B177: 22340 | C177: 11 | D177: 22345 | E177: 12 | F177: 22352 | K177: 0 | L177: 111
A178: 22 | B178: 22448 | C178: 13 | D178: 22457 | E178: 14 | F178: 22462 | K178: 0 | L178: 211
A179: 22 | B179: 22587 | C179: 13 | D179: 22599 | E179: 14 | F179: 22609 | K179: 0 | L179: 211
A180: 11 | B180: 22729 | C180: 11 | D180: 22736 | E180: 12 | F180: 22748 | K180: 0 | L180: 111
A181: 22 | B181: 22850 | C181: 13 | D181: 22861 | E181: 14 | F181: 22868 | K181: 0 | L181: 211
A182: 11 | B182: 22991 | C182: 11 | D182: 23000 | E182: 12 | F182: 23011 | K182: 0 | L182: 111
A183: 22 | B183: 23112 | C183: 13 | D183: 23120 | E183: 14 | F183: 23126 | K183: 0 | L183: 211
A184: 11 | B184: 23235 | C184: 11 | D184: 23239 | E184: 12 | F184: 23247 | K184: 0 | L184: 111
A185: 22 | B185: 23344 | C185: 13 | D185: 23354 | E185: 14 | F185: 23359 | K185: 0 | L185: 211
A186: 22 | B186: 23451 | C186: 13 | D186: 23462 | E186: 14 | F186: 23467 | K186: 0 | L186: 211
A187: 22 | B187: 23564 | C187: 24 | D187: 23581 | E187: 14 | F187: 23592 | K187: 0 | L187: 221
A188: 22 | B188: 23697 | C188: 13 | D188: 23706 | E188: 14 | F188: 23712 | K188: 0 | L188: 211
A189: 11 | B189: 23836 | C189: 11 | D189: 23843 | E189: 12 | F189: 23854 | K189: 0 | L189: 111
A190: 22 | B190: 23974 | C190: 13 | D190: 23984 | E190: 14 | F190: 23995 | L190: 211

Sheet !MA19B10.095
A1: Report for:!MA19B10.095
A2: Date: | B2: <date>
A3: Hen: | B3: <hen> | F3: Correct Sequence | G3: =Start!J2 -> 122 | P3: Total Sequences in Data | Q3: =4994-COUNTBLANK(L7:L5000) -> 183 | V3: Total Sequences in Block Data | W3: =COUNTA(L7:L37) -> 31 | AA3: Total Sequences in Block Data | AB3: =COUNTA(L38:L67) -> 30 | AF3: Total Sequences in Block Data | AG3: =COUNTA(L68:L98) -> 31 | AK3: Total Sequences in Block Data | AL3: =COUNTA(L99:L128) -> 30 | AP3: Total Sequences in Block Data | AQ3: =COUNTA(L129:L159) -> 31 | AU3: Total Sequences in Block Data | AV3: =COUNTA(L160:L189) -> 30
P4: Total Sequences in Summary | Q4: =SUM(O7:O14) -> 183 | V4: Total Sequences in Block Summary | W4: =SUM(U7:U14) -> 31 | AA4: Total Sequences in Block Summary | AB4: =SUM(Z7:Z14) -> 30 | AF4: Total Sequences in Block Summary | AG4: =SUM(AE7:AE14) -> 31 | AK4: Total Sequences in Block Summary | AL4: =SUM(AJ7:AJ14) -> 30 | AP4: Total Sequences in Block Summary | AQ4: =SUM(AO7:AO14) -> 31 | AU4: Total Sequences in Block Summary | AV4: =SUM(AT7:AT14) -> 30
T5: Block 1 | Y5: Block 2 | AD5: Block 3 | AI5: Block 4 | AN5: Block 5 | AS5: Block 6
A6: Sequence Component 1 | B6: Time 1 | C6: Sequence Component 2 | D6: Time 2 | E6: Sequence Component 3 | F6: Time 3 | G6: Sequence Component 4 | H6: Time 4 | I6: Sequence Component 5 | J6: Time 5 | K6: Correct? 0=No 1=Yes | L6: Sequence | N6: Frequency | P6: Relative Frequency | Q6: Variability | T6: Frequency | V6: Relative Frequency | W6: Variability | Y6: Frequency | AA6: Relative Frequency | AB6: Variability | AD6: Frequency | AF6: Relative Frequency | AG6: Variability | AI6: Frequency | AK6: Relative Frequency | AL6: Variability | AN6: Frequency | AP6: Relative Frequency | AQ6: Variability | AS6: Frequency | AU6: Relative Frequency | AV6: Variability
A7: 11 | B7: 24 | C7: 11 | D7: 32 | E7: 12 | F7: 43 | K7: 0 | L7: 111 | N7: 111 | O7: =COUNTIF($L$7:$L$500,N7) -> 80 | P7: =O7/$Q$4 -> 0.4371584699 | Q7: =IF(P7=0,0,(P7*((LOG(P7))/LOG(2)))) -> -0.5218674288 | T7: =N7 -> 111 | U7: =COUNTIF(L7:L37,T7) -> 16 | V7: =U7/(W4-U10) -> 0.5161290323 | W7: =IF(V7=0,0,(V7*((LOG(V7))/LOG(2)))) -> -0.4924884183 | Y7: =N7 -> 111 | Z7: =COUNTIF(L38:L67,Y7) -> 16 | AA7: =Z7/(AB4-Z10) -> 0.5333333333 | AB7: =IF(AA7=0,0,(AA7*((LOG(AA7))/LOG(2)))) -> -0.4836749843 | AD7: =N7 -> 111 | AE7: =COUNTIF(L68:L98,AD7) -> 15 | AF7: =AE7/(AG4-AE10) -> 0.4838709677 | AG7: =IF(AF7=0,0,(AF7*((LOG(AF7))/LOG(2)))) -> -0.5067608297 | AI7: =N7 -> 111 | AJ7: =COUNTIF(L99:L128,AI7) -> 12 | AK7: =AJ7/(AL4-AJ10) -> 0.4 | AL7: =IF(AK7=0,0,(AK7*((LOG(AK7))/LOG(2)))) -> -0.528771238 | AN7: =N7 -> 111 | AO7: =COUNTIF(L129:L159,AN7) -> 13 | AP7: =AO7/(AQ4-AO10) -> 0.4193548387 | AQ7: =IF(AP7=0,0,(AP7*((LOG(AP7))/LOG(2)))) -> -0.5257688935 | AS7: =N7 -> 111 | AT7: =COUNTIF(L160:L189,AS7) -> 8 | AU7: =AT7/(AV4-AT10) -> 0.2666666667 | AV7: =IF(AU7=0,0,(AU7*((LOG(AU7))/LOG(2)))) -> -0.5085041588
A8: 11 | B8: 163 | C8: 11 | D8: 171 | E8: 12 | F8: 184 | K8: 0 | L8: 111 | N8: 112 | O8: =COUNTIF($L$7:$L$500,N8) -> 0 | P8: =O8/$Q$4 -> 0 | Q8: =IF(P8=0,0,(P8*((LOG(P8))/LOG(2)))) -> 0 | T8: =N8 -> 112 | U8: =COUNTIF(L7:L37,T8) -> 0 | V8: =U8/(W4-U10) -> 0 | W8: =IF(V8=0,0,(V8*((LOG(V8))/LOG(2)))) -> 0 | Y8: =N8 -> 112 | Z8: =COUNTIF(L38:L67,Y8) -> 0 | AA8: =Z8/(AB4-Z10) -> 0 | AB8: =IF(AA8=0,0,(AA8*((LOG(AA8))/LOG(2)))) -> 0 | AD8: =N8 -> 112 | AE8: =COUNTIF(L68:L98,AD8) -> 0 | AF8: =AE8/(AG4-AE10) -> 0 | AG8: =IF(AF8=0,0,(AF8*((LOG(AF8))/LOG(2)))) -> 0 | AI8: =N8 -> 112 | AJ8: =COUNTIF(L99:L128,AI8) -> 0 | AK8: =AJ8/(AL4-AJ10) -> 0 | AL8: =IF(AK8=0,0,(AK8*((LOG(AK8))/LOG(2)))) -> 0 | AN8: =N8 -> 112 | AO8: =COUNTIF(L129:L159,AN8) -> 0 | AP8: =AO8/(AQ4-AO10) -> 0 | AQ8: =IF(AP8=0,0,(AP8*((LOG(AP8))/LOG(2)))) -> 0 | AS8: =N8 -> 112 | AT8: =COUNTIF(L160:L189,AS8) -> 0 | AU8: =AT8/(AV4-AT10) -> 0 | AV8: =IF(AU8=0,0,(AU8*((LOG(AU8))/LOG(2)))) -> 0
A9: 11 | B9: 292 | C9: 11 | D9: 298 | E9: 12 | F9: 307 | K9: 0 | L9: 111 | N9: 121 | O9: =COUNTIF($L$7:$L$500,N9) -> 0 | P9: =O9/$Q$4 -> 0 | Q9: =IF(P9=0,0,(P9*((LOG(P9))/LOG(2)))) -> 0 | T9: =N9 -> 121 | U9: =COUNTIF(L7:L37,T9) -> 0 | V9: =U9/(W4-U10) -> 0 | W9: =IF(V9=0,0,(V9*((LOG(V9))/LOG(2)))) -> 0 | Y9: =N9 -> 121 | Z9: =COUNTIF(L38:L67,Y9) -> 0 | AA9: =Z9/(AB4-Z10) -> 0 | AB9: =IF(AA9=0,0,(AA9*((LOG(AA9))/LOG(2)))) -> 0 | AD9: =N9 -> 121 | AE9: =COUNTIF(L68:L98,AD9) -> 0 | AF9: =AE9/(AG4-AE10) -> 0 | AG9: =IF(AF9=0,0,(AF9*((LOG(AF9))/LOG(2)))) -> 0 | AI9: =N9 -> 121 | AJ9: =COUNTIF(L99:L128,AI9) -> 0 | AK9: =AJ9/(AL4-AJ10) -> 0 | AL9: =IF(AK9=0,0,(AK9*((LOG(AK9))/LOG(2)))) -> 0 | AN9: =N9 -> 121 | AO9: =COUNTIF(L129:L159,AN9) -> 0 | AP9: =AO9/(AQ4-AO10) -> 0 | AQ9: =IF(AP9=0,0,(AP9*((LOG(AP9))/LOG(2)))) -> 0 | AS9: =N9 -> 121 | AT9: =COUNTIF(L160:L189,AS9) -> 0 | AU9: =AT9/(AV4-AT10) -> 0 | AV9: =IF(AU9=0,0,(AU9*((LOG(AU9))/LOG(2)))) -> 0
A10: 11 | B10: 421 | C10: 11 | D10: 427 | E10: 12 | F10: 439 | K10: 0 | L10: 111 | N10: 122 | O10: =COUNTIF($L$7:$L$500,N10) -> 0 | P10: =O10/$Q$4 -> 0 | Q10: =IF(P10=0,0,(P10*((LOG(P10))/LOG(2)))) -> 0 | T10: =N10 -> 122 | U10: =COUNTIF(L7:L37,T10) -> 0 | Y10: =N10 -> 122 | Z10: =COUNTIF(L38:L67,Y10) -> 0 | AD10: =N10 -> 122 | AE10: =COUNTIF(L68:L98,AD10) -> 0 | AI10: =N10 -> 122 | AJ10: =COUNTIF(L99:L128,AI10) -> 0 | AN10: =N10 -> 122 | AO10: =COUNTIF(L129:L159,AN10) -> 0 | AS10: =N10 -> 122 | AT10: =COUNTIF(L160:L189,AS10) -> 0
A11: 22 | B11: 538 | C11: 13 | D11: 553 | E11: 14 | F11: 561 | K11: 0 | L11: 211 | N11: 211 | O11: =COUNTIF($L$7:$L$500,N11) -> 90 | P11: =O11/$Q$4 -> 0.4918032787 | Q11: =IF(P11=0,0,(P11*((LOG(P11))/LOG(2)))) -> -0.5035311846 | T11: =N11 -> 211 | U11: =COUNTIF(L7:L37,T11) -> 13 | V11: =U11/(W4-U10) -> 0.4193548387 | W11: =IF(V11=0,0,(V11*((LOG(V11))/LOG(2)))) -> -0.5257688935 | Y11: =N11 -> 211 | Z11: =COUNTIF(L38:L67,Y11) -> 13 | AA11: =Z11/(AB4-Z10) -> 0.4333333333 | AB11: =IF(AA11=0,0,(AA11*((LOG(AA11))/LOG(2)))) -> -0.5227953802 | AD11: =N11 -> 211 | AE11: =COUNTIF(L68:L98,AD11) -> 15 | AF11: =AE11/(AG4-AE10) -> 0.4838709677 | AG11: =IF(AF11=0,0,(AF11*((LOG(AF11))/LOG(2)))) -> -0.5067608297 | AI11: =N11 -> 211 | AJ11: =COUNTIF(L99:L128,AI11) -> 16 | AK11: =AJ11/(AL4-AJ10) -> 0.5333333333 | AL11: =IF(AK11=0,0,(AK11*((LOG(AK11))/LOG(2)))) -> -0.4836749843 | AN11: =N11 -> 211 | AO11: =COUNTIF(L129:L159,AN11) -> 12 | AP11: =AO11/(AQ4-AO10) -> 0.3870967742 | AQ11: =IF(AP11=0,0,(AP11*((LOG(AP11))/LOG(2)))) -> -0.5300259908 | AS11: =N11 -> 211 | AT11: =COUNTIF(L160:L189,AS11) -> 21 | AU11: =AT11/(AV4-AT10) -> 0.7 | AV11: =IF(AU11=0,0,(AU11*((LOG(AU11))/LOG(2)))) -> -0.360201221
A12: 11 | B12: 674 | C12: 11 | D12: 680 | E12: 12 | F12: 687 | K12: 0 | L12: 111 | N12: 212 | O12: =COUNTIF($L$7:$L$500,N12) -> 0 | P12: =O12/$Q$4 -> 0 | Q12: =IF(P12=0,0,(P12*((LOG(P12))/LOG(2)))) -> 0 | T12: =N12 -> 212 | U12: =COUNTIF(L7:L37,T12) -> 0 | V12: =U12/(W4-U10) -> 0 | W12: =IF(V12=0,0,(V12*((LOG(V12))/LOG(2)))) -> 0 | Y12: =N12 -> 212 | Z12: =COUNTIF(L38:L67,Y12) -> 0 | AA12: =Z12/(AB4-Z10) -> 0 | AB12: =IF(AA12=0,0,(AA12*((LOG(AA12))/LOG(2)))) -> 0 | AD12: =N12 -> 212 | AE12: =COUNTIF(L68:L98,AD12) -> 0 | AF12: =AE12/(AG4-AE10) -> 0 | AG12: =IF(AF12=0,0,(AF12*((LOG(AF12))/LOG(2)))) -> 0 | AI12: =N12 -> 212 | AJ12: =COUNTIF(L99:L128,AI12) -> 0 | AK12: =AJ12/(AL4-AJ10) -> 0 | AL12: =IF(AK12=0,0,(AK12*((LOG(AK12))/LOG(2)))) -> 0 | AN12: =N12 -> 212 | AO12: =COUNTIF(L129:L159,AN12) -> 0 | AP12: =AO12/(AQ4-AO10) -> 0 | AQ12: =IF(AP12=0,0,(AP12*((LOG(AP12))/LOG(2)))) -> 0 | AS12: =N12 -> 212 | AT12: =COUNTIF(L160:L189,AS12) -> 0 | AU12: =AT12/(AV4-AT10) -> 0 | AV12: =IF(AU12=0,0,(AU12*((LOG(AU12))/LOG(2)))) -> 0
A13: 11 | B13: 792 | C13: 11 | D13: 797 | E13: 12 | F13: 808 | K13: 0 | L13: 111 | N13: 221 | O13: =COUNTIF($L$7:$L$500,N13) -> 13 | P13: =O13/$Q$4 -> 0.07103825137 | Q13: =IF(P13=0,0,(P13*((LOG(P13))/LOG(2)))) -> -0.2710294074 | T13: =N13 -> 221 | U13: =COUNTIF(L7:L37,T13) -> 2 | V13: =U13/(W4-U10) -> 0.06451612903 | W13: =IF(V13=0,0,(V13*((LOG(V13))/LOG(2)))) -> -0.2551094394 | Y13: =N13 -> 221 | Z13: =COUNTIF(L38:L67,Y13) -> 1 | AA13: =Z13/(AB4-Z10) -> 0.03333333333 | AB13: =IF(AA13=0,0,(AA13*((LOG(AA13))/LOG(2)))) -> -0.1635630199 | AD13: =N13 -> 221 | AE13: =COUNTIF(L68:L98,AD13) -> 1 | AF13: =AE13/(AG4-AE10) -> 0.03225806452 | AG13: =IF(AF13=0,0,(AF13*((LOG(AF13))/LOG(2)))) -> -0.1598127842 | AI13: =N13 -> 221 | AJ13: =COUNTIF(L99:L128,AI13) -> 2 | AK13: =AJ13/(AL4-AJ10) -> 0.06666666667 | AL13: =IF(AK13=0,0,(AK13*((LOG(AK13))/LOG(2)))) -> -0.260459373 | AN13: =N13 -> 221 | AO13: =COUNTIF(L129:L159,AN13) -> 6 | AP13: =AO13/(AQ4-AO10) -> 0.1935483871 | AQ13: =IF(AP13=0,0,(AP13*((LOG(AP13))/LOG(2)))) -> -0.4585613825 | AS13: =N13 -> 221 | AT13: =COUNTIF(L160:L189,AS13) -> 1 | AU13: =AT13/(AV4-AT10) -> 0.03333333333 | AV13: =IF(AU13=0,0,(AU13*((LOG(AU13))/LOG(2)))) -> -0.1635630199
A14: 22 | B14: 916 | C14: 13 | D14: 925 | E14: 14 | F14: 930 | K14: 0 | L14: 211 | N14: 222 | O14: =COUNTIF($L$7:$L$500,N14) -> 0 | P14: =O14/$Q$4 -> 0 | Q14: =IF(P14=0,0,(P14*((LOG(P14))/LOG(2)))) -> 0 | T14: =N14 -> 222 | U14: =COUNTIF(L7:L37,T14) -> 0 | V14: =U14/(W4-U10) -> 0 | W14: =IF(V14=0,0,(V14*((LOG(V14))/LOG(2)))) -> 0 | Y14: =N14 -> 222 | Z14: =COUNTIF(L38:L67,Y14) -> 0 | AA14: =Z14/(AB4-Z10) -> 0 | AB14: =IF(AA14=0,0,(AA14*((LOG(AA14))/LOG(2)))) -> 0 | AD14: =N14 -> 222 | AE14: =COUNTIF(L68:L98,AD14) -> 0 | AF14: =AE14/(AG4-AE10) -> 0 | AG14: =IF(AF14=0,0,(AF14*((LOG(AF14))/LOG(2)))) -> 0 | AI14: =N14 -> 222 | AJ14: =COUNTIF(L99:L128,AI14) -> 0 | AK14: =AJ14/(AL4-AJ10) -> 0 | AL14: =IF(AK14=0,0,(AK14*((LOG(AK14))/LOG(2)))) -> 0 | AN14: =N14 -> 222 | AO14: =COUNTIF(L129:L159,AN14) -> 0 | AP14: =AO14/(AQ4-AO10) -> 0 | AQ14: =IF(AP14=0,0,(AP14*((LOG(AP14))/LOG(2)))) -> 0 | AS14: =N14 -> 222 | AT14: =COUNTIF(L160:L189,AS14) -> 0 | AU14: =AT14/(AV4-AT10) -> 0 | AV14: =IF(AU14=0,0,(AU14*((LOG(AU14))/LOG(2)))) -> 0
A15: 11 | B15: 1040 | C15: 11 | D15: 1044 | E15: 12 | F15: 1055 | K15: 0 | L15: 111 | P15: =SUM(P7:P14) -> 1 | Q15: =-SUM(Q7:Q14) -> 1.296428021 | V15: =SUM(V7:V14) -> 1 | W15: =-SUM(W7:W14) -> 1.273366751 | AA15: =SUM(AA7:AA14) -> 1 | AB15: =-SUM(AB7:AB14) -> 1.170033384 | AF15: =SUM(AF7:AF14) -> 1 | AG15: =-SUM(AG7:AG14) -> 1.173334444 | AK15: =SUM(AK7:AK14) -> 1 | AL15: =-SUM(AL7:AL14) -> 1.272905595 | AP15: =SUM(AP7:AP14) -> 1 | AQ15: =-SUM(AQ7:AQ14) -> 1.514356267 | AU15: =SUM(AU7:AU14) -> 1 | AV15: =-SUM(AV7:AV14) -> 1.0322684
A16: 11 | B16: 1169 | C16: 11 | D16: 1175 | E16: 12 | F16: 1182 | K16: 0 | L16: 111 | P16: U= | Q16: =Q15/(LOG(Q4)/LOG(2)) -> 0.1724959816 | V16: U1= | W16: =W15/(LOG(W4)/LOG(2)) -> 0.2570279156 | AA16: U2= | AB16: =AB15/(LOG(AB4)/LOG(2)) -> 0.2384470087 | AF16: U3= | AG16: =AG15/(LOG(AG4)/LOG(2)) -> 0.2368364857 | AK16: U4= | AL16: =AL15/(LOG(AL4)/LOG(2)) -> 0.2594118557 | AP16: U5= | AQ16: =AQ15/(LOG(AQ4)/LOG(2)) -> 0.3056714292 | AU16: U6= | AV16: =AV15/(LOG(AV4)/LOG(2)) -> 0.2103711871
A17: 22 | B17: 1283 | C17: 13 | D17: 1294 | E17: 14 | F17: 1300 | K17: 0 | L17: 211
A18: 22 | B18: 1405 | C18: 13 | D18: 1419 | E18: 14 | F18: 1430 | K18: 0 | L18: 211
A19: 22 | B19: 1531 | C19: 13 | D19: 1551 | E19: 14 | F19: 1558 | K19: 0 | L19: 211 | N19: Total Target Seq
A20: 11 | B20: 1666 | C20: 11 | D20: 1672 | E20: 12 | F20: 1681 | K20: 0 | L20: 111 | N20: =COUNTIF(L7:L189,G3) -> 0 | P20: 31 | Q20: 30 | R20: 31 | S20: 30 | T20: 31 | U20: 30
A21: 22 | B21: 1785 | C21: 13 | D21: 1793 | E21: 14 | F21: 1801 | K21: 0 | L21: 211 | P21: % of reinforcement given in 6 equal intervals based on number of trials
A22: 22 | B22: 1895 | C22: 13 | D22: 1906 | E22: 14 | F22: 1911 | K22: 0 | L22: 211 | P22: %_1 | Q22: %_2 | R22: %_3 | S22: %_4 | T22: %_5 | U22: %_6
A23: 11 | B23: 2023 | C23: 11 | D23: 2028 | E23: 12 | F23: 2037 | K23: 0 | L23: 111 | O23: target sequence | P23: =$G$3 -> 122 | Q23: =$G$3 -> 122 | R23: =$G$3 -> 122 | S23: =$G$3 -> 122 | T23: =$G$3 -> 122 | U23: =$G$3 -> 122
A24: 22 | B24: 2134 | C24: 24 | D24: 2152 | E24: 14 | F24: 2159 | K24: 0 | L24: 221 | O24: total reinforcement | P24: =U10 -> 0 | Q24: =Z10 -> 0 | R24: =AE10 -> 0 | S24: =AJ10 -> 0 | T24: =AO10 -> 0 | U24: =AT10 -> 0
A25: 11 | B25: 2263 | C25: 11 | D25: 2269 | E25: 12 | F25: 2279 | K25: 0 | L25: 111 | O25: % target
A26: 22 | B26: 2381 | C26: 24 | D26: 2404 | E26: 14 | F26: 2415 | K26: 0 | L26: 221 | O26: CCRF
A27: 22 | B27: 2520 | C27: 13 | D27: 2533 | E27: 14 | F27: 2538 | K27: 0 | L27: 211 | O27: % CCRf
A28: 11 | B28: 2652 | C28: 11 | D28: 2660 | E28: 12 | F28: 2672 | K28: 0 | L28: 111 | O28: average response rate | P28: =F37/P20 -> 122.8387097 | Q28: =(F67-F37)/Q20 -> 129.2666667 | R28: =(F98-F67)/R20 -> 130.0967742 | S28: =(F128-F98)/S20 -> 129.5666667 | T28: =(F159-F128)/T20 -> 134.7419355 | U28: =(F189-F159)/U20 -> 139.5666667
A29: 11 | B29: 2783 | C29: 11 | D29: 2792 | E29: 12 | F29: 2805 | K29: 0 | L29: 111
A30: 22 | B30: 2901 | C30: 13 | D30: 2913 | E30: 14 | F30: 2921 | K30: 0 | L30: 211
A31: 11 | B31: 3039 | C31: 11 | D31: 3046 | E31: 12 | F31: 3058 | K31: 0 | L31: 111
A32: 11 | B32: 3184 | C32: 11 | D32: 3192 | E32: 12 | F32: 3202 | K32: 0 | L32: 111
A33: 22 | B33: 3307 | C33: 13 | D33: 3318 | E33: 14 | F33: 3324 | K33: 0 | L33: 211
A34: 22 | B34: 3422 | C34: 13 | D34: 3434 | E34: 14 | F34: 3440 | K34: 0 | L34: 211
A35: 11 | B35: 3553 | C35: 11 | D35: 3559 | E35: 12 | F35: 3569 | K35: 0 | L35: 111
A36: 22 | B36: 3669 | C36: 13 | D36: 3680 | E36: 14 | F36: 3687 | K36: 0 | L36: 211
A37: 22 | B37: 3790 | C37: 13 | D37: 3800 | E37: 14 | F37: 3808 | K37: 0 | L37: 211
A38: 11 | B38: 3924 | C38: 11 | D38: 3930 | E38: 12 | F38: 3940 | K38: 0 | L38: 111
A39: 11 | B39: 4056 | C39: 11 | D39: 4062 | E39: 12 | F39: 4072 | K39: 0 | L39: 111
A40: 22 | B40: 4191 | C40: 13 | D40: 4202 | E40: 14 | F40: 4216 | K40: 0 | L40: 211
A41: 11 | B41: 4332 | C41: 11 | D41: 4337 | E41: 12 | F41: 4346 | K41: 0 | L41: 111
A42: 22 | B42: 4449 | C42: 13 | D42: 4468 | E42: 14 | F42: 4476 | K42: 0 | L42: 211
A43: 22 | B43: 4578 | C43: 13 | D43: 4595 | E43: 14 | F43: 4602 | K43: 0 | L43: 211
A44: 11 | B44: 4716 | C44: 11 | D44: 4721 | E44: 12 | F44: 4731 | K44: 0 | L44: 111
A45: 11 | B45: 4838 | C45: 11 | D45: 4846 | E45: 12 | F45: 4854 | K45: 0 | L45: 111
A46: 22 | B46: 4958 | C46: 13 | D46: 4971 | E46: 14 | F46: 4981 | K46: 0 | L46: 211
A47: 22 | B47: 5100 | C47: 13 | D47: 5111 | E47: 14 | F47: 5118 | K47: 0 | L47: 211
A48: 11 | B48: 5228 | C48: 11 | D48: 5232 | E48: 12 | F48: 5241 | K48: 0 | L48: 111
A49: 11 | B49: 5351 | C49: 11 | D49: 5359 | E49: 12 | F49: 5367 | K49: 0 | L49: 111
A50: 22 | B50: 5473 | C50: 13 | D50: 5485 | E50: 14 | F50: 5490 | K50: 0 | L50: 211
A51: 22 | B51: 5589 | C51: 13 | D51: 5600 | E51: 14 | F51: 5606 | K51: 0 | L51: 211
A52: 11 | B52: 5716 | C52: 11 | D52: 5720 | E52: 12 | F52: 5729 | K52: 0 | L52: 111
A53: 22 | B53: 5850 | C53: 13 | D53: 5862 | E53: 14 | F53: 5870 | K53: 0 | L53: 211
A54: 22 | B54: 5998 | C54: 13 | D54: 6008 | E54: 14 | F54: 6016 | K54: 0 | L54: 211
A55: 22 | B55: 6118 | C55: 13 | D55: 6127 | E55: 14 | F55: 6133 | K55: 0 | L55: 211
A56: 22 | B56: 6228 | C56: 13 | D56: 6242 | E56: 14 | F56: 6249 | K56: 0 | L56: 211
A57: 11 | B57: 6363 | C57: 11 | D57: 6371 | E57: 12 | F57: 6381 | K57: 0 | L57: 111
A58: 11 | B58: 6505 | C58: 11 | D58: 6513 | E58: 12 | F58: 6524 | K58: 0 | L58: 111
A59: 22 | B59: 6622 | C59: 13 | D59: 6632 | E59: 14 | F59: 6639 | K59: 0 | L59: 211
A60: 11 | B60: 6764 | C60: 11 | D60: 6772 | E60: 12 | F60: 6782 | K60: 0 | L60: 111
A61: 22 | B61: 6883 | C61: 24 | D61: 6902 | E61: 14 | F61: 6913 | K61: 0 | L61: 221
A62: 11 | B62: 7021 | C62: 11 | D62: 7028 | E62: 12 | F62: 7040 | K62: 0 | L62: 111
A63: 11 | B63: 7156 | C63: 11 | D63: 7164 | E63: 12 | F63: 7174 | K63: 0 | L63: 111
A64: 22 | B64: 7278 | C64: 13 | D64: 7286 | E64: 14 | F64: 7291 | K64: 0 | L64: 211
A65: 11 | B65: 7412 | C65: 11 | D65: 7419 | E65: 12 | F65: 7430 | K65: 0 | L65: 111
A66: 11 | B66: 7550 | C66: 11 | D66: 7554 | E66: 12 | F66: 7561 | K66: 0 | L66: 111
A67: 11 | B67: 7673 | C67: 11 | D67: 7678 | E67: 12 | F67: 7686 | K67: 0 | L67: 111
A68: 11 | B68: 7792 | C68: 11 | D68: 7796 | E68: 12 | F68: 7804 | K68: 0 | L68: 111
A69: 11 | B69: 7916 | C69: 11 | D69: 7921 | E69: 12 | F69: 7929 | K69: 0 | L69: 111
A70: 22 | B70: 8049 | C70: 13 | D70: 8057 | E70: 14 | F70: 8064 | K70: 0 | L70: 211
A71: 11 | B71: 8175 | C71: 11 | D71: 8180 | E71: 12 | F71: 8189 | K71: 0 | L71: 111
A72: 22 | B72: 8301 | C72: 13 | D72: 8313 | E72: 14 | F72: 8321 | K72: 0 | L72: 211
A73: 11 | B73: 8431 | C73: 11 | D73: 8436 | E73: 12 | F73: 8444 | K73: 0 | L73: 111
A74: 11 | B74: 8565 | C74: 11 | D74: 8572 | E74: 12 | F74: 8584 | K74: 0 | L74: 111
A75: 22 | B75: 8684 | C75: 13 | D75: 8696 | E75: 14 | F75: 8701 | K75: 0 | L75: 211
A76: 22 | B76: 8802 | C76: 13 | D76: 8828 | E76: 14 | F76: 8839 | K76: 0 | L76: 211
A77: 22 | B77: 8952 | C77: 13 | D77: 8962 | E77: 14 | F77: 8968 | K77: 0 | L77: 211
A78: 22 | B78: 9066 | C78: 13 | D78: 9087 | E78: 14 | F78: 9094 | K78: 0 | L78: 211
A79: 11 | B79: 9206 | C79: 11 | D79: 9211 | E79: 12 | F79: 9221 | K79: 0 | L79: 111
A80: 11 | B80: 9336 | C80: 11 | D80: 9342 | E80: 12 | F80: 9350 | K80: 0 | L80: 111
A81: 11 | B81: 9467 | C81: 11 | D81: 9474 | E81: 12 | F81: 9484 | K81: 0 | L81: 111
A82: 22 | B82: 9618 | C82: 13 | D82: 9627 | E82: 14 | F82: 9633 | K82: 0 | L82: 211
A83: 22 | B83: 9738 | C83: 13 | D83: 9749 | E83: 14 | F83: 9756 | K83: 0 | L83: 211
A84: 11 | B84: 9886 | C84: 11 | D84: 9893 | E84: 12 | F84: 9905 | K84: 0 | L84: 111
A85: 22 | B85: 10002 | C85: 24 | D85: 10016 | E85: 14 | F85: 10027 | K85: 0 | L85: 221
A86: 22 | B86: 10129 | C86: 13 | D86: 10137 | E86: 14 | F86: 10143 | K86: 0 | L86: 211
A87: 11 | B87: 10295 | C87: 11 | D87: 10305 | E87: 12 | F87: 10313 | K87: 0 | L87: 111
A88: 11 | B88: 10441 | C88: 11 | D88: 10456 | E88: 12 | F88: 10467 | K88: 0 | L88: 111
A89: 22 | B89: 10568 | C89: 13 | D89: 10576 | E89: 14 | F89: 10581 | K89: 0 | L89: 211
A90: 22 | B90: 10679 | C90: 13 | D90: 10690 | E90: 14 | F90: 10697 | K90: 0 | L90: 211
A91: 11 | B91: 10818 | C91: 11 | D91: 10823 | E91: 12 | F91: 10831 | K91: 0 | L91: 111
A92: 22 | B92: 10932 | C92: 13 | D92: 10945 | E92: 14 | F92: 10950 | K92: 0 | L92: 211
A93: 11 | B93: 11061 | C93: 11 | D93: 11068 | E93: 12 | F93: 11079 | K93: 0 | L93: 111
A94: 11 | B94: 11189 | C94: 11 | D94: 11194 | E94: 12 | F94: 11201 | K94: 0 | L94: 111
A95: 22 | B95: 11326 | C95: 13 | D95: 11336 | E95: 14 | F95: 11344 | K95: 0 | L95: 211
A96: 11 | B96: 11460 | C96: 11 | D96: 11467 | E96: 12 | F96: 11478 | K96: 0 | L96: 111
A97: 22 | B97: 11587 | C97: 13 | D97: 11597 | E97: 14 | F97: 11601 | K97: 0 | L97: 211
A98: 22 | B98: 11703 | C98: 13 | D98: 11711 | E98: 14 | F98: 11719 | K98: 0 | L98: 211
A99: 22 | B99: 11822 | C99: 13 | D99: 11831 | E99: 14 | F99: 11838 | K99: 0 | L99: 211
A100: 22 | B100: 11976 | C100: 13 | D100: 11984 | E100: 14 | F100: 11991 | K100: 0 | L100: 211
A101: 22 | B101: 12099 | C101: 13 | D101: 12107 | E101: 14 | F101: 12112 | K101: 0 | L101: 211
A102: 22 | B102: 12213 | C102: 13 | D102: 12222 | E102: 14 | F102: 12229 | K102: 0 | L102: 211
A103: 11 | B103: 12352 | C103: 11 | D103: 12359 | E103: 12 | F103: 12370 | K103: 0 | L103: 111
A104: 11 | B104: 12491 | C104: 11 | D104: 12498 | E104: 12 | F104: 12509 | K104: 0 | L104: 111
A105: 11 | B105: 12622 | C105: 11 | D105: 12627 | E105: 12 | F105: 12637 | K105: 0 | L105: 111
A106: 22 | B106: 12746 | C106: 13 | D106: 12758 | E106: 14 | F106: 12764 | K106: 0 | L106: 211
A107: 22 | B107: 12861 | C107: 13 | D107: 12869 | E107: 14 | F107: 12874 | K107: 0 | L107: 211
A108: 11 | B108: 12983 | C108: 11 | D108: 12990 | E108: 12 | F108: 12998 | K108: 0 | L108: 111
A109: 11 | B109: 13125 | C109: 11 | D109: 13131 | E109: 12 | F109: 13139 | K109: 0 | L109: 111
A110: 22 | B110: 13239 | C110: 13 | D110: 13247 | E110: 14 | F110: 13252 | K110: 0 | L110: 211
A111: 22 | B111: 13359 | C111: 13 | D111: 13370 | E111: 14 | F111: 13377 | K111: 0 | L111: 211
A112: 22 | B112: 13481 | C112: 13 | D112: 13491 | E112: 14 | F112: 13498 | K112: 0 | L112: 211
A113: 11 | B113: 13614 | C113: 11 | D113: 13621 | E113: 12 | F113: 13632 | K113: 0 | L113: 111
A114: 22 | B114: 13736 | C114: 13 | D114: 13745 | E114: 14 | F114: 13751 | K114: 0 | L114: 211
A115: 22 | B115: 13850 | C115: 24 | D115: 13866 | E115: 14 | F115: 13876 | K115: 0 | L115: 221
A116: 22 | B116: 13977 | C116: 13 | D116: 13985 | E116: 14 | F116: 13991 | K116: 0 | L116: 211
A117: 22 | B117: 14108 | C117: 13 | D117: 14115 | E117: 14 | F117: 14120 | K117: 0 | L117: 211
A118: 11 | B118: 14251 | C118: 11 | D118: 14259 | E118: 12 | F118: 14270 | K118: 0 | L118: 111
A119: 11 | B119: 14378 | C119: 11 | D119: 14386 | E119: 12 | F119: 14397 | K119: 0 | L119: 111
A120: 22 | B120: 14519 | C120: 13 | D120: 14527 | E120: 14 | F120: 14534 | K120: 0 | L120: 211
A121: 11 | B121: 14653 | C121: 11 | D121: 14658 | E121: 12 | F121: 14667 | K121: 0 | L121: 111
A122: 11 | B122: 14789 | C122: 11 | D122: 14796 | E122: 12 | F122: 14806 | K122: 0 | L122: 111
A123: 22 | B123: 14925 | C123: 13 | D123: 14933 | E123: 14 | F123: 14937 | K123: 0 | L123: 211
A124: 22 | B124: 15066 | C124: 13 | D124: 15073 | E124: 14 | F124: 15080 | K124: 0 | L124: 211
A125: 22 | B125: 15183 | C125: 13 | D125: 15209 | E125: 14 | F125: 15215 | K125: 0 | L125: 211
A126: 22 | B126: 15311 | C126: 24 | D126: 15328 | E126: 14 | F126: 15339 | K126: 0 | L126: 221
A127: 11 | B127: 15463 | C127: 11 | D127: 15468 | E127: 12 | F127: 15476 | K127: 0 | L127: 111
A128: 11 | B128: 15593 | C128: 11 | D128: 15598 | E128: 12 | F128: 15606 | K128: 0 | L128: 111
A129: 11 | B129: 15730 | C129: 11 | D129: 15737 | E129: 12 | F129: 15745 | K129: 0 | L129: 111
A130: 22 | B130: 15849 | C130: 24 | D130: 15868 | E130: 14 | F130: 15877 | K130: 0 | L130: 221
A131: 11 | B131: 16001 | C131: 11 | D131: 16006 | E131: 12 | F131: 16017 | K131: 0 | L131: 111
A132: 22 | B132: 16132 | C132: 24 | D132: 16148 | E132: 14 | F132: 16156 | K132: 0 | L132: 221
A133: 22 | B133: 16266 | C133: 13 | D133: 16274 | E133: 14 | F133: 16280 | K133: 0 | L133: 211
A134: 22 | B134: 16380 | C134: 24 | D134: 16394 | E134: 14 | F134: 16404 | K134: 0 | L134: 221
A135: 11 | B135: 16529 | C135: 11 | D135: 16537 | E135: 12 | F135: 16547 | K135: 0 | L135: 111
A136: 22 | B136: 16664 | C136: 13 | D136: 16674 | E136: 14 | F136: 16684 | K136: 0 | L136: 211
A137: 11 | B137: 16829 | C137: 11 | D137: 16836 | E137: 12 | F137: 16848 | K137: 0 | L137: 111
A138: 11 | B138: 16961 | C138: 11 | D138: 16965 | E138: 12 | F138: 16976 | K138: 0 | L138: 111
A139: 11 | B139: 17089 | C139: 11 | D139: 17095 | E139: 12 | F139: 17103 | K139: 0 | L139: 111
A140: 22 | B140: 17230 | C140: 13 | D140: 17241 | E140: 14 | F140: 17248 | K140: 0 | L140: 211
A141: 11 | B141: 17358 | C141: 11 | D141: 17363 | E141: 12 | F141: 17371 | K141: 0 | L141: 111
A142: 22 | B142: 17473 | C142: 13 | D142: 17499 | E142: 14 | F142: 17506 | K142: 0 | L142: 211
A143: 22 | B143: 17605 | C143: 24 | D143: 17622 | E143: 14 | F143: 17632 | K143: 0 | L143: 221
A144: 22 | B144: 17753 | C144: 13 | D144: 17761 | E144: 14 | F144: 17766 | K144: 0 | L144: 211
A145: 22 | B145: 17867 | C145: 13 | D145: 17882 | E145: 14 | F145: 17893 | K145: 0 | L145: 211
A146: 22 | B146: 17999 | C146: 13 | D146: 18007 | E146: 14 | F146: 18012 | K146: 0 | L146: 211
A147: 11 | B147: 18134 | C147: 11 | D147: 18139 | E147: 12 | F147: 18147 | K147: 0 | L147: 111
A148: 11 | B148: 18256 | C148: 11 | D148: 18261 | E148: 12 | F148: 18270 | K148: 0 | L148: 111
A149: 22 | B149: 18375 | C149: 24 | D149: 18389 | E149: 14 | F149: 18399 | K149: 0 | L149: 221
A150: 11 | B150: 18523 | C150: 11 | D150: 18530 | E150: 12 | F150: 18540 | K150: 0 | L150: 111
A151: 22 | B151: 18636 | C151: 13 | D151: 18664 | E151: 14 | F151: 18668 | K151: 0 | L151: 211
A152: 11 | B152: 18838 | C152: 11 | D152: 18845 | E152: 12 | F152: 18855 | K152: 0 | L152: 111
A153: 22 | B153: 18952 | C153: 13 | D153: 18965 | E153: 14 | F153: 18971 | K153: 0 | L153: 211
A154: 22 | B154: 19091 | C154: 13 | D154: 19102 | E154: 14 | F154: 19108 | K154: 0 | L154: 211
A155: 22 | B155: 19209 | C155: 24 | D155: 19223 | E155: 14 | F155: 19234 | K155: 0 | L155: 221
A156: 11 | B156: 19365 | C156: 11 | D156: 19372 | E156: 12 | F156: 19382 | K156: 0 | L156: 111
A157: 22 | B157: 19488 | C157: 13 | D157: 19498 | E157: 14 | F157: 19504 | K157: 0 | L157: 211
A158: 22 | B158: 19620 | C158: 13 | D158: 19631 | E158: 14 | F158: 19639 | K158: 0 | L158: 211
A159: 11 | B159: 19768 | C159: 11 | D159: 19774 | E159: 12 | F159: 19783 | K159: 0 | L159: 111
A160: 22 | B160: 19889 | C160: 13 | D160: 19908 | E160: 14 | F160: 19914 | K160: 0 | L160: 211
A161: 22 | B161: 20042 | C161: 13 | D161: 20049 | E161: 14 | F161: 20054 | K161: 0 | L161: 211
A162: 11 | B162: 20174 | C162: 11 | D162: 20180 | E162: 12 | F162: 20191 | K162: 0 | L162: 111
A163: 22 | B163: 20296 | C163: 24 | D163: 20312 | E163: 14 | F163: 20322 | K163: 0 | L163: 221
A164: 22 | B164: 20445 | C164: 13 | D164: 20455 | E164: 14 | F164: 20463 | K164: 0 | L164: 211
A165: 11 | B165: 20593 | C165: 11 | D165: 20598 | E165: 12 | F165: 20608 | K165: 0 | L165: 111
A166: 22 | B166: 20724 | C166: 13 | D166: 20731 | E166: 14 | F166: 20736 | K166: 0 | L166: 211
A167: 22 | B167: 20837 | C167: 13 | D167: 20848 | E167: 14 | F167: 20856 | K167: 0 | L167: 211
A168: 22 | B168: 20970 | C168: 13 | D168: 20981 | E168: 14 | F168: 20988 | K168: 0 | L168: 211
A169: 22 | B169: 21093 | C169: 13 | D169: 21101 | E169: 14 | F169: 21108 | K169: 0 | L169: 211
A170: 11 | B170: 21245 | C170: 11 | D170: 21253 | E170: 12 | F170: 21267 | K170: 0 | L170: 111
A171: 22 | B171: 21369 | C171: 13 | D171: 21379 | E171: 14 | F171: 21385 | K171: 0 | L171: 211
A172: 22 | B172: 21495 | C172: 13 | D172: 21507 | E172: 14 | F172: 21515 | K172: 0 | L172: 211
A173: 22 | B173: 21632 | C173: 13 | D173: 21642 | E173: 14 | F173: 21649 | K173: 0 | L173: 211
A174: 22 | B174: 21751 | C174: 13 | D174: 21775 | E174: 14 | F174: 21782 | K174: 0 | L174: 211
A175: 22 | B175: 21909 | C175: 13 | D175: 21919 | E175: 14 | F175: 21929 | K175: 0 | L175: 211
A176: 11 | B176: 22062 | C176: 11 | D176: 22067 | E176: 12 | F176: 22078 | K176: 0 | L176: 111
A177: 22 | B177: 22228 | C177: 13 | D177: 22239 | E177: 14 | F177: 22250 | K177: 0 | L177: 211
A178: 11 | B178: 22370 | C178: 11 | D178: 22377 | E178: 12 | F178: 22387 | K178: 0 | L178: 111
A179: 11 | B179: 22500 | C179: 11 | D179: 22541 | E179: 12 | F179: 22548 | K179: 0 | L179: 111
A180: 22 | B180: 22654 | C180: 13 | D180: 22669 | E180: 14 | F180: 22676 | K180: 0 | L180: 211
A181: 11 | B181: 22826 | C181: 11 | D181: 22837 | E181: 12 | F181: 22848 | K181: 0 | L181: 111
A182: 22 | B182: 22966 | C182: 13 | D182: 22974 | E182: 14 | F182: 22979 | K182: 0 | L182: 211
A183: 22 | B183: 23085 | C183: 13 | D183: 23096 | E183: 14 | F183: 23101 | K183: 0 | L183: 211
A184: 22 | B184: 23203 | C184: 13 | D184: 23214 | E184: 14 | F184: 23219 | K184: 0 | L184: 211
A185: 22 | B185: 23323 | C185: 13 | D185: 23334 | E185: 14 | F185: 23339 | K185: 0 | L185: 211
A186: 22 | B186: 23443 | C186: 13 | D186: 23465 | E186: 14 | F186: 23469 | K186: 0 | L186: 211
A187: 22 | B187: 23666 | C187: 13 | D187: 23677 | E187: 14 | F187: 23686 | K187: 0 | L187: 211
A188: 11 | B188: 23818 | C188: 11 | D188: 23824 | E188: 12 | F188: 23832 | K188: 0 | L188: 111
A189: 22 | B189: 23941 | C189: 13 | D189: 23959 | E189: 14 | F189: 23970 | L189: 211

Sheet !MA20A40.095
A1: Report for:!MA20A40.095
A2: Date: | B2: <date>
A3: Hen: | B3: <hen> | F3: Correct Sequence | G3: =Start!J2 -> 122 | P3: Total Sequences in Data | Q3: =4994-COUNTBLANK(L7:L5000) -> 175 | V3: Total Sequences in Block Data | W3: =COUNTA(L7:L35) -> 29 | AA3: Total Sequences in Block Data | AB3: =COUNTA(L36:L64) -> 29 | AF3: Total Sequences in Block Data | AG3: =COUNTA(L65:L94) -> 30 | AK3: Total Sequences in Block Data | AL3: =COUNTA(L95:L123) -> 29 | AP3: Total Sequences in Block Data | AQ3: =COUNTA(L124:L152) -> 29 | AU3: Total Sequences in Block Data | AV3: =COUNTA(L153:L181) -> 29
P4: Total Sequences in Summary | Q4: =SUM(O7:O14) -> 175 | V4: Total Sequences in Block Summary | W4: =SUM(U7:U14) -> 29 | AA4: Total Sequences in Block Summary | AB4: =SUM(Z7:Z14) -> 29 | AF4: Total Sequences in Block Summary | AG4: =SUM(AE7:AE14) -> 30 | AK4: Total Sequences in Block Summary | AL4: =SUM(AJ7:AJ14) -> 29 | AP4: Total Sequences in Block Summary | AQ4: =SUM(AO7:AO14) -> 29 | AU4: Total Sequences in Block Summary | AV4: =SUM(AT7:AT14) -> 29
T5: Block 1 | Y5: Block 2 | AD5: Block 3 | AI5: Block 4 | AN5: Block 5 | AS5: Block 6
A6: Sequence Component 1 | B6: Time 1 | C6: Sequence Component 2 | D6: Time 2 | E6: Sequence Component 3 | F6: Time 3 | G6: Sequence Component 4 | H6: Time 4 | I6: Sequence Component 5 | J6: Time 5 | K6: Correct? 0=No 1=Yes | L6: Sequence | N6: Frequency | P6: Relative Frequency | Q6: Variability | T6: Frequency | V6: Relative Frequency | W6: Variability | Y6: Frequency | AA6: Relative Frequency | AB6: Variability | AD6: Frequency | AF6: Relative Frequency | AG6: Variability | AI6: Frequency | AK6: Relative Frequency | AL6: Variability | AN6: Frequency | AP6: Relative Frequency | AQ6: Variability | AS6: Frequency | AU6: Relative Frequency | AV6: Variability
A7: 11 | B7: 34 | C7: 11 | D7: 43 | E7: 12 | F7: 55 | K7: 0 | L7: 111 | N7: 111 | O7: =COUNTIF($L$7:$L$500,N7) -> 55 | P7: =O7/$Q$4 -> 0.3142857143 | Q7: =IF(P7=0,0,(P7*((LOG(P7))/LOG(2)))) -> -0.5248104395 | T7: =N7 -> 111 | U7: =COUNTIF(L7:L35,T7) -> 13 | V7: =U7/(W4-U10) -> 0.4482758621 | W7: =IF(V7=0,0,(V7*((LOG(V7))/LOG(2)))) -> -0.5188978138 | Y7: =N7 -> 111 | Z7: =COUNTIF(L36:L64,Y7) -> 8 | AA7: =Z7/(AB4-Z10) -> 0.275862069 | AB7: =IF(AA7=0,0,(AA7*((LOG(AA7))/LOG(2)))) -> -0.5125464814 | AD7: =N7 -> 111 | AE7: =COUNTIF(L65:L94,AD7) -> 8 | AF7: =AE7/(AG4-AE10) -> 0.2666666667 | AG7: =IF(AF7=0,0,(AF7*((LOG(AF7))/LOG(2)))) -> -0.5085041588 | AI7: =N7 -> 111 | AJ7: =COUNTIF(L95:L123,AI7) -> 16 | AK7: =AJ7/(AL4-AJ10) -> 0.5517241379 | AL7: =IF(AK7=0,0,(AK7*((LOG(AK7))/LOG(2)))) -> -0.4733688249 | AN7: =N7 -> 111 | AO7: =COUNTIF(L124:L152,AN7) -> 5 | AP7: =AO7/(AQ4-AO10) -> 0.1724137931 | AQ7: =IF(AP7=0,0,(AP7*((LOG(AP7))/LOG(2)))) -> -0.4372505 | AS7: =N7 -> 111 | AT7: =COUNTIF(L153:L181,AS7) -> 5 | AU7: =AT7/(AV4-AT10) -> 0.1724137931 | AV7: =IF(AU7=0,0,(AU7*((LOG(AU7))/LOG(2)))) -> -0.4372505
A8: 22 | B8: 162 | C8: 24 | D8: 183 | E8: 14 | F8: 191 | K8: 0 | L8: 221 | N8: 112 | O8: =COUNTIF($L$7:$L$500,N8) -> 0 | P8: =O8/$Q$4 -> 0 | Q8: =IF(P8=0,0,(P8*((LOG(P8))/LOG(2)))) -> 0 | T8: =N8 -> 112 | U8: =COUNTIF(L7:L35,T8) -> 0 | V8: =U8/(W4-U10) -> 0 | W8: =IF(V8=0,0,(V8*((LOG(V8))/LOG(2)))) -> 0 | Y8: =N8 -> 112 | Z8: =COUNTIF(L36:L64,Y8) -> 0 | AA8: =Z8/(AB4-Z10) -> 0 | AB8: =IF(AA8=0,0,(AA8*((LOG(AA8))/LOG(2)))) -> 0 | AD8: =N8 -> 112 | AE8: =COUNTIF(L65:L94,AD8) -> 0 | AF8: =AE8/(AG4-AE10) -> 0 | AG8: =IF(AF8=0,0,(AF8*((LOG(AF8))/LOG(2)))) -> 0 | AI8: =N8 -> 112 | AJ8: =COUNTIF(L95:L123,AI8) -> 0 | AK8: =AJ8/(AL4-AJ10) -> 0 | AL8: =IF(AK8=0,0,(AK8*((LOG(AK8))/LOG(2)))) -> 0 | AN8: =N8 -> 112 | AO8: =COUNTIF(L124:L152,AN8) -> 0 | AP8: =AO8/(AQ4-AO10) -> 0 | AQ8: =IF(AP8=0,0,(AP8*((LOG(AP8))/LOG(2)))) -> 0 | AS8: =N8 -> 112 | AT8: =COUNTIF(L153:L181,AS8) -> 0 | AU8: =AT8/(AV4-AT10) -> 0 | AV8: =IF(AU8=0,0,(AU8*((LOG(AU8))/LOG(2)))) -> 0
A9: 11 | B9: 317 | C9: 11 | D9: 325 | E9: 12 | F9: 336 | K9: 0 | L9: 111 | N9: 121 | O9: =COUNTIF($L$7:$L$500,N9) -> 0 | P9: =O9/$Q$4 -> 0 | Q9: =IF(P9=0,0,(P9*((LOG(P9))/LOG(2)))) -> 0 | T9: =N9 -> 121 | U9: =COUNTIF(L7:L35,T9) -> 0 | V9: =U9/(W4-U10) -> 0 | W9: =IF(V9=0,0,(V9*((LOG(V9))/LOG(2)))) -> 0 | Y9: =N9 -> 121 | Z9: =COUNTIF(L36:L64,Y9) -> 0 | AA9: =Z9/(AB4-Z10) -> 0 | AB9: =IF(AA9=0,0,(AA9*((LOG(AA9))/LOG(2)))) -> 0 | AD9: =N9 -> 121 | AE9: =COUNTIF(L65:L94,AD9) -> 0 | AF9: =AE9/(AG4-AE10) -> 0 | AG9: =IF(AF9=0,0,(AF9*((LOG(AF9))/LOG(2)))) -> 0 | AI9: =N9 -> 121 | AJ9: =COUNTIF(L95:L123,AI9) -> 0 | AK9: =AJ9/(AL4-AJ10) -> 0 | AL9: =IF(AK9=0,0,(AK9*((LOG(AK9))/LOG(2)))) -> 0 | AN9: =N9 -> 121 | AO9: =COUNTIF(L124:L152,AN9) -> 0 | AP9: =AO9/(AQ4-AO10) -> 0 | AQ9: =IF(AP9=0,0,(AP9*((LOG(AP9))/LOG(2)))) -> 0 | AS9: =N9 -> 121 | AT9: =COUNTIF(L153:L181,AS9) -> 0 | AU9: =AT9/(AV4-AT10) -> 0 | AV9: =IF(AU9=0,0,(AU9*((LOG(AU9))/LOG(2)))) -> 0
A10: 11 | B10: 453 | C10: 11 | D10: 460 | E10: 12 | F10: 471 | K10: 0 | L10: 111 | N10: 122 | O10: =COUNTIF($L$7:$L$500,N10) -> 0 | P10: =O10/$Q$4 -> 0 | Q10: =IF(P10=0,0,(P10*((LOG(P10))/LOG(2)))) -> 0 | T10: =N10 -> 122 | U10: =COUNTIF(L7:L35,T10) -> 0 | Y10: =N10 -> 122 | Z10: =COUNTIF(L36:L64,Y10) -> 0 | AD10: =N10 -> 122 | AE10: =COUNTIF(L65:L94,AD10) -> 0 | AI10: =N10 -> 122 | AJ10: =COUNTIF(L95:L123,AI10) -> 0 | AN10: =N10 -> 122 | AO10: =COUNTIF(L124:L152,AN10) -> 0 | AS10: =N10 -> 122 | AT10: =COUNTIF(L153:L181,AS10) -> 0
A11: 11 | B11: 594 | C11: 11 | D11: 602 | E11: 12 | F11: 614 | K11: 0 | L11: 111 | N11: 211 | O11: =COUNTIF($L$7:$L$500,N11) -> 91 | P11: =O11/$Q$4 -> 0.52 | Q11: =IF(P11=0,0,(P11*((LOG(P11))/LOG(2)))) -> -0.4905765652 | T11: =N11 -> 211 | U11: =COUNTIF(L7:L35,T11) -> 11 | V11: =U11/(W4-U10) -> 0.3793103448 | W11: =IF(V11=0,0,(V11*((LOG(V11))/LOG(2)))) -> -0.5304842463 | Y11: =N11 -> 211 | Z11: =COUNTIF(L36:L64,Y11) -> 15 | AA11: =Z11/(AB4-Z10) -> 0.5172413793 | AB11: =IF(AA11=0,0,(AA11*((LOG(AA11))/LOG(2)))) -> -0.4919433101 | AD11: =N11 -> 211 | AE11: =COUNTIF(L65:L94,AD11) -> 18 | AF11: =AE11/(AG4-AE10) -> 0.6 | AG11: =IF(AF11=0,0,(AF11*((LOG(AF11))/LOG(2)))) -> -0.4421793565 | AI11: =N11 -> 211 | AJ11: =COUNTIF(L95:L123,AI11) -> 10 | AK11: =AJ11/(AL4-AJ10) -> 0.3448275862 | AL11: =IF(AK11=0,0,(AK11*((LOG(AK11))/LOG(2)))) -> -0.5296734139 | AN11: =N11 -> 211 | AO11: =COUNTIF(L124:L152,AN11) -> 19 | AP11: =AO11/(AQ4-AO10) -> 0.6551724138 | AQ11: =IF(AP11=0,0,(AP11*((LOG(AP11))/LOG(2)))) -> -0.3996902121 | AS11: =N11 -> 211 | AT11: =COUNTIF(L153:L181,AS11) -> 18 | AU11: =AT11/(AV4-AT10) -> 0.6206896552 | AV11: =IF(AU11=0,0,(AU11*((LOG(AU11))/LOG(2)))) -> -0.4270692375
A12: 22 | B12: 764 | C12: 13 | D12: 773 | E12: 14 | F12: 781 | K12: 0 | L12: 211 | N12: 212 | O12: =COUNTIF($L$7:$L$500,N12) -> 0 | P12: =O12/$Q$4 -> 0 | Q12: =IF(P12=0,0,(P12*((LOG(P12))/LOG(2)))) -> 0 | T12: =N12 -> 212 | U12: =COUNTIF(L7:L35,T12) -> 0 | V12: =U12/(W4-U10) -> 0 | W12: =IF(V12=0,0,(V12*((LOG(V12))/LOG(2)))) -> 0 | Y12: =N12 -> 212 | Z12: =COUNTIF(L36:L64,Y12) -> 0 | AA12: =Z12/(AB4-Z10) -> 0 | AB12: =IF(AA12=0,0,(AA12*((LOG(AA12))/LOG(2)))) -> 0 | AD12: =N12 -> 212 | AE12: =COUNTIF(L65:L94,AD12) -> 0 | AF12: =AE12/(AG4-AE10) -> 0 | AG12: =IF(AF12=0,0,(AF12*((LOG(AF12))/LOG(2)))) -> 0 | AI12: =N12 -> 212 | AJ12: =COUNTIF(L95:L123,AI12) -> 0 | AK12: =AJ12/(AL4-AJ10) -> 0 | AL12: =IF(AK12=0,0,(AK12*((LOG(AK12))/LOG(2)))) -> 0 | AN12: =N12 -> 212 | AO12: =COUNTIF(L124:L152,AN12) -> 0 | AP12: =AO12/(AQ4-AO10) -> 0 | AQ12: =IF(AP12=0,0,(AP12*((LOG(AP12))/LOG(2)))) -> 0 | AS12: =N12 -> 212 | AT12: =COUNTIF(L153:L181,AS12) -> 0 | AU12: =AT12/(AV4-AT10) -> 0 | AV12: =IF(AU12=0,0,(AU12*((LOG(AU12))/LOG(2)))) -> 0
A13: 22 | B13: 886 | C13: 13 | D13: 895 | E13: 14 | F13: 904 | K13: 0 | L13: 211 | N13: 221 | O13: =COUNTIF($L$7:$L$500,N13) -> 28 | P13: =O13/$Q$4 -> 0.16 | Q13: =IF(P13=0,0,(P13*((LOG(P13))/LOG(2)))) -> -0.4230169904 | T13: =N13 -> 221 | U13: =COUNTIF(L7:L35,T13) -> 5 | V13: =U13/(W4-U10) -> 0.1724137931 | W13: =IF(V13=0,0,(V13*((LOG(V13))/LOG(2)))) -> -0.4372505 | Y13: =N13 -> 221 | Z13: =COUNTIF(L36:L64,Y13) -> 6 | AA13: =Z13/(AB4-Z10) -> 0.2068965517 | AB13: =IF(AA13=0,0,(AA13*((LOG(AA13))/LOG(2)))) -> -0.4702796885 | AD13: =N13 -> 221 | AE13: =COUNTIF(L65:L94,AD13) -> 4 | AF13: =AE13/(AG4-AE10) -> 0.1333333333 | AG13: =IF(AF13=0,0,(AF13*((LOG(AF13))/LOG(2)))) -> -0.3875854127 | AI13: =N13 -> 221 | AJ13: =COUNTIF(L95:L123,AI13) -> 3 | AK13: =AJ13/(AL4-AJ10) -> 0.1034482759 | AL13: =IF(AK13=0,0,(AK13*((LOG(AK13))/LOG(2)))) -> -0.3385881201 | AN13: =N13 -> 221 | AO13: =COUNTIF(L124:L152,AN13) -> 5 | AP13: =AO13/(AQ4-AO10) -> 0.1724137931 | AQ13: =IF(AP13=0,0,(AP13*((LOG(AP13))/LOG(2)))) -> -0.4372505 | AS13: =N13 -> 221 | AT13: =COUNTIF(L153:L181,AS13) -> 5 | AU13: =AT13/(AV4-AT10) -> 0.1724137931 | AV13: =IF(AU13=0,0,(AU13*((LOG(AU13))/LOG(2)))) -> -0.4372505
A14: 11 | B14: 1018 | C14: 11 | D14: 1027 | E14: 12 | F14: 1038 | K14: 0 | L14: 111 | N14: 222 | O14: =COUNTIF($L$7:$L$500,N14) -> 1 | P14: =O14/$Q$4 -> 0.005714285714 | Q14: =IF(P14=0,0,(P14*((LOG(P14))/LOG(2)))) -> -0.04257834921 | T14: =N14 -> 222 | U14: =COUNTIF(L7:L35,T14) -> 0 | V14: =U14/(W4-U10) -> 0 | W14: =IF(V14=0,0,(V14*((LOG(V14))/LOG(2)))) -> 0 | Y14: =N14 -> 222 | Z14: =COUNTIF(L36:L64,Y14) -> 0 | AA14: =Z14/(AB4-Z10) -> 0 | AB14: =IF(AA14=0,0,(AA14*((LOG(AA14))/LOG(2)))) -> 0 | AD14: =N14 -> 222 | AE14: =COUNTIF(L65:L94,AD14) -> 0 | AF14: =AE14/(AG4-AE10) -> 0 | AG14: =IF(AF14=0,0,(AF14*((LOG(AF14))/LOG(2)))) -> 0 | AI14: =N14 -> 222 | AJ14: =COUNTIF(L95:L123,AI14) -> 0 | AK14: =AJ14/(AL4-AJ10) -> 0 | AL14: =IF(AK14=0,0,(AK14*((LOG(AK14))/LOG(2)))) -> 0 | AN14: =N14 -> 222 | AO14: =COUNTIF(L124:L152,AN14) -> 0 | AP14: =AO14/(AQ4-AO10) -> 0 | AQ14: =IF(AP14=0,0,(AP14*((LOG(AP14))/LOG(2)))) -> 0 | AS14: =N14 -> 222 | AT14: =COUNTIF(L153:L181,AS14) -> 1 | AU14: =AT14/(AV4-AT10) -> 0.03448275862 | AV14: =IF(AU14=0,0,(AU14*((LOG(AU14))/LOG(2)))) -> -0.167516586
A15: 11 | B15: 1165 | C15: 11 | D15: 1172 | E15: 12 | F15: 1184 | K15: 0 | L15: 111 | P15: =SUM(P7:P14) -> 1 | Q15: =-SUM(Q7:Q14) -> 1.480982344 | V15: =SUM(V7:V14) -> 1 | W15: =-SUM(W7:W14) -> 1.48663256 | AA15: =SUM(AA7:AA14) -> 1 | AB15: =-SUM(AB7:AB14) -> 1.47476948 | AF15: =SUM(AF7:AF14) -> 1 | AG15: =-SUM(AG7:AG14) -> 1.338268928 | AK15: =SUM(AK7:AK14) -> 1 | AL15: =-SUM(AL7:AL14) -> 1.341630359 | AP15: =SUM(AP7:AP14) -> 1 | AQ15: =-SUM(AQ7:AQ14) -> 1.274191212 | AU15: =SUM(AU7:AU14) -> 1 | AV15: =-SUM(AV7:AV14) -> 1.469086824
A16: 11 | B16: 1305 | C16: 11 | D16: 1312 | E16: 12 | F16: 1323 | K16: 0 | L16: 111 | P16: U= | Q16: =Q15/(LOG(Q4)/LOG(2)) -> 0.1987572654 | V16: U1= | W16: =W15/(LOG(W4)/LOG(2)) -> 0.3060186035 | AA16: U2= | AB16: =AB15/(LOG(AB4)/LOG(2)) -> 0.3035766261 | AF16: U3= | AG16: =AG15/(LOG(AG4)/LOG(2)) -> 0.2727325792 | AK16: U4= | AL16: =AL15/(LOG(AL4)/LOG(2)) -> 0.2761703597 | AP16: U5= | AQ16: =AQ15/(LOG(AQ4)/LOG(2)) -> 0.262288225 | AU16: U6= | AV16: =AV15/(LOG(AV4)/LOG(2)) -> 0.3024068692
A17: 11 | B17: 1443 | C17: 11 | D17: 1449 | E17: 12 | F17: 1460 | K17: 0 | L17: 111
A18: 22 | B18: 1566 | C18: 13 | D18: 1579 | E18: 14 | F18: 1587 | K18: 0 | L18: 211
A19: 11 | B19: 1721 | C19: 11 | D19: 1730 | E19: 12 | F19: 1742 | K19: 0 | L19: 111 | N19: Total Target Seq
A20: 22 | B20: 1849 | C20: 24 | D20: 1866 | E20: 14 | F20: 1878 | K20: 0 | L20: 221 | N20: =COUNTIF(L7:L181,G3) -> 0 | P20: 29 | Q20: 29 | R20: 30 | S20: 29 | T20: 29 | U20: 29
A21: 22 | B21: 1991 | C21: 24 | D21: 2005 | E21: 14 | F21: 2015 | K21: 0 | L21: 221 | P21: % of reinforcement given in 6 equal intervals based on number of trials
A22: 22 | B22: 2110 | C22: 13 | D22: 2129 | E22: 14 | F22: 2142 | K22: 0 | L22: 211 | P22: %_1 | Q22: %_2 | R22: %_3 | S22: %_4 | T22: %_5 | U22: %_6
A23: 22 | B23: 2242 | C23: 13 | D23: 2274 | E23: 14 | F23: 2282 | K23: 0 | L23: 211 | O23: target sequence | P23: =$G$3 -> 122 | Q23: =$G$3 -> 122 | R23: =$G$3 -> 122 | S23: =$G$3 -> 122 | T23: =$G$3 -> 122 | U23: =$G$3 -> 122
A24: 11 | B24: 2412 | C24: 11 | D24: 2419 | E24: 12 | F24: 2431 | K24: 0 | L24: 111 | O24: total reinforcement | P24: =U10 -> 0 | Q24: =Z10 -> 0 | R24: =AE10 -> 0 | S24: =AJ10 -> 0 | T24: =AO10 -> 0 | U24: =AT10 -> 0
A25: 22 | B25: 2534 | C25: 24 | D25: 2549 | E25: 14 | F25: 2561 | K25: 0 | L25: 221 | O25: % target
A26: 22 | B26: 2673 | C26: 13 | D26: 2686 | E26: 14 | F26: 2693 | K26: 0 | L26: 211 | O26: CCRF
A27: 11 | B27: 2817 | C27: 11 | D27: 2825 | E27: 12 | F27: 2838 | K27: 0 | L27: 111 | O27: % CCRf
A28: 11 | B28: 2965 | C28: 11 | D28: 2985 | E28: 12 | F28: 2995 | K28: 0 | L28: 111 | O28: average response rate | P28: =F35/P20 -> 137.4827586 | Q28: =(F64-F35)/Q20 -> 138.6551724 | R28: =(F94-F64)/R20 -> 134.2333333 | S28: =(F123-F94)/S20 -> 133.2758621 | T28: =(F152-F123)/T20 -> 138.1724138 | U28: =(F181-F152)/U20 -> 139.0689655
A29: 22 | B29: 3094 | C29: 24 | D29: 3102 | E29: 14 | F29: 3115 | K29: 0 | L29: 221
A30: 22 | B30: 3234 | C30: 13 | D30: 3243 | E30: 14 | F30: 3254 | K30: 0 | L30: 211
A31: 22 | B31: 3367 | C31: 13 | D31: 3380 | E31: 14 | F31: 3391 | K31: 0 | L31: 211
A32: 22 | B32: 3495 | C32: 13 | D32: 3514 | E32: 14 | F32: 3521 | K32: 0 | L32: 211
A33: 11 | B33: 3644 | C33: 11 | D33: 3651 | E33: 12 | F33: 3663 | K33: 0 | L33: 111
A34: 22 | B34: 3817 | C34: 13 | D34: 3829 | E34: 14 | F34: 3837 | K34: 0 | L34: 211
A35: 22 | B35: 3965 | C35: 13 | D35: 3976 | E35: 14 | F35: 3987 | K35: 0 | L35: 211
A36: 22 | B36: 4101 | C36: 24 | D36: 4118 | E36: 14 | F36: 4131 | K36: 0 | L36: 221
A37: 11 | B37: 4263 | C37: 11 | D37: 4272 | E37: 12 | F37: 4284 | K37: 0 | L37: 111
A38: 11 | B38: 4398 | C38: 11 | D38: 4406 | E38: 12 | F38: 4417 | K38: 0 | L38: 111
A39: 22 | B39: 4519 | C39: 24 | D39: 4535 | E39: 14 | F39: 4546 | K39: 0 | L39: 221
A40: 22 | B40: 4641 | C40: 24 | D40: 4659 | E40: 14 | F40: 4670 | K40: 0 | L40: 221
A41: 22 | B41: 4776 | C41: 13 | D41: 4802 | E41: 14 | F41: 4810 | K41: 0 | L41: 211
A42: 11 | B42: 4928 | C42: 11 | D42: 4935 | E42: 12 | F42: 4947 | K42: 0 | L42: 111
A43: 22 | B43: 5055 | C43: 24 | D43: 5063 | E43: 14 | F43: 5071 | K43: 0 | L43: 221
A44: 11 | B44: 5186 | C44: 11 | D44: 5193 | E44: 12 | F44: 5203 | K44: 0 | L44: 111
A45: 11 | B45: 5325 | C45: 11 | D45: 5332 | E45: 12 | F45: 5344 | K45: 0 | L45: 111
A46: 11 | B46: 5466 | C46: 11 | D46: 5474 | E46: 12 | F46: 5486 | K46: 0 | L46: 111
A47: 22 | B47: 5593 | C47: 24 | D47: 5608 | E47: 14 | F47: 5618 | K47: 0 | L47: 221
A48: 22 | B48: 5724 | C48: 13 | D48: 5735 | E48: 14 | F48: 5741 | K48: 0 | L48: 211
A49: 22 | B49: 5851 | C49: 13 | D49: 5870 | E49: 14 | F49: 5878 | K49: 0 | L49: 211
A50: 22 | B50: 5991 | C50: 13 | D50: 6009 | E50: 14 | F50: 6016 | K50: 0 | L50: 211
A51: 22 | B51: 6141 | C51: 13 | D51: 6149 | E51: 14 | F51: 6157 | K51: 0 | L51: 211
A52: 22 | B52: 6277 | C52: 13 | D52: 6284 | E52: 14 | F52: 6291 | K52: 0 | L52: 211
A53: 22 | B53: 6409 | C53: 13 | D53: 6421 | E53: 14 | F53: 6432 | K53: 0 | L53: 211
A54: 22 | B54: 6557 | C54: 13 | D54: 6568 | E54: 14 | F54: 6577 | K54: 0 | L54: 211
A55: 22 | B55: 6684 | C55: 13 | D55: 6715 | E55: 14 | F55: 6726 | K55: 0 | L55: 211
A56: 11 | B56: 6862 | C56: 11 | D56: 6870 | E56: 12 | F56: 6881 | K56: 0 | L56: 111
A57: 22 | B57: 7014 | C57: 13 | D57: 7039 | E57: 14 | F57: 7048 | K57: 0 | L57: 211
A58: 11 | B58: 7189 | C58: 11 | D58: 7196 | E58: 12 | F58: 7208 | K58: 0 | L58: 111
A59: 22 | B59: 7308 | C59: 13 | D59: 7317 | E59: 14 | F59: 7322 | K59: 0 | L59: 211
A60: 22 | B60: 7445 | C60: 13 | D60: 7464 | E60: 14 | F60: 7473 | K60: 0 | L60: 211
A61: 22 | B61: 7580 | C61: 24 | D61: 7598 | E61: 14 | F61: 7607 | K61: 0 | L61: 221
A62: 22 | B62: 7716 | C62: 13 | D62: 7733 | E62: 14 | F62: 7741 | K62: 0 | L62: 211
A63: 22 | B63: 7862 | C63: 13 | D63: 7873 | E63: 14 | F63: 7880 | K63: 0 | L63: 211
A64: 22 | B64: 7981 | C64: 13 | D64: 8000 | E64: 14 | F64: 8008 | K64: 0 | L64: 211
A65: 22 | B65: 8112 | C65: 24 | D65: 8123 | E65: 14 | F65: 8132 | K65: 0 | L65: 221
A66: 11 | B66: 8259 | C66: 11 | D66: 8265 | E66: 12 | F66: 8276 | K66: 0 | L66: 111
A67: 22 | B67: 8411 | C67: 13 | D67: 8423 | E67: 14 | F67: 8431 | K67: 0 | L67: 211
A68: 22 | B68: 8537 | C68: 13 | D68: 8564 | E68: 14 | F68: 8571 | K68: 0 | L68: 211
A69: 22 | B69: 8696 | C69: 13 | D69: 8703 | E69: 14 | F69: 8711 | K69: 0 | L69: 211
A70: 11 | B70: 8824 | C70: 11 | D70: 8831 | E70: 12 | F70: 8842 | K70: 0 | L70: 111
A71: 22 | B71: 8943 | C71: 13 | D71: 8952 | E71: 14 | F71: 8959 | K71: 0 | L71: 211
A72: 11 | B72: 9080 | C72: 11 | D72: 9088 | E72: 12 | F72: 9099 | K72: 0 | L72: 111
A73: 22 | B73: 9198 | C73: 13 | D73: 9222 | E73: 14 | F73: 9229 | K73: 0 | L73: 211
A74: 22 | B74: 9334 | C74: 24 | D74: 9351 | E74: 14 | F74: 9362 | K74: 0 | L74: 221
A75: 11 | B75: 9479 | C75: 11 | D75: 9486 | E75: 12 | F75: 9497 | K75: 0 | L75: 111
A76: 22 | B76: 9605 | C76: 24 | D76: 9621 | E76: 14 | F76: 9631 | K76: 0 | L76: 221
A77: 22 | B77: 9752 | C77: 13 | D77: 9763 | E77: 14 | F77: 9774 | K77: 0 | L77: 211
A78: 11 | B78: 9912 | C78: 11 | D78: 9922 | E78: 12 | F78: 9933 | K78: 0 | L78: 111
A79: 22 | B79: 10041 | C79: 13 | D79: 10049 | E79: 14 | F79: 10061 | K79: 0 | L79: 211
A80: 22 | B80: 10157 | C80: 13 | D80: 10165 | E80: 14 | F80: 10178 | K80: 0 | L80: 211
A81: 22 | B81: 10284 | C81: 13 | D81: 10309 | E81: 14 | F81: 10320 | K81: 0 | L81: 211
A82: 22 | B82: 10422 | C82: 13 | D82: 10439 | E82: 14 | F82: 10444 | K82: 0 | L82: 211
A83: 11 | B83: 10577 | C83: 11 | D83: 10585 | E83: 12 | F83: 10597 | K83: 0 | L83: 111
A84: 22 | B84: 10698 | C84: 13 | D84: 10706 | E84: 14 | F84: 10712 | K84: 0 | L84: 211
A85: 22 | B85: 10818 | C85: 13 | D85: 10836 | E85: 14 | F85: 10842 | K85: 0 | L85: 211
A86: 22 | B86: 10949 | C86: 13 | D86: 10960 | E86: 14 | F86: 10966 | K86: 0 | L86: 211
A87: 11 | B87: 11086 | C87: 11 | D87: 11095 | E87: 12 | F87: 11106 | K87: 0 | L87: 111
A88: 22 | B88: 11204 | C88: 24 | D88: 11223 | E88: 14 | F88: 11233 | K88: 0 | L88: 221
A89: 22 | B89: 11343 | C89: 13 | D89: 11352 | E89: 14 | F89: 11357 | K89: 0 | L89: 211
A90: 22 | B90: 11472 | C90: 13 | D90: 11489 | E90: 14 | F90: 11496 | K90: 0 | L90: 211
A91: 11 | B91: 11616 | C91: 11 | D91: 11623 | E91: 12 | F91: 11634 | K91: 0 | L91: 111
A92: 22 | B92: 11738 | C92: 13 | D92: 11774 | E92: 14 | F92: 11786 | K92: 0 | L92: 211
A93: 22 | B93: 11890 | C93: 13 | D93: 11901 | E93: 14 | F93: 11909 | K93: 0 | L93: 211
A94: 22 | B94: 12011 | C94: 13 | D94: 12028 | E94: 14 | F94: 12035 | K94: 0 | L94: 211
A95: 22 | B95: 12141 | C95: 13 | D95: 12148 | E95: 14 | F95: 12156 | K95: 0 | L95: 211
A96: 22 | B96: 12257 | C96: 24 | D96: 12268 | E96: 14 | F96: 12279 | K96: 0 | L96: 221
A97: 11 | B97: 12404 | C97: 11 | D97: 12411 | E97: 12 | F97: 12422 | K97: 0 | L97: 111
A98: 11 | B98: 12543 | C98: 11 | D98: 12550 | E98: 12 | F98: 12561 | K98: 0 | L98: 111
A99: 11 | B99: 12667 | C99: 11 | D99: 12672 | E99: 12 | F99: 12683 | K99: 0 | L99: 111
A100: 11 | B100: 12814 | C100: 11 | D100: 12821 | E100: 12 | F100: 12831 | K100: 0 | L100: 111
A101: 22 | B101: 12941 | C101: 13 | D101: 12950 | E101: 14 | F101: 12955 | K101: 0 | L101: 211
A102: 22 | B102: 13053 | C102: 13 | D102: 13072 | E102: 14 | F102: 13079 | K102: 0 | L102: 211
A103: 11 | B103: 13190 | C103: 11 | D103: 13195 | E103: 12 | F103: 13207 | K103: 0 | L103: 111
A104: 11 | B104: 13334 | C104: 11 | D104: 13342 | E104: 12 | F104: 13352 | K104: 0 | L104: 111
A105: 11 | B105: 13478 | C105: 11 | D105: 13485 | E105: 12 | F105: 13495 | K105: 0 | L105: 111
A106: 22 | B106: 13601 | C106: 13 | D106: 13613 | E106: 14 | F106: 13620 | K106: 0 | L106: 211
A107: 22 | B107: 13737 | C107: 13 | D107: 13745 | E107: 14 | F107: 13752 | K107: 0 | L107: 211
A108: 22 | B108: 13859 | C108: 13 | D108: 13883 | E108: 14 | F108: 13894 | K108: 0 | L108: 211
A109: 11 | B109: 14005 | C109: 11 | D109: 14012 | E109: 12 | F109: 14023 | K109: 0 | L109: 111
A110: 11 | B110: 14155 | C110: 11 | D110: 14162 | E110: 12 | F110: 14173 | K110: 0 | L110: 111
A111: 11 | B111: 14296 | C111: 11 | D111: 14302 | E111: 12 | F111: 14312 | K111: 0 | L111: 111
A112: 11 | B112: 14435 | C112: 11 | D112: 14440 | E112: 12 | F112: 14450 | K112: 0 | L112: 111
A113: 11 | B113: 14573 | C113: 11 | D113: 14578 | E113: 12 | F113: 14586 | K113: 0 | L113: 111
A114: 11 | B114: 14712 | C114: 11 | D114: 14718 | E114: 12 | F114: 14726 | K114: 0 | L114: 111
A115: 22 | B115: 14829 | C115: 24 | D115: 14841 | E115: 14 | F115: 14849 | K115: 0 | L115: 221
A116: 22 | B116: 14967 | C116: 13 | D116: 14979 | E116: 14 | F116: 14988 | K116: 0 | L116: 211
A117: 22 | B117: 15090 | C117: 13 | D117: 15106 | E117: 14 | F117: 15113 | K117: 0 | L117: 211
A118: 22 | B118: 15214 | C118: 24 | D118: 15224 | E118: 14 | F118: 15235 | K118: 0 | L118: 221
A119: 22 | B119: 15340 | C119: 13 | D119: 15349 | E119: 14 | F119: 15354 | K119: 0 | L119: 211
A120: 11 | B120: 15464 | C120: 11 | D120: 15469 | E120: 12 | F120: 15477 | K120: 0 | L120: 111
A121: 22 | B121: 15580 | C121: 13 | D121: 15592 | E121: 14 | F121: 15598 | K121: 0 | L121: 211
A122: 11 | B122: 15718 | C122: 11 | D122: 15725 | E122: 12 | F122: 15735 | K122: 0 | L122: 111
A123: 11 | B123: 15881 | C123: 11 | D123: 15888 | E123: 12 | F123: 15900 | K123: 0 | L123: 111
A124: 22 | B124: 16002 | C124: 13 | D124: 16033 | E124: 14 | F124: 16043 | K124: 0 | L124: 211
A125: 22 | B125: 16163 | C125: 13 | D125: 16170 | E125: 14 | F125: 16176 | K125: 0 | L125: 211
A126: 22 | B126: 16335 | C126: 13 | D126: 16347 | E126: 14 | F126: 16358 | K126: 0 | L126: 211
A127: 22 | B127: 16474 | C127: 13 | D127: 16482 | E127: 14 | F127: 16487 | K127: 0 | L127: 211
A128: 22 | B128: 16583 | C128: 24 | D128: 16594 | E128: 14 | F128: 16613 | K128: 0 | L128: 221
A129: 22 | B129: 16735 | C129: 13 | D129: 16749 | E129: 14 | F129: 16756 | K129: 0 | L129: 211
A130: 22 | B130: 16868 | C130: 13 | D130: 16877 | E130: 14 | F130: 16887 | K130: 0 | L130: 211
A131: 22 | B131: 16985 | C131: 13 | D131: 17002 | E131: 14 | F131: 17012 | K131: 0 | L131: 211
A132: 22 | B132: 17115 | C132: 24 | D132: 17122 | E132: 14 | F132: 17134 | K132: 0 | L132: 221
A133: 22 | B133: 17232 | C133: 24 | D133: 17243 | E133: 14 | F133: 17251 | K133: 0 | L133: 221
A134: 22 | B134: 17363 | C134: 13 | D134: 17373 | E134: 14 | F134: 17383 | K134: 0 | L134: 211
A135: 11 | B135: 17507 | C135: 11 | D135: 17514 | E135: 12 | F135: 17526 | K135: 0 | L135: 111
A136: 11 | B136: 17651 | C136: 11 | D136: 17662 | E136: 12 | F136: 17674 | K136: 0 | L136: 111
A137: 22 | B137: 17783 | C137: 13 | D137: 17806 | E137: 14 | F137: 17814 | K137: 0 | L137: 211
A138: 22 | B138: 17919 | C138: 13 | D138: 17944 | E138: 14 | F138: 17956 | K138: 0 | L138: 211
A139: 22 | B139: 18059 | C139: 13 | D139: 18070 | E139: 14 | F139: 18080 | K139: 0 | L139: 211
A140: 22 | B140: 18192 | C140: 13 | D140: 18200 | E140: 14 | F140: 18207 | K140: 0 | L140: 211
A141: 11 | B141: 18370 | C141: 11 | D141: 18380 | E141: 12 | F141: 18392 | K141: 0 | L141: 111
A142: 22 | B142: 18516 | C142: 13 | D142: 18524 | E142: 14 | F142: 18531 | K142: 0 | L142: 211
A143: 11 | B143: 18662 | C143: 11 | D143: 18670 | E143: 12 | F143: 18680 | K143: 0 | L143: 111
A144: 22 | B144: 18777 | C144: 13 | D144: 18799 | E144: 14 | F144: 18811 | K144: 0 | L144: 211
A145: 22 | B145: 18911 | C145: 13 | D145: 18940 | E145: 14 | F145: 18951 | K145: 0 | L145: 211
A146: 22 | B146: 19067 | C146: 13 | D146: 19078 | E146: 14 | F146: 19088 | K146: 0 | L146: 211
A147: 22 | B147: 19202 | C147: 13 | D147: 19215 | E147: 14 | F147: 19224 | K147: 0 | L147: 211
A148: 22 | B148: 19328 | C148: 13 | D148: 19347 | E148: 14 | F148: 19355 | K148: 0 | L148: 211
A149: 11 | B149: 19485 | C149: 11 | D149: 19495 | E149: 12 | F149: 19507 | K149: 0 | L149: 111
A150: 22 | B150: 19616 | C150: 13 | D150: 19628 | E150: 14 | F150: 19636 | K150: 0 | L150: 211
A151: 22 | B151: 19740 | C151: 24 | D151: 19749 | E151: 14 | F151: 19769 | K151: 0 | L151: 221
A152: 22 | B152: 19874 | C152: 24 | D152: 19885 | E152: 14 | F152: 19907 | K152: 0 | L152: 221
A153: 22 | B153: 20009 | C153: 13 | D153: 20030 | E153: 14 | F153: 20039 | K153: 0 | L153: 211
A154: 22 | B154: 20143 | C154: 13 | D154: 20181 | E154: 14 | F154: 20191 | K154: 0 | L154: 211
A155: 22 | B155: 20303 | C155: 13 | D155: 20321 | E155: 14 | F155: 20329 | K155: 0 | L155: 211
A156: 22 | B156: 20427 | C156: 13 | D156: 20444 | E156: 14 | F156: 20453 | K156: 0 | L156: 211
A157: 11 | B157: 20573 | C157: 11 | D157: 20582 | E157: 12 | F157: 20593 | K157: 0 | L157: 111
A158: 11 | B158: 20718 | C158: 11 | D158: 20723 | E158: 12 | F158: 20733 | K158: 0 | L158: 111
A159: 22 | B159: 20875 | C159: 13 | D159: 20886 | E159: 14 | F159: 20896 | K159: 0 | L159: 211
A160: 22 | B160: 21011 | C160: 13 | D160: 21032 | E160: 14 | F160: 21041 | K160: 0 | L160: 211
A161: 22 | B161: 21149 | C161: 13 | D161: 21160 | E161: 14 | F161: 21170 | K161: 0 | L161: 211
A162: 22 | B162: 21275 | C162: 24 | D162: 21283 | E162: 14 | F162: 21298 | K162: 0 | L162: 221
A163: 22 | B163: 21393 | C163: 24 | D163: 21403 | E163: 14 | F163: 21415 | K163: 0 | L163: 221
A164: 22 | B164: 21522 | C164: 13 | D164: 21540 | E164: 14 | F164: 21548 | K164: 0 | L164: 211
A165: 22 | B165: 21653 | C165: 24 | D165: 21660 | E165: 14 | F165: 21677 | K165: 0 | L165: 221
A166: 22 | B166: 21802 | C166: 13 | D166: 21812 | E166: 14 | F166: 21821 | K166: 0 | L166: 211
A167: 22 | B167: 21942 | C167: 13 | D167: 21953 | E167: 14 | F167: 21962 | K167: 0 | L167: 211
A168: 22 | B168: 22074 | C168: 13 | D168: 22095 | E168: 14 | F168: 22102 | K168: 0 | L168: 211
A169: 22 | B169: 22256 | C169: 13 | D169: 22269 | E169: 14 | F169: 22280 | K169: 0 | L169: 211
A170: 11 | B170: 22413 | C170: 11 | D170: 22420 | E170: 12 | F170: 22429 | K170: 0 | L170: 111
A171: 22 | B171: 22539 | C171: 13 | D171: 22551 | E171: 14 | F171: 22559 | K171: 0 | L171: 211
A172: 22 | B172: 22666 | C172: 24 | D172: 22681 | E172: 14 | F172: 22691 | K172: 0 | L172: 221
A173: 22 | B173: 22802 | C173: 24 | D173: 22817 | E173: 23 | F173: 22828 | K173: 0 | L173: 222
A174: 11 | B174: 22962 | C174: 11 | D174: 22971 | E174: 12 | F174: 22981 | K174: 0 | L174: 111
A175: 22 | B175: 23088 | C175: 13 | D175: 23106 | E175: 14 | F175: 23113 | K175: 0 | L175: 211
A176: 22 | B176: 23216 | C176: 13 | D176: 23237 | E176: 14 | F176: 23244 | K176: 0 | L176: 211
A177: 22 | B177: 23359 | C177: 13 | D177: 23370 | E177: 14 | F177: 23380 | K177: 0 | L177: 211
A178: 22 | B178: 23475 | C178: 13 | D178: 23496 | E178: 14 | F178: 23508 | K178: 0 | L178: 211
A179: 11 | B179: 23630 | C179: 11 | D179: 23637 | E179: 12 | F179: 23649 | K179: 0 | L179: 111
A180: 22 | B180: 23760 | C180: 24 | D180: 23772 | E180: 14 | F180: 23783 | K180: 0 | L180: 221
A181: 22 | B181: 23921 | C181: 13 | D181: 23932 | E181: 14 | F181: 23940 | L181: 211

Sheet !MA21B10.095
A1: Report for:!MA21B10.095
A2: Date: | B2: <date>
A3: Hen: | B3: <hen> | F3: Correct Sequence | G3: =Start!J2 -> 122 | P3: Total Sequences in Data | Q3: =4994-COUNTBLANK(L7:L5000) -> 159 | V3: Total Sequences in Block Data | W3: =COUNTA(L7:L33) -> 27 | AA3: Total Sequences in Block Data | AB3: =COUNTA(L34:L59) -> 26 | AF3: Total Sequences in Block Data | AG3: =COUNTA(L60:L86) -> 27 | AK3: Total Sequences in Block Data | AL3: =COUNTA(L87:L112) -> 26 | AP3: Total Sequences in Block Data | AQ3: =COUNTA(L113:L139) -> 27 | AU3: Total Sequences in Block Data | AV3: =COUNTA(L140:L165) -> 26
P4: Total Sequences in Summary | Q4: =SUM(O7:O14) -> 159 | V4: Total Sequences in Block Summary | W4: =SUM(U7:U14) -> 27 | AA4: Total Sequences in Block Summary | AB4: =SUM(Z7:Z14) -> 26 | AF4: Total Sequences in Block Summary | AG4: =SUM(AE7:AE14) -> 27 | AK4: Total Sequences in Block Summary | AL4: =SUM(AJ7:AJ14) -> 26 | AP4: Total Sequences in Block Summary | AQ4: =SUM(AO7:AO14) -> 27 | AU4: Total Sequences in Block Summary | AV4: =SUM(AT7:AT14) -> 26
T5: Block 1 | Y5: Block 2 | AD5: Block 3 | AI5: Block 4 | AN5: Block 5 | AS5: Block 6
A6: Sequence Component 1 | B6: Time 1 | C6: Sequence Component 2 | D6: Time 2 | E6: Sequence Component 3 | F6: Time 3 | G6: Sequence Component 4 | H6: Time 4 | I6: Sequence Component 5 | J6: Time 5 | K6: Correct? 0=No 1=Yes | L6: Sequence | N6: Frequency | P6: Relative Frequency | Q6: Variability | T6: Frequency | V6: Relative Frequency | W6: Variability | Y6: Frequency | AA6: Relative Frequency | AB6: Variability | AD6: Frequency | AF6: Relative Frequency | AG6: Variability | AI6: Frequency | AK6: Relative Frequency | AL6: Variability | AN6: Frequency | AP6: Relative Frequency | AQ6: Variability | AS6: Frequency | AU6: Relative Frequency | AV6: Variability
A7: 11 | B7: 52 | C7: 11 | D7: 63 | E7: 12 | F7: 74 | K7: 0 | L7: 111 | N7: 111 | O7: =COUNTIF($L$7:$L$500,N7) -> 31 | P7: =O7/$Q$4 -> 0.1949685535 | Q7: =IF(P7=0,0,(P7*((LOG(P7))/LOG(2)))) -> -0.4598697232 | T7: =N7 -> 111 | U7: =COUNTIF(L7:L33,T7) -> 10 | V7: =U7/(W4-U10) -> 0.3703703704 | W7: =IF(V7=0,0,(V7*((LOG(V7))/LOG(2)))) -> -0.5307257064 | Y7: =N7 -> 111 | Z7: =COUNTIF(L34:L59,Y7) -> 8 | AA7: =Z7/(AB4-Z10) -> 0.3076923077 | AB7: =IF(AA7=0,0,(AA7*((LOG(AA7))/LOG(2)))) -> -0.523212221 | AD7: =N7 -> 111 | AE7: =COUNTIF(L60:L86,AD7) -> 9 | AF7: =AE7/(AG4-AE10) -> 0.3333333333 | AG7: =IF(AF7=0,0,(AF7*((LOG(AF7))/LOG(2)))) -> -0.5283208336 | AI7: =N7 -> 111 | AJ7: =COUNTIF(L87:L112,AI7) -> 3 | AK7: =AJ7/(AL4-AJ10) -> 0.1153846154 | AL7: =IF(AK7=0,0,(AK7*((LOG(AK7))/LOG(2)))) -> -0.3594781405 | AN7: =N7 -> 111 | AO7: =COUNTIF(L113:L139,AN7) -> 1 | AP7: =AO7/(AQ4-AO10) -> 0.03703703704 | AQ7: =IF(AP7=0,0,(AP7*((LOG(AP7))/LOG(2)))) -> -0.1761069445 | AS7: =N7 -> 111 | AT7: =COUNTIF(L140:L165,AS7) -> 0 | AU7: =AT7/(AV4-AT10) -> 0 | AV7: =IF(AU7=0,0,(AU7*((LOG(AU7))/LOG(2)))) -> 0
A8: 11 | B8: 200 | C8: 11 | D8: 207 | E8: 12 | F8: 220 | K8: 0 | L8: 111 | N8: 112 | O8: =COUNTIF($L$7:$L$500,N8) -> 0 | P8: =O8/$Q$4 -> 0 | Q8: =IF(P8=0,0,(P8*((LOG(P8))/LOG(2)))) -> 0 | T8: =N8 -> 112 | U8: =COUNTIF(L7:L33,T8) -> 0 | V8: =U8/(W4-U10) -> 0 | W8: =IF(V8=0,0,(V8*((LOG(V8))/LOG(2)))) -> 0 | Y8: =N8 -> 112 | Z8: =COUNTIF(L34:L59,Y8) -> 0 | AA8: =Z8/(AB4-Z10) -> 0 | AB8: =IF(AA8=0,0,(AA8*((LOG(AA8))/LOG(2)))) -> 0 | AD8: =N8 -> 112 | AE8: =COUNTIF(L60:L86,AD8) -> 0 | AF8: =AE8/(AG4-AE10) -> 0 | AG8: =IF(AF8=0,0,(AF8*((LOG(AF8))/LOG(2)))) -> 0 | AI8: =N8 -> 112 | AJ8: =COUNTIF(L87:L112,AI8) -> 0 | AK8: =AJ8/(AL4-AJ10) -> 0 | AL8: =IF(AK8=0,0,(AK8*((LOG(AK8))/LOG(2)))) -> 0 | AN8: =N8 -> 112 | AO8: =COUNTIF(L113:L139,AN8) -> 0 | AP8: =AO8/(AQ4-AO10) -> 0 | AQ8: =IF(AP8=0,0,(AP8*((LOG(AP8))/LOG(2)))) -> 0 | AS8: =N8 -> 112 | AT8: =COUNTIF(L140:L165,AS8) -> 0 | AU8: =AT8/(AV4-AT10) -> 0 | AV8: =IF(AU8=0,0,(AU8*((LOG(AU8))/LOG(2)))) -> 0
A9: 22 | B9: 349 | C9: 13 | D9: 358 | E9: 14 | F9: 370 | K9: 0 | L9: 211 | N9: 121 | O9: =COUNTIF($L$7:$L$500,N9) -> 0 | P9: =O9/$Q$4 -> 0 | Q9: =IF(P9=0,0,(P9*((LOG(P9))/LOG(2)))) -> 0 | T9: =N9 -> 121 | U9: =COUNTIF(L7:L33,T9) -> 0 | V9: =U9/(W4-U10) -> 0 | W9: =IF(V9=0,0,(V9*((LOG(V9))/LOG(2)))) -> 0 | Y9: =N9 -> 121 | Z9: =COUNTIF(L34:L59,Y9) -> 0 | AA9: =Z9/(AB4-Z10) -> 0 | AB9: =IF(AA9=0,0,(AA9*((LOG(AA9))/LOG(2)))) -> 0 | AD9: =N9 -> 121 | AE9: =COUNTIF(L60:L86,AD9) -> 0 | AF9: =AE9/(AG4-AE10) -> 0 | AG9: =IF(AF9=0,0,(AF9*((LOG(AF9))/LOG(2)))) -> 0 | AI9: =N9 -> 121 | AJ9: =COUNTIF(L87:L112,AI9) -> 0 | AK9: =AJ9/(AL4-AJ10) -> 0 | AL9: =IF(AK9=0,0,(AK9*((LOG(AK9))/LOG(2)))) -> 0 | AN9: =N9 -> 121 | AO9: =COUNTIF(L113:L139,AN9) -> 0 | AP9: =AO9/(AQ4-AO10) -> 0 | AQ9: =IF(AP9=0,0,(AP9*((LOG(AP9))/LOG(2)))) -> 0 | AS9: =N9 -> 121 | AT9: =COUNTIF(L140:L165,AS9) -> 0 | AU9: =AT9/(AV4-AT10) -> 0 | AV9: =IF(AU9=0,0,(AU9*((LOG(AU9))/LOG(2)))) -> 0
A10: 22 | B10: 481 | C10: 13 | D10: 494 | E10: 14 | F10: 503 | K10: 0 | L10: 211 | N10: 122 | O10: =COUNTIF($L$7:$L$500,N10) -> 0 | P10: =O10/$Q$4 -> 0 | Q10: =IF(P10=0,0,(P10*((LOG(P10))/LOG(2)))) -> 0 | T10: =N10 -> 122 | U10: =COUNTIF(L7:L33,T10) -> 0 | Y10: =N10 -> 122 | Z10: =COUNTIF(L34:L59,Y10) -> 0 | AD10: =N10 -> 122 | AE10: =COUNTIF(L60:L86,AD10) -> 0 | AI10: =N10 -> 122 | AJ10: =COUNTIF(L87:L112,AI10) -> 0 | AN10: =N10 -> 122 | AO10: =COUNTIF(L113:L139,AN10) -> 0 | AS10: =N10 -> 122 | AT10: =COUNTIF(L140:L165,AS10) -> 0
A11: 22 | B11: 611 | C11: 24 | D11: 630 | E11: 14 | F11: 643 | K11: 0 | L11: 221 | N11: 211 | O11: =COUNTIF($L$7:$L$500,N11) -> 58 | P11: =O11/$Q$4 -> 0.3647798742 | Q11: =IF(P11=0,0,(P11*((LOG(P11))/LOG(2)))) -> -0.530718954 | T11: =N11 -> 211 | U11: =COUNTIF(L7:L33,T11) -> 12 | V11: =U11/(W4-U10) -> 0.4444444444 | W11: =IF(V11=0,0,(V11*((LOG(V11))/LOG(2)))) -> -0.5199666673 | Y11: =N11 -> 211 | Z11: =COUNTIF(L34:L59,Y11) -> 15 | AA11: =Z11/(AB4-Z10) -> 0.5769230769 | AB11: =IF(AA11=0,0,(AA11*((LOG(AA11))/LOG(2)))) -> -0.4578168015 | AD11: =N11 -> 211 | AE11: =COUNTIF(L60:L86,AD11) -> 8 | AF11: =AE11/(AG4-AE10) -> 0.2962962963 | AG11: =IF(AF11=0,0,(AF11*((LOG(AF11))/LOG(2)))) -> -0.5199666673 | AI11: =N11 -> 211 | AJ11: =COUNTIF(L87:L112,AI11) -> 14 | AK11: =AJ11/(AL4-AJ10) -> 0.5384615385 | AL11: =IF(AK11=0,0,(AK11*((LOG(AK11))/LOG(2)))) -> -0.4808918133 | AN11: =N11 -> 211 | AO11: =COUNTIF(L113:L139,AN11) -> 5 | AP11: =AO11/(AQ4-AO10) -> 0.1851851852 | AQ11: =IF(AP11=0,0,(AP11*((LOG(AP11))/LOG(2)))) -> -0.4505480384 | AS11: =N11 -> 211 | AT11: =COUNTIF(L140:L165,AS11) -> 4 | AU11: =AT11/(AV4-AT10) -> 0.1538461538 | AV11: =IF(AU11=0,0,(AU11*((LOG(AU11))/LOG(2)))) -> -0.4154522643
A12: 11 | B12: 774 | C12: 11 | D12: 782 | E12: 12 | F12: 796 | K12: 0 | L12: 111 | N12: 212 | O12: =COUNTIF($L$7:$L$500,N12) -> 0 | P12: =O12/$Q$4 -> 0 | Q12: =IF(P12=0,0,(P12*((LOG(P12))/LOG(2)))) -> 0 | T12: =N12 -> 212 | U12: =COUNTIF(L7:L33,T12) -> 0 | V12: =U12/(W4-U10) -> 0 | W12: =IF(V12=0,0,(V12*((LOG(V12))/LOG(2)))) -> 0 | Y12: =N12 -> 212 | Z12: =COUNTIF(L34:L59,Y12) -> 0 | AA12: =Z12/(AB4-Z10) -> 0 | AB12: =IF(AA12=0,0,(AA12*((LOG(AA12))/LOG(2)))) -> 0 | AD12: =N12 -> 212 | AE12: =COUNTIF(L60:L86,AD12) -> 0 | AF12: =AE12/(AG4-AE10) -> 0 | AG12: =IF(AF12=0,0,(AF12*((LOG(AF12))/LOG(2)))) -> 0 | AI12: =N12 -> 212 | AJ12: =COUNTIF(L87:L112,AI12) -> 0 | AK12: =AJ12/(AL4-AJ10) -> 0 | AL12: =IF(AK12=0,0,(AK12*((LOG(AK12))/LOG(2)))) -> 0 | AN12: =N12 -> 212 | AO12: =COUNTIF(L113:L139,AN12) -> 0 | AP12: =AO12/(AQ4-AO10) -> 0 | AQ12: =IF(AP12=0,0,(AP12*((LOG(AP12))/LOG(2)))) -> 0 | AS12: =N12 -> 212 | AT12: =COUNTIF(L140:L165,AS12) -> 0 | AU12: =AT12/(AV4-AT10) -> 0 | AV12: =IF(AU12=0,0,(AU12*((LOG(AU12))/LOG(2)))) -> 0
A13: 22 | B13: 905 | C13: 24 | D13: 921 | E13: 14 | F13: 934 | K13: 0 | L13: 221 | N13: 221 | O13: =COUNTIF($L$7:$L$500,N13) -> 27 | P13: =O13/$Q$4 -> 0.1698113208 | Q13: =IF(P13=0,0,(P13*((LOG(P13))/LOG(2)))) -> -0.4343765864 | T13: =N13 -> 221 | U13: =COUNTIF(L7:L33,T13) -> 5 | V13: =U13/(W4-U10) -> 0.1851851852 | W13: =IF(V13=0,0,(V13*((LOG(V13))/LOG(2)))) -> -0.4505480384 | Y13: =N13 -> 221 | Z13: =COUNTIF(L34:L59,Y13) -> 1 | AA13: =Z13/(AB4-Z10) -> 0.03846153846 | AB13: =IF(AA13=0,0,(AA13*((LOG(AA13))/LOG(2)))) -> -0.180786143 | AD13: =N13 -> 221 | AE13: =COUNTIF(L60:L86,AD13) -> 8 | AF13: =AE13/(AG4-AE10) -> 0.2962962963 | AG13: =IF(AF13=0,0,(AF13*((LOG(AF13))/LOG(2)))) -> -0.5199666673 | AI13: =N13 -> 221 | AJ13: =COUNTIF(L87:L112,AI13) -> 5 | AK13: =AJ13/(AL4-AJ10) -> 0.1923076923 | AL13: =IF(AK13=0,0,(AK13*((LOG(AK13))/LOG(2)))) -> -0.4574060814 | AN13: =N13 -> 221 | AO13: =COUNTIF(L113:L139,AN13) -> 4 | AP13: =AO13/(AQ4-AO10) -> 0.1481481481 | AQ13: =IF(AP13=0,0,(AP13*((LOG(AP13))/LOG(2)))) -> -0.4081314818 | AS13: =N13 -> 221 | AT13: =COUNTIF(L140:L165,AS13) -> 4 | AU13: =AT13/(AV4-AT10) -> 0.1538461538 | AV13: =IF(AU13=0,0,(AU13*((LOG(AU13))/LOG(2)))) -> -0.4154522643
A14: 22 | B14: 1056 | C14: 13 | D14: 1082 | E14: 14 | F14: 1094 | K14: 0 | L14: 211 | N14: 222 | O14: =COUNTIF($L$7:$L$500,N14) -> 43 | P14: =O14/$Q$4 -> 0.2704402516 | Q14: =IF(P14=0,0,(P14*((LOG(P14))/LOG(2)))) -> -0.5102175008 | T14: =N14 -> 222 | U14: =COUNTIF(L7:L33,T14) -> 0 | V14: =U14/(W4-U10) -> 0 | W14: =IF(V14=0,0,(V14*((LOG(V14))/LOG(2)))) -> 0 | Y14: =N14 -> 222 | Z14: =COUNTIF(L34:L59,Y14) -> 2 | AA14: =Z14/(AB4-Z10) -> 0.07692307692 | AB14: =IF(AA14=0,0,(AA14*((LOG(AA14))/LOG(2)))) -> -0.2846492091 | AD14: =N14 -> 222 | AE14: =COUNTIF(L60:L86,AD14) -> 2 | AF14: =AE14/(AG4-AE10) -> 0.07407407407 | AG14: =IF(AF14=0,0,(AF14*((LOG(AF14))/LOG(2)))) -> -0.278139815 | AI14: =N14 -> 222 | AJ14: =COUNTIF(L87:L112,AI14) -> 4 | AK14: =AJ14/(AL4-AJ10) -> 0.1538461538 | AL14: =IF(AK14=0,0,(AK14*((LOG(AK14))/LOG(2)))) -> -0.4154522643 | AN14: =N14 -> 222 | AO14: =COUNTIF(L113:L139,AN14) -> 17 | AP14: =AO14/(AQ4-AO10) -> 0.6296296296 | AQ14: =IF(AP14=0,0,(AP14*((LOG(AP14))/LOG(2)))) -> -0.4202303421 | AS14: =N14 -> 222 | AT14: =COUNTIF(L140:L165,AS14) -> 18 | AU14: =AT14/(AV4-AT10) -> 0.6923076923 | AV14: =IF(AU14=0,0,(AU14*((LOG(AU14))/LOG(2)))) -> -0.3672794193
A15: 22 | B15: 1221 | C15: 24 | D15: 1242 | E15: 14 | F15: 1266 | K15: 0 | L15: 221 | P15: =SUM(P7:P14) -> 1 | Q15: =-SUM(Q7:Q14) -> 1.935182764 | V15: =SUM(V7:V14) -> 1 | W15: =-SUM(W7:W14) -> 1.501240412 | AA15: =SUM(AA7:AA14) -> 1 | AB15: =-SUM(AB7:AB14) -> 1.446464375 | AF15: =SUM(AF7:AF14) -> 1 | AG15: =-SUM(AG7:AG14) -> 1.846393983 | AK15: =SUM(AK7:AK14) -> 1 | AL15: =-SUM(AL7:AL14) -> 1.713228299 | AP15: =SUM(AP7:AP14) -> 1 | AQ15: =-SUM(AQ7:AQ14) -> 1.455016807 | AU15: =SUM(AU7:AU14) -> 1 | AV15: =-SUM(AV7:AV14) -> 1.198183948
A16: 22 | B16: 1397 | C16: 13 | D16: 1409 | E16: 14 | F16: 1419 | K16: 0 | L16: 211 | P16: U= | Q16: =Q15/(LOG(Q4)/LOG(2)) -> 0.2646265196 | V16: U1= | W16: =W15/(LOG(W4)/LOG(2)) -> 0.3157257478 | AA16: U2= | AB16: =AB15/(LOG(AB4)/LOG(2)) -> 0.3077295873 | AF16: U3= | AG16: =AG15/(LOG(AG4)/LOG(2)) -> 0.3883149669 | AK16: U4= | AL16: =AL15/(LOG(AL4)/LOG(2)) -> 0.3644825595 | AP16: U5= | AQ16: =AQ15/(LOG(AQ4)/LOG(2)) -> 0.3060044651 | AU16: U6= | AV16: =AV15/(LOG(AV4)/LOG(2)) -> 0.2549089063
A17: 22 | B17: 1529 | C17: 24 | D17: 1544 | E17: 14 | F17: 1557 | K17: 0 | L17: 221
A18: 22 | B18: 1680 | C18: 24 | D18: 1692 | E18: 14 | F18: 1705 | K18: 0 | L18: 221
A19: 22 | B19: 1832 | C19: 13 | D19: 1849 | E19: 14 | F19: 1858 | K19: 0 | L19: 211 | N19: Total Target Seq
A20: 11 | B20: 1981 | C20: 11 | D20: 1989 | E20: 12 | F20: 2002 | K20: 0 | L20: 111 | N20: =COUNTIF(L7:L165,G3) -> 0 | P20: 27 | Q20: 26 | R20: 27 | S20: 26 | T20: 27 | U20: 26
A21: 22 | B21: 2139 | C21: 13 | D21: 2163 | E21: 14 | F21: 2172 | K21: 0 | L21: 211 | P21: % of reinforcement given in 6 equal intervals based on number of trials
A22: 22 | B22: 2296 | C22: 13 | D22: 2308 | E22: 14 | F22: 2317 | K22: 0 | L22: 211 | P22: %_1 | Q22: %_2 | R22: %_3 | S22: %_4 | T22: %_5 | U22: %_6
A23: 22 | B23: 2424 | C23: 13 | D23: 2438 | E23: 14 | F23: 2446 | K23: 0 | L23: 211 | O23: target sequence | P23: =$G$3 -> 122 | Q23: =$G$3 -> 122 | R23: =$G$3 -> 122 | S23: =$G$3 -> 122 | T23: =$G$3 -> 122 | U23: =$G$3 -> 122
A24: 22 | B24: 2560 | C24: 13 | D24: 2572 | E24: 14 | F24: 2580 | K24: 0 | L24: 211 | O24: total reinforcement | P24: =U10 -> 0 | Q24: =Z10 -> 0 | R24: =AE10 -> 0 | S24: =AJ10 -> 0 | T24: =AO10 -> 0 | U24: =AT10 -> 0
A25: 22 | B25: 2695 | C25: 13 | D25: 2708 | E25: 14 | F25: 2718 | K25: 0 | L25: 211 | O25: % target
A26: 11 | B26: 2842 | C26: 11 | D26: 2850 | E26: 12 | F26: 2860 | K26: 0 | L26: 111 | O26: CCRF
A27: 11 | B27: 2980 | C27: 11 | D27: 2985 | E27: 12 | F27: 2994 | K27: 0 | L27: 111 | O27: % CCRf
A28: 11 | B28: 3099 | C28: 11 | D28: 3105 | E28: 12 | F28: 3113 | K28: 0 | L28: 111 | O28: average response rate | P28: =F33/P20 -> 140.1481481 | Q28: =(F59-F33)/Q20 -> 134.3461538 | R28: =(F86-F59)/R20 -> 140.8888889 | S28: =(F112-F86)/S20 -> 160.2692308 | T28: =(F139-F112)/T20 -> 169.6296296 | U28: =(F165-F139)/U20 -> 158.0384615
A29: 11 | B29: 3223 | C29: 11 | D29: 3231 | E29: 12 | F29: 3244 | K29: 0 | L29: 111
A30: 11 | B30: 3367 | C30: 11 | D30: 3375 | E30: 12 | F30: 3386 | K30: 0 | L30: 111
A31: 22 | B31: 3495 | C31: 13 | D31: 3503 | E31: 14 | F31: 3510 | K31: 0 | L31: 211
A32: 11 | B32: 3626 | C32: 11 | D32: 3635 | E32: 12 | F32: 3647 | K32: 0 | L32: 111
A33: 22 | B33: 3760 | C33: 13 | D33: 3773 | E33: 14 | F33: 3784 | K33: 0 | L33: 211
A34: 22 | B34: 3882 | C34: 13 | D34: 3902 | E34: 14 | F34: 3915 | K34: 0 | L34: 211
A35: 22 | B35: 4019 | C35: 13 | D35: 4031 | E35: 14 | F35: 4039 | K35: 0 | L35: 211
A36: 22 | B36: 4142 | C36: 13 | D36: 4163 | E36: 14 | F36: 4171 | K36: 0 | L36: 211
A37: 22 | B37: 4270 | C37: 13 | D37: 4285 | E37: 14 | F37: 4293 | K37: 0 | L37: 211
A38: 11 | B38: 4417 | C38: 11 | D38: 4428 | E38: 12 | F38: 4439 | K38: 0 | L38: 111
A39: 22 | B39: 4555 | C39: 13 | D39: 4563 | E39: 14 | F39: 4570 | K39: 0 | L39: 211
A40: 22 | B40: 4675 | C40: 13 | D40: 4686 | E40: 14 | F40: 4694 | K40: 0 | L40: 211
A41: 11 | B41: 4819 | C41: 11 | D41: 4826 | E41: 12 | F41: 4838 | K41: 0 | L41: 111
A42: 22 | B42: 4934 | C42: 13 | D42: 4942 | E42: 14 | F42: 4949 | K42: 0 | L42: 211
A43: 22 | B43: 5053 | C43: 13 | D43: 5061 | E43: 14 | F43: 5068 | K43: 0 | L43: 211
A44: 11 | B44: 5185 | C44: 11 | D44: 5192 | E44: 12 | F44: 5203 | K44: 0 | L44: 111
A45: 22 | B45: 5309 | C45: 13 | D45: 5320 | E45: 14 | F45: 5327 | K45: 0 | L45: 211
A46: 11 | B46: 5447 | C46: 11 | D46: 5455 | E46: 12 | F46: 5466 | K46: 0 | L46: 111
A47: 11 | B47: 5583 | C47: 11 | D47: 5591 | E47: 12 | F47: 5603 | K47: 0 | L47: 111
A48: 11 | B48: 5718 | C48: 11 | D48: 5724 | E48: 12 | F48: 5735 | K48: 0 | L48: 111
A49: 22 | B49: 5839 | C49: 13 | D49: 5857 | E49: 14 | F49: 5864 | K49: 0 | L49: 211
A50: 22 | B50: 5965 | C50: 24 | D50: 5973 | E50: 23 | F50: 5982 | K50: 0 | L50: 222
A51: 22 | B51: 6098 | C51: 13 | D51: 6126 | E51: 14 | F51: 6135 | K51: 0 | L51: 211
A52: 22 | B52: 6258 | C52: 13 | D52: 6271 | E52: 14 | F52: 6281 | K52: 0 | L52: 211
A53: 11 | B53: 6398 | C53: 11 | D53: 6406 | E53: 12 | F53: 6416 | K53: 0 | L53: 111
A54: 11 | B54: 6566 | C54: 11 | D54: 6574 | E54: 12 | F54: 6584 | K54: 0 | L54: 111
A55: 22 | B55: 6687 | C55: 24 | D55: 6696 | E55: 14 | F55: 6707 | K55: 0 | L55: 221
A56: 22 | B56: 6825 | C56: 24 | D56: 6844 | E56: 23 | F56: 6872 | K56: 0 | L56: 222
A57: 22 | B57: 6978 | C57: 13 | D57: 6999 | E57: 14 | F57: 7006 | K57: 0 | L57: 211
A58: 22 | B58: 7116 | C58: 13 | D58: 7136 | E58: 14 | F58: 7147 | K58: 0 | L58: 211
A59: 22 | B59: 7258 | C59: 13 | D59: 7269 | E59: 14 | F59: 7277 | K59: 0 | L59: 211
A60: 22 | B60: 7390 | C60: 13 | D60: 7402 | E60: 14 | F60: 7409 | K60: 0 | L60: 211
A61: 11 | B61: 7520 | C61: 11 | D61: 7528 | E61: 12 | F61: 7540 | K61: 0 | L61: 111
A62: 11 | B62: 7666 | C62: 11 | D62: 7673 | E62: 12 | F62: 7685 | K62: 0 | L62: 111
A63: 11 | B63: 7801 | C63: 11 | D63: 7808 | E63: 12 | F63: 7818 | K63: 0 | L63: 111
A64: 22 | B64: 7962 | C64: 24 | D64: 7977 | E64: 14 | F64: 7989 | K64: 0 | L64: 221
A65: 22 | B65: 8087 | C65: 24 | D65: 8094 | E65: 23 | F65: 8105 | K65: 0 | L65: 222
A66: 22 | B66: 8207 | C66: 24 | D66: 8214 | E66: 14 | F66: 8222 | K66: 0 | L66: 221
A67: 22 | B67: 8328 | C67: 24 | D67: 8341 | E67: 14 | F67: 8353 | K67: 0 | L67: 221
A68: 22 | B68: 8465 | C68: 13 | D68: 8477 | E68: 14 | F68: 8488 | K68: 0 | L68: 211
A69: 22 | B69: 8618 | C69: 24 | D69: 8629 | E69: 14 | F69: 8651 | K69: 0 | L69: 221
A70: 22 | B70: 8746 | C70: 24 | D70: 8754 | E70: 14 | F70: 8763 | K70: 0 | L70: 221
A71: 22 | B71: 8868 | C71: 24 | D71: 8893 | E71: 14 | F71: 8906 | K71: 0 | L71: 221
A72: 22 | B72: 9010 | C72: 24 | D72: 9029 | E72: 14 | F72: 9040 | K72: 0 | L72: 221
A73: 11 | B73: 9168 | C73: 11 | D73: 9176 | E73: 12 | F73: 9188 | K73: 0 | L73: 111
A74: 22 | B74: 9310 | C74: 24 | D74: 9319 | E74: 14 | F74: 9330 | K74: 0 | L74: 221
A75: 11 | B75: 9470 | C75: 11 | D75: 9481 | E75: 12 | F75: 9496 | K75: 0 | L75: 111
A76: 11 | B76: 9658 | C76: 11 | D76: 9666 | E76: 12 | F76: 9677 | K76: 0 | L76: 111
A77: 22 | B77: 9817 | C77: 13 | D77: 9838 | E77: 14 | F77: 9847 | K77: 0 | L77: 211
A78: 22 | B78: 9957 | C78: 13 | D78: 9976 | E78: 14 | F78: 9983 | K78: 0 | L78: 211
A79: 11 | B79: 10108 | C79: 11 | D79: 10115 | E79: 12 | F79: 10126 | K79: 0 | L79: 111
A80: 11 | B80: 10260 | C80: 11 | D80: 10267 | E80: 12 | F80: 10278 | K80: 0 | L80: 111
A81: 22 | B81: 10388 | C81: 13 | D81: 10410 | E81: 14 | F81: 10417 | K81: 0 | L81: 211
A82: 11 | B82: 10555 | C82: 11 | D82: 10563 | E82: 12 | F82: 10574 | K82: 0 | L82: 111
A83: 22 | B83: 10682 | C83: 13 | D83: 10705 | E83: 14 | F83: 10712 | K83: 0 | L83: 211
A84: 22 | B84: 10812 | C84: 24 | D84: 10820 | E84: 23 | F84: 10828 | K84: 0 | L84: 222
A85: 22 | B85: 10929 | C85: 13 | D85: 10948 | E85: 14 | F85: 10957 | K85: 0 | L85: 211
A86: 22 | B86: 11061 | C86: 13 | D86: 11073 | E86: 14 | F86: 11081 | K86: 0 | L86: 211
A87: 22 | B87: 11195 | C87: 13 | D87: 11219 | E87: 14 | F87: 11229 | K87: 0 | L87: 211
A88: 22 | B88: 11395 | C88: 13 | D88: 11408 | E88: 14 | F88: 11417 | K88: 0 | L88: 211
A89: 22 | B89: 11525 | C89: 24 | D89: 11532 | E89: 14 | F89: 11551 | K89: 0 | L89: 221
A90: 22 | B90: 11658 | C90: 24 | D90: 11665 | E90: 14 | F90: 11683 | K90: 0 | L90: 221
A91: 22 | B91: 11808 | C91: 13 | D91: 11820 | E91: 14 | F91: 11829 | K91: 0 | L91: 211
A92: 22 | B92: 11938 | C92: 13 | D92: 11956 | E92: 14 | F92: 11968 | K92: 0 | L92: 211
A93: 22 | B93: 12069 | C93: 24 | D93: 12077 | E93: 23 | F93: 12085 | K93: 0 | L93: 222
A94: 22 | B94: 12211 | C94: 24 | D94: 12233 | E94: 23 | F94: 12306 | K94: 0 | L94: 222
A95: 22 | B95: 12423 | C95: 13 | D95: 12432 | E95: 14 | F95: 12440 | K95: 0 | L95: 211
A96: 22 | B96: 12923 | C96: 13 | D96: 12937 | E96: 14 | F96: 12948 | K96: 0 | L96: 211
A97: 11 | B97: 13107 | C97: 11 | D97: 13117 | E97: 12 | F97: 13128 | K97: 0 | L97: 111
A98: 22 | B98: 13245 | C98: 13 | D98: 13271 | E98: 14 | F98: 13278 | K98: 0 | L98: 211
A99: 22 | B99: 13379 | C99: 13 | D99: 13404 | E99: 14 | F99: 13412 | K99: 0 | L99: 211
A100: 22 | B100: 13517 | C100: 24 | D100: 13524 | E100: 14 | F100: 13537 | K100: 0 | L100: 221
A101: 11 | B101: 13665 | C101: 11 | D101: 13673 | E101: 12 | F101: 13684 | K101: 0 | L101: 111
A102: 22 | B102: 13791 | C102: 24 | D102: 13798 | E102: 23 | F102: 13814 | K102: 0 | L102: 222
A103: 22 | B103: 13913 | C103: 13 | D103: 13931 | E103: 14 | F103: 13938 | K103: 0 | L103: 211
A104: 22 | B104: 14054 | C104: 24 | D104: 14062 | E104: 14 | F104: 14074 | K104: 0 | L104: 221
A105: 22 | B105: 14197 | C105: 13 | D105: 14209 | E105: 14 | F105: 14218 | K105: 0 | L105: 211
A106: 22 | B106: 14356 | C106: 13 | D106: 14395 | E106: 14 | F106: 14405 | K106: 0 | L106: 211
A107: 22 | B107: 14514 | C107: 13 | D107: 14531 | E107: 14 | F107: 14542 | K107: 0 | L107: 211
A108: 22 | B108: 14646 | C108: 24 | D108: 14657 | E108: 23 | F108: 14681 | K108: 0 | L108: 222
A109: 11 | B109: 14815 | C109: 11 | D109: 14824 | E109: 12 | F109: 14831 | K109: 0 | L109: 111
A110: 22 | B110: 14935 | C110: 13 | D110: 14959 | E110: 14 | F110: 14966 | K110: 0 | L110: 211
A111: 22 | B111: 15085 | C111: 24 | D111: 15103 | E111: 14 | F111: 15116 | K111: 0 | L111: 221
A112: 22 | B112: 15215 | C112: 13 | D112: 15240 | E112: 14 | F112: 15248 | K112: 0 | L112: 211
A113: 22 | B113: 15369 | C113: 13 | D113: 15388 | E113: 14 | F113: 15396 | K113: 0 | L113: 211
A114: 22 | B114: 15503 | C114: 24 | D114: 15530 | E114: 23 | F114: 15570 | K114: 0 | L114: 222
A115: 22 | B115: 15687 | C115: 13 | D115: 15700 | E115: 14 | F115: 15707 | K115: 0 | L115: 211
A116: 22 | B116: 15815 | C116: 13 | D116: 15834 | E116: 14 | F116: 15843 | K116: 0 | L116: 211
A117: 22 | B117: 15948 | C117: 24 | D117: 15963 | E117: 23 | F117: 15970 | K117: 0 | L117: 222
A118: 22 | B118: 16212 | C118: 13 | D118: 16248 | E118: 14 | F118: 16259 | K118: 0 | L118: 211
A119: 22 | B119: 16370 | C119: 24 | D119: 16378 | E119: 14 | F119: 16390 | K119: 0 | L119: 221
A120: 22 | B120: 16503 | C120: 24 | D120: 16511 | E120: 23 | F120: 16538 | K120: 0 | L120: 222
A121: 22 | B121: 16686 | C121: 24 | D121: 16726 | E121: 14 | F121: 16753 | K121: 0 | L121: 221
A122: 22 | B122: 16883 | C122: 24 | D122: 16888 | E122: 23 | F122: 16902 | K122: 0 | L122: 222
A123: 22 | B123: 17013 | C123: 24 | D123: 17021 | E123: 23 | F123: 17110 | K123: 0 | L123: 222
A124: 22 | B124: 17251 | C124: 24 | D124: 17259 | E124: 23 | F124: 17267 | K124: 0 | L124: 222
A125: 22 | B125: 17426 | C125: 13 | D125: 17442 | E125: 14 | F125: 17451 | K125: 0 | L125: 211
A126: 11 | B126: 17605 | C126: 11 | D126: 17614 | E126: 12 | F126: 17625 | K126: 0 | L126: 111
A127: 22 | B127: 17767 | C127: 24 | D127: 17773 | E127: 14 | F127: 17786 | K127: 0 | L127: 221
A128: 22 | B128: 17976 | C128: 24 | D128: 18030 | E128: 23 | F128: 18048 | K128: 0 | L128: 222
A129: 22 | B129: 18176 | C129: 24 | D129: 18185 | E129: 23 | F129: 18254 | K129: 0 | L129: 222
A130: 22 | B130: 18380 | C130: 24 | D130: 18395 | E130: 23 | F130: 18404 | K130: 0 | L130: 222
A131: 22 | B131: 18545 | C131: 24 | D131: 18552 | E131: 14 | F131: 18596 | K131: 0 | L131: 221
A132: 22 | B132: 18715 | C132: 24 | D132: 18724 | E132: 23 | F132: 18732 | K132: 0 | L132: 222
A133: 22 | B133: 18842 | C133: 24 | D133: 18850 | E133: 23 | F133: 18859 | K133: 0 | L133: 222
A134: 22 | B134: 19002 | C134: 24 | D134: 19014 | E134: 23 | F134: 19059 | K134: 0 | L134: 222
A135: 22 | B135: 19168 | C135: 24 | D135: 19183 | E135: 23 | F135: 19198 | K135: 0 | L135: 222
A136: 22 | B136: 19333 | C136: 24 | D136: 19340 | E136: 23 | F136: 19368 | K136: 0 | L136: 222
A137: 22 | B137: 19507 | C137: 24 | D137: 19515 | E137: 23 | F137: 19526 | K137: 0 | L137: 222
A138: 22 | B138: 19643 | C138: 24 | D138: 19651 | E138: 23 | F138: 19677 | K138: 0 | L138: 222
A139: 22 | B139: 19812 | C139: 24 | D139: 19819 | E139: 23 | F139: 19828 | K139: 0 | L139: 222
A140: 22 | B140: 19961 | C140: 24 | D140: 19968 | E140: 23 | F140: 19979 | K140: 0 | L140: 222
A141: 22 | B141: 20102 | C141: 24 | D141: 20132 | E141: 14 | F141: 20148 | K141: 0 | L141: 221
A142: 22 | B142: 20263 | C142: 13 | D142: 20283 | E142: 14 | F142: 20294 | K142: 0 | L142: 211
A143: 22 | B143: 20427 | C143: 24 | D143: 20475 | E143: 23 | F143: 20484 | K143: 0 | L143: 222
A144: 22 | B144: 20635 | C144: 24 | D144: 20646 | E144: 23 | F144: 20654 | K144: 0 | L144: 222
A145: 22 | B145: 20804 | C145: 24 | D145: 20814 | E145: 23 | F145: 20822 | K145: 0 | L145: 222
A146: 22 | B146: 20932 | C146: 24 | D146: 20945 | E146: 23 | F146: 20963 | K146: 0 | L146: 222
A147: 22 | B147: 21068 | C147: 24 | D147: 21099 | E147: 23 | F147: 21127 | K147: 0 | L147: 222
A148: 22 | B148: 21229 | C148: 24 | D148: 21243 | E148: 23 | F148: 21267 | K148: 0 | L148: 222
A149: 22 | B149: 21397 | C149: 24 | D149: 21430 | E149: 23 | F149: 21450 | K149: 0 | L149: 222
A150: 22 | B150: 21554 | C150: 24 | D150: 21562 | E150: 23 | F150: 21570 | K150: 0 | L150: 222
A151: 22 | B151: 21698 | C151: 24 | D151: 21706 | E151: 23 | F151: 21714 | K151: 0 | L151: 222
A152: 22 | B152: 21839 | C152: 24 | D152: 21848 | E152: 14 | F152: 21861 | K152: 0 | L152: 221
A153: 22 | B153: 21966 | C153: 24 | D153: 21975 | E153: 23 | F153: 21989 | K153: 0 | L153: 222
A154: 22 | B154: 22129 | C154: 24 | D154: 22136 | E154: 23 | F154: 22145 | K154: 0 | L154: 222
A155: 22 | B155: 22268 | C155: 24 | D155: 22339 | E155: 23 | F155: 22350 | K155: 0 | L155: 222
A156: 22 | B156: 22491 | C156: 24 | D156: 22499 | E156: 23 | F156: 22517 | K156: 0 | L156: 222
A157: 22 | B157: 22627 | C157: 24 | D157: 22638 | E157: 23 | F157: 22649 | K157: 0 | L157: 222
A158: 22 | B158: 22772 | C158: 24 | D158: 22780 | E158: 23 | F158: 22789 | K158: 0 | L158: 222
A159: 22 | B159: 22945 | C159: 24 | D159: 22975 | E159: 23 | F159: 22984 | K159: 0 | L159: 222
A160: 22 | B160: 23134 | C160: 24 | D160: 23149 | E160: 14 | F160: 23177 | K160: 0 | L160: 221
A161: 22 | B161: 23297 | C161: 24 | D161: 23308 | E161: 14 | F161: 23331 | K161: 0 | L161: 221
A162: 22 | B162: 23463 | C162: 13 | D162: 23479 | E162: 14 | F162: 23486 | K162: 0 | L162: 211
A163: 22 | B163: 23602 | C163: 24 | D163: 23609 | E163: 23 | F163: 23621 | K163: 0 | L163: 222
A164: 22 | B164: 23731 | C164: 13 | D164: 23767 | E164: 14 | F164: 23779 | K164: 0 | L164: 211
A165: 22 | B165: 23888 | C165: 13 | D165: 23927 | E165: 14 | F165: 23937 | L165: 211

Sheet !MA24B00.095
A1: Report for:!MA24B00.095
A2: Date: | B2: <date>
A3: Hen: | B3: <hen> | F3: Correct Sequence | G3: =Start!J2 -> 122 | P3: Total Sequences in Data | Q3: =4994-COUNTBLANK(L7:L5000) -> 167 | V3: Total Sequences in Block Data | W3: =COUNTA(L7:L34) -> 28 | AA3: Total Sequences in Block Data | AB3: =COUNTA(L35:L62) -> 28 | AF3: Total Sequences in Block Data | AG3: =COUNTA(L63:L89) -> 27 | AK3: Total Sequences in Block Data | AL3: =COUNTA(L90:L117) -> 28 | AP3: Total Sequences in Block Data | AQ3: =COUNTA(L118:L145) -> 28 | AU3: Total Sequences in Block Data | AV3: =COUNTA(L146:L173) -> 28
P4: Total Sequences in Summary | Q4: =SUM(O7:O14) -> 167 | V4: Total Sequences in Block Summary | W4: =SUM(U7:U14) -> 28 | AA4: Total Sequences in Block Summary | AB4: =SUM(Z7:Z14) -> 28 | AF4: Total Sequences in Block Summary | AG4: =SUM(AE7:AE14) -> 27 | AK4: Total Sequences in Block Summary | AL4: =SUM(AJ7:AJ14) -> 28 | AP4: Total Sequences in Block Summary | AQ4: =SUM(AO7:AO14) -> 28 | AU4: Total Sequences in Block Summary | AV4: =SUM(AT7:AT14) -> 28
T5: Block 1 | Y5: Block 2 | AD5: Block 3 | AI5: Block 4 | AN5: Block 5 | AS5: Block 6
A6: Sequence Component 1 | B6: Time 1 | C6: Sequence Component 2 | D6: Time 2 | E6: Sequence Component 3 | F6: Time 3 | G6: Sequence Component 4 | H6: Time 4 | I6: Sequence Component 5 | J6: Time 5 | K6: Correct? 0=No 1=Yes | L6: Sequence | N6: Frequency | P6: Relative Frequency | Q6: Variability | T6: Frequency | V6: Relative Frequency | W6: Variability | Y6: Frequency | AA6: Relative Frequency | AB6: Variability | AD6: Frequency | AF6: Relative Frequency | AG6: Variability | AI6: Frequency | AK6: Relative Frequency | AL6: Variability | AN6: Frequency | AP6: Relative Frequency | AQ6: Variability | AS6: Frequency | AU6: Relative Frequency | AV6: Variability
A7: 22 | B7: 65 | C7: 13 | D7: 80 | E7: 14 | F7: 91 | K7: 0 | L7: 211 | N7: 111 | O7: =COUNTIF($L$7:$L$500,N7) -> 51 | P7: =O7/$Q$4 -> 0.3053892216 | Q7: =IF(P7=0,0,(P7*((LOG(P7))/LOG(2)))) -> -0.5226061466 | T7: =N7 -> 111 | U7: =COUNTIF(L7:L34,T7) -> 8 | V7: =U7/(W4-U10) -> 0.2857142857 | W7: =IF(V7=0,0,(V7*((LOG(V7))/LOG(2)))) -> -0.5163871206 | Y7: =N7 -> 111 | Z7: =COUNTIF(L35:L62,Y7) -> 12 | AA7: =Z7/(AB4-Z10) -> 0.4285714286 | AB7: =IF(AA7=0,0,(AA7*((LOG(AA7))/LOG(2)))) -> -0.5238824663 | AD7: =N7 -> 111 | AE7: =COUNTIF(L63:L89,AD7) -> 6 | AF7: =AE7/(AG4-AE10) -> 0.2222222222 | AG7: =IF(AF7=0,0,(AF7*((LOG(AF7))/LOG(2)))) -> -0.4822055559 | AI7: =N7 -> 111 | AJ7: =COUNTIF(L90:L117,AI7) -> 6 | AK7: =AJ7/(AL4-AJ10) -> 0.2142857143 | AL7: =IF(AK7=0,0,(AK7*((LOG(AK7))/LOG(2)))) -> -0.4762269474 | AN7: =N7 -> 111 | AO7: =COUNTIF(L118:L145,AN7) -> 10 | AP7: =AO7/(AQ4-AO10) -> 0.3571428571 | AQ7: =IF(AP7=0,0,(AP7*((LOG(AP7))/LOG(2)))) -> -0.5305095811 | AS7: =N7 -> 111 | AT7: =COUNTIF(L146:L173,AS7) -> 9 | AU7: =AT7/(AV4-AT10) -> 0.3214285714 | AV7: =IF(AU7=0,0,(AU7*((LOG(AU7))/LOG(2)))) -> -0.5263167602
A8: 11 | B8: 221 | C8: 11 | D8: 229 | E8: 12 | F8: 241 | K8: 0 | L8: 111 | N8: 112 | O8: =COUNTIF($L$7:$L$500,N8) -> 0 | P8: =O8/$Q$4 -> 0 | Q8: =IF(P8=0,0,(P8*((LOG(P8))/LOG(2)))) -> 0 | T8: =N8 -> 112 | U8: =COUNTIF(L7:L34,T8) -> 0 | V8: =U8/(W4-U10) -> 0 | W8: =IF(V8=0,0,(V8*((LOG(V8))/LOG(2)))) -> 0 | Y8: =N8 -> 112 | Z8: =COUNTIF(L35:L62,Y8) -> 0 | AA8: =Z8/(AB4-Z10) -> 0 | AB8: =IF(AA8=0,0,(AA8*((LOG(AA8))/LOG(2)))) -> 0 | AD8: =N8 -> 112 | AE8: =COUNTIF(L63:L89,AD8) -> 0 | AF8: =AE8/(AG4-AE10) -> 0 | AG8: =IF(AF8=0,0,(AF8*((LOG(AF8))/LOG(2)))) -> 0 | AI8: =N8 -> 112 | AJ8: =COUNTIF(L90:L117,AI8) -> 0 | AK8: =AJ8/(AL4-AJ10) -> 0 | AL8: =IF(AK8=0,0,(AK8*((LOG(AK8))/LOG(2)))) -> 0 | AN8: =N8 -> 112 | AO8: =COUNTIF(L118:L145,AN8) -> 0 | AP8: =AO8/(AQ4-AO10) -> 0 | AQ8: =IF(AP8=0,0,(AP8*((LOG(AP8))/LOG(2)))) -> 0 | AS8: =N8 -> 112 | AT8: =COUNTIF(L146:L173,AS8) -> 0 | AU8: =AT8/(AV4-AT10) -> 0 | AV8: =IF(AU8=0,0,(AU8*((LOG(AU8))/LOG(2)))) -> 0
A9: 22 | B9: 350 | C9: 24 | D9: 358 | E9: 14 | F9: 372 | K9: 0 | L9: 221 | N9: 121 | O9: =COUNTIF($L$7:$L$500,N9) -> 0 | P9: =O9/$Q$4 -> 0 | Q9: =IF(P9=0,0,(P9*((LOG(P9))/LOG(2)))) -> 0 | T9: =N9 -> 121 | U9: =COUNTIF(L7:L34,T9) -> 0 | V9: =U9/(W4-U10) -> 0 | W9: =IF(V9=0,0,(V9*((LOG(V9))/LOG(2)))) -> 0 | Y9: =N9 -> 121 | Z9: =COUNTIF(L35:L62,Y9) -> 0 | AA9: =Z9/(AB4-Z10) -> 0 | AB9: =IF(AA9=0,0,(AA9*((LOG(AA9))/LOG(2)))) -> 0 | AD9: =N9 -> 121 | AE9: =COUNTIF(L63:L89,AD9) -> 0 | AF9: =AE9/(AG4-AE10) -> 0 | AG9: =IF(AF9=0,0,(AF9*((LOG(AF9))/LOG(2)))) -> 0 | AI9: =N9 -> 121 | AJ9: =COUNTIF(L90:L117,AI9) -> 0 | AK9: =AJ9/(AL4-AJ10) -> 0 | AL9: =IF(AK9=0,0,(AK9*((LOG(AK9))/LOG(2)))) -> 0 | AN9: =N9 -> 121 | AO9: =COUNTIF(L118:L145,AN9) -> 0 | AP9: =AO9/(AQ4-AO10) -> 0 | AQ9: =IF(AP9=0,0,(AP9*((LOG(AP9))/LOG(2)))) -> 0 | AS9: =N9 -> 121 | AT9: =COUNTIF(L146:L173,AS9) -> 0 | AU9: =AT9/(AV4-AT10) -> 0 | AV9: =IF(AU9=0,0,(AU9*((LOG(AU9))/LOG(2)))) -> 0
A10: 22 | B10: 505 | C10: 13 | D10: 525 | E10: 14 | F10: 537 | K10: 0 | L10: 211 | N10: 122 | O10: =COUNTIF($L$7:$L$500,N10) -> 0 | P10: =O10/$Q$4 -> 0 | Q10: =IF(P10=0,0,(P10*((LOG(P10))/LOG(2)))) -> 0 | T10: =N10 -> 122 | U10: =COUNTIF(L7:L34,T10) -> 0 | Y10: =N10 -> 122 | Z10: =COUNTIF(L35:L62,Y10) -> 0 | AD10: =N10 -> 122 | AE10: =COUNTIF(L63:L89,AD10) -> 0 | AI10: =N10 -> 122 | AJ10: =COUNTIF(L90:L117,AI10) -> 0 | AN10: =N10 -> 122 | AO10: =COUNTIF(L118:L145,AN10) -> 0 | AS10: =N10 -> 122 | AT10: =COUNTIF(L146:L173,AS10) -> 0
A11: 22 | B11: 647 | C11: 13 | D11: 660 | E11: 14 | F11: 672 | K11: 0 | L11: 211 | N11: 211 | O11: =COUNTIF($L$7:$L$500,N11) -> 84 | P11: =O11/$Q$4 -> 0.502994012 | Q11: =IF(P11=0,0,(P11*((LOG(P11))/LOG(2)))) -> -0.498661659 | T11: =N11 -> 211 | U11: =COUNTIF(L7:L34,T11) -> 16 | V11: =U11/(W4-U10) -> 0.5714285714 | W11: =IF(V11=0,0,(V11*((LOG(V11))/LOG(2)))) -> -0.4613456697 | Y11: =N11 -> 211 | Z11: =COUNTIF(L35:L62,Y11) -> 15 | AA11: =Z11/(AB4-Z10) -> 0.5357142857 | AB11: =IF(AA11=0,0,(AA11*((LOG(AA11))/LOG(2)))) -> -0.4823916035 | AD11: =N11 -> 211 | AE11: =COUNTIF(L63:L89,AD11) -> 12 | AF11: =AE11/(AG4-AE10) -> 0.4444444444 | AG11: =IF(AF11=0,0,(AF11*((LOG(AF11))/LOG(2)))) -> -0.5199666673 | AI11: =N11 -> 211 | AJ11: =COUNTIF(L90:L117,AI11) -> 13 | AK11: =AJ11/(AL4-AJ10) -> 0.4642857143 | AL11: =IF(AK11=0,0,(AK11*((LOG(AK11))/LOG(2)))) -> -0.5139249161 | AN11: =N11 -> 211 | AO11: =COUNTIF(L118:L145,AN11) -> 14 | AP11: =AO11/(AQ4-AO10) -> 0.5 | AQ11: =IF(AP11=0,0,(AP11*((LOG(AP11))/LOG(2)))) -> -0.5 | AS11: =N11 -> 211 | AT11: =COUNTIF(L146:L173,AS11) -> 14 | AU11: =AT11/(AV4-AT10) -> 0.5 | AV11: =IF(AU11=0,0,(AU11*((LOG(AU11))/LOG(2)))) -> -0.5
A12: 22 | B12: 779 | C12: 24 | D12: 787 | E12: 14 | F12: 800 | K12: 0 | L12: 221 | N12: 212 | O12: =COUNTIF($L$7:$L$500,N12) -> 0 | P12: =O12/$Q$4 -> 0 | Q12: =IF(P12=0,0,(P12*((LOG(P12))/LOG(2)))) -> 0 | T12: =N12 -> 212 | U12: =COUNTIF(L7:L34,T12) -> 0 | V12: =U12/(W4-U10) -> 0 | W12: =IF(V12=0,0,(V12*((LOG(V12))/LOG(2)))) -> 0 | Y12: =N12 -> 212 | Z12: =COUNTIF(L35:L62,Y12) -> 0 | AA12: =Z12/(AB4-Z10) -> 0 | AB12: =IF(AA12=0,0,(AA12*((LOG(AA12))/LOG(2)))) -> 0 | AD12: =N12 -> 212 | AE12: =COUNTIF(L63:L89,AD12) -> 0 | AF12: =AE12/(AG4-AE10) -> 0 | AG12: =IF(AF12=0,0,(AF12*((LOG(AF12))/LOG(2)))) -> 0 | AI12: =N12 -> 212 | AJ12: =COUNTIF(L90:L117,AI12) -> 0 | AK12: =AJ12/(AL4-AJ10) -> 0 | AL12: =IF(AK12=0,0,(AK12*((LOG(AK12))/LOG(2)))) -> 0 | AN12: =N12 -> 212 | AO12: =COUNTIF(L118:L145,AN12) -> 0 | AP12: =AO12/(AQ4-AO10) -> 0 | AQ12: =IF(AP12=0,0,(AP12*((LOG(AP12))/LOG(2)))) -> 0 | AS12: =N12 -> 212 | AT12: =COUNTIF(L146:L173,AS12) -> 0 | AU12: =AT12/(AV4-AT10) -> 0 | AV12: =IF(AU12=0,0,(AU12*((LOG(AU12))/LOG(2)))) -> 0
A13: 22 | B13: 927 | C13: 13 | D13: 942 | E13: 14 | F13: 952 | K13: 0 | L13: 211 | N13: 221 | O13: =COUNTIF($L$7:$L$500,N13) -> 26 | P13: =O13/$Q$4 -> 0.1556886228 | Q13: =IF(P13=0,0,(P13*((LOG(P13))/LOG(2)))) -> -0.4177537661 | T13: =N13 -> 221 | U13: =COUNTIF(L7:L34,T13) -> 4 | V13: =U13/(W4-U10) -> 0.1428571429 | W13: =IF(V13=0,0,(V13*((LOG(V13))/LOG(2)))) -> -0.4010507032 | Y13: =N13 -> 221 | Z13: =COUNTIF(L35:L62,Y13) -> 1 | AA13: =Z13/(AB4-Z10) -> 0.03571428571 | AB13: =IF(AA13=0,0,(AA13*((LOG(AA13))/LOG(2)))) -> -0.1716912472 | AD13: =N13 -> 221 | AE13: =COUNTIF(L63:L89,AD13) -> 7 | AF13: =AE13/(AG4-AE10) -> 0.2592592593 | AG13: =IF(AF13=0,0,(AF13*((LOG(AF13))/LOG(2)))) -> -0.5049158541 | AI13: =N13 -> 221 | AJ13: =COUNTIF(L90:L117,AI13) -> 6 | AK13: =AJ13/(AL4-AJ10) -> 0.2142857143 | AL13: =IF(AK13=0,0,(AK13*((LOG(AK13))/LOG(2)))) -> -0.4762269474 | AN13: =N13 -> 221 | AO13: =COUNTIF(L118:L145,AN13) -> 4 | AP13: =AO13/(AQ4-AO10) -> 0.1428571429 | AQ13: =IF(AP13=0,0,(AP13*((LOG(AP13))/LOG(2)))) -> -0.4010507032 | AS13: =N13 -> 221 | AT13: =COUNTIF(L146:L173,AS13) -> 4 | AU13: =AT13/(AV4-AT10) -> 0.1428571429 | AV13: =IF(AU13=0,0,(AU13*((LOG(AU13))/LOG(2)))) -> -0.4010507032
A14: 22 | B14: 1060 | C14: 24 | D14: 1068 | E14: 14 | F14: 1082 | K14: 0 | L14: 221 | N14: 222 | O14: =COUNTIF($L$7:$L$500,N14) -> 6 | P14: =O14/$Q$4 -> 0.03592814371 | Q14: =IF(P14=0,0,(P14*((LOG(P14))/LOG(2)))) -> -0.1724098847 | T14: =N14 -> 222 | U14: =COUNTIF(L7:L34,T14) -> 0 | V14: =U14/(W4-U10) -> 0 | W14: =IF(V14=0,0,(V14*((LOG(V14))/LOG(2)))) -> 0 | Y14: =N14 -> 222 | Z14: =COUNTIF(L35:L62,Y14) -> 0 | AA14: =Z14/(AB4-Z10) -> 0 | AB14: =IF(AA14=0,0,(AA14*((LOG(AA14))/LOG(2)))) -> 0 | AD14: =N14 -> 222 | AE14: =COUNTIF(L63:L89,AD14) -> 2 | AF14: =AE14/(AG4-AE10) -> 0.07407407407 | AG14: =IF(AF14=0,0,(AF14*((LOG(AF14))/LOG(2)))) -> -0.278139815 | AI14: =N14 -> 222 | AJ14: =COUNTIF(L90:L117,AI14) -> 3 | AK14: =AJ14/(AL4-AJ10) -> 0.1071428571 | AL14: =IF(AK14=0,0,(AK14*((LOG(AK14))/LOG(2)))) -> -0.3452563309 | AN14: =N14 -> 222 | AO14: =COUNTIF(L118:L145,AN14) -> 0 | AP14: =AO14/(AQ4-AO10) -> 0 | AQ14: =IF(AP14=0,0,(AP14*((LOG(AP14))/LOG(2)))) -> 0 | AS14: =N14 -> 222 | AT14: =COUNTIF(L146:L173,AS14) -> 1 | AU14: =AT14/(AV4-AT10) -> 0.03571428571 | AV14: =IF(AU14=0,0,(AU14*((LOG(AU14))/LOG(2)))) -> -0.1716912472
A15: 22 | B15: 1199 | C15: 13 | D15: 1216 | E15: 14 | F15: 1227 | K15: 0 | L15: 211 | P15: =SUM(P7:P14) -> 1 | Q15: =-SUM(Q7:Q14) -> 1.611431456 | V15: =SUM(V7:V14) -> 1 | W15: =-SUM(W7:W14) -> 1.378783493 | AA15: =SUM(AA7:AA14) -> 1 | AB15: =-SUM(AB7:AB14) -> 1.177965317 | AF15: =SUM(AF7:AF14) -> 1 | AG15: =-SUM(AG7:AG14) -> 1.785227892 | AK15: =SUM(AK7:AK14) -> 1 | AL15: =-SUM(AL7:AL14) -> 1.811635142 | AP15: =SUM(AP7:AP14) -> 1 | AQ15: =-SUM(AQ7:AQ14) -> 1.431560284 | AU15: =SUM(AU7:AU14) -> 1 | AV15: =-SUM(AV7:AV14) -> 1.599058711
A16: 11 | B16: 1355 | C16: 11 | D16: 1363 | E16: 12 | F16: 1376 | K16: 0 | L16: 111 | P16: U= | Q16: =Q15/(LOG(Q4)/LOG(2)) -> 0.2182416024 | V16: U1= | W16: =W15/(LOG(W4)/LOG(2)) -> 0.2868070937 | AA16: U2= | AB16: =AB15/(LOG(AB4)/LOG(2)) -> 0.2450339815 | AF16: U3= | AG16: =AG15/(LOG(AG4)/LOG(2)) -> 0.3754511314 | AK16: U4= | AL16: =AL15/(LOG(AL4)/LOG(2)) -> 0.3768465552 | AP16: U5= | AQ16: =AQ15/(LOG(AQ4)/LOG(2)) -> 0.2977854366 | AU16: U6= | AV16: =AV15/(LOG(AV4)/LOG(2)) -> 0.3326275543
A17: 22 | B17: 1492 | C17: 13 | D17: 1504 | E17: 14 | F17: 1513 | K17: 0 | L17: 211
A18: 22 | B18: 1618 | C18: 13 | D18: 1639 | E18: 14 | F18: 1647 | K18: 0 | L18: 211
A19: 22 | B19: 1751 | C19: 13 | D19: 1765 | E19: 14 | F19: 1774 | K19: 0 | L19: 211 | N19: Total Target Seq
A20: 11 | B20: 1888 | C20: 11 | D20: 1895 | E20: 12 | F20: 1907 | K20: 0 | L20: 111 | N20: =COUNTIF(L7:L173,G3) -> 0 | P20: 28 | Q20: 28 | R20: 27 | S20: 28 | T20: 28 | U20: 28
A21: 11 | B21: 2013 | C21: 11 | D21: 2020 | E21: 12 | F21: 2032 | K21: 0 | L21: 111 | P21: % of reinforcement given in 6 equal intervals based on number of trials
A22: 22 | B22: 2156 | C22: 13 | D22: 2169 | E22: 14 | F22: 2181 | K22: 0 | L22: 211 | P22: %_1 | Q22: %_2 | R22: %_3 | S22: %_4 | T22: %_5 | U22: %_6
A23: 11 | B23: 2298 | C23: 11 | D23: 2307 | E23: 12 | F23: 2319 | K23: 0 | L23: 111 | O23: target sequence | P23: =$G$3 -> 122 | Q23: =$G$3 -> 122 | R23: =$G$3 -> 122 | S23: =$G$3 -> 122 | T23: =$G$3 -> 122 | U23: =$G$3 -> 122
A24: 22 | B24: 2429 | C24: 13 | D24: 2437 | E24: 14 | F24: 2443 | K24: 0 | L24: 211 | O24: total reinforcement | P24: =U10 -> 0 | Q24: =Z10 -> 0 | R24: =AE10 -> 0 | S24: =AJ10 -> 0 | T24: =AO10 -> 0 | U24: =AT10 -> 0
A25: 11 | B25: 2568 | C25: 11 | D25: 2579 | E25: 12 | F25: 2590 | K25: 0 | L25: 111 | O25: % target
A26: 22 | B26: 2686 | C26: 13 | D26: 2702 | E26: 14 | F26: 2712 | K26: 0 | L26: 211 | O26: CCRF
A27: 22 | B27: 2815 | C27: 13 | D27: 2830 | E27: 14 | F27: 2839 | K27: 0 | L27: 211 | O27: % CCRf
A28: 22 | B28: 2942 | C28: 24 | D28: 2949 | E28: 14 | F28: 2963 | K28: 0 | L28: 221 | O28: average response rate | P28: =F34/P20 -> 134.6785714 | Q28: =(F62-F34)/Q20 -> 137.4642857 | R28: =(F89-F62)/R20 -> 135.7037037 | S28: =(F117-F89)/S20 -> 157.4642857 | T28: =(F145-F117)/T20 -> 151.2142857 | U28: =(F173-F145)/U20 -> 142.9285714
A29: 22 | B29: 3067 | C29: 13 | D29: 3077 | E29: 14 | F29: 3085 | K29: 0 | L29: 211
A30: 11 | B30: 3203 | C30: 11 | D30: 3212 | E30: 12 | F30: 3223 | K30: 0 | L30: 111
A31: 22 | B31: 3358 | C31: 13 | D31: 3369 | E31: 14 | F31: 3377 | K31: 0 | L31: 211
A32: 22 | B32: 3483 | C32: 13 | D32: 3507 | E32: 14 | F32: 3517 | K32: 0 | L32: 211
A33: 22 | B33: 3612 | C33: 13 | D33: 3625 | E33: 14 | F33: 3633 | K33: 0 | L33: 211
A34: 11 | B34: 3752 | C34: 11 | D34: 3759 | E34: 12 | F34: 3771 | K34: 0 | L34: 111
A35: 11 | B35: 3887 | C35: 11 | D35: 3895 | E35: 12 | F35: 3905 | K35: 0 | L35: 111
A36: 22 | B36: 4003 | C36: 13 | D36: 4025 | E36: 14 | F36: 4034 | K36: 0 | L36: 211
A37: 11 | B37: 4152 | C37: 11 | D37: 4159 | E37: 12 | F37: 4172 | K37: 0 | L37: 111
A38: 11 | B38: 4292 | C38: 11 | D38: 4299 | E38: 12 | F38: 4313 | K38: 0 | L38: 111
A39: 22 | B39: 4424 | C39: 13 | D39: 4444 | E39: 14 | F39: 4451 | K39: 0 | L39: 211
A40: 11 | B40: 4573 | C40: 11 | D40: 4582 | E40: 12 | F40: 4594 | K40: 0 | L40: 111
A41: 22 | B41: 4700 | C41: 13 | D41: 4720 | E41: 14 | F41: 4728 | K41: 0 | L41: 211
A42: 22 | B42: 4844 | C42: 13 | D42: 4856 | E42: 14 | F42: 4867 | K42: 0 | L42: 211
A43: 22 | B43: 4974 | C43: 13 | D43: 5004 | E43: 14 | F43: 5019 | K43: 0 | L43: 211
A44: 22 | B44: 5125 | C44: 13 | D44: 5141 | E44: 14 | F44: 5149 | K44: 0 | L44: 211
A45: 22 | B45: 5249 | C45: 24 | D45: 5259 | E45: 14 | F45: 5270 | K45: 0 | L45: 221
A46: 22 | B46: 5372 | C46: 13 | D46: 5383 | E46: 14 | F46: 5390 | K46: 0 | L46: 211
A47: 22 | B47: 5494 | C47: 13 | D47: 5505 | E47: 14 | F47: 5514 | K47: 0 | L47: 211
A48: 11 | B48: 5623 | C48: 11 | D48: 5633 | E48: 12 | F48: 5644 | K48: 0 | L48: 111
A49: 11 | B49: 5762 | C49: 11 | D49: 5768 | E49: 12 | F49: 5780 | K49: 0 | L49: 111
A50: 22 | B50: 5878 | C50: 13 | D50: 5902 | E50: 14 | F50: 5910 | K50: 0 | L50: 211
A51: 11 | B51: 6053 | C51: 11 | D51: 6062 | E51: 12 | F51: 6071 | K51: 0 | L51: 111
A52: 11 | B52: 6188 | C52: 11 | D52: 6196 | E52: 12 | F52: 6207 | K52: 0 | L52: 111
A53: 11 | B53: 6364 | C53: 11 | D53: 6374 | E53: 12 | F53: 6385 | K53: 0 | L53: 111
A54: 22 | B54: 6482 | C54: 13 | D54: 6498 | E54: 14 | F54: 6506 | K54: 0 | L54: 211
A55: 11 | B55: 6622 | C55: 11 | D55: 6631 | E55: 12 | F55: 6641 | K55: 0 | L55: 111
A56: 11 | B56: 6763 | C56: 11 | D56: 6772 | E56: 12 | F56: 6784 | K56: 0 | L56: 111
A57: 11 | B57: 6924 | C57: 11 | D57: 6932 | E57: 12 | F57: 6942 | K57: 0 | L57: 111
A58: 22 | B58: 7057 | C58: 13 | D58: 7077 | E58: 14 | F58: 7084 | K58: 0 | L58: 211
A59: 22 | B59: 7191 | C59: 13 | D59: 7212 | E59: 14 | F59: 7222 | K59: 0 | L59: 211
A60: 22 | B60: 7329 | C60: 13 | D60: 7344 | E60: 14 | F60: 7351 | K60: 0 | L60: 211
A61: 22 | B61: 7444 | C61: 13 | D61: 7468 | E61: 14 | F61: 7476 | K61: 0 | L61: 211
A62: 22 | B62: 7595 | C62: 13 | D62: 7611 | E62: 14 | F62: 7620 | K62: 0 | L62: 211
A63: 22 | B63: 7721 | C63: 24 | D63: 7729 | E63: 14 | F63: 7747 | K63: 0 | L63: 221
A64: 11 | B64: 7879 | C64: 11 | D64: 7886 | E64: 12 | F64: 7898 | K64: 0 | L64: 111
A65: 22 | B65: 7995 | C65: 13 | D65: 8014 | E65: 14 | F65: 8022 | K65: 0 | L65: 211
A66: 22 | B66: 8124 | C66: 24 | D66: 8143 | E66: 14 | F66: 8159 | K66: 0 | L66: 221
A67: 11 | B67: 8278 | C67: 11 | D67: 8288 | E67: 12 | F67: 8299 | K67: 0 | L67: 111
A68: 22 | B68: 8399 | C68: 13 | D68: 8418 | E68: 14 | F68: 8425 | K68: 0 | L68: 211
A69: 22 | B69: 8525 | C69: 13 | D69: 8536 | E69: 14 | F69: 8541 | K69: 0 | L69: 211
A70: 22 | B70: 8662 | C70: 24 | D70: 8745 | E70: 14 | F70: 8762 | K70: 0 | L70: 221
A71: 22 | B71: 8860 | C71: 24 | D71: 8867 | E71: 14 | F71: 8885 | K71: 0 | L71: 221
A72: 22 | B72: 8996 | C72: 13 | D72: 9008 | E72: 14 | F72: 9015 | K72: 0 | L72: 211
A73: 22 | B73: 9109 | C73: 13 | D73: 9127 | E73: 14 | F73: 9133 | K73: 0 | L73: 211
A74: 22 | B74: 9243 | C74: 13 | D74: 9259 | E74: 14 | F74: 9269 | K74: 0 | L74: 211
A75: 22 | B75: 9382 | C75: 24 | D75: 9389 | E75: 23 | F75: 9395 | K75: 0 | L75: 222
A76: 11 | B76: 9509 | C76: 11 | D76: 9516 | E76: 12 | F76: 9528 | K76: 0 | L76: 111
A77: 22 | B77: 9633 | C77: 13 | D77: 9651 | E77: 14 | F77: 9659 | K77: 0 | L77: 211
A78: 22 | B78: 9756 | C78: 24 | D78: 9763 | E78: 14 | F78: 9788 | K78: 0 | L78: 221
A79: 22 | B79: 9889 | C79: 13 | D79: 9910 | E79: 14 | F79: 9921 | K79: 0 | L79: 211
A80: 22 | B80: 10048 | C80: 13 | D80: 10070 | E80: 14 | F80: 10080 | K80: 0 | L80: 211
A81: 22 | B81: 10180 | C81: 24 | D81: 10196 | E81: 14 | F81: 10208 | K81: 0 | L81: 221
A82: 22 | B82: 10313 | C82: 13 | D82: 10323 | E82: 14 | F82: 10331 | K82: 0 | L82: 211
A83: 11 | B83: 10454 | C83: 11 | D83: 10464 | E83: 12 | F83: 10475 | K83: 0 | L83: 111
A84: 22 | B84: 10580 | C84: 24 | D84: 10597 | E84: 14 | F84: 10609 | K84: 0 | L84: 221
A85: 11 | B85: 10743 | C85: 11 | D85: 10753 | E85: 12 | F85: 10767 | K85: 0 | L85: 111
A86: 22 | B86: 10866 | C86: 24 | D86: 10883 | E86: 23 | F86: 10891 | K86: 0 | L86: 222
A87: 11 | B87: 11017 | C87: 11 | D87: 11023 | E87: 12 | F87: 11033 | K87: 0 | L87: 111
A88: 22 | B88: 11134 | C88: 13 | D88: 11151 | E88: 14 | F88: 11158 | K88: 0 | L88: 211
A89: 22 | B89: 11260 | C89: 13 | D89: 11276 | E89: 14 | F89: 11284 | K89: 0 | L89: 211
A90: 22 | B90: 11379 | C90: 13 | D90: 11397 | E90: 14 | F90: 11404 | K90: 0 | L90: 211
A91: 22 | B91: 11513 | C91: 13 | D91: 11524 | E91: 14 | F91: 11531 | K91: 0 | L91: 211
A92: 22 | B92: 11644 | C92: 24 | D92: 11676 | E92: 14 | F92: 11694 | K92: 0 | L92: 221
A93: 22 | B93: 11793 | C93: 24 | D93: 11800 | E93: 14 | F93: 11823 | K93: 0 | L93: 221
A94: 22 | B94: 11928 | C94: 13 | D94: 11953 | E94: 14 | F94: 11960 | K94: 0 | L94: 211
A95: 22 | B95: 12071 | C95: 13 | D95: 12088 | E95: 14 | F95: 12096 | K95: 0 | L95: 211
A96: 11 | B96: 12263 | C96: 11 | D96: 12271 | E96: 12 | F96: 12282 | K96: 0 | L96: 111
A97: 22 | B97: 12384 | C97: 13 | D97: 12406 | E97: 14 | F97: 12414 | K97: 0 | L97: 211
A98: 22 | B98: 12512 | C98: 24 | D98: 12526 | E98: 14 | F98: 12538 | K98: 0 | L98: 221
A99: 22 | B99: 12648 | C99: 13 | D99: 12667 | E99: 14 | F99: 12678 | K99: 0 | L99: 211
A100: 22 | B100: 12789 | C100: 24 | D100: 12809 | E100: 14 | F100: 12817 | K100: 0 | L100: 221
A101: 11 | B101: 12961 | C101: 11 | D101: 12971 | E101: 12 | F101: 12983 | K101: 0 | L101: 111
A102: 22 | B102: 13139 | C102: 13 | D102: 13167 | E102: 14 | F102: 13175 | K102: 0 | L102: 211
A103: 22 | B103: 13287 | C103: 13 | D103: 13310 | E103: 14 | F103: 13319 | K103: 0 | L103: 211
A104: 22 | B104: 13423 | C104: 24 | D104: 13434 | E104: 23 | F104: 13448 | K104: 0 | L104: 222
A105: 22 | B105: 13557 | C105: 24 | D105: 13566 | E105: 14 | F105: 13584 | K105: 0 | L105: 221
A106: 22 | B106: 13922 | C106: 13 | D106: 13942 | E106: 14 | F106: 13953 | K106: 0 | L106: 211
A107: 22 | B107: 14060 | C107: 24 | D107: 14068 | E107: 23 | F107: 14078 | K107: 0 | L107: 222
A108: 22 | B108: 14289 | C108: 13 | D108: 14311 | E108: 14 | F108: 14321 | K108: 0 | L108: 211
A109: 22 | B109: 14435 | C109: 13 | D109: 14447 | E109: 14 | F109: 14455 | K109: 0 | L109: 211
A110: 11 | B110: 14579 | C110: 11 | D110: 14586 | E110: 12 | F110: 14597 | K110: 0 | L110: 111
A111: 22 | B111: 14719 | C111: 24 | D111: 14727 | E111: 23 | F111: 14739 | K111: 0 | L111: 222
A112: 22 | B112: 14895 | C112: 13 | D112: 14911 | E112: 14 | F112: 14921 | K112: 0 | L112: 211
A113: 22 | B113: 15028 | C113: 24 | D113: 15035 | E113: 14 | F113: 15058 | K113: 0 | L113: 221
A114: 11 | B114: 15198 | C114: 11 | D114: 15206 | E114: 12 | F114: 15217 | K114: 0 | L114: 111
A115: 11 | B115: 15371 | C115: 11 | D115: 15380 | E115: 12 | F115: 15393 | K115: 0 | L115: 111
A116: 11 | B116: 15528 | C116: 11 | D116: 15540 | E116: 12 | F116: 15552 | K116: 0 | L116: 111
A117: 22 | B117: 15665 | C117: 13 | D117: 15685 | E117: 14 | F117: 15693 | K117: 0 | L117: 211
A118: 11 | B118: 15830 | C118: 11 | D118: 15838 | E118: 12 | F118: 15849 | K118: 0 | L118: 111
A119: 22 | B119: 15972 | C119: 24 | D119: 15977 | E119: 14 | F119: 15988 | K119: 0 | L119: 221
A120: 22 | B120: 16098 | C120: 13 | D120: 16131 | E120: 14 | F120: 16139 | K120: 0 | L120: 211
A121: 22 | B121: 16242 | C121: 13 | D121: 16259 | E121: 14 | F121: 16266 | K121: 0 | L121: 211
A122: 22 | B122: 16380 | C122: 13 | D122: 16397 | E122: 14 | F122: 16408 | K122: 0 | L122: 211
A123: 22 | B123: 16515 | C123: 13 | D123: 16533 | E123: 14 | F123: 16540 | K123: 0 | L123: 211
A124: 22 | B124: 16649 | C124: 13 | D124: 16669 | E124: 14 | F124: 16677 | K124: 0 | L124: 211
A125: 22 | B125: 16787 | C125: 13 | D125: 16798 | E125: 14 | F125: 16806 | K125: 0 | L125: 211
A126: 22 | B126: 16930 | C126: 24 | D126: 16936 | E126: 14 | F126: 16951 | K126: 0 | L126: 221
A127: 22 | B127: 17064 | C127: 13 | D127: 17080 | E127: 14 | F127: 17091 | K127: 0 | L127: 211
A128: 11 | B128: 17350 | C128: 11 | D128: 17362 | E128: 12 | F128: 17374 | K128: 0 | L128: 111
A129: 22 | B129: 17488 | C129: 13 | D129: 17503 | E129: 14 | F129: 17510 | K129: 0 | L129: 211
A130: 22 | B130: 17620 | C130: 13 | D130: 17633 | E130: 14 | F130: 17641 | K130: 0 | L130: 211
A131: 11 | B131: 17769 | C131: 11 | D131: 17781 | E131: 12 | F131: 17792 | K131: 0 | L131: 111
A132: 22 | B132: 17929 | C132: 13 | D132: 17950 | E132: 14 | F132: 17959 | K132: 0 | L132: 211
A133: 22 | B133: 18088 | C133: 13 | D133: 18103 | E133: 14 | F133: 18110 | K133: 0 | L133: 211
A134: 22 | B134: 18225 | C134: 13 | D134: 18237 | E134: 14 | F134: 18245 | K134: 0 | L134: 211
A135: 11 | B135: 18368 | C135: 11 | D135: 18376 | E135: 12 | F135: 18387 | K135: 0 | L135: 111
A136: 11 | B136: 18516 | C136: 11 | D136: 18524 | E136: 12 | F136: 18535 | K136: 0 | L136: 111
A137: 11 | B137: 18665 | C137: 11 | D137: 18674 | E137: 12 | F137: 18688 | K137: 0 | L137: 111
A138: 22 | B138: 18829 | C138: 24 | D138: 18837 | E138: 14 | F138: 18848 | K138: 0 | L138: 221
A139: 11 | B139: 19000 | C139: 11 | D139: 19012 | E139: 12 | F139: 19023 | K139: 0 | L139: 111
A140: 22 | B140: 19139 | C140: 13 | D140: 19153 | E140: 14 | F140: 19162 | K140: 0 | L140: 211
A141: 22 | B141: 19291 | C141: 24 | D141: 19299 | E141: 14 | F141: 19310 | K141: 0 | L141: 221
A142: 22 | B142: 19423 | C142: 13 | D142: 19434 | E142: 14 | F142: 19442 | K142: 0 | L142: 211
A143: 11 | B143: 19561 | C143: 11 | D143: 19569 | E143: 12 | F143: 19582 | K143: 0 | L143: 111
A144: 11 | B144: 19753 | C144: 11 | D144: 19762 | E144: 12 | F144: 19773 | K144: 0 | L144: 111
A145: 11 | B145: 19904 | C145: 11 | D145: 19916 | E145: 12 | F145: 19927 | K145: 0 | L145: 111
A146: 22 | B146: 20044 | C146: 13 | D146: 20059 | E146: 14 | F146: 20070 | K146: 0 | L146: 211
A147: 11 | B147: 20200 | C147: 11 | D147: 20207 | E147: 12 | F147: 20219 | K147: 0 | L147: 111
A148: 22 | B148: 20323 | C148: 24 | D148: 20331 | E148: 14 | F148: 20341 | K148: 0 | L148: 221
A149: 11 | B149: 20481 | C149: 11 | D149: 20492 | E149: 12 | F149: 20504 | K149: 0 | L149: 111
A150: 11 | B150: 20645 | C150: 11 | D150: 20653 | E150: 12 | F150: 20664 | K150: 0 | L150: 111
A151: 11 | B151: 20804 | C151: 11 | D151: 20817 | E151: 12 | F151: 20827 | K151: 0 | L151: 111
A152: 22 | B152: 20931 | C152: 24 | D152: 20937 | E152: 14 | F152: 20954 | K152: 0 | L152: 221
A153: 22 | B153: 21071 | C153: 13 | D153: 21085 | E153: 14 | F153: 21095 | K153: 0 | L153: 211
A154: 11 | B154: 21290 | C154: 11 | D154: 21298 | E154: 12 | F154: 21310 | K154: 0 | L154: 111
A155: 22 | B155: 21422 | C155: 24 | D155: 21429 | E155: 23 | F155: 21443 | K155: 0 | L155: 222
A156: 11 | B156: 21571 | C156: 11 | D156: 21579 | E156: 12 | F156: 21591 | K156: 0 | L156: 111
A157: 22 | B157: 21705 | C157: 13 | D157: 21723 | E157: 14 | F157: 21731 | K157: 0 | L157: 211
A158: 22 | B158: 21833 | C158: 24 | D158: 21838 | E158: 14 | F158: 21855 | K158: 0 | L158: 221
A159: 22 | B159: 21994 | C159: 13 | D159: 22002 | E159: 14 | F159: 22010 | K159: 0 | L159: 211
A160: 22 | B160: 22137 | C160: 13 | D160: 22147 | E160: 14 | F160: 22155 | K160: 0 | L160: 211
A161: 22 | B161: 22267 | C161: 13 | D161: 22283 | E161: 14 | F161: 22292 | K161: 0 | L161: 211
A162: 22 | B162: 22389 | C162: 24 | D162: 22394 | E162: 14 | F162: 22410 | K162: 0 | L162: 221
A163: 11 | B163: 22525 | C163: 11 | D163: 22532 | E163: 12 | F163: 22542 | K163: 0 | L163: 111
A164: 22 | B164: 22641 | C164: 13 | D164: 22653 | E164: 14 | F164: 22661 | K164: 0 | L164: 211
A165: 22 | B165: 22774 | C165: 13 | D165: 22799 | E165: 14 | F165: 22809 | K165: 0 | L165: 211
A166: 11 | B166: 22937 | C166: 11 | D166: 22944 | E166: 12 | F166: 22956 | K166: 0 | L166: 111
A167: 22 | B167: 23055 | C167: 13 | D167: 23073 | E167: 14 | F167: 23081 | K167: 0 | L167: 211
A168: 22 | B168: 23203 | C168: 13 | D168: 23215 | E168: 14 | F168: 23226 | K168: 0 | L168: 211
A169: 22 | B169: 23341 | C169: 13 | D169: 23359 | E169: 14 | F169: 23367 | K169: 0 | L169: 211
A170: 22 | B170: 23474 | C170: 13 | D170: 23492 | E170: 14 | F170: 23502 | K170: 0 | L170: 211
A171: 22 | B171: 23616 | C171: 13 | D171: 23634 | E171: 14 | F171: 23643 | K171: 0 | L171: 211
A172: 11 | B172: 23765 | C172: 11 | D172: 23772 | E172: 12 | F172: 23784 | K172: 0 | L172: 111
A173: 22 | B173: 23903 | C173: 13 | D173: 23922 | E173: 14 | F173: 23929 | K173: 1 | L173: 211

Sheet !MA25A50.095
A1: Report for:!MA25A50.095
A2: Date: | B2: <date>
A3: Hen: | B3: <hen> | F3: Correct Sequence | G3: =Start!J2 -> 122 | P3: Total Sequences in Data | Q3: =4994-COUNTBLANK(L7:L5000) -> 185 | V3: Total Sequences in Block Data | W3: =COUNTA(L7:L37) -> 31 | AA3: Total Sequences in Block Data | AB3: =COUNTA(L38:L68) -> 31 | AF3: Total Sequences in Block Data | AG3: =COUNTA(L69:L98) -> 30 | AK3: Total Sequences in Block Data | AL3: =COUNTA(L99:L129) -> 31 | AP3: Total Sequences in Block Data | AQ3: =COUNTA(L130:L160) -> 31 | AU3: Total Sequences in Block Data | AV3: =COUNTA(L161:L191) -> 31
P4: Total Sequences in Summary | Q4: =SUM(O7:O14) -> 185 | V4: Total Sequences in Block Summary | W4: =SUM(U7:U14) -> 31 | AA4: Total Sequences in Block Summary | AB4: =SUM(Z7:Z14) -> 31 | AF4: Total Sequences in Block Summary | AG4: =SUM(AE7:AE14) -> 30 | AK4: Total Sequences in Block Summary | AL4: =SUM(AJ7:AJ14) -> 31 | AP4: Total Sequences in Block Summary | AQ4: =SUM(AO7:AO14) -> 31 | AU4: Total Sequences in Block Summary | AV4: =SUM(AT7:AT14) -> 31
T5: Block 1 | Y5: Block 2 | AD5: Block 3 | AI5: Block 4 | AN5: Block 5 | AS5: Block 6
A6: Sequence Component 1 | B6: Time 1 | C6: Sequence Component 2 | D6: Time 2 | E6: Sequence Component 3 | F6: Time 3 | G6: Sequence Component 4 | H6: Time 4 | I6: Sequence Component 5 | J6: Time 5 | K6: Correct? 0=No 1=Yes | L6: Sequence | N6: Frequency | P6: Relative Frequency | Q6: Variability | T6: Frequency | V6: Relative Frequency | W6: Variability | Y6: Frequency | AA6: Relative Frequency | AB6: Variability | AD6: Frequency | AF6: Relative Frequency | AG6: Variability | AI6: Frequency | AK6: Relative Frequency | AL6: Variability | AN6: Frequency | AP6: Relative Frequency | AQ6: Variability | AS6: Frequency | AU6: Relative Frequency | AV6: Variability
A7: 22 | B7: 18 | C7: 13 | D7: 39 | E7: 14 | F7: 49 | K7: 0 | L7: 211 | N7: 111 | O7: =COUNTIF($L$7:$L$500,N7) -> 97 | P7: =O7/$Q$4 -> 0.5243243243 | Q7: =IF(P7=0,0,(P7*((LOG(P7))/LOG(2)))) -> -0.4883916539 | T7: =N7 -> 111 | U7: =COUNTIF(L7:L37,T7) -> 15 | V7: =U7/(W4-U10) -> 0.4838709677 | W7: =IF(V7=0,0,(V7*((LOG(V7))/LOG(2)))) -> -0.5067608297 | Y7: =N7 -> 111 | Z7: =COUNTIF(L38:L68,Y7) -> 14 | AA7: =Z7/(AB4-Z10) -> 0.4516129032 | AB7: =IF(AA7=0,0,(AA7*((LOG(AA7))/LOG(2)))) -> -0.5179283689 | AD7: =N7 -> 111 | AE7: =COUNTIF(L69:L98,AD7) -> 15 | AF7: =AE7/(AG4-AE10) -> 0.5 | AG7: =IF(AF7=0,0,(AF7*((LOG(AF7))/LOG(2)))) -> -0.5 | AI7: =N7 -> 111 | AJ7: =COUNTIF(L99:L129,AI7) -> 17 | AK7: =AJ7/(AL4-AJ10) -> 0.5483870968 | AL7: =IF(AK7=0,0,(AK7*((LOG(AK7))/LOG(2)))) -> -0.4753054508 | AN7: =N7 -> 111 | AO7: =COUNTIF(L130:L160,AN7) -> 16 | AP7: =AO7/(AQ4-AO10) -> 0.5161290323 | AQ7: =IF(AP7=0,0,(AP7*((LOG(AP7))/LOG(2)))) -> -0.4924884183 | AS7: =N7 -> 111 | AT7: =COUNTIF(L161:L191,AS7) -> 20 | AU7: =AT7/(AV4-AT10) -> 0.6451612903 | AV7: =IF(AU7=0,0,(AU7*((LOG(AU7))/LOG(2)))) -> -0.4079149777
A8: 11 | B8: 175 | C8: 11 | D8: 193 | E8: 12 | F8: 250 | K8: 0 | L8: 111 | N8: 112 | O8: =COUNTIF($L$7:$L$500,N8) -> 0 | P8: =O8/$Q$4 -> 0 | Q8: =IF(P8=0,0,(P8*((LOG(P8))/LOG(2)))) -> 0 | T8: =N8 -> 112 | U8: =COUNTIF(L7:L37,T8) -> 0 | V8: =U8/(W4-U10) -> 0 | W8: =IF(V8=0,0,(V8*((LOG(V8))/LOG(2)))) -> 0 | Y8: =N8 -> 112 | Z8: =COUNTIF(L38:L68,Y8) -> 0 | AA8: =Z8/(AB4-Z10) -> 0 | AB8: =IF(AA8=0,0,(AA8*((LOG(AA8))/LOG(2)))) -> 0 | AD8: =N8 -> 112 | AE8: =COUNTIF(L69:L98,AD8) -> 0 | AF8: =AE8/(AG4-AE10) -> 0 | AG8: =IF(AF8=0,0,(AF8*((LOG(AF8))/LOG(2)))) -> 0 | AI8: =N8 -> 112 | AJ8: =COUNTIF(L99:L129,AI8) -> 0 | AK8: =AJ8/(AL4-AJ10) -> 0 | AL8: =IF(AK8=0,0,(AK8*((LOG(AK8))/LOG(2)))) -> 0 | AN8: =N8 -> 112 | AO8: =COUNTIF(L130:L160,AN8) -> 0 | AP8: =AO8/(AQ4-AO10) -> 0 | AQ8: =IF(AP8=0,0,(AP8*((LOG(AP8))/LOG(2)))) -> 0 | AS8: =N8 -> 112 | AT8: =COUNTIF(L161:L191,AS8) -> 0 | AU8: =AT8/(AV4-AT10) -> 0 | AV8: =IF(AU8=0,0,(AU8*((LOG(AU8))/LOG(2)))) -> 0
A9: 11 | B9: 384 | C9: 11 | D9: 396 | E9: 12 | F9: 409 | K9: 0 | L9: 111 | N9: 121 | O9: =COUNTIF($L$7:$L$500,N9) -> 0 | P9: =O9/$Q$4 -> 0 | Q9: =IF(P9=0,0,(P9*((LOG(P9))/LOG(2)))) -> 0 | T9: =N9 -> 121 | U9: =COUNTIF(L7:L37,T9) -> 0 | V9: =U9/(W4-U10) -> 0 | W9: =IF(V9=0,0,(V9*((LOG(V9))/LOG(2)))) -> 0 | Y9: =N9 -> 121 | Z9: =COUNTIF(L38:L68,Y9) -> 0 | AA9: =Z9/(AB4-Z10) -> 0 | AB9: =IF(AA9=0,0,(AA9*((LOG(AA9))/LOG(2)))) -> 0 | AD9: =N9 -> 121 | AE9: =COUNTIF(L69:L98,AD9) -> 0 | AF9: =AE9/(AG4-AE10) -> 0 | AG9: =IF(AF9=0,0,(AF9*((LOG(AF9))/LOG(2)))) -> 0 | AI9: =N9 -> 121 | AJ9: =COUNTIF(L99:L129,AI9) -> 0 | AK9: =AJ9/(AL4-AJ10) -> 0 | AL9: =IF(AK9=0,0,(AK9*((LOG(AK9))/LOG(2)))) -> 0 | AN9: =N9 -> 121 | AO9: =COUNTIF(L130:L160,AN9) -> 0 | AP9: =AO9/(AQ4-AO10) -> 0 | AQ9: =IF(AP9=0,0,(AP9*((LOG(AP9))/LOG(2)))) -> 0 | AS9: =N9 -> 121 | AT9: =COUNTIF(L161:L191,AS9) -> 0 | AU9: =AT9/(AV4-AT10) -> 0 | AV9: =IF(AU9=0,0,(AU9*((LOG(AU9))/LOG(2)))) -> 0
A10: 22 | B10: 519 | C10: 13 | D10: 532 | E10: 14 | F10: 540 | K10: 0 | L10: 211 | N10: 122 | O10: =COUNTIF($L$7:$L$500,N10) -> 0 | P10: =O10/$Q$4 -> 0 | Q10: =IF(P10=0,0,(P10*((LOG(P10))/LOG(2)))) -> 0 | T10: =N10 -> 122 | U10: =COUNTIF(L7:L37,T10) -> 0 | Y10: =N10 -> 122 | Z10: =COUNTIF(L38:L68,Y10) -> 0 | AD10: =N10 -> 122 | AE10: =COUNTIF(L69:L98,AD10) -> 0 | AI10: =N10 -> 122 | AJ10: =COUNTIF(L99:L129,AI10) -> 0 | AN10: =N10 -> 122 | AO10: =COUNTIF(L130:L160,AN10) -> 0 | AS10: =N10 -> 122 | AT10: =COUNTIF(L161:L191,AS10) -> 0
A11: 22 | B11: 649 | C11: 13 | D11: 662 | E11: 14 | F11: 670 | K11: 0 | L11: 211 | N11: 211 | O11: =COUNTIF($L$7:$L$500,N11) -> 86 | P11: =O11/$Q$4 -> 0.4648648649 | Q11: =IF(P11=0,0,(P11*((LOG(P11))/LOG(2)))) -> -0.5137299281 | T11: =N11 -> 211 | U11: =COUNTIF(L7:L37,T11) -> 15 | V11: =U11/(W4-U10) -> 0.4838709677 | W11: =IF(V11=0,0,(V11*((LOG(V11))/LOG(2)))) -> -0.5067608297 | Y11: =N11 -> 211 | Z11: =COUNTIF(L38:L68,Y11) -> 17 | AA11: =Z11/(AB4-Z10) -> 0.5483870968 | AB11: =IF(AA11=0,0,(AA11*((LOG(AA11))/LOG(2)))) -> -0.4753054508 | AD11: =N11 -> 211 | AE11: =COUNTIF(L69:L98,AD11) -> 14 | AF11: =AE11/(AG4-AE10) -> 0.4666666667 | AG11: =IF(AF11=0,0,(AF11*((LOG(AF11))/LOG(2)))) -> -0.5131166477 | AI11: =N11 -> 211 | AJ11: =COUNTIF(L99:L129,AI11) -> 14 | AK11: =AJ11/(AL4-AJ10) -> 0.4516129032 | AL11: =IF(AK11=0,0,(AK11*((LOG(AK11))/LOG(2)))) -> -0.5179283689 | AN11: =N11 -> 211 | AO11: =COUNTIF(L130:L160,AN11) -> 15 | AP11: =AO11/(AQ4-AO10) -> 0.4838709677 | AQ11: =IF(AP11=0,0,(AP11*((LOG(AP11))/LOG(2)))) -> -0.5067608297 | AS11: =N11 -> 211 | AT11: =COUNTIF(L161:L191,AS11) -> 11 | AU11: =AT11/(AV4-AT10) -> 0.3548387097 | AV11: =IF(AU11=0,0,(AU11*((LOG(AU11))/LOG(2)))) -> -0.5304003745
A12: 22 | B12: 789 | C12: 13 | D12: 801 | E12: 14 | F12: 812 | K12: 0 | L12: 211 | N12: 212 | O12: =COUNTIF($L$7:$L$500,N12) -> 0 | P12: =O12/$Q$4 -> 0 | Q12: =IF(P12=0,0,(P12*((LOG(P12))/LOG(2)))) -> 0 | T12: =N12 -> 212 | U12: =COUNTIF(L7:L37,T12) -> 0 | V12: =U12/(W4-U10) -> 0 | W12: =IF(V12=0,0,(V12*((LOG(V12))/LOG(2)))) -> 0 | Y12: =N12 -> 212 | Z12: =COUNTIF(L38:L68,Y12) -> 0 | AA12: =Z12/(AB4-Z10) -> 0 | AB12: =IF(AA12=0,0,(AA12*((LOG(AA12))/LOG(2)))) -> 0 | AD12: =N12 -> 212 | AE12: =COUNTIF(L69:L98,AD12) -> 0 | AF12: =AE12/(AG4-AE10) -> 0 | AG12: =IF(AF12=0,0,(AF12*((LOG(AF12))/LOG(2)))) -> 0 | AI12: =N12 -> 212 | AJ12: =COUNTIF(L99:L129,AI12) -> 0 | AK12: =AJ12/(AL4-AJ10) -> 0 | AL12: =IF(AK12=0,0,(AK12*((LOG(AK12))/LOG(2)))) -> 0 | AN12: =N12 -> 212 | AO12: =COUNTIF(L130:L160,AN12) -> 0 | AP12: =AO12/(AQ4-AO10) -> 0 | AQ12: =IF(AP12=0,0,(AP12*((LOG(AP12))/LOG(2)))) -> 0 | AS12: =N12 -> 212 | AT12: =COUNTIF(L161:L191,AS12) -> 0 | AU12: =AT12/(AV4-AT10) -> 0 | AV12: =IF(AU12=0,0,(AU12*((LOG(AU12))/LOG(2)))) -> 0
A13: 11 | B13: 930 | C13: 11 | D13: 938 | E13: 12 | F13: 951 | K13: 0 | L13: 111 | N13: 221 | O13: =COUNTIF($L$7:$L$500,N13) -> 2 | P13: =O13/$Q$4 -> 0.01081081081 | Q13: =IF(P13=0,0,(P13*((LOG(P13))/LOG(2)))) -> -0.0706095293 | T13: =N13 -> 221 | U13: =COUNTIF(L7:L37,T13) -> 1 | V13: =U13/(W4-U10) -> 0.03225806452 | W13: =IF(V13=0,0,(V13*((LOG(V13))/LOG(2)))) -> -0.1598127842 | Y13: =N13 -> 221 | Z13: =COUNTIF(L38:L68,Y13) -> 0 | AA13: =Z13/(AB4-Z10) -> 0 | AB13: =IF(AA13=0,0,(AA13*((LOG(AA13))/LOG(2)))) -> 0 | AD13: =N13 -> 221 | AE13: =COUNTIF(L69:L98,AD13) -> 1 | AF13: =AE13/(AG4-AE10) -> 0.03333333333 | AG13: =IF(AF13=0,0,(AF13*((LOG(AF13))/LOG(2)))) -> -0.1635630199 | AI13: =N13 -> 221 | AJ13: =COUNTIF(L99:L129,AI13) -> 0 | AK13: =AJ13/(AL4-AJ10) -> 0 | AL13: =IF(AK13=0,0,(AK13*((LOG(AK13))/LOG(2)))) -> 0 | AN13: =N13 -> 221 | AO13: =COUNTIF(L130:L160,AN13) -> 0 | AP13: =AO13/(AQ4-AO10) -> 0 | AQ13: =IF(AP13=0,0,(AP13*((LOG(AP13))/LOG(2)))) -> 0 | AS13: =N13 -> 221 | AT13: =COUNTIF(L161:L191,AS13) -> 0 | AU13: =AT13/(AV4-AT10) -> 0 | AV13: =IF(AU13=0,0,(AU13*((LOG(AU13))/LOG(2)))) -> 0
A14: 22 | B14: 1060 | C14: 13 | D14: 1073 | E14: 14 | F14: 1078 | K14: 0 | L14: 211 | N14: 222 | O14: =COUNTIF($L$7:$L$500,N14) -> 0 | P14: =O14/$Q$4 -> 0 | Q14: =IF(P14=0,0,(P14*((LOG(P14))/LOG(2)))) -> 0 | T14: =N14 -> 222 | U14: =COUNTIF(L7:L37,T14) -> 0 | V14: =U14/(W4-U10) -> 0 | W14: =IF(V14=0,0,(V14*((LOG(V14))/LOG(2)))) -> 0 | Y14: =N14 -> 222 | Z14: =COUNTIF(L38:L68,Y14) -> 0 | AA14: =Z14/(AB4-Z10) -> 0 | AB14: =IF(AA14=0,0,(AA14*((LOG(AA14))/LOG(2)))) -> 0 | AD14: =N14 -> 222 | AE14: =COUNTIF(L69:L98,AD14) -> 0 | AF14: =AE14/(AG4-AE10) -> 0 | AG14: =IF(AF14=0,0,(AF14*((LOG(AF14))/LOG(2)))) -> 0 | AI14: =N14 -> 222 | AJ14: =COUNTIF(L99:L129,AI14) -> 0 | AK14: =AJ14/(AL4-AJ10) -> 0 | AL14: =IF(AK14=0,0,(AK14*((LOG(AK14))/LOG(2)))) -> 0 | AN14: =N14 -> 222 | AO14: =COUNTIF(L130:L160,AN14) -> 0 | AP14: =AO14/(AQ4-AO10) -> 0 | AQ14: =IF(AP14=0,0,(AP14*((LOG(AP14))/LOG(2)))) -> 0 | AS14: =N14 -> 222 | AT14: =COUNTIF(L161:L191,AS14) -> 0 | AU14: =AT14/(AV4-AT10) -> 0 | AV14: =IF(AU14=0,0,(AU14*((LOG(AU14))/LOG(2)))) -> 0
A15: 22 | B15: 1181 | C15: 13 | D15: 1201 | E15: 14 | F15: 1210 | K15: 0 | L15: 211 | P15: =SUM(P7:P14) -> 1 | Q15: =-SUM(Q7:Q14) -> 1.072731111 | V15: =SUM(V7:V14) -> 1 | W15: =-SUM(W7:W14) -> 1.173334444 | AA15: =SUM(AA7:AA14) -> 1 | AB15: =-SUM(AB7:AB14) -> 0.9932338197 | AF15: =SUM(AF7:AF14) -> 1 | AG15: =-SUM(AG7:AG14) -> 1.176679668 | AK15: =SUM(AK7:AK14) -> 1 | AL15: =-SUM(AL7:AL14) -> 0.9932338197 | AP15: =SUM(AP7:AP14) -> 1 | AQ15: =-SUM(AQ7:AQ14) -> 0.999249248 | AU15: =SUM(AU7:AU14) -> 1 | AV15: =-SUM(AV7:AV14) -> 0.9383153522
A16: 22 | B16: 1315 | C16: 13 | D16: 1338 | E16: 14 | F16: 1347 | K16: 0 | L16: 211 | P16: U= | Q16: =Q15/(LOG(Q4)/LOG(2)) -> 0.1424348397 | V16: U1= | W16: =W15/(LOG(W4)/LOG(2)) -> 0.2368364857 | AA16: U2= | AB16: =AB15/(LOG(AB4)/LOG(2)) -> 0.2004833393 | AF16: U3= | AG16: =AG15/(LOG(AG4)/LOG(2)) -> 0.2398014883 | AK16: U4= | AL16: =AL15/(LOG(AL4)/LOG(2)) -> 0.2004833393 | AP16: U5= | AQ16: =AQ15/(LOG(AQ4)/LOG(2)) -> 0.201697548 | AU16: U6= | AV16: =AV15/(LOG(AV4)/LOG(2)) -> 0.1893980968
A17: 11 | B17: 1447 | C17: 11 | D17: 1455 | E17: 12 | F17: 1464 | K17: 0 | L17: 111
A18: 11 | B18: 1582 | C18: 11 | D18: 1590 | E18: 12 | F18: 1602 | K18: 0 | L18: 111
A19: 11 | B19: 1720 | C19: 11 | D19: 1728 | E19: 12 | F19: 1739 | K19: 0 | L19: 111 | N19: Total Target Seq
A20: 11 | B20: 1855 | C20: 11 | D20: 1862 | E20: 12 | F20: 1874 | K20: 0 | L20: 111 | N20: =COUNTIF(L7:L191,G3) -> 0 | P20: 31 | Q20: 31 | R20: 30 | S20: 31 | T20: 31 | U20: 31
A21: 11 | B21: 1992 | C21: 11 | D21: 2000 | E21: 12 | F21: 2012 | K21: 0 | L21: 111 | P21: % of reinforcement given in 6 equal intervals based on number of trials
A22: 22 | B22: 2116 | C22: 13 | D22: 2128 | E22: 14 | F22: 2136 | K22: 0 | L22: 211 | P22: %_1 | Q22: %_2 | R22: %_3 | S22: %_4 | T22: %_5 | U22: %_6
A23: 22 | B23: 2235 | C23: 13 | D23: 2246 | E23: 14 | F23: 2251 | K23: 0 | L23: 211 | O23: target sequence | P23: =$G$3 -> 122 | Q23: =$G$3 -> 122 | R23: =$G$3 -> 122 | S23: =$G$3 -> 122 | T23: =$G$3 -> 122 | U23: =$G$3 -> 122
A24: 22 | B24: 2352 | C24: 13 | D24: 2363 | E24: 14 | F24: 2369 | K24: 0 | L24: 211 | O24: total reinforcement | P24: =U10 -> 0 | Q24: =Z10 -> 0 | R24: =AE10 -> 0 | S24: =AJ10 -> 0 | T24: =AO10 -> 0 | U24: =AT10 -> 0
A25: 11 | B25: 2490 | C25: 11 | D25: 2498 | E25: 12 | F25: 2510 | K25: 0 | L25: 111 | O25: % target
A26: 11 | B26: 2641 | C26: 11 | D26: 2649 | E26: 12 | F26: 2660 | K26: 0 | L26: 111 | O26: CCRF
A27: 11 | B27: 2771 | C27: 11 | D27: 2779 | E27: 12 | F27: 2792 | K27: 0 | L27: 111 | O27: % CCRf
A28: 22 | B28: 2892 | C28: 13 | D28: 2905 | E28: 14 | F28: 2911 | K28: 0 | L28: 211 | O28: average response rate | P28: =F37/P20 -> 131.4193548 | Q28: =(F68-F37)/Q20 -> 129.1612903 | R28: =(F98-F68)/R20 -> 132.0666667 | S28: =(F129-F98)/S20 -> 127.2903226 | T28: =(F160-F129)/T20 -> 126.2258065 | U28: =(F191-F160)/U20 -> 130.9677419
A29: 22 | B29: 3017 | C29: 13 | D29: 3030 | E29: 14 | F29: 3037 | K29: 0 | L29: 211
A30: 22 | B30: 3139 | C30: 13 | D30: 3150 | E30: 14 | F30: 3160 | K30: 0 | L30: 211
A31: 11 | B31: 3270 | C31: 11 | D31: 3275 | E31: 12 | F31: 3284 | K31: 0 | L31: 111
A32: 11 | B32: 3399 | C32: 11 | D32: 3407 | E32: 12 | F32: 3417 | K32: 0 | L32: 111
A33: 22 | B33: 3509 | C33: 24 | D33: 3534 | E33: 14 | F33: 3543 | K33: 0 | L33: 221
A34: 11 | B34: 3665 | C34: 11 | D34: 3673 | E34: 12 | F34: 3686 | K34: 0 | L34: 111
A35: 22 | B35: 3791 | C35: 13 | D35: 3803 | E35: 14 | F35: 3808 | K35: 0 | L35: 211
A36: 22 | B36: 3919 | C36: 13 | D36: 3929 | E36: 14 | F36: 3935 | K36: 0 | L36: 211
A37: 11 | B37: 4056 | C37: 11 | D37: 4063 | E37: 12 | F37: 4074 | K37: 0 | L37: 111
A38: 11 | B38: 4189 | C38: 11 | D38: 4198 | E38: 12 | F38: 4209 | K38: 0 | L38: 111
A39: 22 | B39: 4305 | C39: 13 | D39: 4315 | E39: 14 | F39: 4320 | K39: 0 | L39: 211
A40: 11 | B40: 4436 | C40: 11 | D40: 4442 | E40: 12 | F40: 4453 | K40: 0 | L40: 111
A41: 22 | B41: 4558 | C41: 13 | D41: 4570 | E41: 14 | F41: 4578 | K41: 0 | L41: 211
A42: 22 | B42: 4680 | C42: 13 | D42: 4692 | E42: 14 | F42: 4700 | K42: 0 | L42: 211
A43: 11 | B43: 4825 | C43: 11 | D43: 4833 | E43: 12 | F43: 4844 | K43: 0 | L43: 111
A44: 22 | B44: 4950 | C44: 13 | D44: 4963 | E44: 14 | F44: 4971 | K44: 0 | L44: 211
A45: 11 | B45: 5082 | C45: 11 | D45: 5089 | E45: 12 | F45: 5098 | K45: 0 | L45: 111
A46: 11 | B46: 5214 | C46: 11 | D46: 5219 | E46: 12 | F46: 5231 | K46: 0 | L46: 111
A47: 22 | B47: 5339 | C47: 13 | D47: 5356 | E47: 14 | F47: 5364 | K47: 0 | L47: 211
A48: 11 | B48: 5480 | C48: 11 | D48: 5487 | E48: 12 | F48: 5496 | K48: 0 | L48: 111
A49: 22 | B49: 5598 | C49: 13 | D49: 5610 | E49: 14 | F49: 5616 | K49: 0 | L49: 211
A50: 22 | B50: 5729 | C50: 13 | D50: 5744 | E50: 14 | F50: 5752 | K50: 0 | L50: 211
A51: 11 | B51: 5868 | C51: 11 | D51: 5877 | E51: 12 | F51: 5888 | K51: 0 | L51: 111
A52: 11 | B52: 6008 | C52: 11 | D52: 6015 | E52: 12 | F52: 6029 | K52: 0 | L52: 111
A53: 11 | B53: 6145 | C53: 11 | D53: 6150 | E53: 12 | F53: 6161 | K53: 0 | L53: 111
A54: 22 | B54: 6257 | C54: 13 | D54: 6275 | E54: 14 | F54: 6281 | K54: 0 | L54: 211
A55: 11 | B55: 6399 | C55: 11 | D55: 6408 | E55: 12 | F55: 6417 | K55: 0 | L55: 111
A56: 22 | B56: 6521 | C56: 13 | D56: 6532 | E56: 14 | F56: 6538 | K56: 0 | L56: 211
A57: 22 | B57: 6650 | C57: 13 | D57: 6659 | E57: 14 | F57: 6665 | K57: 0 | L57: 211
A58: 22 | B58: 6767 | C58: 13 | D58: 6779 | E58: 14 | F58: 6785 | K58: 0 | L58: 211
A59: 22 | B59: 6898 | C59: 13 | D59: 6910 | E59: 14 | F59: 6918 | K59: 0 | L59: 211
A60: 22 | B60: 7022 | C60: 13 | D60: 7031 | E60: 14 | F60: 7036 | K60: 0 | L60: 211
A61: 22 | B61: 7139 | C61: 13 | D61: 7154 | E61: 14 | F61: 7165 | K61: 0 | L61: 211
A62: 11 | B62: 7284 | C62: 11 | D62: 7292 | E62: 12 | F62: 7303 | K62: 0 | L62: 111
A63: 11 | B63: 7417 | C63: 11 | D63: 7423 | E63: 12 | F63: 7434 | K63: 0 | L63: 111
A64: 11 | B64: 7555 | C64: 11 | D64: 7562 | E64: 12 | F64: 7573 | K64: 0 | L64: 111
A65: 11 | B65: 7688 | C65: 11 | D65: 7695 | E65: 12 | F65: 7708 | K65: 0 | L65: 111
A66: 22 | B66: 7811 | C66: 13 | D66: 7823 | E66: 14 | F66: 7829 | K66: 0 | L66: 211
A67: 22 | B67: 7930 | C67: 13 | D67: 7942 | E67: 14 | F67: 7948 | K67: 0 | L67: 211
A68: 22 | B68: 8057 | C68: 13 | D68: 8069 | E68: 14 | F68: 8078 | K68: 0 | L68: 211
A69: 22 | B69: 8179 | C69: 13 | D69: 8192 | E69: 14 | F69: 8200 | K69: 0 | L69: 211
A70: 22 | B70: 8303 | C70: 13 | D70: 8314 | E70: 14 | F70: 8320 | K70: 0 | L70: 211
A71: 11 | B71: 8435 | C71: 11 | D71: 8440 | E71: 12 | F71: 8453 | K71: 0 | L71: 111
A72: 11 | B72: 8576 | C72: 11 | D72: 8584 | E72: 12 | F72: 8595 | K72: 0 | L72: 111
A73: 22 | B73: 8696 | C73: 13 | D73: 8732 | E73: 14 | F73: 8740 | K73: 0 | L73: 211
A74: 22 | B74: 8846 | C74: 13 | D74: 8857 | E74: 14 | F74: 8865 | K74: 0 | L74: 211
A75: 22 | B75: 8976 | C75: 13 | D75: 8986 | E75: 14 | F75: 8992 | K75: 0 | L75: 211
A76: 22 | B76: 9111 | C76: 13 | D76: 9122 | E76: 14 | F76: 9130 | K76: 0 | L76: 211
A77: 11 | B77: 9247 | C77: 11 | D77: 9255 | E77: 12 | F77: 9264 | K77: 0 | L77: 111
A78: 11 | B78: 9385 | C78: 11 | D78: 9390 | E78: 12 | F78: 9402 | K78: 0 | L78: 111
A79: 22 | B79: 9503 | C79: 13 | D79: 9514 | E79: 14 | F79: 9521 | K79: 0 | L79: 211
A80: 11 | B80: 9638 | C80: 11 | D80: 9646 | E80: 12 | F80: 9657 | K80: 0 | L80: 111
A81: 11 | B81: 9762 | C81: 11 | D81: 9767 | E81: 12 | F81: 9775 | K81: 0 | L81: 111
A82: 11 | B82: 9899 | C82: 11 | D82: 9910 | E82: 12 | F82: 9921 | K82: 0 | L82: 111
A83: 11 | B83: 10035 | C83: 11 | D83: 10040 | E83: 12 | F83: 10048 | K83: 0 | L83: 111
A84: 22 | B84: 10153 | C84: 13 | D84: 10167 | E84: 14 | F84: 10176 | K84: 0 | L84: 211
A85: 11 | B85: 10294 | C85: 11 | D85: 10301 | E85: 12 | F85: 10312 | K85: 0 | L85: 111
A86: 11 | B86: 10440 | C86: 11 | D86: 10448 | E86: 12 | F86: 10460 | K86: 0 | L86: 111
A87: 22 | B87: 10562 | C87: 13 | D87: 10588 | E87: 14 | F87: 10598 | K87: 0 | L87: 211
A88: 22 | B88: 10700 | C88: 13 | D88: 10717 | E88: 14 | F88: 10725 | K88: 0 | L88: 211
A89: 11 | B89: 10844 | C89: 11 | D89: 10851 | E89: 12 | F89: 10863 | K89: 0 | L89: 111
A90: 22 | B90: 10968 | C90: 13 | D90: 10983 | E90: 14 | F90: 10988 | K90: 0 | L90: 211
A91: 22 | B91: 11098 | C91: 13 | D91: 11110 | E91: 14 | F91: 11115 | K91: 0 | L91: 211
A92: 11 | B92: 11236 | C92: 11 | D92: 11251 | E92: 12 | F92: 11261 | K92: 0 | L92: 111
A93: 22 | B93: 11364 | C93: 24 | D93: 11372 | E93: 14 | F93: 11384 | K93: 0 | L93: 221
A94: 22 | B94: 11485 | C94: 13 | D94: 11502 | E94: 14 | F94: 11509 | K94: 0 | L94: 211
A95: 11 | B95: 11638 | C95: 11 | D95: 11646 | E95: 12 | F95: 11655 | K95: 0 | L95: 111
A96: 11 | B96: 11771 | C96: 11 | D96: 11779 | E96: 12 | F96: 11790 | K96: 0 | L96: 111
A97: 22 | B97: 11888 | C97: 13 | D97: 11906 | E97: 14 | F97: 11915 | K97: 0 | L97: 211
A98: 11 | B98: 12027 | C98: 11 | D98: 12032 | E98: 12 | F98: 12040 | K98: 0 | L98: 111
A99: 22 | B99: 12143 | C99: 13 | D99: 12159 | E99: 14 | F99: 12168 | K99: 0 | L99: 211
A100: 11 | B100: 12288 | C100: 11 | D100: 12293 | E100: 12 | F100: 12301 | K100: 0 | L100: 111
A101: 11 | B101: 12422 | C101: 11 | D101: 12430 | E101: 12 | F101: 12440 | K101: 0 | L101: 111
A102: 11 | B102: 12565 | C102: 11 | D102: 12572 | E102: 12 | F102: 12581 | K102: 0 | L102: 111
A103: 11 | B103: 12702 | C103: 11 | D103: 12711 | E103: 12 | F103: 12723 | K103: 0 | L103: 111
A104: 22 | B104: 12824 | C104: 13 | D104: 12845 | E104: 14 | F104: 12854 | K104: 0 | L104: 211
A105: 11 | B105: 12969 | C105: 11 | D105: 12976 | E105: 12 | F105: 12987 | K105: 0 | L105: 111
A106: 11 | B106: 13101 | C106: 11 | D106: 13108 | E106: 12 | F106: 13117 | K106: 0 | L106: 111
A107: 11 | B107: 13233 | C107: 11 | D107: 13239 | E107: 12 | F107: 13247 | K107: 0 | L107: 111
A108: 22 | B108: 13354 | C108: 13 | D108: 13363 | E108: 14 | F108: 13372 | K108: 0 | L108: 211
A109: 11 | B109: 13483 | C109: 11 | D109: 13488 | E109: 12 | F109: 13500 | K109: 0 | L109: 111
A110: 11 | B110: 13607 | C110: 11 | D110: 13612 | E110: 12 | F110: 13621 | K110: 0 | L110: 111
A111: 22 | B111: 13723 | C111: 13 | D111: 13738 | E111: 14 | F111: 13747 | K111: 0 | L111: 211
A112: 11 | B112: 13849 | C112: 11 | D112: 13853 | E112: 12 | F112: 13861 | K112: 0 | L112: 111
A113: 22 | B113: 13961 | C113: 13 | D113: 13971 | E113: 14 | F113: 13976 | K113: 0 | L113: 211
A114: 11 | B114: 14088 | C114: 11 | D114: 14096 | E114: 12 | F114: 14107 | K114: 0 | L114: 111
A115: 22 | B115: 14212 | C115: 13 | D115: 14231 | E115: 14 | F115: 14239 | K115: 0 | L115: 211
A116: 22 | B116: 14340 | C116: 13 | D116: 14352 | E116: 14 | F116: 14360 | K116: 0 | L116: 211
